Workbook

Sheet Source CA-FORM
A1: ANNEE | B1: DATE | C1: Quarter | D1: MOIS | E1: AGENCE | F1: Commercial | G1: FORMATEUR | H1: CLIENT | I1: SITE | J1: DEP | K1: DIR/VPI | L1: Ligne | M1: Famille | N1: Catégorie | O1: CODEFORM | P1: FORMATION | Q1: NB Jours | R1: Nb Heures | S1: Nb Stag | T1: TARIF HT | U1: statut | V1: Commentaires
A2: 2017 | B2: 2017-01-02 | C2: Q1 | D2: janvier | E2: OUEST | F2: ANAIS MORIN | G2: Tbouteiller | H2: avftp | K2: direct | L2: SECOURISME | M2: TRAD | N2: INITIAL | O2: SST01 | P2: SST INITIALE | Q2: 2 | T2: 1410 | U2: C | V2: 02 et 03,01
A3: 2017 | B3: 2017-01-03 | C3: Q1 | D3: janvier | E3: ROUEN | F3: ANAIS MORIN | G3: Tbinet | H3: SODESSAM | K3: direct | L3: SECOURISME | M3: TRAD | N3: INITIAL | O3: SST01 | P3: SST INITIALE | Q3: 2 | R3: 14 | S3: 8 | T3: 1478.28 | U3: C
A4: 2017 | B4: 2017-01-03 | C4: Q1 | D4: janvier | E4: ROUEN | F4: ANAIS MORIN | G4: Jlongfier | H4: SODESSAM | K4: direct | L4: INCENDIE | M4: TRAD | N4: EPI | O4: I03 | P4: EPI - Mise en Œuvre des Extincteurs | T4: 579.09 | U4: C
A5: 2017 | B5: 2017-01-04 | C5: Q1 | D5: janvier | E5: ROUEN | F5: ANAIS MORIN | G5: Jlongfier | H5: CER Stains | I5: STAINS | J5: 93 | K5: direct | L5: SECOURISME | M5: TRAD | N5: AUTO | O5: SST07 | P5: AUTO ECOLE | Q5: 0.5 | R5: 2.5 | S5: 15 | T5: 445 | U5: C
A6: 2017 | B6: 2017-01-04 | C6: Q1 | D6: janvier | E6: NANTERRE | G6: PMarin | H6: HOTEL MIRAMAR | I6: HOTEL MIRAMAR | J6: 56 | K6: vpi | L6: INCENDIE | M6: UM | N6: UM | O6: UMEP | P6: EPI - Mise en Œuvre des Extincteurs | Q6: 2 | T6: =2*2500 -> 5000 | U6: C
A7: 2017 | B7: 2017-01-04 | C7: Q1 | D7: janvier | E7: NANTERRE | G7: JCSicurani | H7: HOTEL MISTER BED | I7: HOTEL MISTER BED | J7: 18 | K7: vpi | L7: INCENDIE | M7: UM | N7: UM | O7: UMDRA | P7: EPI - Mise en Œuvre des Extincteurs | Q7: 0.5 | T7: 603 | U7: C
A8: 2017 | B8: 2017-01-04 | C8: Q1 | D8: janvier | E8: ROUEN | F8: ANAIS MORIN | G8: Pgarin | H8: SODESSAM | K8: direct | L8: RISQUES PROFESSIONNELS | M8: TRAD | N8: GP | O8: RP41 | P8: GESTES ET POSTURES | Q8: 1 | R8: 3+3 | S8: 20 | T8: 1078.64 | U8: C
A9: 2017 | B9: 2017-01-04 | C9: Q1 | D9: janvier | E9: NANTERRE | G9: JFBassereau | H9: TRIDOME | I9: SALAISE | J9: 38 | K9: vpi | L9: INCENDIE | M9: TRAD | N9: EPI | O9: I04 | P9: EPI - Mise en Œuvre des Extincteurs | Q9: 1 | T9: 860 | U9: C
A10: 2017 | B10: 2017-01-04 | C10: Q1 | D10: janvier | E10: OUEST | F10: ANAIS MORIN | G10: Tbouteiller | H10: AVFTP | K10: direct | L10: SECOURISME | M10: TRAD | N10: INITIAL | O10: SST01 | P10: SST INITIALE | Q10: 2 | T10: 1410 | U10: C | V10: 04 et 05,01
A11: 2017 | B11: 2017-01-05 | C11: Q1 | D11: janvier | E11: ROUEN | F11: ANAIS MORIN | G11: Pgarin | H11: AVFTP | K11: direct | L11: INCENDIE | M11: TRAD | N11: EPI | O11: I03 | P11: EPI - Mise en Œuvre des Extincteurs | Q11: 0.5 | R11: 3 | S11: 10 | T11: 789 | U11: C
A12: 2017 | B12: 2017-01-05 | C12: Q1 | D12: janvier | E12: ROUEN | F12: ANAIS MORIN | G12: Pgarin | H12: AVFTP | K12: direct | L12: RISQUES PROFESSIONNELS | M12: TRAD | N12: GP | O12: RP41 | P12: GESTES ET POSTURES | Q12: 0.5 | R12: 3 | S12: 10 | T12: 540 | U12: C
A13: 2017 | B13: 2017-01-05 | C13: Q1 | D13: janvier | E13: ROUEN | F13: jcr | G13: Jlongfier | H13: irfa alencon | I13: ALENCON | J13: 61 | K13: vpi | L13: SECOURISME | M13: TRAD | N13: INITIAL | O13: SST01 | P13: SST INITIALE | Q13: 2 | R13: 14 | S13: 8 | T13: 1542 | U13: C
A14: 2017 | B14: 2017-01-05 | C14: Q1 | D14: janvier | E14: NANTERRE | G14: JCSicurani | H14: NETTO GILSIBER | I14: AULNAY | J14: 93 | K14: vpi | L14: INCENDIE | M14: UM | N14: UM | O14: UMDRA | P14: EPI - Mise en Œuvre des Extincteurs | Q14: 0.5 | T14: 488 | U14: C
A15: 2017 | B15: 2017-01-05 | C15: Q1 | D15: janvier | E15: ROUEN | F15: ANAIS MORIN | G15: Tbinet | H15: SODESSAM | K15: direct | L15: SECOURISME | M15: TRAD | N15: MAC | O15: SST02 | P15: SST MAC | Q15: 1 | R15: 7 | S15: 10 | T15: 739.14 | U15: C
A16: 2017 | B16: 2017-01-06 | C16: Q1 | D16: janvier | E16: ROUEN | F16: ANAIS MORIN | G16: Pgarin | H16: AVFTP | K16: direct | L16: RISQUES PROFESSIONNELS | M16: TRAD | N16: GP | O16: RP41 | P16: GESTES ET POSTURES | Q16: 0.5 | R16: 3 | S16: 7 | T16: 540 | U16: C
A17: 2017 | B17: 2017-01-06 | C17: Q1 | D17: janvier | E17: NANTERRE | G17: Cpequay | H17: CLYDE UNION | I17: ANNECY | J17: 74 | K17: vpi | L17: INCENDIE | M17: UM | N17: UM | O17: UMCM102 | P17: EPI - Mise en Œuvre des Extincteurs | Q17: 1 | T17: 2200 | U17: C
A18: 2017 | B18: 2017-01-06 | C18: Q1 | D18: janvier | E18: NANTERRE | G18: JCSicurani | H18: INITIAL BTB SA | I18: Boulogne billancourt | J18: 92 | K18: vpi | L18: INCENDIE | M18: UM | N18: UM | O18: UMDRA | P18: EPI - Mise en Œuvre des Extincteurs | Q18: 0.5 | T18: 710 | U18: C
A19: 2017 | B19: 2017-01-06 | C19: Q1 | D19: janvier | E19: ROUEN | F19: ANAIS MORIN | G19: Tbinet | H19: sévépi | K19: vpi | L19: INCENDIE | M19: TRAD | N19: EPI | O19: I03 | P19: EPI - Mise en Œuvre des Extincteurs | Q19: 1 | R19: 3+3 | S19: 20 | T19: 1300 | U19: C
A20: 2017 | B20: 2017-01-06 | C20: Q1 | D20: janvier | E20: OUEST | F20: ANAIS MORIN | G20: Tbouteiller | H20: avftp | K20: direct | L20: INCENDIE | M20: TRAD | N20: EPI | O20: I03 | P20: EPI - Mise en Œuvre des Extincteurs | Q20: 0.5 | T20: 789 | U20: C
A21: 2017 | B21: 2017-01-09 | C21: Q1 | D21: janvier | E21: NANTERRE | G21: JFBassereau | H21: AAPHTV | I21: AAPHTV EVEUX | J21: 69 | K21: vpi | L21: INCENDIE | M21: TRAD | N21: EPI | O21: I03 | P21: EPI - Mise en Œuvre des Extincteurs | Q21: 0.5 | T21: 400 | U21: C
A22: 2017 | B22: 2017-01-09 | C22: Q1 | D22: janvier | E22: ROUEN | F22: ANAIS MORIN | G22: Jlongfier | H22: sévépi | K22: vpi | L22: INCENDIE | M22: TRAD | N22: EPI | O22: I03 | P22: EPI - Mise en Œuvre des Extincteurs | Q22: 1 | R22: 3+3 | S22: 20 | T22: 1300 | U22: C
A23: 2017 | B23: 2017-01-09 | C23: Q1 | D23: janvier | E23: ROUEN | F23: ROBIN CHATONEY | G23: Pgarin | H23: hotel aiglon | K23: direct | L23: EVACUATION | M23: TRAD | N23: SENSIBILISATION | O23: I207 | P23: Sensibilisation Evacuation | Q23: 0.5 | R23: 1.5 | S23: 8 | T23: 390 | U23: C
A24: 2017 | B24: 2017-01-10 | C24: Q1 | D24: janvier | E24: NANTERRE | G24: PMarin | H24: AIRPORT COLLEGE | I24: LILLE | J24: 59 | K24: direct | L24: INCENDIE | M24: UM | N24: UM | O24: UMEP | P24: EPI - Mise en Œuvre des Extincteurs | Q24: 1 | T24: 1300 | U24: C
A25: 2017 | B25: 2017-01-10 | C25: Q1 | D25: janvier | E25: ROUEN | F25: ANAIS MORIN | G25: Pgarin | H25: bic techno | K25: vpi | L25: CONDUITE & MANUTENTION | N25: CONDUITE | O25: CM101 | P25: PEMP R386 Cat.1A,3A - Débutants | Q25: 1 | R25: 7 | S25: 3 | T25: 750 | U25: C
A26: 2017 | B26: 2017-01-10 | C26: Q1 | D26: janvier | E26: ROUEN | F26: PREV INCENDIE | G26: Jlongfier | H26: bateau livre lille | K26: vpi | L26: INCENDIE | M26: TRAD | N26: EPI | O26: I03 | P26: EPI - Mise en Œuvre des Extincteurs | Q26: 0.5 | R26: 3 | S26: 8 | T26: 443 | U26: C
A27: 2017 | B27: 2017-01-10 | C27: Q1 | D27: janvier | E27: NANTERRE | G27: Abordes | H27: ORANGE | I27: CAEN | J27: 14 | K27: direct | L27: INCENDIE | M27: UM | N27: UM | O27: UMCM102 | P27: EPI - Mise en Œuvre des Extincteurs | Q27: 1 | T27: 1650 | U27: C
A28: 2017 | B28: 2017-01-10 | C28: Q1 | D28: janvier | E28: NANTERRE | G28: Cpequay | H28: ROADY | I28: SAS VERCORT | J28: 64 | K28: vpi | L28: INCENDIE | M28: UM | N28: UM | O28: UMCM102 | P28: EPI - Mise en Œuvre des Extincteurs | Q28: 0.5 | T28: 443 | U28: C
A29: 2017 | B29: 2017-01-10 | C29: Q1 | D29: janvier | E29: NANTERRE | G29: JFBassereau | H29: UDAF 03 | I29: moulins | J29: 03 | K29: vpi | L29: SECOURISME | M29: TRAD | N29: MAC | O29: SST02 | P29: SST MAC | Q29: 1 | T29: 630 | U29: C
A30: 2017 | B30: 2017-01-10 | C30: Q1 | D30: janvier | E30: ROUEN | F30: ROBIN CHATONEY | H30: hotel place du louvre | K30: direct | L30: EVACUATION | M30: TRAD | N30: SENSIBILISATION | O30: I207 | P30: Sensibilisation Evacuation | U30: C
A31: 2017 | B31: 2017-01-11 | C31: Q1 | D31: janvier | E31: ROUEN | F31: ANAIS MORIN | G31: Pgarin | H31: CER Stains | I31: STAINS | J31: 93 | K31: direct | L31: SECOURISME | M31: TRAD | N31: AUTO | O31: SST07 | P31: AUTO ECOLE | Q31: 0.5 | R31: 2.5 | S31: 14 | T31: 445 | U31: C
A32: 2017 | B32: 2017-01-11 | C32: Q1 | D32: janvier | E32: NANTERRE | G32: JFBassereau | H32: ECOLE PRIVE SAINT PIERRE | J32: 38 | K32: vpi | L32: INCENDIE | M32: TRAD | N32: EPI | O32: I03 | P32: EPI - Mise en Œuvre des Extincteurs | Q32: 0.5 | T32: 430 | U32: C
A33: 2017 | B33: 2017-01-11 | C33: Q1 | D33: janvier | E33: ROUEN | F33: ANAIS MORIN | G33: Jlongfier | H33: taranis | K33: vpi | L33: INCENDIE | M33: TRAD | N33: EPI | O33: I03 | P33: EPI - Mise en Œuvre des Extincteurs | Q33: 0.5 | R33: 3 | S33: 6 | T33: 695 | U33: C
A34: 2017 | B34: 2017-01-11 | C34: Q1 | D34: janvier | E34: NANTERRE | G34: JCSicurani | H34: VILLA MALESHERBES | I34: PARIS 17EME | J34: 75 | K34: direct | L34: EVACUATION | M34: TRAD | N34: SENSIBILISATION | O34: I207 | P34: Sensibilisation Evacuation | Q34: 0.5 | T34: 685 | U34: C
A35: 2017 | B35: 2017-01-12 | C35: Q1 | D35: janvier | E35: ROUEN | F35: ANAIS MORIN | G35: Jlongfier | H35: COPIREL | K35: vpi | L35: SECOURISME | M35: TRAD | N35: INITIAL | O35: SST01 | P35: SST INITIALE | Q35: 2 | R35: 14 | S35: 4 | T35: 1490 | U35: C
A36: 2017 | B36: 2017-01-12 | C36: Q1 | D36: janvier | E36: NANTERRE | G36: Cpequay | H36: BRICOMARCHE | I36: LAROQUE | J36: 31 | K36: vpi | L36: INCENDIE | M36: TRAD | N36: EPI | O36: I03 | P36: EPI - Mise en Œuvre des Extincteurs | Q36: 0.5 | T36: 597 | U36: C
A37: 2017 | B37: 2017-01-12 | C37: Q1 | D37: janvier | E37: NANTERRE | G37: JFBassereau | H37: I.M.E | I37: MONTELEGER | J37: 26 | K37: vpi | L37: INCENDIE | M37: TRAD | N37: EPI | O37: I03 | P37: EPI - Mise en Œuvre des Extincteurs | Q37: 0.5 | T37: 410 | U37: C
A38: 2017 | B38: 2017-01-12 | C38: Q1 | D38: janvier | E38: NANTERRE | G38: Cpequay | H38: BRICOMARCHE | I38: LAROQUE | J38: 31 | K38: vpi | L38: EVACUATION | M38: TRAD | N38: EXERCICE | O38: I203 | P38: Exercice d'évacuation sans fumée | Q38: 0.5 | T38: 471 | U38: C
A39: 2017 | B39: 2017-01-12 | C39: Q1 | D39: janvier | E39: ROUEN | F39: ROBIN CHATONEY | G39: Pgarin | H39: hotel parc st severin | K39: direct | L39: EVACUATION | M39: TRAD | N39: SENSIBILISATION | O39: I207 | P39: Sensibilisation Evacuation | Q39: 0.5 | R39: 1.5 | S39: 11 | T39: 390 | U39: C
A40: 2017 | B40: 2017-01-16 | C40: Q1 | D40: janvier | E40: ROUEN | F40: sfp | G40: Jlongfier | H40: RAMSAY | K40: direct | L40: EVACUATION | M40: TRAD | N40: CHARGE EVAC | O40: I202 | P40: Guides et serres-files | Q40: 1 | R40: 6 | S40: 15 | T40: 1038 | U40: C
A41: 2017 | B41: 2017-01-16 | C41: Q1 | D41: janvier | E41: NANTERRE | G41: JCSicurani | H41: AGEVIE | I41: AGEVIE | J41: 37 | K41: vpi | L41: INCENDIE | M41: TRAD | N41: EPI | O41: I03 | P41: EPI - Mise en Œuvre des Extincteurs | Q41: 0.5 | T41: 371.31 | U41: C
A42: 2017 | B42: 2017-01-16 | C42: Q1 | D42: janvier | E42: OUEST | F42: bouteiller | G42: Tbouteiller | H42: SODIMAC | K42: vpi | L42: INCENDIE | M42: TRAD | N42: EPI | O42: I03 | P42: EPI - Mise en Œuvre des Extincteurs | Q42: 0.5 | T42: 483.05 | U42: C
A43: 2017 | B43: 2017-01-16 | C43: Q1 | D43: janvier | E43: ROUEN | F43: ANAIS MORIN | H43: SODESSAM | K43: direct | L43: SECOURISME | M43: TRAD | N43: MAC | O43: SST02 | P43: SST MAC | R43: 0 | S43: 0 | U43: A
A44: 2017 | B44: 2017-01-16 | C44: Q1 | D44: janvier | E44: ROUEN | F44: ANAIS MORIN | G44: Pgarin | H44: lyovel | K44: vpi | L44: EVACUATION | M44: TRAD | N44: EXERCICE | O44: I204R | P44: Exercice d'évacuation avec fumée | Q44: 0.5 | R44: 2 | S44: 0 | T44: 440 | U44: C
A45: 2017 | B45: 2017-01-16 | C45: Q1 | D45: janvier | E45: ROUEN | F45: ROBIN CHATONEY | G45: Pgarin | H45: hotel st pères | I45: PARIS | J45: 75 | K45: direct | L45: EVACUATION | M45: TRAD | N45: SENSIBILISATION | O45: I207 | P45: Sensibilisation Evacuation | Q45: 0.5 | R45: 1.5 | T45: 390 | U45: C
A46: 2017 | B46: 2017-01-17 | C46: Q1 | D46: janvier | E46: ROUEN | F46: sfp | G46: Pgarin | H46: RAMSAY | K46: direct | L46: EVACUATION | M46: TRAD | N46: CHARGE EVAC | O46: I202 | P46: Guides et serres-files | Q46: 0.5 | R46: 3 | S46: 8 | T46: 519 | U46: C
A47: 2017 | B47: 2017-01-17 | C47: Q1 | D47: janvier | E47: NANTERRE | G47: Nantoine | H47: Centre technique | I47: DUGNY | J47: 93 | K47: vpi | L47: INCENDIE | M47: UM | N47: UM | O47: UMCM202 | P47: EPI - Mise en Œuvre des Extincteurs | Q47: 1 | T47: 2650 | U47: C
A48: 2017 | B48: 2017-01-17 | C48: Q1 | D48: janvier | E48: ROUEN | F48: ANAIS MORIN | G48: Tbinet | H48: mairie de fleury | K48: direct | L48: INCENDIE | M48: TRAD | N48: EPI | O48: I03 | P48: EPI - Mise en Œuvre des Extincteurs | Q48: 0.5 | R48: 3 | S48: 10 | T48: 580 | U48: C
A49: 2017 | B49: 2017-01-17 | C49: Q1 | D49: janvier | E49: NANTERRE | G49: PMarin | H49: NOVANDIE | I49: VIEL MOUTIER | J49: 62 | K49: direct | L49: INCENDIE | M49: UM | N49: UM | O49: UMEP | P49: EPI - Mise en Œuvre des Extincteurs | Q49: 1 | T49: 1908 | U49: C
A50: 2017 | B50: 2017-01-17 | C50: Q1 | D50: janvier | E50: NANTERRE | G50: Abordes | H50: ORANGE | I50: PARIS 10 LA VILLETTE | J50: 75 | K50: direct | L50: INCENDIE | M50: UM | N50: UM | O50: UMEP | P50: EPI - Mise en Œuvre des Extincteurs | Q50: 1 | T50: 1650 | U50: C
A51: 2017 | B51: 2017-01-17 | C51: Q1 | D51: janvier | E51: ROUEN | F51: ANAIS MORIN | G51: Jlongfier | H51: taranis | K51: vpi | L51: INCENDIE | M51: TRAD | N51: EPI | O51: I03 | P51: EPI - Mise en Œuvre des Extincteurs | Q51: 0.5 | R51: 3 | S51: 9 | T51: 695 | U51: C
A52: 2017 | B52: 2017-01-17 | C52: Q1 | D52: janvier | E52: NANTERRE | G52: JFBassereau | H52: Centre Médical Infantile | I52: ROMAGNAT | J52: 63 | K52: vpi | L52: SECOURISME | M52: TRAD | N52: MAC | O52: SST02 | P52: SST MAC | Q52: 1 | T52: 790 | U52: C
A53: 2017 | B53: 2017-01-17 | C53: Q1 | D53: janvier | E53: OUEST | F53: ANAIS MORIN | G53: Tbouteiller | H53: protectas | K53: vpi | L53: SECOURISME | M53: TRAD | N53: INITIAL | O53: SST02 | P53: SST MAC | Q53: 1 | T53: 762 | U53: C
A54: 2017 | B54: 2017-01-18 | C54: Q1 | D54: janvier | E54: ROUEN | F54: ANAIS MORIN | H54: CER Stains | I54: STAINS | J54: 93 | K54: direct | L54: SECOURISME | M54: TRAD | N54: AUTO | O54: SST07 | P54: AUTO ECOLE | U54: C | V54: ANNULE
A55: 2017 | B55: 2017-01-18 | C55: Q1 | D55: janvier | E55: ROUEN | F55: jcr | G55: Jlongfier | H55: irfa alencon | K55: vpi | L55: INCENDIE | M55: TRAD | N55: EPI | O55: I12 | P55: EPI PYROS - Théorie et Pratique | Q55: 0.5 | R55: 2 | S55: 7 | T55: 503.88 | U55: C
A56: 2017 | B56: 2017-01-18 | C56: Q1 | D56: janvier | E56: NANTERRE | G56: JFBassereau | H56: CASA | I56: LA CIOTAT | J56: 13 | K56: vpi | L56: INCENDIE | M56: TRAD | N56: EPI | O56: I03 | P56: EPI - Mise en Œuvre des Extincteurs | Q56: 0.5 | T56: 490 | U56: C
A57: 2017 | B57: 2017-01-18 | C57: Q1 | D57: janvier | E57: NANTERRE | G57: JFBassereau | H57: CASA | I57: LA CIOTAT | J57: 13 | K57: vpi | L57: EVACUATION | M57: TRAD | N57: EXERCICE | O57: I203 | P57: Exercice d'évacuation sans fumée | Q57: 0.5 | T57: 320 | U57: C
A58: 2017 | B58: 2017-01-19 | C58: Q1 | D58: janvier | E58: ROUEN | F58: sfp | G58: Pgarin | H58: mbda | K58: direct | L58: EVACUATION | M58: TRAD | N58: CHARGE EVAC | O58: I202 | P58: Guides et serres-files | Q58: 0.5 | R58: 3 | S58: 7 | T58: 587 | U58: C
A59: 2017 | B59: 2017-01-19 | C59: Q1 | D59: janvier | E59: NANTERRE | G59: PMarin | H59: CABOT CARBONE | I59: LILLEBONNE | J59: 76 | K59: vpi | L59: INCENDIE | M59: UM | N59: UM | O59: UMCM102 | P59: EPI - Mise en Œuvre des Extincteurs | Q59: 0.5 | T59: 1000 | U59: C
A60: 2017 | B60: 2017-01-19 | C60: Q1 | D60: janvier | E60: NANTERRE | G60: Cpequay | H60: INTERMARCHE | I60: ENNEZAT | J60: 63 | K60: vpi | L60: INCENDIE | M60: TRAD | N60: ESI | O60: I100 | P60: ESI Feu Réel - Initial - Théorie et pratique | Q60: 2 | T60: 2482 | U60: C
A61: 2017 | B61: 2017-01-19 | C61: Q1 | D61: janvier | E61: NANTERRE | G61: PMarin | H61: CABOT CARBONE | I61: LILLEBONNE | J61: 76 | K61: vpi | L61: INCENDIE | M61: UM | N61: UM | O61: UMCM104 | P61: EPI - Mise en Œuvre des Extincteurs | Q61: 0.5 | T61: 900 | U61: C
A62: 2017 | B62: 2017-01-19 | C62: Q1 | D62: janvier | E62: NANTERRE | G62: PMarin | H62: LECLERC ORLY DISTRIBUTION | I62: LECLERC ORLY DISTRIBUTION | J62: 94 | K62: vpi | L62: INCENDIE | M62: UM | N62: UM | O62: UMEP | P62: EPI - Mise en Œuvre des Extincteurs | Q62: 1 | T62: 2140 | U62: C
A63: 2017 | B63: 2017-01-19 | C63: Q1 | D63: janvier | E63: NANTERRE | G63: JCSicurani | H63: VILLA MALESHERBES | I63: PARIS 17EME | J63: 75 | K63: direct | L63: INCENDIE | M63: UM | N63: UM | O63: UMDRA | P63: EPI - Mise en Œuvre des Extincteurs | Q63: 0.5 | T63: 1133 | U63: C
A64: 2017 | B64: 2017-01-19 | C64: Q1 | D64: janvier | E64: ROUEN | F64: mpi | G64: Jlongfier | H64: DEDIENNE | K64: vpi | L64: SECOURISME | M64: TRAD | N64: MAC | O64: SST02 | P64: SST MAC | Q64: 1 | R64: 7 | S64: 6 | T64: 810 | U64: C
A65: 2017 | B65: 2017-01-19 | C65: Q1 | D65: janvier | E65: NANTERRE | G65: JFBassereau | H65: SALAISON MERLE | I65: SALAISON MERLE | J65: 42 | K65: vpi | L65: SECOURISME | M65: TRAD | N65: MAC | O65: SST02 | P65: SST MAC | Q65: 1 | T65: 735 | U65: C
A66: 2017 | B66: 2017-01-19 | C66: Q1 | D66: janvier | E66: ROUEN | F66: ROBIN CHATONEY | G66: Tbinet | H66: hotel d orday | K66: direct | L66: EVACUATION | M66: TRAD | N66: SENSIBILISATION | O66: I207 | P66: Sensibilisation Evacuation | Q66: 0.5 | R66: 1.5 | T66: 390 | U66: C
A67: 2017 | B67: 2017-01-20 | C67: Q1 | D67: janvier | E67: OUEST | F67: ANAIS MORIN | G67: Tbouteiller | H67: ROYAL CANIN | K67: vpi | L67: INCENDIE | M67: TRAD | N67: EPI | O67: I03 | P67: EPI - Mise en Œuvre des Extincteurs | Q67: 1 | T67: 800 | U67: C
A68: 2017 | B68: 2017-01-23 | C68: Q1 | D68: janvier | E68: ROUEN | F68: bussy | G68: Tbinet | H68: lapro | K68: vpi | L68: SECOURISME | M68: TRAD | N68: INITIAL | O68: SST01 | P68: SST INITIALE | Q68: 2 | R68: 14 | S68: 6 | T68: 2820 | U68: C
A69: 2017 | B69: 2017-01-23 | C69: Q1 | D69: janvier | E69: NANTERRE | G69: JFBassereau | H69: SATELC | I69: SATELC | J69: 74 | K69: vpi | L69: PROTECTION INDIVIDUELLE | M69: TRAD | N69: ARI | O69: RPI01 | P69: ARI - Initial | Q69: 0.5 | T69: 725 | U69: C
A70: 2017 | B70: 2017-01-23 | C70: Q1 | D70: janvier | E70: ROUEN | F70: coquard | G70: Pgarin | H70: college pablo picasso | K70: vpi | L70: EVACUATION | M70: TRAD | N70: SSI | O70: I206 | P70: Formation à l'utilisation du SSI | Q70: 0.5 | R70: 3 | S70: 8 | T70: 464 | U70: C
A71: 2017 | B71: 2017-01-24 | C71: Q1 | D71: janvier | E71: NANTERRE | G71: JFBassereau | H71: THIMON | I71: MERY | J71: 73 | K71: vpi | L71: EVACUATION | M71: TRAD | N71: CHARGE EVAC | O71: I202 | P71: Guides et serres-files | Q71: 0.5 | T71: 391 | U71: C
A72: 2017 | B72: 2017-01-24 | C72: Q1 | D72: janvier | E72: NANTERRE | G72: Cpequay | H72: ECO TITANIUM | I72: UKAD | J72: 63 | K72: vpi | L72: INCENDIE | M72: UM | N72: UM | O72: UMCM102 | P72: EPI - Mise en Œuvre des Extincteurs | Q72: 0.5 | T72: 960 | U72: C
A73: 2017 | B73: 2017-01-24 | C73: Q1 | D73: janvier | E73: NANTERRE | G73: Cpequay | H73: ECO TITANIUM | I73: UKAD | J73: 63 | K73: vpi | L73: INCENDIE | M73: UM | N73: UM | O73: UMCM102 | P73: EPI - Mise en Œuvre des Extincteurs | Q73: 0.5 | T73: 640 | U73: C
A74: 2017 | B74: 2017-01-24 | C74: Q1 | D74: janvier | E74: ROUEN | F74: sfp | G74: Jlongfier | H74: RAMSAY | K74: direct | L74: SECOURISME | M74: TRAD | N74: MAC | O74: SST02 | P74: SST MAC | Q74: 1 | R74: 7 | S74: 4 | T74: 869 | U74: C
A75: 2017 | B75: 2017-01-25 | C75: Q1 | D75: janvier | E75: ROUEN | F75: ANAIS MORIN | G75: Tbinet | H75: mairie de fleury | K75: direct | L75: EVACUATION | M75: TRAD | N75: CHARGE EVAC | O75: I202 | P75: Guides et serres-files | Q75: 0.5 | R75: 3 | S75: 10 | T75: 420 | U75: C
A76: 2017 | B76: 2017-01-25 | C76: Q1 | D76: janvier | E76: ROUEN | F76: pg | G76: Pgarin | H76: bureau veritas | K76: direct | L76: AUDIT & CONSEIL | N76: AUDIT | Q76: 3 | R76: 21 | S76: 0 | T76: 1962.55 | U76: C
A77: 2017 | B77: 2017-01-25 | C77: Q1 | D77: janvier | E77: ROUEN | F77: ANAIS MORIN | G77: Jlongfier | H77: bronze alu | K77: vpi | L77: INCENDIE | M77: TRAD | N77: EPI | O77: I05 | P77: EPI - Mise en Œuvre des Extincteurs | Q77: 0.5 | R77: 3 | S77: 8+11+4 | T77: 1020 | U77: C
A78: 2017 | B78: 2017-01-25 | C78: Q1 | D78: janvier | E78: NANTERRE | G78: Cpequay | H78: INTERMARCHE | I78: ENNEZAT | J78: 63 | K78: vpi | L78: INCENDIE | M78: TRAD | N78: EPI | O78: I03 | P78: EPI - Mise en Œuvre des Extincteurs | Q78: 0.5 | T78: 433 | U78: C
A79: 2017 | B79: 2017-01-25 | C79: Q1 | D79: janvier | E79: ROUEN | F79: ANAIS MORIN | G79: Tbinet | H79: mairie de fleury | K79: direct | L79: INCENDIE | M79: TRAD | N79: EPI | O79: I03 | P79: EPI - Mise en Œuvre des Extincteurs | Q79: 0.5 | R79: 3 | S79: 10 | T79: 580 | U79: C
A80: 2017 | B80: 2017-01-25 | C80: Q1 | D80: janvier | E80: NANTERRE | G80: JFBassereau | H80: MFR ST BARTHELEMY | I80: MFR ST BARTHELEMY | J80: 38 | K80: vpi | L80: INCENDIE | M80: TRAD | N80: EPI | O80: I03 | P80: EPI - Mise en Œuvre des Extincteurs | Q80: 1 | T80: 910 | U80: C
A81: 2017 | B81: 2017-01-26 | C81: Q1 | D81: janvier | E81: ROUEN | F81: ANAIS MORIN | H81: GREIF | K81: vpi | L81: CONDUITE & MANUTENTION | N81: CONDUITE | O81: CM1 | U81: C
A82: 2017 | B82: 2017-01-26 | C82: Q1 | D82: janvier | E82: NANTERRE | F82: ANAIS MORIN | G82: Cpequay | H82: GREIF | I82: LAUDUN | J82: 30 | K82: vpi | L82: INCENDIE | M82: UM | N82: UM | O82: UMCM102 | P82: EPI - Mise en Œuvre des Extincteurs | Q82: 1 | T82: 1500 | U82: C
A83: 2017 | B83: 2017-01-26 | C83: Q1 | D83: janvier | E83: ROUEN | F83: mpi | G83: Jlongfier | H83: DEDIENNE | K83: vpi | L83: SECOURISME | M83: TRAD | N83: MAC | O83: SST02 | P83: SST MAC | Q83: 1 | R83: 7 | S83: ? | T83: 810 | U83: C
A84: 2017 | B84: 2017-01-26 | C84: Q1 | D84: janvier | E84: ROUEN | F84: ANAIS MORIN | G84: Tbinet | H84: GREIF | K84: vpi | L84: SECOURISME | M84: TRAD | N84: MAC | O84: SST02 | P84: SST MAC | R84: 0 | S84: 1 | T84: 120 | U84: C
A85: 2017 | B85: 2017-01-26 | C85: Q1 | D85: janvier | E85: ROUEN | F85: ANAIS MORIN | G85: Tbinet | H85: lsi | K85: direct | L85: SECOURISME | M85: TRAD | N85: MAC | O85: SST02 | P85: SST MAC | R85: 0 | S85: 2 | T85: 240 | U85: C
A86: 2017 | B86: 2017-01-26 | C86: Q1 | D86: janvier | E86: ROUEN | F86: ANAIS MORIN | G86: Tbinet | H86: SODESSAM | K86: direct | L86: SECOURISME | M86: TRAD | N86: MAC | O86: SST02 | P86: SST MAC | Q86: 1 | R86: 7 | S86: 3 | T86: 660 | U86: C
A87: 2017 | B87: 2017-01-27 | C87: Q1 | D87: janvier | E87: ROUEN | F87: ANAIS MORIN | G87: Jlongfier | H87: paganetti | K87: direct | L87: INCENDIE | M87: TRAD | N87: EPI | O87: I03 | P87: EPI - Mise en Œuvre des Extincteurs | Q87: 1 | R87: 3+3 | S87: 10+12 | T87: 1080 | U87: C
A88: 2017 | B88: 2017-01-30 | C88: Q1 | D88: janvier | E88: ROUEN | F88: ANAIS MORIN | G88: Jlongfier | H88: mf prod saumur | K88: vpi | L88: EVACUATION | M88: TRAD | N88: EXERCICE | O88: I204R | P88: Exercice d'évacuation avec fumée | Q88: 0.5 | R88: 3 | S88: 0 | T88: 930 | U88: C
A89: 2017 | B89: 2017-01-31 | C89: Q1 | D89: janvier | E89: ROUEN | F89: mpi | G89: Jlongfier | H89: chaplet | K89: vpi | L89: INCENDIE | M89: TRAD | N89: EPI | O89: I03 | P89: EPI - Mise en Œuvre des Extincteurs | Q89: 0.5 | R89: 3 | S89: 3 | T89: 375 | U89: C
A90: 2017 | B90: 2017-01-31 | C90: Q1 | D90: janvier | E90: NANTERRE | G90: PMarin | H90: ORANGE | I90: ERAGNY | J90: 95 | K90: direct | L90: INCENDIE | M90: UM | N90: UM | O90: UMEP | P90: EPI - Mise en Œuvre des Extincteurs | Q90: 1 | T90: 1650 | U90: C
A91: 2017 | B91: 2017-01-31 | C91: Q1 | D91: janvier | E91: NANTERRE | G91: JFBassereau | H91: NICOMATIC | I91: BONS EN CHABLAIS | J91: 74 | K91: vpi | L91: SECOURISME | M91: TRAD | N91: MAC | O91: SST02 | P91: SST MAC | Q91: 1 | T91: 876 | U91: C
A92: 2017 | B92: 2017-02-01 | C92: Q1 | D92: février | E92: NANTERRE | G92: Abordes | H92: NOVANDIE | I92: VIEL MOUTIER | J92: 62 | K92: direct | L92: INCENDIE | M92: UM | N92: UM | O92: UMEP | P92: EPI - Mise en Œuvre des Extincteurs | Q92: 1 | R92: 1 | T92: 1908 | U92: C
A93: 2017 | B93: 2017-02-01 | C93: Q1 | D93: février | E93: NANTERRE | G93: Cpequay | H93: CANDIA | I93: CLERMOND-FERRAND | J93: 63 | K93: direct | L93: EVACUATION | M93: TRAD | N93: EXERCICE | O93: I203R | P93: Exercice d'évacuation sans fumée | Q93: 0.5 | T93: 433 | U93: C
A94: 2017 | B94: 2017-02-02 | C94: Q1 | D94: février | E94: ROUEN | F94: ANAIS MORIN | G94: Tbinet | H94: studiosport | K94: direct | L94: SECOURISME | M94: TRAD | N94: INITIAL | O94: SST01 | P94: SST INITIALE | Q94: 2 | R94: 14 | S94: 10 | T94: 1390 | U94: C
A95: 2017 | B95: 2017-02-02 | C95: Q1 | D95: février | E95: ROUEN | F95: smatis | G95: Pgarin | H95: SKF | K95: vpi | L95: CONDUITE & MANUTENTION | N95: CONDUITE | O95: CM402 | P95: Gerbeur à conducteur accompagnant - Recyclage | T95: 650 | U95: C
A96: 2017 | B96: 2017-02-02 | C96: Q1 | D96: février | E96: NANTERRE | G96: PMarin | H96: MBDA France | I96: LE PLESSIS ROBINSON | J96: 92 | K96: direct | L96: INCENDIE | M96: UM | N96: UM | O96: UMEP | P96: EPI - Mise en Œuvre des Extincteurs | Q96: 0.5 | T96: 1164 | U96: C
A97: 2017 | B97: 2017-02-02 | C97: Q1 | D97: février | E97: NANTERRE | G97: JFBassereau | H97: MEDICAL COATING | I97: VAULX-EN-VELIN | J97: 69 | K97: vpi | L97: INCENDIE | M97: TRAD | N97: EPI | O97: I03 | P97: EPI - Mise en Œuvre des Extincteurs | Q97: 0.5 | T97: 490 | U97: C
A98: 2017 | B98: 2017-02-03 | C98: Q1 | D98: février | E98: ROUEN | F98: smatis | G98: Pgarin | H98: tlc | K98: vpi | L98: EVACUATION | M98: TRAD | N98: CHARGE EVAC | O98: I202 | P98: Guides et serres-files | T98: 420 | U98: C
A99: 2017 | B99: 2017-02-03 | C99: Q1 | D99: février | E99: OUEST | F99: bouteiller | G99: Tbouteiller | H99: mr les jardins du castel | K99: vpi | L99: INCENDIE | M99: TRAD | N99: EPI + HORIZ | O99: I13H | P99: EPI + Evacuation Horiz - Ets Santé | Q99: 0.5 | T99: 295 | U99: C
A100: 2017 | B100: 2017-02-06 | C100: Q1 | D100: février | E100: ROUEN | F100: ANAIS MORIN | G100: Jlongfier | H100: bic ecriture | K100: vpi | L100: SECOURISME | M100: TRAD | N100: INITIAL | O100: SST01 | P100: SST INITIALE | Q100: 2 | R100: 14 | S100: 10 | T100: 1760 | U100: C
A101: 2017 | B101: 2017-02-06 | C101: Q1 | D101: février | E101: ROUEN | F101: ANAIS MORIN | G101: Tbinet | H101: sévépi | K101: vpi | L101: SECOURISME | M101: TRAD | N101: INITIAL | O101: SST01 | P101: SST INITIALE | Q101: 2 | R101: 14 | S101: 6 | T101: 1480 | U101: C
A102: 2017 | B102: 2017-02-07 | C102: Q1 | D102: février | E102: NANTERRE | G102: JFBassereau | H102: INTERMARCHE | I102: ENNEZAT | J102: 63 | K102: vpi | L102: SECOURISME | M102: TRAD | N102: INITIAL | O102: SST01 | P102: SST INITIALE | Q102: 2 | T102: 2482 | U102: C
A103: 2017 | B103: 2017-02-07 | C103: Q1 | D103: février | E103: NANTERRE | G103: JCSicurani | H103: EPHAD VILLA D'HERVE | I103: VILLEHERVIERS | J103: 41 | K103: vpi | L103: INCENDIE | M103: TRAD | N103: EPI + HORIZ | O103: I13H | P103: EPI + Evacuation Horiz - Ets Santé | Q103: 0.5 | T103: 659 | U103: C
A104: 2017 | B104: 2017-02-07 | C104: Q1 | D104: février | E104: OUEST | F104: bouteiller | G104: Tbouteiller | H104: residence st roch | K104: vpi | L104: INCENDIE | M104: TRAD | N104: EPI + HORIZ | O104: I13H | P104: EPI + Evacuation Horiz - Ets Santé | Q104: 1 | T104: 780 | U104: C
A105: 2017 | B105: 2017-02-08 | C105: Q1 | D105: février | E105: OUEST | G105: Tbouteiller | H105: college immaculee conception | K105: vpi | L105: EVACUATION | M105: TRAD | N105: SENSIBILISATION | O105: I207 | P105: Sensibilisation Evacuation | Q105: 0.5 | T105: 242 | U105: C
A106: 2017 | B106: 2017-02-09 | C106: Q1 | D106: février | E106: NANTERRE | G106: Cpequay | H106: NOVANDIE | I106: VIEL MOUTIER | J106: 62 | K106: direct | L106: INCENDIE | M106: UM | N106: UM | O106: UMCM105 | P106: EXT & RIA Form Renforcée - Théorie & Pratique | Q106: 1 | R106: 1 | T106: 1908 | U106: C
A107: 2017 | B107: 2017-02-09 | C107: Q1 | D107: février | E107: ROUEN | F107: ROBIN CHATONEY | G107: Jlongfier | H107: villa malesherbes | I107: PARIS | J107: 75 | K107: direct | L107: SECOURISME | M107: TRAD | N107: DAE | O107: SST06 | P107: DAE | T107: 685 | U107: C
A108: 2017 | B108: 2017-02-09 | C108: Q1 | D108: février | E108: NANTERRE | G108: JCSicurani | H108: FONCIA | I108: TOURS | J108: 37 | K108: vpi | L108: INCENDIE | M108: UM | N108: UM | O108: UMDRA | P108: EPI - Mise en Œuvre des Extincteurs | Q108: 1 | T108: 800 | U108: C
A109: 2017 | B109: 2017-02-09 | C109: Q1 | D109: février | E109: NANTERRE | G109: JFBassereau | H109: IPAS | I109: SAINT-PRIEST | J109: 69 | K109: vpi | L109: INCENDIE | M109: TRAD | N109: EPI | O109: I03 | P109: EPI - Mise en Œuvre des Extincteurs | Q109: 0.5 | T109: 504 | U109: C
A110: 2017 | B110: 2017-02-09 | C110: Q1 | D110: février | E110: ROUEN | F110: ANAIS MORIN | G110: Tbinet | H110: COPIREL | K110: vpi | L110: SECOURISME | M110: TRAD | N110: MAC | O110: SST02 | P110: SST MAC | Q110: 1 | R110: 7 | S110: 7 | T110: 730 | U110: C
A111: 2017 | B111: 2017-02-10 | C111: Q1 | D111: février | E111: NANTERRE | G111: JCSicurani | H111: FONCIA | I111: TOURS | J111: 37 | K111: vpi | L111: EVACUATION | M111: TRAD | N111: CHARGE EVAC | O111: I202 | P111: Guides et serres-files | Q111: 0.5 | T111: 440 | U111: C
A112: 2017 | B112: 2017-02-10 | C112: Q1 | D112: février | E112: NANTERRE | G112: JCSicurani | H112: FONCIA | I112: TOURS | J112: 37 | K112: vpi | L112: EVACUATION | M112: TRAD | N112: EXERCICE | O112: I203R | P112: Exercice d'évacuation sans fumée | Q112: 0.5 | T112: 800 | U112: C
A113: 2017 | B113: 2017-02-13 | C113: Q1 | D113: février | E113: NANTERRE | G113: Cpequay | H113: FP ALU | I113: VAULX-EN-VELIN | J113: 69 | K113: vpi | L113: INCENDIE | M113: UM | N113: UM | O113: UMCM102 | P113: EPI - Mise en Œuvre des Extincteurs | Q113: 1 | T113: 2000 | U113: C
A114: 2017 | B114: 2017-02-13 | C114: Q1 | D114: février | E114: ROUEN | F114: ANAIS MORIN | G114: Pgarin | H114: ligue havraise | K114: direct | L114: EVACUATION | M114: TRAD | N114: SSI | O114: I206 | P114: Formation à l'utilisation du SSI | Q114: 0.5 | R114: 3 | S114: 7 | T114: 400 | U114: C
A115: 2017 | B115: 2017-02-14 | C115: Q1 | D115: février | E115: ROUEN | F115: bussy | G115: Pgarin | H115: France horizon | K115: vpi | L115: EVACUATION | M115: TRAD | N115: CHARGE EVAC | O115: I202 | P115: Guides et serres-files | Q115: 0.5 | R115: 3 | S115: 14 | T115: 690 | U115: C
A116: 2017 | B116: 2017-02-14 | C116: Q1 | D116: février | E116: ROUEN | F116: ROBIN CHATONEY | G116: Jlongfier | H116: villa malesherbes | I116: PARIS | J116: 75 | K116: direct | L116: SECOURISME | M116: TRAD | N116: DAE | O116: SST06 | P116: DAE | T116: 685 | U116: C
A117: 2017 | B117: 2017-02-14 | C117: Q1 | D117: février | E117: NANTERRE | G117: JCSicurani | H117: FUAJ | I117: PARIS 20EME | J117: 75 | K117: vpi | L117: INCENDIE | M117: UM | N117: UM | O117: UMDRA | P117: EPI - Mise en Œuvre des Extincteurs | Q117: 0.5 | T117: 545 | U117: C | V117: 1090 / 2
A118: 2017 | B118: 2017-02-14 | C118: Q1 | D118: février | E118: NANTERRE | G118: Cpequay | H118: OPINEL | I118: CHAMBERY | J118: 74 | K118: vpi | L118: INCENDIE | M118: TRAD | N118: EPI | O118: I03 | P118: EPI - Mise en Œuvre des Extincteurs | Q118: 0.5 | T118: 450 | U118: C
A119: 2017 | B119: 2017-02-14 | C119: Q1 | D119: février | E119: ROUEN | F119: ANAIS MORIN | G119: Tbinet | H119: COPIREL | K119: vpi | L119: SECOURISME | M119: TRAD | N119: MAC | O119: SST02 | P119: SST MAC | Q119: 1 | R119: 7 | S119: 7 | T119: 730 | U119: C
A120: 2017 | B120: 2017-02-14 | C120: Q1 | D120: février | E120: NANTERRE | G120: JCSicurani | H120: FUAJ | I120: PARIS 20EME | J120: 75 | K120: vpi | L120: EVACUATION | M120: TRAD | N120: EXERCICE | O120: I203 | P120: Exercice d'évacuation sans fumée | Q120: 0.5 | T120: 545 | U120: C | V120: 1090 / 2
A121: 2017 | B121: 2017-02-15 | C121: Q1 | D121: février | E121: NANTERRE | G121: PMarin | H121: NOVO NORDISK | I121: CHARTRES | J121: 28 | K121: direct | L121: INCENDIE | M121: UM | N121: UM | O121: UMEP | P121: EPI - Mise en Œuvre des Extincteurs | Q121: 2 | T121: =1600*2 -> 3200 | U121: C
A122: 2017 | B122: 2017-02-15 | C122: Q1 | D122: février | E122: NANTERRE | G122: Cpequay | H122: TRIDOME | I122: CREYSSE | J122: 24 | K122: vpi | L122: INCENDIE | M122: TRAD | N122: EPI | O122: I04 + I203 | P122: EPI - Mise en Œuvre des Extincteurs | Q122: 0.5 | T122: 780 | U122: C
A123: 2017 | B123: 2017-02-15 | C123: Q1 | D123: février | E123: OUEST | G123: Tbouteiller | H123: itep marguerite le maitre | K123: vpi | L123: SECOURISME | M123: TRAD | N123: INITIAL | O123: SST02 | P123: SST MAC | Q123: 1 | T123: 535 | U123: C
A124: 2017 | B124: 2017-02-16 | C124: Q1 | D124: février | E124: NANTERRE | G124: JFBassereau | H124: IME LES COLOMBES | I124: VALENCE | J124: 26 | K124: vpi | L124: EVACUATION | M124: TRAD | N124: CHARGE EVAC | O124: I200 | P124: Formation à l'Evacuation des locaux sans fumée | Q124: 0.5 | T124: 410 | U124: C
A125: 2017 | B125: 2017-02-16 | C125: Q1 | D125: février | E125: ROUEN | F125: ANAIS MORIN | G125: Jlongfier | H125: cerp plessis robinson | K125: vpi | L125: SECOURISME | M125: TRAD | N125: MAC | O125: SST02 | P125: SST MAC | Q125: 1 | R125: 7 | S125: 4 | T125: 800 | U125: C
A126: 2017 | B126: 2017-02-17 | C126: Q1 | D126: février | E126: NANTERRE | G126: Cpequay | H126: FAURECIA | I126: NOGENT SUR VERNISSON | J126: 49 | K126: direct | L126: INCENDIE | M126: UM | N126: UM | O126: UMCM105 | P126: EXT & RIA Form Renforcée - Théorie & Pratique | Q126: 1 | T126: 2447 | U126: C
A127: 2017 | B127: 2017-02-20 | C127: Q1 | D127: février | E127: NANTERRE | G127: JFBassereau | H127: NICOMATIC | I127: BON EN CHABLAIS | J127: 74 | K127: vpi | L127: SECOURISME | M127: TRAD | N127: INITIAL | O127: SST01 | P127: SST INITIALE | Q127: 2 | T127: 1471 | U127: C
A128: 2017 | B128: 2017-02-20 | C128: Q1 | D128: février | E128: NANTERRE | G128: Cpequay | H128: FAURECIA | I128: NOGENT SUR VERNISSON | J128: 49 | K128: direct | L128: INCENDIE | M128: UM | N128: UM | O128: UMCM105 | P128: EXT & RIA Form Renforcée - Théorie & Pratique | Q128: 1 | T128: 2447 | U128: C
A129: 2017 | B129: 2017-02-21 | C129: Q1 | D129: février | E129: NANTERRE | G129: Abordes | H129: HYATT REGENCY | I129: PARIS 17 | J129: 75 | K129: direct | L129: INCENDIE | M129: UM | N129: UM | O129: UMEP | P129: EPI - Mise en Œuvre des Extincteurs | Q129: 1 | T129: 1780 | U129: C
A130: 2017 | B130: 2017-02-21 | C130: Q1 | D130: février | E130: NANTERRE | G130: PMarin | H130: ORANGE | I130: SOISY SOUS MONTMORENCY | J130: 95 | K130: direct | L130: INCENDIE | M130: UM | N130: UM | O130: UMEP | P130: EPI - Mise en Œuvre des Extincteurs | Q130: 0.5 | T130: 825 | U130: C
A131: 2017 | B131: 2017-02-21 | C131: Q1 | D131: février | E131: ROUEN | F131: sfp | G131: Tbinet | H131: ESPRIT DE FRANCE | I131: PARIS | J131: 75 | K131: direct | L131: SECOURISME | M131: TRAD | N131: MAC | O131: SST02 | P131: SST MAC | Q131: 1 | R131: 7 | S131: 10 | T131: 861 | U131: C
A132: 2017 | B132: 2017-02-22 | C132: Q1 | D132: février | E132: NANTERRE | G132: PMarin | H132: ANTARGAZ | I132: COURBEVOIE | J132: 92 | K132: direct | L132: INCENDIE | M132: UM | N132: UM | O132: UMEP | P132: EPI - Mise en Œuvre des Extincteurs | Q132: 1 | T132: 2100 | U132: C
A133: 2017 | B133: 2017-02-22 | C133: Q1 | D133: février | E133: NANTERRE | G133: PMarin | H133: ORANGE | I133: SAINT-GERMAIN-EN-LAYE | J133: 78 | K133: direct | L133: INCENDIE | M133: UM | N133: UM | O133: UMEP | P133: EPI - Mise en Œuvre des Extincteurs | Q133: 1 | T133: 1650 | U133: C
A134: 2017 | B134: 2017-02-22 | C134: Q1 | D134: février | E134: ROUEN | F134: sfp | G134: Tbinet | H134: ESPRIT DE FRANCE | I134: PARIS | J134: 75 | K134: direct | L134: SECOURISME | M134: TRAD | N134: MAC | O134: SST02 | P134: SST MAC | Q134: 1 | R134: 7 | S134: 9 | T134: 861 | U134: C
A135: 2017 | B135: 2017-02-23 | C135: Q1 | D135: février | E135: NANTERRE | G135: JFBassereau | H135: ELY GESTION | I135: LYON | J135: 69 | K135: vpi | L135: EVACUATION | M135: TRAD | N135: EXERCICE | O135: I203R | P135: Exercice d'évacuation sans fumée | Q135: 0.5 | T135: 405 | U135: C
A136: 2017 | B136: 2017-02-23 | C136: Q1 | D136: février | E136: ROUEN | F136: sfp | G136: Jlongfier | H136: ESPRIT DE FRANCE | I136: PARIS | J136: 75 | K136: direct | L136: SECOURISME | M136: TRAD | N136: MAC | O136: SST02 | P136: SST MAC | Q136: 1 | R136: 7 | S136: 10 | T136: 861 | U136: C
A137: 2017 | B137: 2017-02-24 | C137: Q1 | D137: février | E137: ROUEN | F137: sfp | G137: Jlongfier | H137: ESPRIT DE FRANCE | I137: PARIS | J137: 75 | K137: direct | L137: SECOURISME | M137: TRAD | N137: MAC | O137: SST02 | P137: SST MAC | Q137: 1 | R137: 7 | S137: 9 | T137: 861 | U137: C
A138: 2017 | B138: 2017-02-27 | C138: Q1 | D138: février | E138: NANTERRE | G138: JFBassereau | H138: CLINIQUE SAINT-CHARLES | I138: LYON | J138: 69 | K138: vpi | L138: INCENDIE | M138: TRAD | N138: EPI + HORIZ | O138: I13H | P138: EPI + Evacuation Horiz - Ets Santé | Q138: 0.5 | T138: 524 | U138: C
A139: 2017 | B139: 2017-02-27 | C139: Q1 | D139: février | E139: ROUEN | F139: smatis | G139: Jlongfier | H139: snme | K139: vpi | L139: INCENDIE | M139: TRAD | N139: EPI | O139: I03 | P139: EPI - Mise en Œuvre des Extincteurs | Q139: 0.5 | R139: 3 | S139: 4 | T139: 565 | U139: C
A140: 2017 | B140: 2017-02-27 | C140: Q1 | D140: février | E140: NANTERRE | G140: JCSicurani | H140: EPHAD VILLA D'HERVE | I140: VILLEHERVIERS | J140: 41 | K140: vpi | L140: EVACUATION | M140: TRAD | N140: EXERCICE | O140: I203R | P140: Exercice d'évacuation sans fumée | Q140: 1 | T140: =659*2 -> 1318 | U140: C
A141: 2017 | B141: 2017-02-27 | C141: Q1 | D141: février | E141: NANTERRE | G141: Malbaladejo | H141: MAC DONALDS | I141: PEYREHORADE | J141: 40 | K141: vpi | L141: EVACUATION | M141: TRAD | N141: EXERCICE | O141: I203R | P141: Exercice d'évacuation sans fumée | Q141: 0.5 | T141: 380 | U141: C
A142: 2017 | B142: 2017-02-28 | C142: Q1 | D142: février | E142: NANTERRE | G142: Abordes | H142: AIRPORT COLLEGE | I142: ROISSY | J142: 93 | K142: direct | L142: INCENDIE | M142: UM | N142: UM | O142: UMEP | P142: EPI - Mise en Œuvre des Extincteurs | Q142: 1 | T142: 1540 | U142: C
A143: 2017 | B143: 2017-03-01 | C143: Q1 | D143: mars | E143: NANTERRE | G143: JFBassereau | H143: ESAT | I143: MOULINS | J143: 03 | K143: vpi | L143: SECOURISME | M143: TRAD | N143: INITIAL | O143: SST01 | P143: SST INITIALE | Q143: 2 | T143: 1324 | U143: C
A144: 2017 | B144: 2017-03-01 | C144: Q1 | D144: mars | E144: NANTERRE | G144: Cpequay | H144: AIRPORT COLLEGE | I144: ROISSY | J144: 93 | K144: direct | L144: RISQUES PROFESSIONNELS | M144: TRAD | N144: PERMIS FEU | O144: RP06 | P144: PERMIS FEU | Q144: 1 | T144: 1200 | U144: C
A145: 2017 | B145: 2017-03-01 | C145: Q1 | D145: mars | E145: NANTERRE | G145: PMarin | H145: AIRPORT COLLEGE | I145: ORLY | J145: 94 | K145: direct | L145: INCENDIE | M145: UM | N145: UM | O145: UMEP | P145: EPI - Mise en Œuvre des Extincteurs | Q145: 1 | T145: 1540 | U145: C
A146: 2017 | B146: 2017-03-01 | C146: Q1 | D146: mars | E146: NANTERRE | G146: JCSicurani | H146: SHAFT BATTERIES | I146: LEVALLOIS-PERRET | J146: 92 | K146: direct | L146: INCENDIE | M146: UM | N146: UM | O146: UMDRA | P146: EPI - Mise en Œuvre des Extincteurs | Q146: 0.5 | T146: 713 | U146: C
A147: 2017 | B147: 2017-03-01 | C147: Q1 | D147: mars | E147: OUEST | F147: ANAIS MORIN | G147: Tbouteiller | H147: maison de retraite st cyr | K147: vpi | L147: INCENDIE | M147: TRAD | N147: EPI | O147: I05 | P147: EPI - Mise en Œuvre des Extincteurs | Q147: 1 | T147: 855 | U147: C
A148: 2017 | B148: 2017-03-01 | C148: Q1 | D148: mars | E148: NANTERRE | G148: JCSicurani | H148: SHAFT BATTERIES | I148: LEVALLOIS-PERRET | J148: 92 | K148: direct | L148: EVACUATION | M148: TRAD | N148: SENSIBILISATION | O148: I207 | P148: Sensibilisation Evacuation | Q148: 0.5 | T148: 346 | U148: C
A149: 2017 | B149: 2017-03-02 | C149: Q1 | D149: mars | E149: NANTERRE | G149: PMarin | H149: ORANGE | I149: VILLABE | J149: 91 | K149: direct | L149: INCENDIE | M149: UM | N149: UM | O149: UMEP | P149: EPI - Mise en Œuvre des Extincteurs | Q149: 1 | T149: 1650 | U149: C
A150: 2017 | B150: 2017-03-02 | C150: Q1 | D150: mars | E150: OUEST | F150: bouteiller | G150: Tbouteiller | H150: ehpad pierre goenvic | K150: vpi | L150: EVACUATION | M150: TRAD | N150: EXERCICE | O150: I203R | P150: Exercice d'évacuation sans fumée | Q150: 0.5 | T150: 324 | U150: C
A151: 2017 | B151: 2017-03-03 | C151: Q1 | D151: mars | E151: OUEST | G151: Tbouteiller | H151: irfa alencon | K151: vpi | L151: EVACUATION | M151: TRAD | N151: EXERCICE | O151: I204R | P151: Exercice d'évacuation avec fumée | Q151: 0.5 | T151: 498.88 | U151: C
A152: 2017 | B152: 2017-03-06 | C152: Q1 | D152: mars | E152: NANTERRE | G152: Cpequay | H152: CENTRE HOSPITALIER | I152: ISSOIRE | J152: 63 | K152: direct | L152: INCENDIE | M152: TRAD | N152: EPI + HORIZ | O152: I13H | P152: EPI + Evacuation Horiz - Ets Santé | Q152: 0.5 | T152: 440 | U152: C
A153: 2017 | B153: 2017-03-06 | C153: Q1 | D153: mars | E153: NANTERRE | G153: JFBassereau | H153: EHPAD château de la Serra | I153: VILETTE D'ANTHON | J153: 38 | K153: vpi | L153: INCENDIE | M153: TRAD | N153: EPI + HORIZ | O153: I13H | P153: EPI + Evacuation Horiz - Ets Santé | Q153: 0.5 | T153: 450 | U153: C
A154: 2017 | B154: 2017-03-06 | C154: Q1 | D154: mars | E154: NANTERRE | G154: JCSicurani | H154: Grand Hotel | I154: TOURS | J154: 37 | K154: vpi | L154: INCENDIE | M154: UM | N154: UM | O154: UMDRA | P154: EPI - Mise en Œuvre des Extincteurs | Q154: 1 | T154: 750 | U154: C
A155: 2017 | B155: 2017-03-07 | C155: Q1 | D155: mars | E155: NANTERRE | G155: JCSicurani | H155: CHR HANSEN | I155: ARPAJON | J155: 91 | K155: direct | L155: INCENDIE | M155: UM | N155: UM | O155: UMDRA | P155: EPI - Mise en Œuvre des Extincteurs | Q155: 1 | T155: 2100 | U155: C
A156: 2017 | B156: 2017-03-07 | C156: Q1 | D156: mars | E156: NANTERRE | G156: PMarin | H156: HP ENTERPRISE | I156: GRENOBLE | J156: 38 | K156: direct | L156: INCENDIE | M156: UM | N156: UM | O156: UMEP | P156: EPI - Mise en Œuvre des Extincteurs | Q156: 0.5 | T156: 1025 | U156: C
A157: 2017 | B157: 2017-03-07 | C157: Q1 | D157: mars | E157: NANTERRE | G157: PMarin | H157: HP INK | I157: GRENOBLE | J157: 38 | K157: direct | L157: INCENDIE | M157: UM | N157: UM | O157: UMEP | P157: EPI - Mise en Œuvre des Extincteurs | Q157: 0.5 | T157: 1025 | U157: C
A158: 2017 | B158: 2017-03-07 | C158: Q1 | D158: mars | E158: NANTERRE | G158: Abordes | H158: NOVANDIE | I158: VIEL MOUTIER | J158: 62 | K158: direct | L158: INCENDIE | M158: UM | N158: UM | O158: UMEP | P158: EPI - Mise en Œuvre des Extincteurs | Q158: 1 | T158: 1908 | U158: C
A159: 2017 | B159: 2017-03-08 | C159: Q1 | D159: mars | E159: NANTERRE | G159: Cpequay | H159: AIRPORT COLLEGE | I159: ROISSY | J159: 93 | K159: direct | L159: RISQUES PROFESSIONNELS | M159: TRAD | N159: PERMIS FEU | O159: RP06 | P159: PERMIS FEU | Q159: 0.5 | T159: 600 | U159: C
A160: 2017 | B160: 2017-03-08 | C160: Q1 | D160: mars | E160: NANTERRE | G160: PMarin | H160: HP ENTERPRISE | I160: ISLE D'ABEAU | J160: 38 | K160: direct | L160: INCENDIE | M160: UM | N160: UM | O160: UMEP | P160: EPI - Mise en Œuvre des Extincteurs | Q160: 0.5 | T160: 1025 | U160: C
A161: 2017 | B161: 2017-03-08 | C161: Q1 | D161: mars | E161: NANTERRE | G161: JFBassereau | H161: CROUS | I161: LYON | J161: 69 | K161: vpi | L161: EVACUATION | M161: TRAD | N161: SSI | O161: I206 | P161: Formation à l'utilisation du SSI | Q161: 0.5 | T161: 800 | U161: C
A162: 2017 | B162: 2017-03-09 | C162: Q1 | D162: mars | E162: OUEST | F162: bouteiller | G162: Tbouteiller | H162: ehpad pierre goenvic | K162: vpi | L162: INCENDIE | M162: TRAD | N162: EPI + HORIZ | O162: I13H | P162: EPI + Evacuation Horiz - Ets Santé | Q162: 0.5 | T162: 390 | U162: C
A163: 2017 | B163: 2017-03-09 | C163: Q1 | D163: mars | E163: NANTERRE | G163: Abordes | H163: HOPITAL DE NAVARRE | I163: EVREUX | J163: 27 | K163: direct | L163: INCENDIE | M163: UM | N163: UM | O163: UMEP | P163: EPI - Mise en Œuvre des Extincteurs | Q163: 1 | T163: 1540 | U163: C
A164: 2017 | B164: 2017-03-09 | C164: Q1 | D164: mars | E164: NANTERRE | G164: JCSicurani | H164: LE MANOIR DU VERGER | I164: VERETZ | J164: 37 | K164: vpi | L164: INCENDIE | M164: TRAD | N164: EPI | O164: I03 | P164: EPI - Mise en Œuvre des Extincteurs | Q164: 0.5 | T164: 573 | U164: C
A165: 2017 | B165: 2017-03-09 | C165: Q1 | D165: mars | E165: NANTERRE | G165: PMarin | H165: MBDA France | I165: LE PLESSIS ROBINSON | J165: 92 | K165: direct | L165: INCENDIE | M165: UM | N165: UM | O165: UMEP | P165: EPI - Mise en Œuvre des Extincteurs | Q165: 0.5 | T165: 1164 | U165: C
A166: 2017 | B166: 2017-03-10 | C166: Q1 | D166: mars | E166: OUEST | F166: bouteiller | G166: Tbouteiller | H166: mr les jardins du castel | K166: vpi | L166: INCENDIE | M166: TRAD | N166: EPI + HORIZ | O166: I13H | P166: EPI + Evacuation Horiz - Ets Santé | Q166: 0.5 | T166: 295 | U166: C
A167: 2017 | B167: 2017-03-10 | C167: Q1 | D167: mars | E167: NANTERRE | G167: Cpequay | H167: HP2S | I167: OYONNAX | J167: 01 | K167: vpi | L167: INCENDIE | M167: TRAD | N167: EPI | O167: I03 | P167: EPI - Mise en Œuvre des Extincteurs | Q167: 0.5 | T167: 450 | U167: C
A168: 2017 | B168: 2017-03-11 | C168: Q1 | D168: mars | E168: NANTERRE | G168: JFBassereau | H168: ELIS RA | I168: VIENNE | J168: 38 | K168: vpi | L168: INCENDIE | M168: TRAD | N168: EPI | O168: I03 | P168: EPI - Mise en Œuvre des Extincteurs | Q168: 0.5 | T168: 450 | U168: C
A169: 2017 | B169: 2017-03-13 | C169: Q1 | D169: mars | E169: NANTERRE | G169: PMarin | H169: HP ENTERPRISE | I169: NANTERRE | J169: 92 | K169: direct | L169: INCENDIE | M169: UM | N169: UM | O169: UMEP | P169: EPI - Mise en Œuvre des Extincteurs | Q169: 0.5 | T169: 1025 | U169: C
A170: 2017 | B170: 2017-03-13 | C170: Q1 | D170: mars | E170: NANTERRE | G170: Abordes | H170: NOV BLM | I170: NANTES | J170: 44 | K170: vpi | L170: INCENDIE | M170: UM | N170: UM | O170: UMEP | P170: EPI - Mise en Œuvre des Extincteurs | Q170: 3 | T170: =3*2200 -> 6600 | U170: C
A171: 2017 | B171: 2017-03-13 | C171: Q1 | D171: mars | E171: OUEST | F171: ANAIS MORIN | G171: Tbouteiller | H171: maison de retraite st cyr | K171: vpi | L171: EVACUATION | M171: TRAD | N171: SENSIBILISATION | O171: I207 | P171: Sensibilisation Evacuation | Q171: 1 | T171: 792 | U171: C
A172: 2017 | B172: 2017-03-14 | C172: Q1 | D172: mars | E172: NANTERRE | G172: Cpequay | H172: BPAURA | I172: LYON | J172: 69 | K172: direct | L172: INCENDIE | M172: UM | N172: UM | O172: UMCM102 | P172: EPI - Mise en Œuvre des Extincteurs | Q172: 1 | T172: 2392 | U172: C
A173: 2017 | B173: 2017-03-14 | C173: Q1 | D173: mars | E173: NANTERRE | G173: JFBassereau | H173: EHPAD EDEN | I173: VALENCE | J173: 26 | K173: vpi | L173: INCENDIE | M173: TRAD | N173: EPI + HORIZ | O173: I13H | P173: EPI + Evacuation Horiz - Ets Santé | Q173: 0.5 | T173: 450 | U173: C
A174: 2017 | B174: 2017-03-14 | C174: Q1 | D174: mars | E174: NANTERRE | G174: PMarin | H174: HP ENTERPRISE | I174: LES ULIS | J174: 94 | K174: direct | L174: INCENDIE | M174: UM | N174: UM | O174: UMEP | P174: EPI - Mise en Œuvre des Extincteurs | Q174: 0.5 | T174: 1025 | U174: C
A175: 2017 | B175: 2017-03-14 | C175: Q1 | D175: mars | E175: NANTERRE | G175: PMarin | H175: HP INK | I175: LES ULIS | J175: 94 | K175: direct | L175: INCENDIE | M175: UM | N175: UM | O175: UMEP | P175: EPI - Mise en Œuvre des Extincteurs | Q175: 0.5 | T175: 1025 | U175: C
A176: 2017 | B176: 2017-03-14 | C176: Q1 | D176: mars | E176: NANTERRE | G176: JFBassereau | H176: I.M.E | I176: MONTELEGER | J176: 26 | K176: vpi | L176: INCENDIE | M176: TRAD | N176: EPI | O176: I03 | P176: EPI - Mise en Œuvre des Extincteurs | Q176: 0.5 | T176: 410 | U176: C
A177: 2017 | B177: 2017-03-15 | C177: Q1 | D177: mars | E177: NANTERRE | G177: JCSicurani | H177: BRICOMARCHE | I177: LES ANDELYS | J177: 27 | K177: vpi | L177: EVACUATION | M177: TRAD | N177: CHARGE EVAC | O177: I201 | P177: Formation à l'évacuation des locaux | Q177: 0.5 | T177: 519 | U177: C
A178: 2017 | B178: 2017-03-15 | C178: Q1 | D178: mars | E178: NANTERRE | G178: PMarin | H178: AIRPORT COLLEGE | I178: ROISSY | J178: 93 | K178: direct | L178: INCENDIE | M178: UM | N178: UM | O178: UMEP | P178: EPI - Mise en Œuvre des Extincteurs | Q178: 1 | T178: 1540 | U178: C
A179: 2017 | B179: 2017-03-15 | C179: Q1 | D179: mars | E179: NANTERRE | G179: JCSicurani | H179: BRICOMARCHE | I179: LES ANDELYS | J179: 27 | K179: vpi | L179: INCENDIE | M179: TRAD | N179: EPI | O179: I03 | P179: EPI - Mise en Œuvre des Extincteurs | Q179: 0.5 | T179: =2*488 -> 976 | U179: C
A180: 2017 | B180: 2017-03-15 | C180: Q1 | D180: mars | E180: NANTERRE | G180: JFBassereau | H180: CROUS | I180: SAINT-ETIENNE | J180: 42 | K180: vpi | L180: EVACUATION | M180: TRAD | N180: SSI | O180: I206 | P180: Formation à l'utilisation du SSI | Q180: 1 | T180: 800 | U180: C
A181: 2017 | B181: 2017-03-15 | C181: Q1 | D181: mars | E181: NANTERRE | G181: JFBassereau | H181: CROUS | I181: LYON | J181: 69 | K181: vpi | L181: EVACUATION | M181: TRAD | N181: SSI | O181: I206 | P181: Formation à l'utilisation du SSI | Q181: 1 | T181: 800 | U181: C
A182: 2017 | B182: 2017-03-16 | C182: Q1 | D182: mars | E182: NANTERRE | G182: Cpequay | H182: ANDROS | I182: VALENCE | J182: 26 | K182: direct | L182: INCENDIE | M182: UM | N182: UM | O182: UMCM106 | P182: ESI Personnalisé | Q182: 1 | T182: 2000 | U182: C
A183: 2017 | B183: 2017-03-16 | C183: Q1 | D183: mars | E183: NANTERRE | G183: JFBassereau | H183: EHPAD BIANCHERI | I183: HAUTERIVES | J183: 26 | K183: vpi | L183: INCENDIE | M183: TRAD | N183: EPI + HORIZ | O183: I13H | P183: EPI + Evacuation Horiz - Ets Santé | Q183: 0.5 | T183: 400 | U183: C
A184: 2017 | B184: 2017-03-16 | C184: Q1 | D184: mars | E184: NANTERRE | G184: JFBassereau | H184: EHPAD COLLINES | I184: ST DONAT SUR L'HERBASSE | J184: 26 | K184: vpi | L184: INCENDIE | M184: TRAD | N184: EPI + HORIZ | O184: I13H | P184: EPI + Evacuation Horiz - Ets Santé | Q184: 0.5 | T184: 400 | U184: C
A185: 2017 | B185: 2017-03-16 | C185: Q1 | D185: mars | E185: NANTERRE | G185: Abordes | H185: NOVO NORDISK | I185: CHARTRES | J185: 28 | K185: direct | L185: INCENDIE | M185: UM | N185: UM | O185: UMEP | P185: EPI - Mise en Œuvre des Extincteurs | Q185: 2 | T185: =2*1600 -> 3200 | U185: C
A186: 2017 | B186: 2017-03-16 | C186: Q1 | D186: mars | E186: NANTERRE | G186: PMarin | H186: ORANGE | I186: GUYANCOURT | J186: 78 | K186: direct | L186: INCENDIE | M186: UM | N186: UM | O186: UMEP | P186: EPI - Mise en Œuvre des Extincteurs | Q186: 0.5 | T186: 825 | U186: C
A187: 2017 | B187: 2017-03-16 | C187: Q1 | D187: mars | E187: OUEST | F187: ANAIS MORIN | G187: Tbouteiller | H187: maison de retraite st cyr | K187: vpi | L187: EVACUATION | M187: TRAD | N187: SENSIBILISATION | O187: I207 | P187: Sensibilisation Evacuation | Q187: 1 | T187: 792 | U187: C
A188: 2017 | B188: 2017-03-17 | C188: Q1 | D188: mars | E188: NANTERRE | G188: PMarin | H188: DATAONE | I188: GAILLON | J188: 27 | K188: vpi | L188: EVACUATION | M188: TRAD | N188: CHARGE EVAC | O188: I202 | P188: Guides et serres-files | Q188: 0.5 | T188: 260 | U188: C
A189: 2017 | B189: 2017-03-17 | C189: Q1 | D189: mars | E189: NANTERRE | G189: PMarin | H189: DATAONE | I189: GAILLON | J189: 27 | K189: vpi | L189: INCENDIE | M189: UM | N189: UM | O189: UMEP | P189: EPI - Mise en Œuvre des Extincteurs | Q189: 0.5 | T189: 2500 | U189: C
A190: 2017 | B190: 2017-03-20 | C190: Q1 | D190: mars | E190: NANTERRE | G190: PMarin | H190: ORANGE | I190: PARIS ALLERAY | J190: 75 | K190: direct | L190: INCENDIE | M190: UM | N190: UM | O190: UMEP | P190: EPI - Mise en Œuvre des Extincteurs | Q190: 3 | T190: =3*1650 -> 4950 | U190: C
A191: 2017 | B191: 2017-03-21 | C191: Q1 | D191: mars | E191: NANTERRE | G191: Cpequay | H191: BAIKOWSKI | I191: POISY | J191: 78 | K191: vpi | L191: INCENDIE | M191: UM | N191: UM | O191: UMCM102 | P191: EPI - Mise en Œuvre des Extincteurs | Q191: 1 | T191: 2090 | U191: C
A192: 2017 | B192: 2017-03-21 | C192: Q1 | D192: mars | E192: NANTERRE | G192: JFBassereau | H192: EHPAD PEYSSON | I192: ROMANS SUR ISERE | J192: 26 | K192: vpi | L192: INCENDIE | M192: TRAD | N192: EPI + HORIZ | O192: I13H | P192: EPI + Evacuation Horiz - Ets Santé | Q192: 0.5 | T192: 450 | U192: C
A193: 2017 | B193: 2017-03-21 | C193: Q1 | D193: mars | E193: NANTERRE | G193: JCSicurani | H193: FOYER CREUSOIS | I193: GUERET | J193: 23 | K193: vpi | L193: INCENDIE | M193: TRAD | N193: EPI | O193: I03 | P193: EPI - Mise en Œuvre des Extincteurs | Q193: 0.5 | T193: 590 | U193: C
A194: 2017 | B194: 2017-03-21 | C194: Q1 | D194: mars | E194: NANTERRE | G194: Abordes | H194: SANOFI | I194: GENTILLY | J194: 92 | K194: direct | L194: INCENDIE | M194: UM | N194: UM | O194: UMEP | P194: EPI - Mise en Œuvre des Extincteurs | Q194: 3 | T194: =3*1806 -> 5418 | U194: C
A195: 2017 | B195: 2017-03-21 | C195: Q1 | D195: mars | E195: OUEST | F195: bouteiller | G195: Tbouteiller | H195: leclerc | K195: vpi | L195: SECOURISME | M195: TRAD | N195: INITIAL | O195: SST02 | P195: SST MAC | Q195: 1 | T195: 623.5 | U195: C
A196: 2017 | B196: 2017-03-22 | C196: Q1 | D196: mars | E196: NANTERRE | G196: JCSicurani | H196: VOYAGES DE MICHELINE | I196: LA CHATRE | J196: 36 | K196: vpi | L196: INCENDIE | M196: TRAD | N196: EPI | O196: I03 | P196: EPI - Mise en Œuvre des Extincteurs | Q196: 0.5 | T196: 940 | U196: C
A197: 2017 | B197: 2017-03-22 | C197: Q1 | D197: mars | E197: OUEST | G197: Tbouteiller | H197: golfe hotel | K197: vpi | L197: INCENDIE | M197: TRAD | N197: EPI | O197: I03 | P197: EPI - Mise en Œuvre des Extincteurs | Q197: 0.5 | T197: 366 | U197: C
A198: 2017 | B198: 2017-03-22 | C198: Q1 | D198: mars | E198: NANTERRE | G198: JFBassereau | H198: CROUS | I198: LYON | J198: 69 | K198: vpi | L198: EVACUATION | M198: TRAD | N198: SSI | O198: I206 | P198: Formation à l'utilisation du SSI | Q198: 1 | T198: 800 | U198: C
A199: 2017 | B199: 2017-03-23 | C199: Q1 | D199: mars | E199: ROUEN | F199: ANAIS MORIN | G199: PMarin | H199: CLINIQUE MATHILDE | I199: ROUEN | J199: 76 | K199: vpi | L199: INCENDIE | M199: UM | N199: UM | O199: UMEP | P199: EPI - Mise en Œuvre des Extincteurs | Q199: 1 | T199: 2750 | U199: C
A200: 2017 | B200: 2017-03-23 | C200: Q1 | D200: mars | E200: NANTERRE | G200: JCSicurani | H200: SIAH | I200: BONNEUIL EN France | J200: 95 | K200: vpi | L200: INCENDIE | M200: UM | N200: UM | O200: UMDRA | P200: EPI - Mise en Œuvre des Extincteurs | Q200: 1.5 | T200: 3100 | U200: C
... 445 more rows

Sheet Janvier
A1: 2018-01-01 | D1: PHILIPPE (EP) | H1: ANDRE (EP) | L1: (CM2) | P1: CHRISTIAN (CM1) | T1: Jean-Côme (Dragon) | X1: JEAN FRANCOIS | AB1: ANTOINE Antoine | AF1: THIERRY BINET | AJ1: PASCAL GARIN | AN1: JORIS LONGFIER | AR1: PRESTATAIRE | AV1: COFISEC
D3: =F3/E3 -> 0.5 | E3: =SUM(E5:E44) -> 20 | F3: =SUM(F5:F44) -> 10 | H3: =J3/I3 -> 1 | I3: =SUM(I5:I44) -> 20 | J3: =SUM(J5:J44) -> 20 | M3: =SUM(M5:M44) -> 20 | N3: =SUM(N5:N44) -> 13.5 | P3: =R3/Q3 -> 0.45 | Q3: =SUM(Q5:Q44) -> 20 | R3: =SUM(R5:R44) -> 9 | T3: =V3/U3 -> 0.275 | U3: =SUM(U5:U44) -> 20 | V3: =SUM(V5:V44) -> 5.5 | X3: =Z3/Y3 -> 0.775 | Y3: =SUM(Y5:Y44) -> 20 | Z3: =SUM(Z5:Z44) -> 15.5 | AB3: =AD3/AC3 -> 0.875 | AC3: =SUM(AC5:AC44) -> 20 | AD3: =SUM(AD5:AD44) -> 17.5 | AF3: =AH3/AG3 -> 0.4 | AG3: =SUM(AG5:AG44) -> 20 | AH3: =SUM(AH5:AH44) -> 8 | AJ3: =AL3/AK3 -> 1 | AK3: =SUM(AK5:AK44) -> 20 | AL3: =SUM(AL5:AL44) -> 20 | AN3: =AP3/AO3 ->  | AO3: =SUM(AO5:AO44) -> 0 | AP3: =SUM(AP5:AP44) -> 0 | AR3: =AT3/AS3 ->  | AS3: =SUM(AS5:AS44) -> 0 | AT3: =SUM(AT5:AT44) -> 0 | AV3: =AX3/AW3 ->  | AW3: =SUM(AW5:AW44) -> 0 | AX3: =SUM(AX5:AX44) -> 0
A4: SEM | B4: JOUR | C4: AM/PM | D4: FORMATION | E4: Ouv | F4: trav | G4: STATUT | H4: FORMATION | I4: Ouv | J4: trav | K4: STATUT | L4: FORMATION | M4: Ouv | N4: trav | O4: STATUT | P4: FORMATION | Q4: Ouv | R4: trav | S4: STATUT | T4: FORMATION | U4: Ouv | V4: trav | W4: STATUT | X4: FORMATION | Y4: Ouv | Z4: trav | AA4: STATUT | AB4: FORMATION | AC4: Ouv | AD4: trav | AE4: STATUT | AF4: FORMATION | AG4: Ouv | AH4: trav | AI4: STATUT | AJ4: FORMATION | AK4: Ouv | AL4: trav | AM4: STATUT | AN4: FORMATION | AO4: Ouv | AP4: trav | AQ4: STATUT | AR4: FORMATION | AS4: Ouv | AT4: trav | AU4: STATUT | AV4: FORMATION | AW4: Ouv | AX4: trav | AY4: STATUT
A5: 1 | B5: 2018-01-01 | C5: am | E5: 0.5 | F5: 0.5 | I5: 0.5 | J5: 0.5 | M5: 0.5 | N5: 0.5 | Q5: 0.5 | R5: 0.5 | U5: 0.5 | V5: 0.5 | Y5: 0.5 | Z5: 0.5 | AC5: 0.5 | AD5: 0.5 | AG5: 0.5 | AH5: 0.5 | AK5: 0.5 | AL5: 0.5
C6: pm | E6: 0.5 | F6: 0.5 | I6: 0.5 | J6: 0.5 | M6: 0.5 | N6: 0.5 | Q6: 0.5 | R6: 0.5 | U6: 0.5 | V6: 0.5 | Y6: 0.5 | Z6: 0.5 | AC6: 0.5 | AD6: 0.5 | AG6: 0.5 | AH6: 0.5 | AK6: 0.5 | AL6: 0.5
B7: 2018-01-02 | C7: am | E7: 0.5 | F7: 0.5 | I7: 0.5 | J7: 0.5 | M7: 0.5 | N7: 0.5 | Q7: 0.5 | R7: 0.5 | U7: 0.5 | V7: 0.5 | Y7: 0.5 | Z7: 0.5 | AC7: 0.5 | AD7: 0.5 | AG7: 0.5 | AK7: 0.5 | AL7: 0.5
C8: pm | E8: 0.5 | F8: 0.5 | I8: 0.5 | J8: 0.5 | M8: 0.5 | N8: 0.5 | Q8: 0.5 | R8: 0.5 | U8: 0.5 | V8: 0.5 | Y8: 0.5 | Z8: 0.5 | AC8: 0.5 | AD8: 0.5 | AG8: 0.5 | AK8: 0.5 | AL8: 0.5
B9: 2018-01-03 | C9: am | E9: 0.5 | F9: 0.5 | I9: 0.5 | J9: 0.5 | M9: 0.5 | N9: 0.5 | Q9: 0.5 | U9: 0.5 | Y9: 0.5 | Z9: 0.5 | AC9: 0.5 | AD9: 0.5 | AG9: 0.5 | AK9: 0.5 | AL9: 0.5
C10: pm | E10: 0.5 | F10: 0.5 | I10: 0.5 | J10: 0.5 | M10: 0.5 | N10: 0.5 | Q10: 0.5 | U10: 0.5 | Y10: 0.5 | Z10: 0.5 | AC10: 0.5 | AD10: 0.5 | AG10: 0.5 | AK10: 0.5 | AL10: 0.5
B11: 2018-01-04 | C11: am | E11: 0.5 | F11: 0.5 | I11: 0.5 | J11: 0.5 | M11: 0.5 | N11: 0.5 | Q11: 0.5 | U11: 0.5 | Y11: 0.5 | Z11: 0.5 | AC11: 0.5 | AG11: 0.5 | AK11: 0.5 | AL11: 0.5
C12: pm | E12: 0.5 | F12: 0.5 | I12: 0.5 | J12: 0.5 | M12: 0.5 | N12: 0.5 | Q12: 0.5 | U12: 0.5 | Y12: 0.5 | Z12: 0.5 | AC12: 0.5 | AD12: 0.5 | AG12: 0.5 | AK12: 0.5 | AL12: 0.5
B13: 2018-01-05 | C13: am | E13: 0.5 | F13: 0.5 | I13: 0.5 | J13: 0.5 | M13: 0.5 | N13: 0.5 | Q13: 0.5 | U13: 0.5 | Y13: 0.5 | Z13: 0.5 | AC13: 0.5 | AD13: 0.5 | AG13: 0.5 | AK13: 0.5 | AL13: 0.5
C14: pm | E14: 0.5 | F14: 0.5 | I14: 0.5 | J14: 0.5 | M14: 0.5 | N14: 0.5 | Q14: 0.5 | U14: 0.5 | Y14: 0.5 | Z14: 0.5 | AC14: 0.5 | AD14: 0.5 | AG14: 0.5 | AK14: 0.5 | AL14: 0.5
A15: 2 | B15: 2018-01-08 | C15: am | E15: 0.5 | I15: 0.5 | J15: 0.5 | M15: 0.5 | N15: 0.5 | Q15: 0.5 | U15: 0.5 | Y15: 0.5 | Z15: 0.5 | AC15: 0.5 | AD15: 0.5 | AG15: 0.5 | AK15: 0.5 | AL15: 0.5
C16: pm | E16: 0.5 | I16: 0.5 | J16: 0.5 | M16: 0.5 | N16: 0.5 | Q16: 0.5 | U16: 0.5 | Y16: 0.5 | Z16: 0.5 | AC16: 0.5 | AD16: 0.5 | AG16: 0.5 | AH16: 0.5 | AK16: 0.5 | AL16: 0.5
B17: 2018-01-09 | C17: am | E17: 0.5 | I17: 0.5 | J17: 0.5 | M17: 0.5 | N17: 0.5 | Q17: 0.5 | U17: 0.5 | Y17: 0.5 | Z17: 0.5 | AC17: 0.5 | AG17: 0.5 | AH17: 0.5 | AK17: 0.5 | AL17: 0.5
C18: pm | E18: 0.5 | I18: 0.5 | J18: 0.5 | M18: 0.5 | N18: 0.5 | Q18: 0.5 | U18: 0.5 | Y18: 0.5 | Z18: 0.5 | AC18: 0.5 | AD18: 0.5 | AG18: 0.5 | AH18: 0.5 | AK18: 0.5 | AL18: 0.5
B19: 2018-01-10 | C19: am | E19: 0.5 | I19: 0.5 | J19: 0.5 | M19: 0.5 | N19: 0.5 | Q19: 0.5 | U19: 0.5 | Y19: 0.5 | Z19: 0.5 | AC19: 0.5 | AD19: 0.5 | AG19: 0.5 | AH19: 0.5 | AK19: 0.5 | AL19: 0.5
C20: pm | E20: 0.5 | I20: 0.5 | J20: 0.5 | M20: 0.5 | N20: 0.5 | Q20: 0.5 | U20: 0.5 | Y20: 0.5 | Z20: 0.5 | AC20: 0.5 | AD20: 0.5 | AG20: 0.5 | AH20: 0.5 | AK20: 0.5 | AL20: 0.5
B21: 2018-01-11 | C21: am | E21: 0.5 | I21: 0.5 | J21: 0.5 | M21: 0.5 | N21: 0.5 | Q21: 0.5 | U21: 0.5 | Y21: 0.5 | Z21: 0.5 | AC21: 0.5 | AD21: 0.5 | AG21: 0.5 | AH21: 0.5 | AK21: 0.5 | AL21: 0.5
C22: pm | E22: 0.5 | I22: 0.5 | J22: 0.5 | M22: 0.5 | N22: 0.5 | Q22: 0.5 | U22: 0.5 | Y22: 0.5 | Z22: 0.5 | AC22: 0.5 | AD22: 0.5 | AG22: 0.5 | AK22: 0.5 | AL22: 0.5
B23: 2018-01-12 | C23: am | E23: 0.5 | I23: 0.5 | J23: 0.5 | M23: 0.5 | N23: 0.5 | Q23: 0.5 | U23: 0.5 | Y23: 0.5 | Z23: 0.5 | AC23: 0.5 | AG23: 0.5 | AK23: 0.5 | AL23: 0.5
C24: pm | E24: 0.5 | I24: 0.5 | J24: 0.5 | M24: 0.5 | N24: 0.5 | Q24: 0.5 | U24: 0.5 | Y24: 0.5 | Z24: 0.5 | AC24: 0.5 | AD24: 0.5 | AG24: 0.5 | AK24: 0.5 | AL24: 0.5
A25: 3 | B25: 2018-01-15 | C25: am | E25: 0.5 | I25: 0.5 | J25: 0.5 | M25: 0.5 | N25: 0.5 | Q25: 0.5 | U25: 0.5 | Y25: 0.5 | Z25: 0.5 | AC25: 0.5 | AD25: 0.5 | AG25: 0.5 | AK25: 0.5 | AL25: 0.5
C26: pm | E26: 0.5 | I26: 0.5 | J26: 0.5 | M26: 0.5 | N26: 0.5 | Q26: 0.5 | U26: 0.5 | Y26: 0.5 | Z26: 0.5 | AC26: 0.5 | AD26: 0.5 | AG26: 0.5 | AK26: 0.5 | AL26: 0.5
B27: 2018-01-16 | C27: am | E27: 0.5 | I27: 0.5 | J27: 0.5 | M27: 0.5 | N27: 0.5 | Q27: 0.5 | U27: 0.5 | Y27: 0.5 | Z27: 0.5 | AC27: 0.5 | AD27: 0.5 | AG27: 0.5 | AK27: 0.5 | AL27: 0.5
C28: pm | E28: 0.5 | I28: 0.5 | J28: 0.5 | M28: 0.5 | N28: 0.5 | Q28: 0.5 | U28: 0.5 | Y28: 0.5 | Z28: 0.5 | AC28: 0.5 | AD28: 0.5 | AG28: 0.5 | AK28: 0.5 | AL28: 0.5
B29: 2018-01-17 | C29: am | E29: 0.5 | I29: 0.5 | J29: 0.5 | M29: 0.5 | N29: 0.5 | Q29: 0.5 | U29: 0.5 | Y29: 0.5 | Z29: 0.5 | AC29: 0.5 | AD29: 0.5 | AG29: 0.5 | AK29: 0.5 | AL29: 0.5
C30: pm | E30: 0.5 | I30: 0.5 | J30: 0.5 | M30: 0.5 | N30: 0.5 | Q30: 0.5 | U30: 0.5 | Y30: 0.5 | Z30: 0.5 | AC30: 0.5 | AG30: 0.5 | AK30: 0.5 | AL30: 0.5
B31: 2018-01-18 | C31: am | E31: 0.5 | I31: 0.5 | J31: 0.5 | M31: 0.5 | N31: 0.5 | Q31: 0.5 | R31: 0.5 | U31: 0.5 | Y31: 0.5 | Z31: 0.5 | AC31: 0.5 | AD31: 0.5 | AG31: 0.5 | AH31: 0.5 | AK31: 0.5 | AL31: 0.5
C32: pm | E32: 0.5 | I32: 0.5 | J32: 0.5 | M32: 0.5 | Q32: 0.5 | R32: 0.5 | U32: 0.5 | Y32: 0.5 | Z32: 0.5 | AC32: 0.5 | AD32: 0.5 | AG32: 0.5 | AH32: 0.5 | AK32: 0.5 | AL32: 0.5
B33: 2018-01-19 | C33: am | E33: 0.5 | I33: 0.5 | J33: 0.5 | M33: 0.5 | Q33: 0.5 | R33: 0.5 | U33: 0.5 | Y33: 0.5 | Z33: 0.5 | AC33: 0.5 | AD33: 0.5 | AG33: 0.5 | AH33: 0.5 | AK33: 0.5 | AL33: 0.5
C34: pm | E34: 0.5 | I34: 0.5 | J34: 0.5 | M34: 0.5 | Q34: 0.5 | R34: 0.5 | U34: 0.5 | Y34: 0.5 | Z34: 0.5 | AC34: 0.5 | AD34: 0.5 | AG34: 0.5 | AH34: 0.5 | AK34: 0.5 | AL34: 0.5
A35: 4 | B35: 2018-01-22 | C35: am | E35: 0.5 | F35: 0.5 | I35: 0.5 | J35: 0.5 | M35: 0.5 | Q35: 0.5 | R35: 0.5 | U35: 0.5 | Y35: 0.5 | Z35: 0.5 | AC35: 0.5 | AD35: 0.5 | AG35: 0.5 | AH35: 0.5 | AK35: 0.5 | AL35: 0.5
C36: pm | E36: 0.5 | F36: 0.5 | I36: 0.5 | J36: 0.5 | M36: 0.5 | Q36: 0.5 | R36: 0.5 | U36: 0.5 | Y36: 0.5 | AC36: 0.5 | AD36: 0.5 | AG36: 0.5 | AK36: 0.5 | AL36: 0.5
B37: 2018-01-23 | C37: am | E37: 0.5 | F37: 0.5 | I37: 0.5 | J37: 0.5 | M37: 0.5 | Q37: 0.5 | R37: 0.5 | U37: 0.5 | Y37: 0.5 | AC37: 0.5 | AD37: 0.5 | AG37: 0.5 | AK37: 0.5 | AL37: 0.5
C38: pm | E38: 0.5 | F38: 0.5 | I38: 0.5 | J38: 0.5 | M38: 0.5 | Q38: 0.5 | R38: 0.5 | U38: 0.5 | V38: 0.5 | Y38: 0.5 | AC38: 0.5 | AG38: 0.5 | AK38: 0.5 | AL38: 0.5
B39: 2018-01-24 | C39: am | E39: 0.5 | F39: 0.5 | I39: 0.5 | J39: 0.5 | M39: 0.5 | Q39: 0.5 | R39: 0.5 | U39: 0.5 | V39: 0.5 | Y39: 0.5 | AC39: 0.5 | AD39: 0.5 | AG39: 0.5 | AK39: 0.5 | AL39: 0.5
C40: pm | E40: 0.5 | F40: 0.5 | I40: 0.5 | J40: 0.5 | M40: 0.5 | Q40: 0.5 | R40: 0.5 | U40: 0.5 | V40: 0.5 | Y40: 0.5 | AC40: 0.5 | AD40: 0.5 | AG40: 0.5 | AK40: 0.5 | AL40: 0.5
B41: 2018-01-25 | C41: am | E41: 0.5 | F41: 0.5 | I41: 0.5 | J41: 0.5 | M41: 0.5 | Q41: 0.5 | R41: 0.5 | U41: 0.5 | V41: 0.5 | Y41: 0.5 | AC41: 0.5 | AD41: 0.5 | AG41: 0.5 | AK41: 0.5 | AL41: 0.5
C42: pm | E42: 0.5 | F42: 0.5 | I42: 0.5 | J42: 0.5 | M42: 0.5 | Q42: 0.5 | R42: 0.5 | U42: 0.5 | V42: 0.5 | Y42: 0.5 | AC42: 0.5 | AD42: 0.5 | AG42: 0.5 | AH42: 0.5 | AK42: 0.5 | AL42: 0.5
B43: 2018-01-26 | C43: am | E43: 0.5 | F43: 0.5 | I43: 0.5 | J43: 0.5 | M43: 0.5 | Q43: 0.5 | R43: 0.5 | U43: 0.5 | V43: 0.5 | Y43: 0.5 | AC43: 0.5 | AD43: 0.5 | AG43: 0.5 | AH43: 0.5 | AK43: 0.5 | AL43: 0.5
C44: pm | E44: 0.5 | F44: 0.5 | I44: 0.5 | J44: 0.5 | M44: 0.5 | Q44: 0.5 | R44: 0.5 | U44: 0.5 | V44: 0.5 | Y44: 0.5 | AC44: 0.5 | AD44: 0.5 | AG44: 0.5 | AH44: 0.5 | AK44: 0.5 | AL44: 0.5
A45: 5 | B45: 2018-01-29 | C45: am | E45: 0.5 | F45: 0.5 | I45: 0.5 | J45: 0.5 | M45: 0.5 | Q45: 0.5 | R45: 0.5 | U45: 0.5 | V45: 0.5 | Y45: 0.5 | AC45: 0.5 | AD45: 0.5 | AG45: 0.5 | AH45: 0.5 | AK45: 0.5 | AL45: 0.5
C46: pm | E46: 0.5 | F46: 0.5 | I46: 0.5 | J46: 0.5 | M46: 0.5 | Q46: 0.5 | R46: 0.5 | U46: 0.5 | V46: 0.5 | Y46: 0.5 | AC46: 0.5 | AD46: 0.5 | AG46: 0.5 | AH46: 0.5 | AK46: 0.5 | AL46: 0.5
B47: 2018-01-30 | C47: am | E47: 0.5 | F47: 0.5 | I47: 0.5 | J47: 0.5 | M47: 0.5 | Q47: 0.5 | R47: 0.5 | U47: 0.5 | V47: 0.5 | Y47: 0.5 | AC47: 0.5 | AD47: 0.5 | AG47: 0.5 | AH47: 0.5 | AK47: 0.5 | AL47: 0.5
C48: pm | E48: 0.5 | F48: 0.5 | I48: 0.5 | J48: 0.5 | M48: 0.5 | N48: 0.5 | Q48: 0.5 | R48: 0.5 | U48: 0.5 | V48: 0.5 | Y48: 0.5 | AC48: 0.5 | AD48: 0.5 | AG48: 0.5 | AH48: 0.5 | AK48: 0.5 | AL48: 0.5
B49: 2018-01-31 | C49: am | E49: 0.5 | F49: 0.5 | I49: 0.5 | J49: 0.5 | M49: 0.5 | N49: 0.5 | Q49: 0.5 | R49: 0.5 | U49: 0.5 | V49: 0.5 | Y49: 0.5 | Z49: 0.5 | AC49: 0.5 | AD49: 0.5 | AG49: 0.5 | AH49: 0.5 | AK49: 0.5 | AL49: 0.5
C50: pm | E50: 0.5 | F50: 0.5 | I50: 0.5 | J50: 0.5 | M50: 0.5 | N50: 0.5 | Q50: 0.5 | R50: 0.5 | U50: 0.5 | V50: 0.5 | Y50: 0.5 | Z50: 0.5 | AC50: 0.5 | AD50: 0.5 | AG50: 0.5 | AH50: 0.5 | AK50: 0.5 | AL50: 0.5
B51: FEVRIER
A52: 5 | B52: 2018-02-01 | C52: am | D52: =Fevrier!D5 -> 0 | E52: =Fevrier!E5 -> 0.5 | F52: =Fevrier!F5 -> 0.5 | G52: =Fevrier!G5 -> 0 | H52: =Fevrier!H5 -> ORANGE 2x EP02 1H30 ERAGNY 95 | I52: =Fevrier!I5 -> 0.5 | J52: =Fevrier!J5 -> 0.5 | K52: =Fevrier!K5 -> C | L52: =Fevrier!L5 -> ORANGE 2x EP02 1H30 ERAGNY 95 | M52: =Fevrier!M5 -> 0.5 | N52: =Fevrier!N5 -> 0.5 | O52: =Fevrier!O5 -> C | P52: =Fevrier!P5 -> ORANGE 2x EP02 1H30 ERAGNY 95 | Q52: =Fevrier!Q5 -> 0.5 | R52: =Fevrier!R5 -> 0.5 | S52: =Fevrier!S5 -> C | T52: =Fevrier!T5 -> ORANGE 2x EP02 1H30 ERAGNY 95 | U52: =Fevrier!U5 -> 0.5 | V52: =Fevrier!V5 -> 0.5 | W52: =Fevrier!W5 -> C | X52: =Fevrier!X5 -> 0 | Y52: =Fevrier!Y5 -> 0.5 | Z52: =Fevrier!Z5 -> 0.5 | AA52: =Fevrier!AA5 -> 0 | AB52: =Fevrier!AB5 -> SANOFI I202 3H CHARTRES 45 | AC52: =Fevrier!AC5 -> 0.5 | AD52: =Fevrier!AD5 -> 0.5 | AE52: =Fevrier!AE5 -> O | AF52: =Fevrier!AF5 -> 0 | AG52: =Fevrier!AG5 -> 0.5 | AH52: =Fevrier!AH5 -> 0.5 | AI52: =Fevrier!AI5 -> 0 | AJ52: =Fevrier!AJ5 -> 0 | AK52: =Fevrier!AK5 -> 0.5 | AL52: =Fevrier!AL5 -> 0.5 | AM52: =Fevrier!AM5 -> 0 | AN52: =Fevrier!AN5 -> 0 | AO52: =Fevrier!AO5 -> 0.5 | AP52: =Fevrier!AP5 -> 0.5 | AQ52: =Fevrier!AQ5 -> 0 | AR52: =Fevrier!AR5 -> 0 | AS52: =Fevrier!AS5 -> 0.5 | AT52: =Fevrier!AT5 -> 0.5 | AU52: =Fevrier!AU5 -> 0 | AV52: =Fevrier!AV5 -> ORANGE 2x EP02 1H30 ERAGNY 95 | AW52: =Fevrier!AW5 -> 0.5 | AX52: =Fevrier!AX5 -> 0.5 | AY52: =Fevrier!AY5 -> C
C53: pm | D53: =Fevrier!D6 -> ORANGE 2x EP02 1H30 ERAGNY 95 | E53: =Fevrier!E6 -> 0.5 | F53: =Fevrier!F6 -> 0.5 | G53: =Fevrier!G6 -> C | H53: =Fevrier!H6 -> 0 | I53: =Fevrier!I6 -> 0.5 | J53: =Fevrier!J6 -> 0.5 | K53: =Fevrier!K6 -> 0 | L53: =Fevrier!L6 -> 0 | M53: =Fevrier!M6 -> 0.5 | N53: =Fevrier!N6 -> 0.5 | O53: =Fevrier!O6 -> 0 | P53: =Fevrier!P6 -> 0 | Q53: =Fevrier!Q6 -> 0.5 | R53: =Fevrier!R6 -> 0.5 | S53: =Fevrier!S6 -> 0 | T53: =Fevrier!T6 -> 0 | U53: =Fevrier!U6 -> 0.5 | V53: =Fevrier!V6 -> 0.5 | W53: =Fevrier!W6 -> 0 | X53: =Fevrier!X6 -> 0 | Y53: =Fevrier!Y6 -> 0.5 | Z53: =Fevrier!Z6 -> 0.5 | AA53: =Fevrier!AA6 -> 0 | AB53: =Fevrier!AB6 -> 0 | AC53: =Fevrier!AC6 -> 0.5 | AD53: =Fevrier!AD6 -> 0.5 | AE53: =Fevrier!AE6 -> 0 | AF53: =Fevrier!AF6 -> SANOFI I202 3H CHARTRES 45 | AG53: =Fevrier!AG6 -> 0.5 | AH53: =Fevrier!AH6 -> 0.5 | AI53: =Fevrier!AI6 -> O | AJ53: =Fevrier!AJ6 -> 0 | AK53: =Fevrier!AK6 -> 0.5 | AL53: =Fevrier!AL6 -> 0.5 | AM53: =Fevrier!AM6 -> 0 | AN53: =Fevrier!AN6 -> 0 | AO53: =Fevrier!AO6 -> 0.5 | AP53: =Fevrier!AP6 -> 0.5 | AQ53: =Fevrier!AQ6 -> 0 | AR53: =Fevrier!AR6 -> 0 | AS53: =Fevrier!AS6 -> 0.5 | AT53: =Fevrier!AT6 -> 0.5 | AU53: =Fevrier!AU6 -> 0 | AV53: =Fevrier!AV6 -> 0 | AW53: =Fevrier!AW6 -> 0.5 | AX53: =Fevrier!AX6 -> 0.5 | AY53: =Fevrier!AY6 -> 0
B54: 2018-02-02 | C54: am | D54: =Fevrier!D7 -> ORANGE 2x EP02 1H30 ERAGNY 95 | E54: =Fevrier!E7 -> 0.5 | F54: =Fevrier!F7 -> 0.5 | G54: =Fevrier!G7 -> C | H54: =Fevrier!H7 -> 0 | I54: =Fevrier!I7 -> 0.5 | J54: =Fevrier!J7 -> 0.5 | K54: =Fevrier!K7 -> 0 | L54: =Fevrier!L7 -> 0 | M54: =Fevrier!M7 -> 0.5 | N54: =Fevrier!N7 -> 0.5 | O54: =Fevrier!O7 -> 0 | P54: =Fevrier!P7 -> 0 | Q54: =Fevrier!Q7 -> 0.5 | R54: =Fevrier!R7 -> 0.5 | S54: =Fevrier!S7 -> 0 | T54: =Fevrier!T7 -> 0 | U54: =Fevrier!U7 -> 0.5 | V54: =Fevrier!V7 -> 0.5 | W54: =Fevrier!W7 -> 0 | X54: =Fevrier!X7 -> 0 | Y54: =Fevrier!Y7 -> 0.5 | Z54: =Fevrier!Z7 -> 0.5 | AA54: =Fevrier!AA7 -> 0 | AB54: =Fevrier!AB7 -> SANOFI I202 3H CHARTRES 45 | AC54: =Fevrier!AC7 -> 0.5 | AD54: =Fevrier!AD7 -> 0.5 | AE54: =Fevrier!AE7 -> C | AF54: =Fevrier!AF7 -> 0 | AG54: =Fevrier!AG7 -> 0.5 | AH54: =Fevrier!AH7 -> 0.5 | AI54: =Fevrier!AI7 -> 0 | AJ54: =Fevrier!AJ7 -> 0 | AK54: =Fevrier!AK7 -> 0.5 | AL54: =Fevrier!AL7 -> 0.5 | AM54: =Fevrier!AM7 -> 0 | AN54: =Fevrier!AN7 -> 0 | AO54: =Fevrier!AO7 -> 0.5 | AP54: =Fevrier!AP7 -> 0.5 | AQ54: =Fevrier!AQ7 -> 0 | AR54: =Fevrier!AR7 -> 0 | AS54: =Fevrier!AS7 -> 0.5 | AT54: =Fevrier!AT7 -> 0.5 | AU54: =Fevrier!AU7 -> 0 | AV54: =Fevrier!AV7 -> SANOFI I202 3H CHARTRES 45 | AW54: =Fevrier!AW7 -> 0.5 | AX54: =Fevrier!AX7 -> 0.5 | AY54: =Fevrier!AY7 -> O
C55: pm | D55: =Fevrier!D8 -> ORANGE 2x EP02 1H30 ERAGNY 95 | E55: =Fevrier!E8 -> 0.5 | F55: =Fevrier!F8 -> 0.5 | G55: =Fevrier!G8 -> C | H55: =Fevrier!H8 -> SANOFI I202 3H CHARTRES 45 | I55: =Fevrier!I8 -> 0.5 | J55: =Fevrier!J8 -> 0.5 | K55: =Fevrier!K8 -> C | L55: =Fevrier!L8 -> SANOFI I202 3H CHARTRES 45 | M55: =Fevrier!M8 -> 0.5 | N55: =Fevrier!N8 -> 0.5 | O55: =Fevrier!O8 -> O | P55: =Fevrier!P8 -> SANOFI I202 3H CHARTRES 45 | Q55: =Fevrier!Q8 -> 0.5 | R55: =Fevrier!R8 -> 0.5 | S55: =Fevrier!S8 -> C | T55: =Fevrier!T8 -> 0 | U55: =Fevrier!U8 -> 0.5 | V55: =Fevrier!V8 -> 0.5 | W55: =Fevrier!W8 -> 0 | X55: =Fevrier!X8 -> 0 | Y55: =Fevrier!Y8 -> 0.5 | Z55: =Fevrier!Z8 -> 0.5 | AA55: =Fevrier!AA8 -> 0 | AB55: =Fevrier!AB8 -> SANOFI I202 3H CHARTRES 45 | AC55: =Fevrier!AC8 -> 0.5 | AD55: =Fevrier!AD8 -> 0.5 | AE55: =Fevrier!AE8 -> C | AF55: =Fevrier!AF8 -> SANOFI I202 3H CHARTRES 45 | AG55: =Fevrier!AG8 -> 0.5 | AH55: =Fevrier!AH8 -> 0.5 | AI55: =Fevrier!AI8 -> O | AJ55: =Fevrier!AJ8 -> 0 | AK55: =Fevrier!AK8 -> 0.5 | AL55: =Fevrier!AL8 -> 0.5 | AM55: =Fevrier!AM8 -> 0 | AN55: =Fevrier!AN8 -> 0 | AO55: =Fevrier!AO8 -> 0.5 | AP55: =Fevrier!AP8 -> 0.5 | AQ55: =Fevrier!AQ8 -> 0 | AR55: =Fevrier!AR8 -> 0 | AS55: =Fevrier!AS8 -> 0.5 | AT55: =Fevrier!AT8 -> 0.5 | AU55: =Fevrier!AU8 -> 0 | AV55: =Fevrier!AV8 -> SANOFI I202 3H CHARTRES 45 | AW55: =Fevrier!AW8 -> 0.5 | AX55: =Fevrier!AX8 -> 0.5 | AY55: =Fevrier!AY8 -> O

Sheet Fevrier
A1: 2018-02-01 | D1: PHILIPPE (EP) | H1: ANDRE (EP) | L1: (CM2) | P1: CHRISTIAN (CM1) | T1: Jean-Côme (Dragon) | X1: JEAN FRANCOIS | AB1: ANTOINE Antoine | AF1: THIERRY BINET | AJ1: PASCAL GARIN | AN1: JORIS LONGFIER | AR1: PRESTATAIRE | AV1: COFISEC
D3: =F3/E3 -> 1 | E3: =SUM(E5:E38) -> 17 | F3: =SUM(F5:F38) -> 17 | G3: 5 | H3: =J3/I3 -> 1 | I3: =SUM(I5:I38) -> 17 | J3: =SUM(J5:J38) -> 17 | K3: 12 | M3: =SUM(M5:M38) -> 17 | N3: =SUM(N5:N38) -> 17 | P3: =R3/Q3 -> 1 | Q3: =SUM(Q5:Q38) -> 17 | R3: =SUM(R5:R38) -> 17 | T3: =V3/U3 -> 1 | U3: =SUM(U5:U38) -> 17 | V3: =SUM(V5:V38) -> 17 | X3: =Z3/Y3 -> 1 | Y3: =SUM(Y5:Y38) -> 17 | Z3: =SUM(Z5:Z38) -> 17 | AB3: =AD3/AC3 -> 1 | AC3: =SUM(AC5:AC38) -> 17 | AD3: =SUM(AD5:AD38) -> 17 | AF3: =AH3/AG3 -> 1 | AG3: =SUM(AG5:AG38) -> 17 | AH3: =SUM(AH5:AH38) -> 17 | AJ3: =AL3/AK3 -> 1 | AK3: =SUM(AK5:AK38) -> 17 | AL3: =SUM(AL5:AL38) -> 17 | AN3: =AP3/AO3 -> 1 | AO3: =SUM(AO5:AO38) -> 17 | AP3: =SUM(AP5:AP38) -> 17 | AR3: =AT3/AS3 -> 1 | AS3: =SUM(AS5:AS38) -> 17 | AT3: =SUM(AT5:AT38) -> 17 | AV3: =AX3/AW3 -> 1 | AW3: =SUM(AW5:AW38) -> 17 | AX3: =SUM(AX5:AX38) -> 17
A4: SEM | B4: JOUR | C4: AM/PM | D4: FORMATION | E4: Ouv | F4: trav | G4: STATUT | H4: FORMATION | I4: Ouv | J4: trav | K4: STATUT | L4: FORMATION | M4: Ouv | N4: trav | O4: STATUT | P4: FORMATION | Q4: Ouv | R4: trav | S4: STATUT | T4: FORMATION | U4: Ouv | V4: trav | W4: STATUT | X4: FORMATION | Y4: Ouv | Z4: trav | AA4: STATUT | AB4: FORMATION | AC4: Ouv | AD4: trav | AE4: STATUT | AF4: FORMATION | AG4: Ouv | AH4: trav | AI4: STATUT | AJ4: FORMATION | AK4: Ouv | AL4: trav | AM4: STATUT | AN4: FORMATION | AO4: Ouv | AP4: trav | AQ4: STATUT | AR4: FORMATION | AS4: Ouv | AT4: trav | AU4: STATUT | AV4: FORMATION | AW4: Ouv | AX4: trav | AY4: STATUT
A5: 5 | B5: 2018-02-01 | C5: am | E5: 0.5 | F5: 0.5 | H5: ORANGE 2x EP02 1H30 ERAGNY 95 | I5: 0.5 | J5: 0.5 | K5: C | L5: ORANGE 2x EP02 1H30 ERAGNY 95 | M5: 0.5 | N5: 0.5 | O5: C | P5: ORANGE 2x EP02 1H30 ERAGNY 95 | Q5: 0.5 | R5: 0.5 | S5: C | T5: ORANGE 2x EP02 1H30 ERAGNY 95 | U5: 0.5 | V5: 0.5 | W5: C | Y5: 0.5 | Z5: 0.5 | AB5: SANOFI I202 3H CHARTRES 45 | AC5: 0.5 | AD5: 0.5 | AE5: O | AG5: 0.5 | AH5: 0.5 | AK5: 0.5 | AL5: 0.5 | AO5: 0.5 | AP5: 0.5 | AS5: 0.5 | AT5: 0.5 | AV5: ORANGE 2x EP02 1H30 ERAGNY 95 | AW5: 0.5 | AX5: 0.5 | AY5: C
C6: pm | D6: ORANGE 2x EP02 1H30 ERAGNY 95 | E6: 0.5 | F6: 0.5 | G6: C | I6: 0.5 | J6: 0.5 | M6: 0.5 | N6: 0.5 | Q6: 0.5 | R6: 0.5 | U6: 0.5 | V6: 0.5 | Y6: 0.5 | Z6: 0.5 | AC6: 0.5 | AD6: 0.5 | AF6: SANOFI I202 3H CHARTRES 45 | AG6: 0.5 | AH6: 0.5 | AI6: O | AK6: 0.5 | AL6: 0.5 | AO6: 0.5 | AP6: 0.5 | AS6: 0.5 | AT6: 0.5 | AW6: 0.5 | AX6: 0.5
B7: 2018-02-02 | C7: am | D7: ORANGE 2x EP02 1H30 ERAGNY 95 | E7: 0.5 | F7: 0.5 | G7: C | I7: 0.5 | J7: 0.5 | M7: 0.5 | N7: 0.5 | Q7: 0.5 | R7: 0.5 | U7: 0.5 | V7: 0.5 | Y7: 0.5 | Z7: 0.5 | AB7: SANOFI I202 3H CHARTRES 45 | AC7: 0.5 | AD7: 0.5 | AE7: C | AG7: 0.5 | AH7: 0.5 | AK7: 0.5 | AL7: 0.5 | AO7: 0.5 | AP7: 0.5 | AS7: 0.5 | AT7: 0.5 | AV7: SANOFI I202 3H CHARTRES 45 | AW7: 0.5 | AX7: 0.5 | AY7: O
C8: pm | D8: ORANGE 2x EP02 1H30 ERAGNY 95 | E8: 0.5 | F8: 0.5 | G8: C | H8: SANOFI I202 3H CHARTRES 45 | I8: 0.5 | J8: 0.5 | K8: C | L8: SANOFI I202 3H CHARTRES 45 | M8: 0.5 | N8: 0.5 | O8: O | P8: SANOFI I202 3H CHARTRES 45 | Q8: 0.5 | R8: 0.5 | S8: C | U8: 0.5 | V8: 0.5 | Y8: 0.5 | Z8: 0.5 | AB8: SANOFI I202 3H CHARTRES 45 | AC8: 0.5 | AD8: 0.5 | AE8: C | AF8: SANOFI I202 3H CHARTRES 45 | AG8: 0.5 | AH8: 0.5 | AI8: O | AK8: 0.5 | AL8: 0.5 | AO8: 0.5 | AP8: 0.5 | AS8: 0.5 | AT8: 0.5 | AV8: SANOFI I202 3H CHARTRES 45 | AW8: 0.5 | AX8: 0.5 | AY8: O
A9: 6 | B9: 2018-02-05 | C9: am | E9: 0.5 | F9: 0.5 | I9: 0.5 | J9: 0.5 | M9: 0.5 | N9: 0.5 | Q9: 0.5 | R9: 0.5 | U9: 0.5 | V9: 0.5 | Y9: 0.5 | Z9: 0.5 | AC9: 0.5 | AD9: 0.5 | AG9: 0.5 | AH9: 0.5 | AK9: 0.5 | AL9: 0.5 | AO9: 0.5 | AP9: 0.5 | AS9: 0.5 | AT9: 0.5 | AW9: 0.5 | AX9: 0.5
C10: pm | E10: 0.5 | F10: 0.5 | I10: 0.5 | J10: 0.5 | M10: 0.5 | N10: 0.5 | Q10: 0.5 | R10: 0.5 | U10: 0.5 | V10: 0.5 | Y10: 0.5 | Z10: 0.5 | AC10: 0.5 | AD10: 0.5 | AG10: 0.5 | AH10: 0.5 | AK10: 0.5 | AL10: 0.5 | AO10: 0.5 | AP10: 0.5 | AS10: 0.5 | AT10: 0.5 | AW10: 0.5 | AX10: 0.5
B11: 2018-02-06 | C11: am | E11: 0.5 | F11: 0.5 | I11: 0.5 | J11: 0.5 | M11: 0.5 | N11: 0.5 | Q11: 0.5 | R11: 0.5 | U11: 0.5 | V11: 0.5 | Y11: 0.5 | Z11: 0.5 | AC11: 0.5 | AD11: 0.5 | AG11: 0.5 | AH11: 0.5 | AK11: 0.5 | AL11: 0.5 | AO11: 0.5 | AP11: 0.5 | AS11: 0.5 | AT11: 0.5 | AW11: 0.5 | AX11: 0.5
C12: pm | E12: 0.5 | F12: 0.5 | I12: 0.5 | J12: 0.5 | M12: 0.5 | N12: 0.5 | Q12: 0.5 | R12: 0.5 | U12: 0.5 | V12: 0.5 | Y12: 0.5 | Z12: 0.5 | AC12: 0.5 | AD12: 0.5 | AG12: 0.5 | AH12: 0.5 | AK12: 0.5 | AL12: 0.5 | AO12: 0.5 | AP12: 0.5 | AS12: 0.5 | AT12: 0.5 | AW12: 0.5 | AX12: 0.5
B13: 2018-02-07 | C13: am | E13: 0.5 | F13: 0.5 | I13: 0.5 | J13: 0.5 | M13: 0.5 | N13: 0.5 | Q13: 0.5 | R13: 0.5 | U13: 0.5 | V13: 0.5 | Y13: 0.5 | Z13: 0.5 | AC13: 0.5 | AD13: 0.5 | AG13: 0.5 | AH13: 0.5 | AK13: 0.5 | AL13: 0.5 | AO13: 0.5 | AP13: 0.5 | AS13: 0.5 | AT13: 0.5 | AW13: 0.5 | AX13: 0.5
C14: pm | E14: 0.5 | F14: 0.5 | I14: 0.5 | J14: 0.5 | M14: 0.5 | N14: 0.5 | Q14: 0.5 | R14: 0.5 | U14: 0.5 | V14: 0.5 | Y14: 0.5 | Z14: 0.5 | AC14: 0.5 | AD14: 0.5 | AG14: 0.5 | AH14: 0.5 | AK14: 0.5 | AL14: 0.5 | AO14: 0.5 | AP14: 0.5 | AS14: 0.5 | AT14: 0.5 | AW14: 0.5 | AX14: 0.5
B15: 2018-02-08 | C15: am | E15: 0.5 | F15: 0.5 | I15: 0.5 | J15: 0.5 | M15: 0.5 | N15: 0.5 | Q15: 0.5 | R15: 0.5 | U15: 0.5 | V15: 0.5 | Y15: 0.5 | Z15: 0.5 | AC15: 0.5 | AD15: 0.5 | AG15: 0.5 | AH15: 0.5 | AK15: 0.5 | AL15: 0.5 | AO15: 0.5 | AP15: 0.5 | AS15: 0.5 | AT15: 0.5 | AW15: 0.5 | AX15: 0.5
C16: pm | E16: 0.5 | F16: 0.5 | I16: 0.5 | J16: 0.5 | M16: 0.5 | N16: 0.5 | Q16: 0.5 | R16: 0.5 | U16: 0.5 | V16: 0.5 | Y16: 0.5 | Z16: 0.5 | AC16: 0.5 | AD16: 0.5 | AG16: 0.5 | AH16: 0.5 | AK16: 0.5 | AL16: 0.5 | AO16: 0.5 | AP16: 0.5 | AS16: 0.5 | AT16: 0.5 | AW16: 0.5 | AX16: 0.5
B17: 2018-02-09 | C17: am | E17: 0.5 | F17: 0.5 | I17: 0.5 | J17: 0.5 | M17: 0.5 | N17: 0.5 | Q17: 0.5 | R17: 0.5 | U17: 0.5 | V17: 0.5 | Y17: 0.5 | Z17: 0.5 | AC17: 0.5 | AD17: 0.5 | AG17: 0.5 | AH17: 0.5 | AK17: 0.5 | AL17: 0.5 | AO17: 0.5 | AP17: 0.5 | AS17: 0.5 | AT17: 0.5 | AW17: 0.5 | AX17: 0.5
C18: pm | E18: 0.5 | F18: 0.5 | I18: 0.5 | J18: 0.5 | M18: 0.5 | N18: 0.5 | Q18: 0.5 | R18: 0.5 | U18: 0.5 | V18: 0.5 | Y18: 0.5 | Z18: 0.5 | AC18: 0.5 | AD18: 0.5 | AG18: 0.5 | AH18: 0.5 | AK18: 0.5 | AL18: 0.5 | AO18: 0.5 | AP18: 0.5 | AS18: 0.5 | AT18: 0.5 | AW18: 0.5 | AX18: 0.5
A19: 7 | B19: 2018-02-12 | C19: am | E19: 0.5 | F19: 0.5 | I19: 0.5 | J19: 0.5 | M19: 0.5 | N19: 0.5 | Q19: 0.5 | R19: 0.5 | U19: 0.5 | V19: 0.5 | Y19: 0.5 | Z19: 0.5 | AC19: 0.5 | AD19: 0.5 | AG19: 0.5 | AH19: 0.5 | AK19: 0.5 | AL19: 0.5 | AO19: 0.5 | AP19: 0.5 | AS19: 0.5 | AT19: 0.5 | AW19: 0.5 | AX19: 0.5
C20: pm | E20: 0.5 | F20: 0.5 | I20: 0.5 | J20: 0.5 | M20: 0.5 | N20: 0.5 | Q20: 0.5 | R20: 0.5 | U20: 0.5 | V20: 0.5 | Y20: 0.5 | Z20: 0.5 | AC20: 0.5 | AD20: 0.5 | AG20: 0.5 | AH20: 0.5 | AK20: 0.5 | AL20: 0.5 | AO20: 0.5 | AP20: 0.5 | AS20: 0.5 | AT20: 0.5 | AW20: 0.5 | AX20: 0.5
B21: 2018-02-13 | C21: am | E21: 0.5 | F21: 0.5 | I21: 0.5 | J21: 0.5 | M21: 0.5 | N21: 0.5 | Q21: 0.5 | R21: 0.5 | U21: 0.5 | V21: 0.5 | Y21: 0.5 | Z21: 0.5 | AC21: 0.5 | AD21: 0.5 | AG21: 0.5 | AH21: 0.5 | AK21: 0.5 | AL21: 0.5 | AO21: 0.5 | AP21: 0.5 | AS21: 0.5 | AT21: 0.5 | AW21: 0.5 | AX21: 0.5
C22: pm | E22: 0.5 | F22: 0.5 | I22: 0.5 | J22: 0.5 | M22: 0.5 | N22: 0.5 | Q22: 0.5 | R22: 0.5 | U22: 0.5 | V22: 0.5 | Y22: 0.5 | Z22: 0.5 | AC22: 0.5 | AD22: 0.5 | AG22: 0.5 | AH22: 0.5 | AK22: 0.5 | AL22: 0.5 | AO22: 0.5 | AP22: 0.5 | AS22: 0.5 | AT22: 0.5 | AW22: 0.5 | AX22: 0.5
B23: 2018-02-14 | C23: am | E23: 0.5 | F23: 0.5 | I23: 0.5 | J23: 0.5 | M23: 0.5 | N23: 0.5 | Q23: 0.5 | R23: 0.5 | U23: 0.5 | V23: 0.5 | Y23: 0.5 | Z23: 0.5 | AC23: 0.5 | AD23: 0.5 | AG23: 0.5 | AH23: 0.5 | AK23: 0.5 | AL23: 0.5 | AO23: 0.5 | AP23: 0.5 | AS23: 0.5 | AT23: 0.5 | AW23: 0.5 | AX23: 0.5
C24: pm | E24: 0.5 | F24: 0.5 | I24: 0.5 | J24: 0.5 | M24: 0.5 | N24: 0.5 | Q24: 0.5 | R24: 0.5 | U24: 0.5 | V24: 0.5 | Y24: 0.5 | Z24: 0.5 | AC24: 0.5 | AD24: 0.5 | AG24: 0.5 | AH24: 0.5 | AK24: 0.5 | AL24: 0.5 | AO24: 0.5 | AP24: 0.5 | AS24: 0.5 | AT24: 0.5 | AW24: 0.5 | AX24: 0.5
B25: 2018-02-15 | C25: am | E25: 0.5 | F25: 0.5 | I25: 0.5 | J25: 0.5 | M25: 0.5 | N25: 0.5 | Q25: 0.5 | R25: 0.5 | U25: 0.5 | V25: 0.5 | Y25: 0.5 | Z25: 0.5 | AC25: 0.5 | AD25: 0.5 | AG25: 0.5 | AH25: 0.5 | AK25: 0.5 | AL25: 0.5 | AO25: 0.5 | AP25: 0.5 | AS25: 0.5 | AT25: 0.5 | AW25: 0.5 | AX25: 0.5
C26: pm | E26: 0.5 | F26: 0.5 | I26: 0.5 | J26: 0.5 | M26: 0.5 | N26: 0.5 | Q26: 0.5 | R26: 0.5 | U26: 0.5 | V26: 0.5 | Y26: 0.5 | Z26: 0.5 | AC26: 0.5 | AD26: 0.5 | AG26: 0.5 | AH26: 0.5 | AK26: 0.5 | AL26: 0.5 | AO26: 0.5 | AP26: 0.5 | AS26: 0.5 | AT26: 0.5 | AW26: 0.5 | AX26: 0.5
B27: 2018-02-16 | C27: am | E27: 0.5 | F27: 0.5 | I27: 0.5 | J27: 0.5 | M27: 0.5 | N27: 0.5 | Q27: 0.5 | R27: 0.5 | U27: 0.5 | V27: 0.5 | Y27: 0.5 | Z27: 0.5 | AC27: 0.5 | AD27: 0.5 | AG27: 0.5 | AH27: 0.5 | AK27: 0.5 | AL27: 0.5 | AO27: 0.5 | AP27: 0.5 | AS27: 0.5 | AT27: 0.5 | AW27: 0.5 | AX27: 0.5
C28: pm | E28: 0.5 | F28: 0.5 | I28: 0.5 | J28: 0.5 | M28: 0.5 | N28: 0.5 | Q28: 0.5 | R28: 0.5 | U28: 0.5 | V28: 0.5 | Y28: 0.5 | Z28: 0.5 | AC28: 0.5 | AD28: 0.5 | AG28: 0.5 | AH28: 0.5 | AK28: 0.5 | AL28: 0.5 | AO28: 0.5 | AP28: 0.5 | AS28: 0.5 | AT28: 0.5 | AW28: 0.5 | AX28: 0.5
A29: 8 | B29: 2018-02-19 | C29: am | E29: 0.5 | F29: 0.5 | I29: 0.5 | J29: 0.5 | M29: 0.5 | N29: 0.5 | Q29: 0.5 | R29: 0.5 | U29: 0.5 | V29: 0.5 | Y29: 0.5 | Z29: 0.5 | AC29: 0.5 | AD29: 0.5 | AG29: 0.5 | AH29: 0.5 | AK29: 0.5 | AL29: 0.5 | AO29: 0.5 | AP29: 0.5 | AS29: 0.5 | AT29: 0.5 | AW29: 0.5 | AX29: 0.5
C30: pm | E30: 0.5 | F30: 0.5 | I30: 0.5 | J30: 0.5 | M30: 0.5 | N30: 0.5 | Q30: 0.5 | R30: 0.5 | U30: 0.5 | V30: 0.5 | Y30: 0.5 | Z30: 0.5 | AC30: 0.5 | AD30: 0.5 | AG30: 0.5 | AH30: 0.5 | AK30: 0.5 | AL30: 0.5 | AO30: 0.5 | AP30: 0.5 | AS30: 0.5 | AT30: 0.5 | AW30: 0.5 | AX30: 0.5
B31: 2018-02-20 | C31: am | E31: 0.5 | F31: 0.5 | I31: 0.5 | J31: 0.5 | M31: 0.5 | N31: 0.5 | Q31: 0.5 | R31: 0.5 | U31: 0.5 | V31: 0.5 | Y31: 0.5 | Z31: 0.5 | AC31: 0.5 | AD31: 0.5 | AG31: 0.5 | AH31: 0.5 | AK31: 0.5 | AL31: 0.5 | AO31: 0.5 | AP31: 0.5 | AS31: 0.5 | AT31: 0.5 | AW31: 0.5 | AX31: 0.5
C32: pm | E32: 0.5 | F32: 0.5 | I32: 0.5 | J32: 0.5 | M32: 0.5 | N32: 0.5 | Q32: 0.5 | R32: 0.5 | U32: 0.5 | V32: 0.5 | Y32: 0.5 | Z32: 0.5 | AC32: 0.5 | AD32: 0.5 | AG32: 0.5 | AH32: 0.5 | AK32: 0.5 | AL32: 0.5 | AO32: 0.5 | AP32: 0.5 | AS32: 0.5 | AT32: 0.5 | AW32: 0.5 | AX32: 0.5
B33: 2018-02-21 | C33: am | E33: 0.5 | F33: 0.5 | I33: 0.5 | J33: 0.5 | M33: 0.5 | N33: 0.5 | Q33: 0.5 | R33: 0.5 | U33: 0.5 | V33: 0.5 | Y33: 0.5 | Z33: 0.5 | AC33: 0.5 | AD33: 0.5 | AG33: 0.5 | AH33: 0.5 | AK33: 0.5 | AL33: 0.5 | AO33: 0.5 | AP33: 0.5 | AS33: 0.5 | AT33: 0.5 | AW33: 0.5 | AX33: 0.5
C34: pm | E34: 0.5 | F34: 0.5 | I34: 0.5 | J34: 0.5 | M34: 0.5 | N34: 0.5 | Q34: 0.5 | R34: 0.5 | U34: 0.5 | V34: 0.5 | Y34: 0.5 | Z34: 0.5 | AC34: 0.5 | AD34: 0.5 | AG34: 0.5 | AH34: 0.5 | AK34: 0.5 | AL34: 0.5 | AO34: 0.5 | AP34: 0.5 | AS34: 0.5 | AT34: 0.5 | AW34: 0.5 | AX34: 0.5
B35: 2018-02-22 | C35: am | E35: 0.5 | F35: 0.5 | I35: 0.5 | J35: 0.5 | M35: 0.5 | N35: 0.5 | Q35: 0.5 | R35: 0.5 | U35: 0.5 | V35: 0.5 | Y35: 0.5 | Z35: 0.5 | AC35: 0.5 | AD35: 0.5 | AG35: 0.5 | AH35: 0.5 | AK35: 0.5 | AL35: 0.5 | AO35: 0.5 | AP35: 0.5 | AS35: 0.5 | AT35: 0.5 | AW35: 0.5 | AX35: 0.5
C36: pm | E36: 0.5 | F36: 0.5 | I36: 0.5 | J36: 0.5 | M36: 0.5 | N36: 0.5 | Q36: 0.5 | R36: 0.5 | U36: 0.5 | V36: 0.5 | Y36: 0.5 | Z36: 0.5 | AC36: 0.5 | AD36: 0.5 | AG36: 0.5 | AH36: 0.5 | AK36: 0.5 | AL36: 0.5 | AO36: 0.5 | AP36: 0.5 | AS36: 0.5 | AT36: 0.5 | AW36: 0.5 | AX36: 0.5
B37: 2018-02-23 | C37: am | E37: 0.5 | F37: 0.5 | I37: 0.5 | J37: 0.5 | M37: 0.5 | N37: 0.5 | Q37: 0.5 | R37: 0.5 | U37: 0.5 | V37: 0.5 | Y37: 0.5 | Z37: 0.5 | AC37: 0.5 | AD37: 0.5 | AG37: 0.5 | AH37: 0.5 | AK37: 0.5 | AL37: 0.5 | AO37: 0.5 | AP37: 0.5 | AS37: 0.5 | AT37: 0.5 | AW37: 0.5 | AX37: 0.5
C38: pm | E38: 0.5 | F38: 0.5 | I38: 0.5 | J38: 0.5 | M38: 0.5 | N38: 0.5 | Q38: 0.5 | R38: 0.5 | U38: 0.5 | V38: 0.5 | Y38: 0.5 | Z38: 0.5 | AC38: 0.5 | AD38: 0.5 | AG38: 0.5 | AH38: 0.5 | AK38: 0.5 | AL38: 0.5 | AO38: 0.5 | AP38: 0.5 | AS38: 0.5 | AT38: 0.5 | AW38: 0.5 | AX38: 0.5
A39: 9 | B39: 2018-02-26 | C39: am | E39: 0.5 | F39: 0.5 | I39: 0.5 | J39: 0.5 | M39: 0.5 | N39: 0.5 | Q39: 0.5 | R39: 0.5 | U39: 0.5 | V39: 0.5 | Y39: 0.5 | Z39: 0.5 | AC39: 0.5 | AD39: 0.5 | AG39: 0.5 | AH39: 0.5 | AK39: 0.5 | AL39: 0.5 | AO39: 0.5 | AP39: 0.5 | AS39: 0.5 | AT39: 0.5 | AW39: 0.5 | AX39: 0.5
C40: pm | E40: 0.5 | F40: 0.5 | I40: 0.5 | J40: 0.5 | M40: 0.5 | N40: 0.5 | Q40: 0.5 | R40: 0.5 | U40: 0.5 | V40: 0.5 | Y40: 0.5 | Z40: 0.5 | AC40: 0.5 | AD40: 0.5 | AG40: 0.5 | AH40: 0.5 | AK40: 0.5 | AL40: 0.5 | AO40: 0.5 | AP40: 0.5 | AS40: 0.5 | AT40: 0.5 | AW40: 0.5 | AX40: 0.5
B41: 2018-02-27 | C41: am | E41: 0.5 | F41: 0.5 | I41: 0.5 | J41: 0.5 | M41: 0.5 | N41: 0.5 | Q41: 0.5 | R41: 0.5 | U41: 0.5 | V41: 0.5 | Y41: 0.5 | Z41: 0.5 | AC41: 0.5 | AD41: 0.5 | AG41: 0.5 | AH41: 0.5 | AK41: 0.5 | AL41: 0.5 | AO41: 0.5 | AP41: 0.5 | AS41: 0.5 | AT41: 0.5 | AW41: 0.5 | AX41: 0.5
C42: pm | E42: 0.5 | F42: 0.5 | I42: 0.5 | J42: 0.5 | M42: 0.5 | N42: 0.5 | Q42: 0.5 | R42: 0.5 | U42: 0.5 | V42: 0.5 | Y42: 0.5 | Z42: 0.5 | AC42: 0.5 | AD42: 0.5 | AG42: 0.5 | AH42: 0.5 | AK42: 0.5 | AL42: 0.5 | AO42: 0.5 | AP42: 0.5 | AS42: 0.5 | AT42: 0.5 | AW42: 0.5 | AX42: 0.5
B43: 2018-02-28 | C43: am | E43: 0.5 | F43: 0.5 | I43: 0.5 | J43: 0.5 | M43: 0.5 | N43: 0.5 | Q43: 0.5 | R43: 0.5 | U43: 0.5 | V43: 0.5 | Y43: 0.5 | Z43: 0.5 | AC43: 0.5 | AD43: 0.5 | AG43: 0.5 | AH43: 0.5 | AK43: 0.5 | AL43: 0.5 | AO43: 0.5 | AP43: 0.5 | AS43: 0.5 | AT43: 0.5 | AW43: 0.5 | AX43: 0.5
C44: pm | E44: 0.5 | F44: 0.5 | I44: 0.5 | J44: 0.5 | M44: 0.5 | N44: 0.5 | Q44: 0.5 | R44: 0.5 | U44: 0.5 | V44: 0.5 | Y44: 0.5 | Z44: 0.5 | AC44: 0.5 | AD44: 0.5 | AG44: 0.5 | AH44: 0.5 | AK44: 0.5 | AL44: 0.5 | AO44: 0.5 | AP44: 0.5 | AS44: 0.5 | AT44: 0.5 | AW44: 0.5 | AX44: 0.5

Sheet mars
A1: 2018-03-01 | D1: PHILIPPE (EP) | H1: ANDRE (EP) | L1: (CM2) | P1: CHRISTIAN (CM1) | T1: Jean-Côme (Dragon) | X1: JEAN FRANCOIS | AB1: ANTOINE Antoine | AF1: THIERRY BINET | AJ1: PASCAL GARIN | AN1: JORIS LONGFIER | AR1: PRESTATAIRE | AV1: COFISEC
D3: =F3/E3 ->  | E3: =SUM(E5:E38) -> 0 | F3: =SUM(F5:F38) -> 0 | G3: 5 | H3: =J3/I3 ->  | I3: =SUM(I5:I38) -> 0 | J3: =SUM(J5:J38) -> 0 | K3: 12 | M3: =SUM(M5:M38) -> 0 | N3: =SUM(N5:N38) -> 0 | P3: =R3/Q3 ->  | Q3: =SUM(Q5:Q38) -> 0 | R3: =SUM(R5:R38) -> 0 | T3: =V3/U3 ->  | U3: =SUM(U5:U38) -> 0 | V3: =SUM(V5:V38) -> 0 | X3: =Z3/Y3 ->  | Y3: =SUM(Y5:Y38) -> 0 | Z3: =SUM(Z5:Z38) -> 0 | AB3: =AD3/AC3 ->  | AC3: =SUM(AC5:AC38) -> 0 | AD3: =SUM(AD5:AD38) -> 0 | AF3: =AH3/AG3 ->  | AG3: =SUM(AG5:AG38) -> 0 | AH3: =SUM(AH5:AH38) -> 0 | AJ3: =AL3/AK3 ->  | AK3: =SUM(AK5:AK38) -> 0 | AL3: =SUM(AL5:AL38) -> 0 | AN3: =AP3/AO3 ->  | AO3: =SUM(AO5:AO38) -> 0 | AP3: =SUM(AP5:AP38) -> 0 | AR3: =AT3/AS3 ->  | AS3: =SUM(AS5:AS38) -> 0 | AT3: =SUM(AT5:AT38) -> 0 | AV3: =AX3/AW3 ->  | AW3: =SUM(AW5:AW38) -> 0 | AX3: =SUM(AX5:AX38) -> 0
A4: SEM | B4: JOUR | C4: AM/PM | D4: FORMATION | E4: Ouv | F4: trav | G4: STATUT | H4: FORMATION | I4: Ouv | J4: trav | K4: STATUT | L4: FORMATION | M4: Ouv | N4: trav | O4: STATUT | P4: FORMATION | Q4: Ouv | R4: trav | S4: STATUT | T4: FORMATION | U4: Ouv | V4: trav | W4: STATUT | X4: FORMATION | Y4: Ouv | Z4: trav | AA4: STATUT | AB4: FORMATION | AC4: Ouv | AD4: trav | AE4: STATUT | AF4: FORMATION | AG4: Ouv | AH4: trav | AI4: STATUT | AJ4: FORMATION | AK4: Ouv | AL4: trav | AM4: STATUT | AN4: FORMATION | AO4: Ouv | AP4: trav | AQ4: STATUT | AR4: FORMATION | AS4: Ouv | AT4: trav | AU4: STATUT | AV4: FORMATION | AW4: Ouv | AX4: trav | AY4: STATUT
A5: 5 | B5: 2018-03-01 | C5: am | AY5: C
C6: pm | AY6: C
B7: 2018-03-02 | C7: am | AY7: C
C8: pm | AY8: C
A9: 6 | B9: 2018-03-05 | C9: am
C10: pm | AY10: C
B11: 2018-03-06 | C11: am | AY11: C
C12: pm | AY12: C
B13: 2018-03-07 | C13: am
C14: pm
B15: 2018-03-08 | C15: am
C16: pm
B17: 2018-03-09 | C17: am
C18: pm | AY18: F
A19: 7 | B19: 2018-03-12 | C19: am | AY19: V
C20: pm | AY20: F
B21: 2018-03-13 | C21: am | AY21: F
C22: pm | AY22: F
B23: 2018-03-14 | C23: am | AY23: F
C24: pm
B25: 2018-03-15 | C25: am | AY25: F
C26: pm
B27: 2018-03-16 | C27: am
C28: pm | AY28: F
A29: 8 | B29: 2018-03-19 | C29: am | AY29: F
C30: pm | AY30: F
B31: 2018-03-20 | C31: am | AY31: F
C32: pm
B33: 2018-03-21 | C33: am
C34: pm | AY34: C+BL
B35: 2018-03-22 | C35: am | AY35: C+BL
C36: pm | AY36: C+BL
B37: 2018-03-23 | C37: am | AY37: C+BL
C38: pm | AY38: C+BL
A39: 9 | B39: 2018-03-26 | C39: am
C40: pm | AY40: C
B41: 2018-03-27 | C41: am | AY41: C
C42: pm | AY42: C
B43: 2018-03-28 | C43: am
C44: pm
B45: 2018-03-29 | C45: am
C46: pm
B47: 2018-03-30 | C47: am
C48: pm

Sheet Juillet
A1: 2017-07-01 | D1: PHILIPPE (EP) | H1: ANDRE (EP) | L1: THIERRY (CM2) | P1: CHRISTIAN (CM1) | T1: Jean-Côme (Dragon) | X1: JEAN FRANCOIS | AB1: NICOLAS | AF1: THIERRY BINET | AJ1: PASCAL GARIN | AN1: JORIS LONGFIER
D3: =F3/E3 -> 0.1578947368 | E3: =SUM(E5:E46) -> 19 | F3: =SUM(F5:F46) -> 3 | G3: 1 | H3: =J3/I3 -> 0.1052631579 | I3: =SUM(I5:I46) -> 19 | J3: =SUM(J5:J46) -> 2 | K3: 1 | L3: =N3/M3 -> 0.15 | M3: =SUM(M5:M46) -> 20 | N3: =SUM(N5:N46) -> 3 | P3: =R3/Q3 -> 1 | Q3: =SUM(Q5:Q46) -> 14 | R3: =SUM(R5:R46) -> 14 | S3: 6 | T3: =V3/U3 -> 0.4 | U3: =SUM(U5:U46) -> 17.5 | V3: =SUM(V5:V46) -> 7 | X3: =Z3/Y3 -> 0.4473684211 | Y3: =SUM(Y5:Y46) -> 19 | Z3: =SUM(Z5:Z46) -> 8.5 | AA3: 1 | AB3: =AD3/AC3 -> 0 | AC3: =SUM(AC5:AC46) -> 15 | AD3: =SUM(AD5:AD46) -> 0 | AE3: 5 | AF3: =AH3/AG3 -> 0.6666666667 | AG3: =SUM(AG5:AG46) -> 12 | AH3: =SUM(AH5:AH46) -> 8 | AI3: 8 | AJ3: =AL3/AK3 -> 0 | AK3: =SUM(AK5:AK46) -> 5 | AL3: =SUM(AL5:AL46) -> 0 | AM3: 16 | AN3: =AP3/AO3 -> 0.4615384615 | AO3: =SUM(AO5:AO46) -> 19.5 | AP3: =SUM(AP5:AP46) -> 9 | AQ3: 0
A4: SEM | B4: JOUR | C4: AM/PM | D4: FORMATION | E4: Ouv | F4: trav | G4: STATUT | H4: FORMATION | I4: Ouv | J4: trav | K4: STATUT | L4: FORMATION | M4: Ouv | N4: trav | O4: STATUT | P4: FORMATION | Q4: Ouv | R4: trav | S4: STATUT | T4: FORMATION | U4: Ouv | V4: trav | W4: STATUT | X4: FORMATION | Y4: Ouv | Z4: trav | AA4: STATUT | AB4: FORMATION | AC4: Ouv | AD4: trav | AE4: STATUT | AF4: FORMATION | AG4: Ouv | AH4: trav | AI4: STATUT | AJ4: FORMATION | AK4: Ouv | AL4: trav | AM4: STATUT | AN4: FORMATION | AO4: Ouv | AP4: trav | AQ4: STATUT
A5: 27 | B5: 2017-07-03 | C5: am | D5: MAC DO EPI 4 sessions 75015 | E5: 0.5 | F5: 0.5 | G5: F | I5: 0.5 | M5: 0.5 | P5: Advantages Services Audit / Conseil Ile de France | Q5: 0.5 | R5: 0.5 | S5: C | T5: ROUTE | U5: 0.5 | V5: 0.5 | X5: GIVAUDAN LAVIROTTE recyclage ESI avec mousse LYON | Y5: 0.5 | Z5: 0.5 | AA5: F | AB5: VACANCES | AF5: Socorail i03 9H-12H Le Havre | AG5: 0.5 | AH5: 0.5 | AI5: F | AJ5: VACANCES | AN5: LET SERVICES I203R VERN SUR SEICHE (35) 10h00 | AO5: 0.5 | AQ5: report
C6: pm | D6: MAC DO EPI 4 sessions 75015 | E6: 0.5 | F6: 0.5 | I6: 0.5 | M6: 0.5 | P6: Advantages Services Audit / Conseil Ile de France | Q6: 0.5 | R6: 0.5 | S6: C | T6: ROUTE | U6: 0.5 | V6: 0.5 | X6: GIVAUDAN LAVIROTTE recyclage ESI avec mousse LYON | Y6: 0.5 | Z6: 0.5 | AA6: F | AB6: VACANCES | AF6: Hopital Durécu I03 Darnétal | AG6: 0.5 | AH6: 0.5 | AI6: F | AJ6: VACANCES | AO6: 0.5
B7: 2017-07-04 | C7: am | E7: 0.5 | I7: 0.5 | M7: 0.5 | P7: Advantages Services Audit / Conseil Ile de France | Q7: 0.5 | R7: 0.5 | S7: C | T7: Auberge de jeunesse fuaj EPI PYROS 1h30 + formation evac 1h30 Carcassonne (11) | U7: 0.5 | V7: 0.5 | W7: F | Y7: 0.5 | AB7: VACANCES | AG7: 0.5 | AJ7: VACANCES | AN7: eudier brico le havre i03 09 à 12 | AO7: 0.5 | AP7: 0.5 | AQ7: F
C8: pm | E8: 0.5 | I8: 0.5 | M8: 0.5 | P8: Route | Q8: 0.5 | R8: 0.5 | U8: 0.5 | X8: SERENIDES ST JEAN 3 rue des jardins CHATILLON EN DIOIS (26) 450€ | Y8: 0.5 | Z8: 0.5 | AA8: F | AB8: VACANCES | AF8: ROUTE | AG8: 0.5 | AH8: 0.5 | AJ8: VACANCES | AN8: Socorail i03 9H-12H Le Havre | AO8: 0.5 | AP8: 0.5 | AQ8: F
B9: 2017-07-05 | C9: am | E9: 0.5 | I9: 0.5 | M9: 0.5 | P9: THERMAL CERAMICS 2 ESI 3H ST MARCELLIN EN FOREZ (42) | Q9: 0.5 | R9: 0.5 | S9: F | U9: 0.5 | X9: SOCIETE FALLON EPI I03 chez broux 74 | Y9: 0.5 | Z9: 0.5 | AA9: F | AB9: VACANCES | AF9: CERP I204R LES SORINIERES 44 | AG9: 0.5 | AH9: 0.5 | AI9: F | AJ9: VACANCES | AN9: institut immaculé I03 | AO9: 0.5 | AP9: 0.5 | AQ9: F
C10: pm | E10: 0.5 | I10: 0.5 | M10: 0.5 | Q10: 0.5 | R10: 0.5 | U10: 0.5 | X10: EMMAUS EXERCICE D'EVACUATION AVEC FUMEE AVEC RAPPORT 74 CRANVES SALES 14h | Y10: 0.5 | Z10: 0.5 | AA10: F | AB10: VACANCES | AF10: CERP I202 LES SORINIERES 44 | AG10: 0.5 | AH10: 0.5 | AI10: F | AJ10: VACANCES | AN10: institut immaculé I03 | AO10: 0.5 | AP10: 0.5 | AQ10: F
B11: 2017-07-06 | C11: am | E11: 0.5 | I11: 0.5 | M11: 0.5 | P11: THERMAL CERAMICS 2 ESI 3H ST MARCELLIN EN FOREZ (42) | Q11: 0.5 | R11: 0.5 | S11: F | T11: Lycee jeanne d'arc 2 EPI 1h30 Carcassonne | U11: 0.5 | V11: 0.5 | W11: F | X11: DECOPER EPI 4h Cluses 74308 | Y11: 0.5 | Z11: 0.5 | AA11: F | AB11: VACANCES | AF11: CERP SST02 LES SORINIERES | AG11: 0.5 | AH11: 0.5 | AI11: F | AJ11: VACANCES | AN11: axe métal i12 x2 à st désir 14 | AO11: 0.5 | AP11: 0.5 | AQ11: F
C12: pm | E12: 0.5 | I12: 0.5 | M12: 0.5 | P12: Route | Q12: 0.5 | R12: 0.5 | T12: Lycee jeanne d'arc 2 EPI 1h30 Carcassonne | U12: 0.5 | V12: 0.5 | W12: F | Y12: 0.5 | AB12: VACANCES | AF12: CERP SST02 LES SORINIERES | AG12: 0.5 | AH12: 0.5 | AI12: F | AJ12: VACANCES | AN12: axe métal i12 x2 à st désir 15 | AO12: 0.5 | AP12: 0.5 | AQ12: F
B13: 2017-07-07 | C13: am | E13: 0.5 | I13: 0.5 | M13: 0.5 | P13: Advantages Services Audit / Conseil Ile de France | Q13: 0.5 | R13: 0.5 | S13: C | T13: route | U13: 0.5 | V13: 0.5 | Y13: 0.5 | AB13: VACANCES | AF13: CERP I06 LES SORINIERES | AG13: 0.5 | AH13: 0.5 | AI13: F | AJ13: VACANCES | AN13: KYNEXIA 8h-12h 27240 sylvains les moulins i06 | AO13: 0.5 | AP13: 0.5 | AQ13: F
C14: pm | E14: 0.5 | I14: 0.5 | M14: 0.5 | P14: Advantages Services Audit / Conseil Ile de France | Q14: 0.5 | R14: 0.5 | S14: C | U14: 0.5 | Y14: 0.5 | AB14: VACANCES | AF14: ROUTE | AG14: 0.5 | AH14: 0.5 | AJ14: VACANCES | AN14: atelier | AO14: 0.5 | AP14: 0.5
A15: 28 | B15: 2017-07-10 | C15: am | E15: 0.5 | I15: 0.5 | M15: 0.5 | P15: Advantages Services Audit / Conseil Ile de France | Q15: 0.5 | R15: 0.5 | S15: C | U15: 0.5 | X15: roulage | Y15: 0.5 | Z15: 0.5 | AC15: 0.5 | AG15: 0.5 | AJ15: VACANCES | AN15: Socorail i03 9H-12H Le Havre | AO15: 0.5 | AP15: 0.5 | AQ15: F
C16: pm | E16: 0.5 | I16: 0.5 | M16: 0.5 | P16: Advantages Services Audit / Conseil Ile de France | Q16: 0.5 | R16: 0.5 | S16: C | U16: 0.5 | X16: SFP NANTERRE | Y16: 0.5 | Z16: 0.5 | AC16: 0.5 | AG16: 0.5 | AJ16: VACANCES | AN16: ATELIER | AO16: 0.5 | AP16: 0.5
B17: 2017-07-11 | C17: am | E17: 0.5 | I17: 0.5 | M17: 0.5 | P17: Advantages Services Audit / Conseil Ile de France | Q17: 0.5 | R17: 0.5 | S17: C | U17: 0.5 | X17: SFP NANTERRE | Y17: 0.5 | Z17: 0.5 | AC17: 0.5 | AF17: Milton roy i106 avec ari PONT SAINT PIERRE 27 | AG17: 0.5 | AH17: 0.5 | AI17: F | AJ17: VACANCES | AN17: BIC TECHNOLOGIES i07x2 CLICHY 92 | AO17: 0.5 | AP17: 0.5 | AQ17: F
C18: pm | E18: 0.5 | I18: 0.5 | M18: 0.5 | P18: Advantages Services Audit / Conseil Ile de France | Q18: 0.5 | R18: 0.5 | S18: C | U18: 0.5 | X18: roulage | Y18: 0.5 | Z18: 0.5 | AC18: 0.5 | AF18: Milton roy i106 avec ari PONT SAINT PIERRE 27 | AG18: 0.5 | AH18: 0.5 | AI18: F | AJ18: VACANCES | AN18: BIC TECHNOLOGIES i07x2 CLICHY 92 | AO18: 0.5 | AP18: 0.5 | AQ18: F
B19: 2017-07-12 | C19: am | E19: 0.5 | I19: 0.5 | M19: 0.5 | P19: Advantages Services Audit / Conseil Ile de France | Q19: 0.5 | R19: 0.5 | S19: C | T19: VACANCES | X19: IVTEC i04 10h-12h MIONS 69 | Y19: 0.5 | Z19: 0.5 | AA19: F | AC19: 0.5 | AF19: esi initial / milton roy i106 avec ari | AG19: 0.5 | AH19: 0.5 | AI19: F | AJ19: VACANCES | AO19: 0.5
C20: pm | E20: 0.5 | I20: 0.5 | M20: 0.5 | P20: Advantages Services Audit / Conseil Ile de France | Q20: 0.5 | R20: 0.5 | S20: C | U20: 0.5 | Y20: 0.5 | Z20: 0.5 | AC20: 0.5 | AG20: 0.5 | AJ20: VACANCES | AO20: 0.5
B21: 2017-07-13 | C21: am | E21: 0.5 | I21: 0.5 | M21: 0.5 | P21: Advantages Services Audit / Conseil Ile de France | Q21: 0.5 | R21: 0.5 | S21: C | U21: 0.5 | Y21: 0.5 | AC21: 0.5 | AG21: 0.5 | AJ21: VACANCES | AO21: 0.5
C22: pm | E22: 0.5 | I22: 0.5 | M22: 0.5 | P22: Advantages Services Audit / Conseil Ile de France | Q22: 0.5 | R22: 0.5 | S22: C | T22: Lycee Professionnel Val de Cher I03 3h SAINT AIGNAN 41 | U22: 0.5 | V22: 0.5 | W22: C+BL | Y22: 0.5 | AC22: 0.5 | AG22: 0.5 | AJ22: VACANCES | AO22: 0.5 | AP22: 0.5
B23: 2017-07-14 | C23: am
C24: pm
A25: 29 | B25: 2017-07-17 | C25: am | E25: 0.5 | I25: 0.5 | M25: 0.5 | P25: Advantages Services Audit / Conseil Ile de France | Q25: 0.5 | R25: 0.5 | S25: C | T25: VITA COLOR 1 DRA03 3H + Exo Evac sans fumée ETRECHY 91 | U25: 0.5 | V25: 0.5 | W25: C+BL | Y25: 0.5 | AC25: 0.5 | AG25: 0.5 | AJ25: VACANCES | AO25: 0.5
C26: pm | E26: 0.5 | I26: 0.5 | M26: 0.5 | P26: Advantages Services Audit / Conseil Ile de France | Q26: 0.5 | R26: 0.5 | S26: C | U26: 0.5 | V26: 0.5 | W26: C+BL | Y26: 0.5 | AC26: 0.5 | AF26: ROUTE | AG26: 0.5 | AH26: 0.5 | AJ26: VACANCES | AO26: 0.5
B27: 2017-07-18 | C27: am | D27: SST 01 PREVENTIQUE Rouen | E27: 0.5 | F27: 0.5 | G27: C | H27: SST 01 PREVENTIQUE Rouen | I27: 0.5 | J27: 0.5 | K27: C | L27: SST 01 PREVENTIQUE Rouen | M27: 0.5 | N27: 0.5 | O27: C | P27: Advantages Services Audit / Conseil Ile de France | Q27: 0.5 | R27: 0.5 | S27: C | T27: SST 01 PREVENTIQUE Rouen | U27: 0.5 | V27: 0.5 | W27: C | X27: ALME I03 en 2h 10h-12h SEYNOD | Y27: 0.5 | Z27: 0.5 | AA27: C+BL | AC27: 0.5 | AF27: sst02 ime-itep à plouigneau (29) | AG27: 0.5 | AH27: 0.5 | AI27: c | AJ27: VACANCES | AN27: SST 01 PREVENTIQUE Rouen | AO27: 0.5 | AP27: 0.5 | AQ27: C
C28: pm | D28: SST 01 PREVENTIQUE Rouen | E28: 0.5 | F28: 0.5 | G28: C | H28: SST 01 PREVENTIQUE Rouen | I28: 0.5 | J28: 0.5 | K28: C | L28: SST 01 PREVENTIQUE Rouen | M28: 0.5 | N28: 0.5 | O28: C | P28: Advantages Services Audit / Conseil Ile de France | Q28: 0.5 | R28: 0.5 | S28: C | T28: SST 01 PREVENTIQUE Rouen | U28: 0.5 | V28: 0.5 | W28: C | Y28: 0.5 | Z28: 0.5 | AC28: 0.5 | AF28: sst02 ime-itep à plouigneau (29) | AG28: 0.5 | AH28: 0.5 | AI28: c | AJ28: VACANCES | AN28: SST 01 PREVENTIQUE Rouen | AO28: 0.5 | AP28: 0.5 | AQ28: C
B29: 2017-07-19 | C29: am | D29: SST 01 PREVENTIQUE Rouen | E29: 0.5 | F29: 0.5 | G29: C | H29: SST 01 PREVENTIQUE Rouen | I29: 0.5 | J29: 0.5 | K29: C | L29: SST 01 PREVENTIQUE Rouen | M29: 0.5 | N29: 0.5 | O29: C | Q29: 0.5 | R29: 0.5 | S29: C | T29: SST 01 PREVENTIQUE Rouen | U29: 0.5 | V29: 0.5 | W29: C | Y29: 0.5 | AC29: 0.5 | AF29: ROUTE | AG29: 0.5 | AH29: 0.5 | AJ29: VACANCES | AN29: SST 01 PREVENTIQUE Rouen | AO29: 0.5 | AP29: 0.5 | AQ29: C
C30: pm | D30: SST 01 PREVENTIQUE Rouen | E30: 0.5 | F30: 0.5 | G30: C | H30: SST 01 PREVENTIQUE Rouen | I30: 0.5 | J30: 0.5 | K30: C | L30: SST 01 PREVENTIQUE Rouen | M30: 0.5 | N30: 0.5 | O30: C | P30: Advantages Services Audit / Conseil Ile de France | Q30: 0.5 | R30: 0.5 | S30: C | T30: SST 01 PREVENTIQUE Rouen | U30: 0.5 | V30: 0.5 | W30: C | Y30: 0.5 | AC30: 0.5 | AG30: 0.5 | AJ30: VACANCES | AN30: SST 01 PREVENTIQUE Rouen | AO30: 0.5 | AP30: 0.5 | AQ30: C
B31: 2017-07-20 | C31: am | E31: 0.5 | I31: 0.5 | M31: 0.5 | P31: Advantages Services Audit / Conseil Ile de France | Q31: 0.5 | R31: 0.5 | S31: C | T31: VACANCES | Y31: 0.5 | AC31: 0.5 | AF31: VACANCES | AJ31: VACANCES
C32: pm | E32: 0.5 | I32: 0.5 | L32: BIC I204R | M32: 0.5 | N32: 0.5 | O32: O | P32: Advantages Services Audit / Conseil Ile de France | Q32: 0.5 | R32: 0.5 | S32: C | U32: 0.5 | Y32: 0.5 | AC32: 0.5 | AF32: VACANCES | AJ32: VACANCES | AN32: 14h SPX à Evreux I204R | AO32: 0.5 | AP32: 0.5 | AQ32: C+BL
B33: 2017-07-21 | C33: am | E33: 0.5 | I33: 0.5 | L33: RdV ACMS Nanterre | M33: 0.5 | N33: 0.5 | P33: Advantages Services Audit / Conseil Ile de France | Q33: 0.5 | R33: 0.5 | S33: C | Y33: 0.5 | AC33: 0.5 | AF33: VACANCES | AJ33: VACANCES | AO33: 0.5
C34: pm | E34: 0.5 | I34: 0.5 | M34: 0.5 | P34: Advantages Services Audit / Conseil Ile de France | Q34: 0.5 | R34: 0.5 | S34: C | T34: NETTO IO3 de 12h à 14h 02310 charly s/marne | U34: 0.5 | V34: 0.5 | W34: C | Y34: 0.5 | AC34: 0.5 | AF34: VACANCES | AJ34: VACANCES | AO34: 0.5
A35: 30 | B35: 2017-07-24 | C35: am | E35: 0.5 | I35: 0.5 | M35: 0.5 | P35: VACANCES | U35: 0.5 | X35: THIANTY EPI 2H de 10h à 12h ALEX 74 | Y35: 0.5 | Z35: 0.5 | AA35: C | AC35: 0.5 | AF35: VACANCES | AJ35: VACANCES | AO35: 0.5
C36: pm | E36: 0.5 | I36: 0.5 | M36: 0.5 | P36: VACANCES | U36: 0.5 | Y36: 0.5 | AC36: 0.5 | AF36: VACANCES | AJ36: VACANCES | AO36: 0.5
B37: 2017-07-25 | C37: am | D37: hermes maroquinerie 2 ep02 1h30 belley 01 | E37: 0.5 | G37: O | I37: 0.5 | M37: 0.5 | P37: VACANCES | U37: 0.5 | Y37: 0.5 | AC37: 0.5 | AF37: VACANCES | AK37: 0.5 | AO37: 0.5
C38: pm | E38: 0.5 | I38: 0.5 | M38: 0.5 | P38: VACANCES | U38: 0.5 | Y38: 0.5 | AC38: 0.5 | AF38: VACANCES | AK38: 0.5 | AO38: 0.5
B39: 2017-07-26 | C39: am | E39: 0.5 | I39: 0.5 | M39: 0.5 | P39: VACANCES | U39: 0.5 | X39: RDV PRACTICIMA REYRIEUX 01 | Y39: 0.5 | Z39: 0.5 | AA39: C | AC39: 0.5 | AF39: VACANCES | AK39: 0.5 | AO39: 0.5
C40: pm | E40: 0.5 | I40: 0.5 | M40: 0.5 | P40: VACANCES | U40: 0.5 | Y40: 0.5 | AC40: 0.5 | AF40: VACANCES | AK40: 0.5 | AO40: 0.5
B41: 2017-07-27 | C41: am | E41: 0.5 | I41: 0.5 | M41: 0.5 | P41: VACANCES | T41: VACANCES | Y41: 0.5 | AC41: 0.5 | AF41: VACANCES | AK41: 0.5 | AO41: 0.5
C42: pm | E42: 0.5 | I42: 0.5 | M42: 0.5 | P42: VACANCES | U42: 0.5 | X42: CLINIQUE ST CHARLES FORINCI13H - 13h-16h LYON 1 | Y42: 0.5 | Z42: 0.5 | AA42: C | AC42: 0.5 | AF42: VACANCES | AK42: 0.5 | AO42: 0.5
B43: 2017-07-28 | C43: am | E43: 0.5 | I43: 0.5 | M43: 0.5 | P43: VACANCES | T43: VACANCES | Y43: 0.5 | AC43: 0.5 | AF43: VACANCES | AK43: 0.5 | AN43: RECUP | AO43: 0.5
C44: pm | E44: 0.5 | I44: 0.5 | M44: 0.5 | P44: VACANCES | U44: 0.5 | Y44: 0.5 | AC44: 0.5 | AF44: VACANCES | AK44: 0.5 | AN44: RECUP | AO44: 0.5
A45: 31 | B45: 2017-07-31 | C45: am | D45: VACANCES | H45: VACANCES | M45: 0.5 | P45: VACANCES | U45: 0.5 | X45: VACANCES | AC45: 0.5 | AF45: VACANCES | AK45: 0.5 | AN45: RECUP | AO45: 0.5
C46: pm | D46: VACANCES | H46: VACANCES | M46: 0.5 | P46: VACANCES | U46: 0.5 | X46: VACANCES | AC46: 0.5 | AF46: VACANCES | AK46: 0.5 | AN46: RECUP | AO46: 0.5

Sheet Aout
A1: 2017-08-01 | D1: PHILIPPE (EP) | H1: ANDRE (EP) | L1: THIERRY (CM2) | P1: CHRISTIAN (CM1) | T1: Jean-Côme (Dragon) | X1: JEAN FRANCOIS | AB1: NICOLAS Antoine | AF1: THIERRY BINET | AJ1: PASCAL GARIN | AN1: JORIS LONGFIER
D3: =F3/E3 -> 0 | E3: =SUM(E5:E50) -> 4 | F3: =SUM(F5:F46) -> 0 | G3: 13 | H3: =J3/I3 -> 0 | I3: =SUM(I5:I50) -> 4 | J3: =SUM(J5:J46) -> 0 | K3: 13 | L3: =N3/M3 -> 0 | M3: =SUM(M5:M50) -> 8 | N3: =SUM(N5:N46) -> 0 | O3: 13 | P3: =R3/Q3 -> 1 | Q3: =SUM(Q5:Q50) -> 7 | R3: =SUM(R5:R50) -> 7 | S3: 19 | T3: =V3/U3 -> 0 | U3: =SUM(U5:U50) -> 9 | V3: =SUM(V5:V46) -> 0 | W3: 12 | X3: =Z3/Y3 -> 0.25 | Y3: =SUM(Y5:Y50) -> 4 | Z3: =SUM(Z5:Z46) -> 1 | AA3: 17 | AB3: =AD3/AC3 -> 0 | AC3: =SUM(AC5:AC50) -> 18 | AD3: =SUM(AD5:AD46) -> 0 | AE3: 3 | AF3: =AH3/AG3 -> 0.1111111111 | AG3: =SUM(AG5:AG50) -> 9 | AH3: =SUM(AH5:AH46) -> 1 | AI3: 12 | AJ3: =AL3/AK3 -> 0.03846153846 | AK3: =SUM(AK5:AK50) -> 13 | AL3: =SUM(AL5:AL46) -> 0.5 | AM3: 8 | AN3: =AP3/AO3 -> 0.07692307692 | AO3: =SUM(AO5:AO50) -> 6.5 | AP3: =SUM(AP5:AP46) -> 0.5 | AQ3: 14
A4: SEM | B4: JOUR | C4: AM/PM | D4: FORMATION | E4: Ouv | F4: trav | G4: STATUT | H4: FORMATION | I4: Ouv | J4: trav | K4: STATUT | L4: FORMATION | M4: Ouv | N4: trav | O4: STATUT | P4: FORMATION | Q4: Ouv | R4: trav | S4: STATUT | T4: FORMATION | U4: Ouv | V4: trav | W4: STATUT | X4: FORMATION | Y4: Ouv | Z4: trav | AA4: STATUT | AB4: FORMATION | AC4: Ouv | AD4: trav | AE4: STATUT | AF4: FORMATION | AG4: Ouv | AH4: trav | AI4: STATUT | AJ4: FORMATION | AK4: Ouv | AL4: trav | AM4: STATUT | AN4: FORMATION | AO4: Ouv | AP4: trav | AQ4: STATUT
A5: 31 | B5: 2017-08-01 | C5: am | D5: VACANCES | H5: VACANCES | M5: 0.5 | P5: VACANCES | U5: 0.5 | X5: VACANCES | AC5: 0.5 | AF5: VACANCES | AK5: 0.5 | AN5: RECUP | AO5: 0.5
C6: pm | D6: VACANCES | H6: VACANCES | M6: 0.5 | P6: VACANCES | U6: 0.5 | X6: VACANCES | AC6: 0.5 | AF6: VACANCES | AK6: 0.5 | AN6: RECUP | AO6: 0.5
B7: 2017-08-02 | C7: am | D7: VACANCES | H7: VACANCES | M7: 0.5 | P7: VACANCES | U7: 0.5 | X7: VACANCES | AC7: 0.5 | AF7: VACANCES | AK7: 0.5 | AN7: RECUP | AO7: 0.5
C8: pm | D8: VACANCES | H8: VACANCES | M8: 0.5 | P8: VACANCES | U8: 0.5 | X8: VACANCES | AC8: 0.5 | AF8: VACANCES | AK8: 0.5 | AN8: RECUP | AO8: 0.5
B9: 2017-08-03 | C9: am | D9: VACANCES | H9: VACANCES | M9: 0.5 | P9: VACANCES | U9: 0.5 | X9: VACANCES | AC9: 0.5 | AF9: VACANCES | AK9: 0.5 | AN9: RECUP | AO9: 0.5
C10: pm | D10: VACANCES | H10: VACANCES | M10: 0.5 | P10: VACANCES | U10: 0.5 | X10: VACANCES | AC10: 0.5 | AF10: VACANCES | AK10: 0.5 | AN10: RECUP | AO10: 0.5
B11: 2017-08-04 | C11: am | D11: VACANCES | H11: VACANCES | M11: 0.5 | P11: VACANCES | U11: 0.5 | X11: VACANCES | AC11: 0.5 | AF11: VACANCES | AJ11: Chariot Cat.3 St Léger | AK11: 0.5 | AM11: O
C12: pm | D12: VACANCES | H12: VACANCES | M12: 0.5 | P12: VACANCES | U12: 0.5 | X12: VACANCES | AC12: 0.5 | AF12: VACANCES | AJ12: Chariot Cat.3 St Léger | AK12: 0.5 | AM12: O | AO12: 0.5
A13: 32 | B13: 2017-08-07 | C13: am | D13: VACANCES | H13: VACANCES | L13: VACANCES | P13: VACANCES | U13: 0.5 | X13: VACANCES | AC13: 0.5 | AF13: VACANCES | AJ13: VACANCES | AO13: 0.5
C14: pm | D14: VACANCES | H14: VACANCES | L14: VACANCES | P14: VACANCES | U14: 0.5 | X14: VACANCES | AC14: 0.5 | AF14: VACANCES | AJ14: VACANCES | AO14: 0.5
B15: 2017-08-08 | C15: am | D15: VACANCES | H15: VACANCES | L15: VACANCES | P15: VACANCES | U15: 0.5 | X15: VACANCES | AC15: 0.5 | AF15: VACANCES | AJ15: VACANCES | AN15: bronze alu i04 la couture boussey 27750 10h30-12h00 | AO15: 0.5 | AQ15: C+BL
C16: pm | D16: VACANCES | H16: VACANCES | L16: VACANCES | P16: VACANCES | U16: 0.5 | X16: VACANCES | AC16: 0.5 | AF16: VACANCES | AJ16: VACANCES | AO16: 0.5
B17: 2017-08-09 | C17: am | D17: VACANCES | H17: VACANCES | L17: VACANCES | P17: VACANCES | U17: 0.5 | X17: VACANCES | AC17: 0.5 | AF17: VACANCES | AJ17: VACANCES | AN17: Formation masques filtrants entre 12h et 14h . Anthony | AO17: 0.5 | AP17: 0.5 | AQ17: C
C18: pm | D18: VACANCES | H18: VACANCES | L18: VACANCES | P18: VACANCES | U18: 0.5 | X18: VACANCES | AC18: 0.5 | AF18: VACANCES | AJ18: VACANCES | AO18: 0.5
B19: 2017-08-10 | C19: am | D19: VACANCES | H19: VACANCES | L19: VACANCES | P19: VACANCES | T19: ROUTE | U19: 0.5 | X19: VACANCES | AC19: 0.5 | AF19: VACANCES | AJ19: VACANCES | AN19: VACANCES
C20: pm | D20: VACANCES | H20: VACANCES | L20: VACANCES | P20: VACANCES | T20: ROUTE | U20: 0.5 | X20: VACANCES | AC20: 0.5 | AF20: VACANCES | AJ20: VACANCES | AN20: VACANCES
B21: 2017-08-11 | C21: am | D21: VACANCES | H21: VACANCES | L21: VACANCES | P21: VACANCES | T21: gémo i04 saint martin des champs (29) | U21: 0.5 | W21: C+BL | X21: VACANCES | AC21: 0.5 | AF21: VACANCES | AJ21: VACANCES | AN21: VACANCES
C22: pm | D22: VACANCES | H22: VACANCES | L22: VACANCES | P22: VACANCES | U22: 0.5 | X22: VACANCES | AC22: 0.5 | AF22: VACANCES | AJ22: VACANCES | AN22: VACANCES
A23: 33 | B23: 2017-08-14 | C23: am | D23: RTT employeur | H23: RTT employeur | L23: RTT employeur | P23: RTT employeur | T23: RTT employeur | X23: RTT employeur | AB23: RTT employeur | AF23: RTT employeur | AJ23: RTT employeur | AN23: RTT employeur
C24: pm
B25: 2017-08-15 | C25: am
C26: pm
B27: 2017-08-16 | C27: am | D27: VACANCES | H27: VACANCES | L27: VACANCES | P27: VACANCES | T27: VACANCES | X27: VACANCES | AB27: VACANCES | AF27: VACANCES | AJ27: VACANCES | AN27: VACANCES
C28: pm | D28: VACANCES | H28: VACANCES | L28: VACANCES | P28: VACANCES | T28: VACANCES | X28: VACANCES | AB28: VACANCES | AF28: VACANCES | AJ28: VACANCES | AN28: VACANCES
B29: 2017-08-17 | C29: am | D29: VACANCES | H29: VACANCES | L29: VACANCES | P29: VACANCES | T29: VACANCES | X29: VACANCES | AB29: VACANCES | AF29: VACANCES | AJ29: VACANCES | AN29: VACANCES
C30: pm | D30: VACANCES | H30: VACANCES | L30: VACANCES | P30: VACANCES | T30: VACANCES | X30: VACANCES | AB30: VACANCES | AF30: VACANCES | AJ30: VACANCES | AN30: VACANCES
B31: 2017-08-18 | C31: am | D31: VACANCES | H31: VACANCES | L31: VACANCES | P31: VACANCES | T31: VACANCES | X31: VACANCES | AB31: VACANCES | AF31: VACANCES | AJ31: VACANCES | AN31: VACANCES
C32: pm | D32: VACANCES | H32: VACANCES | L32: VACANCES | P32: VACANCES | T32: VACANCES | X32: VACANCES | AB32: VACANCES | AF32: VACANCES | AJ32: VACANCES | AN32: VACANCES
A33: 34 | B33: 2017-08-21 | C33: am | D33: VACANCES | H33: VACANCES | L33: VACANCES | P33: VACANCES | T33: VACANCES | X33: VACANCES | AC33: 0.5 | AG33: 0.5 | AK33: 0.5 | AN33: VACANCES
C34: pm | D34: VACANCES | H34: VACANCES | L34: VACANCES | P34: VACANCES | T34: VACANCES | X34: VACANCES | AC34: 0.5 | AG34: 0.5 | AK34: 0.5 | AN34: VACANCES
B35: 2017-08-22 | C35: am | D35: VACANCES | H35: VACANCES | L35: VACANCES | P35: VACANCES | T35: VACANCES | X35: VACANCES | AC35: 0.5 | AF35: MEPLE I6 TOURVILLE | AG35: 0.5 | AI35: c | AK35: 0.5 | AN35: VACANCES
C36: pm | D36: VACANCES | H36: VACANCES | L36: VACANCES | P36: VACANCES | T36: VACANCES | X36: VACANCES | AC36: 0.5 | AF36: MEPLE I6 TOURVILLE | AG36: 0.5 | AI36: c | AK36: 0.5 | AN36: VACANCES
B37: 2017-08-23 | C37: am | D37: VACANCES | H37: VACANCES | L37: VACANCES | P37: Advantages Services Audit / Conseil Ile de France | Q37: 0.5 | R37: 0.5 | S37: C | T37: VACANCES | X37: VACANCES | AC37: 0.5 | AF37: Révision FIAT | AG37: 0.5 | AI37: C | AK37: 0.5 | AN37: VACANCES
C38: pm | D38: VACANCES | H38: VACANCES | L38: VACANCES | P38: Advantages Services Audit / Conseil Ile de France | Q38: 0.5 | R38: 0.5 | S38: C | T38: VACANCES | X38: VACANCES | AC38: 0.5 | AF38: Révision FIAT | AG38: 0.5 | AI38: C | AK38: 0.5 | AN38: VACANCES
B39: 2017-08-24 | C39: am | D39: VACANCES | H39: VACANCES | L39: VACANCES | P39: Advantages Services Audit / Conseil Ile de France | Q39: 0.5 | R39: 0.5 | S39: C | T39: VACANCES | X39: VACANCES | AC39: 0.5 | AG39: 0.5 | AK39: 0.5 | AN39: VACANCES
C40: pm | D40: VACANCES | H40: VACANCES | L40: VACANCES | P40: Advantages Services Audit / Conseil Ile de France | Q40: 0.5 | R40: 0.5 | S40: C | T40: VACANCES | X40: VACANCES | AC40: 0.5 | AG40: 0.5 | AK40: 0.5 | AN40: VACANCES
B41: 2017-08-25 | C41: am | D41: VACANCES | H41: VACANCES | L41: VACANCES | P41: Advantages Services Audit / Conseil Ile de France | Q41: 0.5 | R41: 0.5 | S41: C | T41: VACANCES | X41: VACANCES | AC41: 0.5 | AF41: ephyla i03 arzal 56 9h-12h | AG41: 0.5 | AI41: c | AJ41: ligue havraise I206 | AK41: 0.5 | AM41: c | AN41: VACANCES
C42: pm | D42: VACANCES | H42: VACANCES | L42: VACANCES | P42: Advantages Services Audit / Conseil Ile de France | Q42: 0.5 | R42: 0.5 | S42: C | T42: VACANCES | X42: VACANCES | AC42: 0.5 | AG42: 0.5 | AJ42: ligue havraise I206 | AK42: 0.5 | AM42: c | AN42: VACANCES
A43: 35 | B43: 2017-08-28 | C43: am | E43: 0.5 | I43: 0.5 | M43: 0.5 | P43: Advantages Services Audit / Conseil Ile de France | Q43: 0.5 | R43: 0.5 | S43: C | T43: VACANCES | Y43: 0.5 | AC43: 0.5 | AF43: RAS à St Etienne du rouvray (76) i04 | AG43: 0.5 | AH43: 0.5 | AI43: C+BL | AK43: 0.5 | AN43: VACANCES
C44: pm | E44: 0.5 | I44: 0.5 | M44: 0.5 | P44: Advantages Services Audit / Conseil Ile de France | Q44: 0.5 | R44: 0.5 | S44: C | T44: VACANCES | Y44: 0.5 | AC44: 0.5 | AG44: 0.5 | AK44: 0.5 | AN44: VACANCES
B45: 2017-08-29 | C45: am | E45: 0.5 | I45: 0.5 | M45: 0.5 | P45: Advantages Services Audit / Conseil Ile de France | Q45: 0.5 | R45: 0.5 | S45: C | T45: VACANCES | X45: MFR LA METARE EPI PYROS EPI IO3 Saint-Etienne (42) | Y45: 0.5 | Z45: 0.5 | AA45: O | AC45: 0.5 | AF45: CLINIQUE MATHILDE I203R ROUEN | AG45: 0.5 | AH45: 0.5 | AI45: C+BL | AJ45: CLINIQUE MATHILDE I203R ROUEN | AK45: 0.5 | AL45: 0.5 | AM45: C | AN45: VACANCES
C46: pm | E46: 0.5 | I46: 0.5 | M46: 0.5 | P46: Advantages Services Audit / Conseil Ile de France | Q46: 0.5 | R46: 0.5 | S46: C | T46: VACANCES | X46: MFR LA METARE EPI PYROS EPI IO3 Saint-Etienne (42) | Y46: 0.5 | Z46: 0.5 | AA46: O | AC46: 0.5 | AG46: 0.5 | AK46: 0.5 | AN46: VACANCES
B47: 2017-08-30 | C47: am | D47: Passage aux mines tract de phil + semi dédé | E47: 0.5 | I47: 0.5 | M47: 0.5 | P47: Advantages Services Audit / Conseil Ile de France | Q47: 0.5 | R47: 0.5 | S47: C | T47: VACANCES | X47: GIVAUDAN LAVIROTTE recyclage ESI avec mousse Lyon 08 | Y47: 0.5 | Z47: 0.5 | AA47: C | AC47: 0.5 | AG47: 0.5 | AK47: 0.5 | AN47: VACANCES
C48: pm | E48: 0.5 | I48: 0.5 | M48: 0.5 | P48: Advantages Services Audit / Conseil Ile de France | Q48: 0.5 | R48: 0.5 | S48: C | T48: VACANCES | X48: GIVAUDAN LAVIROTTE recyclage ESI avec mousse Lyon 08 | Y48: 0.5 | Z48: 0.5 | AA48: C | AC48: 0.5 | AG48: 0.5 | AK48: 0.5 | AN48: VACANCES
B49: 2017-08-31 | C49: am | D49: Passage aux mines tract de phil + semi dédé | E49: 0.5 | H49: ROUTE | I49: 0.5 | M49: 0.5 | P49: Advantages Services Audit / Conseil Ile de France | Q49: 0.5 | R49: 0.5 | S49: C | T49: VACANCES | X49: XPOLOGISTICS 2x i03 2h BELLEGARDE SUR VALSERINE 01 | Y49: 0.5 | AA49: O | AC49: 0.5 | AG49: 0.5 | AK49: 0.5 | AN49: VACANCES
C50: pm | E50: 0.5 | H50: ROUTE | I50: 0.5 | M50: 0.5 | P50: Advantages Services Audit / Conseil Ile de France | Q50: 0.5 | R50: 0.5 | S50: C | T50: VACANCES | X50: XPOLOGISTICS 2x i03 2h BELLEGARDE SUR VALSERINE 01 | Y50: 0.5 | AA50: O | AC50: 0.5 | AG50: 0.5 | AK50: 0.5 | AN50: VACANCES

Sheet Septembre
A1: 2017-09-01 | D1: PHILIPPE (EP) | H1: ANDRE (EP) | L1: THIERRY (CM2) | P1: CHRISTIAN (CM1) | T1: Jean-Côme (Dragon) | X1: JEAN FRANCOIS | AB1: ANTOINE Antoine | AF1: THIERRY BINET | AJ1: PASCAL GARIN | AN1: JORIS LONGFIER | AR1: TONY BOUTEILLER
D3: =F3/E3 -> 0.5 | E3: =SUM(E5:E46) -> 21 | F3: =SUM(F5:F46) -> 10.5 | H3: =J3/I3 -> 0.525 | I3: =SUM(I5:I46) -> 20 | J3: =SUM(J5:J46) -> 10.5 | L3: =N3/M3 -> 0 | M3: =SUM(M5:M46) -> 21 | N3: =SUM(N5:N46) -> 0 | P3: =R3/Q3 -> 0.5714285714 | Q3: 21 | R3: =SUM(R5:R44) -> 12 | T3: =V3/U3 -> 0.5666666667 | U3: =SUM(U5:U46) -> 15 | V3: =SUM(V5:V46) -> 8.5 | W3: 6 | X3: =Z3/Y3 -> 0.5238095238 | Y3: =SUM(Y5:Y46) -> 21 | Z3: =SUM(Z5:Z46) -> 11 | AB3: =AD3/AC3 -> 0.09523809524 | AC3: =SUM(AC5:AC46) -> 21 | AD3: =SUM(AD5:AD46) -> 2 | AF3: =AH3/AG3 -> 0.7 | AG3: =SUM(AG5:AG46) -> 20 | AH3: =SUM(AH5:AH46) -> 14 | AJ3: =AL3/AK3 -> 0.1666666667 | AK3: =SUM(AK5:AK46) -> 21 | AL3: =SUM(AL5:AL46) -> 3.5 | AM3: 1 | AN3: =AP3/AO3 -> 0.6842105263 | AO3: =SUM(AO5:AO46) -> 19 | AP3: =SUM(AP5:AP46) -> 13 | AQ3: 1 | AR3: =AT3/AS3 -> 0 | AS3: =SUM(AS5:AS46) -> 19.5 | AT3: =SUM(AT5:AT46) -> 0
A4: SEM | B4: JOUR | C4: AM/PM | D4: FORMATION | E4: Ouv | F4: trav | G4: STATUT | H4: FORMATION | I4: Ouv | J4: trav | K4: STATUT | L4: FORMATION | M4: Ouv | N4: trav | O4: STATUT | P4: FORMATION | Q4: Ouv | R4: trav | S4: STATUT | T4: FORMATION | U4: Ouv | V4: trav | W4: STATUT | X4: FORMATION | Y4: Ouv | Z4: trav | AA4: STATUT | AB4: FORMATION | AC4: Ouv | AD4: trav | AE4: STATUT | AF4: FORMATION | AG4: Ouv | AH4: trav | AI4: STATUT | AJ4: FORMATION | AK4: Ouv | AL4: trav | AM4: STATUT | AN4: FORMATION | AO4: Ouv | AP4: trav | AQ4: STATUT | AR4: FORMATION | AS4: Ouv | AT4: trav | AU4: STATUT
A5: 35 | B5: 2017-09-01 | C5: am | E5: 0.5 | H5: VTNI EP02 1h Martin l'Eglise (76) | I5: 0.5 | J5: 0.5 | K5: C | M5: 0.5 | Q5: 0.5 | T5: VACANCES | X5: OPAC 73 I03 9H-12H CHAMBERY | Y5: 0.5 | AA5: O | AC5: 0.5 | AF5: CLINIQUE MATHILDE 4X I207 ROUEN | AG5: 0.5 | AH5: 0.5 | AI5: C | AK5: 0.5 | AN5: VACANCES | AS5: 0.5
C6: pm | E6: 0.5 | H6: VTNI EP02 1h Martin l'Eglise (76) | I6: 0.5 | J6: 0.5 | K6: C | M6: 0.5 | Q6: 0.5 | T6: VACANCES | Y6: 0.5 | AC6: 0.5 | AF6: CLINIQUE MATHILDE 4X I207 ROUEN | AG6: 0.5 | AH6: 0.5 | AI6: C | AK6: 0.5 | AN6: VACANCES | AS6: 0.5
A7: 36 | B7: 2017-09-04 | C7: am | E7: 0.5 | I7: 0.5 | L7: CM2 ORANGE MONTPELLIER | M7: 0.5 | P7: ORANGE 2 EPI 1H30 MONTPELLIER 34 | Q7: 0.5 | R7: 0.5 | S7: C | T7: VACANCES | X7: NP SAVOIE 2 EPI 3h BELMONT TRAMONET 73 | Y7: 0.5 | Z7: 0.5 | AA7: O | AC7: 0.5 | AF7: CHAMBRE DES METIERS I204R 11H00 ROUEN 76 | AG7: 0.5 | AI7: C | AK7: 0.5 | AN7: CHAMBRE DES METIERS I204R 11H00 ROUEN 76 | AO7: 0.5 | AQ7: C | AS7: 0.5
C8: pm | E8: 0.5 | I8: 0.5 | L8: CM2 ORANGE MONTPELLIER | M8: 0.5 | P8: ORANGE 2 EPI 1H30 MONTPELLIER 34 | Q8: 0.5 | R8: 0.5 | S8: C | T8: VACANCES | Y8: 0.5 | Z8: 0.5 | AC8: 0.5 | AG8: 0.5 | AK8: 0.5 | AO8: 0.5 | AS8: 0.5
B9: 2017-09-05 | C9: am | D9: HP ENTERPRISE 1 EPI 3h GRENOBLE (38) | E9: 0.5 | F9: 0.5 | G9: C | H9: AIRPORT COLLEGE 1 sessions de 3h ROISSY | I9: 0.5 | J9: 0.5 | K9: C | L9: CM2 ORANGE MONTPELLIER | M9: 0.5 | P9: ORANGE 2 EPI 1H30 MONTPELLIER 34 | Q9: 0.5 | R9: 0.5 | S9: C | T9: VACANCES | X9: GERONDINES LAMARTINE VALENCE (26) 400€ | Y9: 0.5 | Z9: 0.5 | AA9: O | AC9: 0.5 | AG9: 0.5 | AK9: 0.5 | AN9: MF PRODUCTION SST02 MAROMME | AO9: 0.5 | AP9: 0.5 | AQ9: C | AS9: 0.5
C10: pm | E10: 0.5 | H10: AIRPORT COLLEGE 1 sessions de 3h ROISSY | I10: 0.5 | J10: 0.5 | L10: CM2 ORANGE MONTPELLIER | M10: 0.5 | P10: ORANGE 2 EPI 1H30 MONTPELLIER 34 | Q10: 0.5 | R10: 0.5 | S10: C | T10: VACANCES | X10: EHPAD DELESSERT ROMANS SUR ISERE (26) 400€ | Y10: 0.5 | Z10: 0.5 | AA10: O | AC10: 0.5 | AF10: CITOXLAB 2X I04 MISEREY | AG10: 0.5 | AH10: 0.5 | AI10: C | AK10: 0.5 | AN10: MF PRODUCTION SST02 MAROMME | AO10: 0.5 | AP10: 0.5 | AQ10: C | AS10: 0.5
B11: 2017-09-06 | C11: am | D11: AIRPORT COLLEGE 2 EPI 1H30 LYON | E11: 0.5 | F11: 0.5 | G11: O | L11: CM2 ORANGE MONTPELLIER | M11: 0.5 | P11: ORANGE 2 EPI 1H30 MONTPELLIER 34 | Q11: 0.5 | R11: 0.5 | S11: C | T11: VACANCES | Y11: 0.5 | Z11: 0.5 | AC11: 0.5 | AF11: ARRED SST02 BOIS GUILLAUME 76 | AG11: 0.5 | AH11: 0.5 | AI11: C | AK11: 0.5 | AN11: IDF THERMIC exerc d'évac avec fumée et rapport Noisy le roi 78 | AO11: 0.5 | AQ11: C | AS11: 0.5
C12: pm | D12: AIRPORT COLLEGE 2 EPI 1H30 LYON | E12: 0.5 | F12: 0.5 | G12: O | L12: CM2 ORANGE MONTPELLIER | M12: 0.5 | P12: ORANGE 2 EPI 1H30 MONTPELLIER 34 | Q12: 0.5 | R12: 0.5 | T12: VACANCES | Y12: 0.5 | AC12: 0.5 | AF12: ARRED SST02 BOIS GUILLAUME 76 | AG12: 0.5 | AH12: 0.5 | AI12: C | AK12: 0.5 | AO12: 0.5 | AS12: 0.5
B13: 2017-09-07 | C13: am | E13: 0.5 | H13: AIRPORT COLLEGE 2 EPI 1H30 ROISSY 95 | I13: 0.5 | J13: 0.5 | K13: C | L13: CM2 ORANGE MONTPELLIER | M13: 0.5 | P13: ORANGE 2 EPI 1H30 MONTPELLIER 34 | Q13: 0.5 | R13: 0.5 | S13: C | T13: VACANCES | X13: SUEZ 2X I06PRIMO 3H RILLEUX LA PAPE 69 | Y13: 0.5 | Z13: 0.5 | AA13: C | AC13: 0.5 | AF13: GREIF i107 GRAND QUEVILLY 76 | AG13: 0.5 | AH13: 0.5 | AI13: C | AJ13: GREIF SST02 GRAND QUEVILLY 76 | AK13: 0.5 | AL13: 0.5 | AM13: C | AN13: mac donal'ds isigny i03 | AO13: 0.5 | AP13: 0.5 | AQ13: C
C14: pm | E14: 0.5 | H14: AIRPORT COLLEGE 2 EPI 1H30 ROISSY 95 | I14: 0.5 | J14: 0.5 | K14: C | L14: CM2 ORANGE MONTPELLIER | M14: 0.5 | P14: ORANGE 2 EPI 1H30 MONTPELLIER 34 | Q14: 0.5 | R14: 0.5 | S14: C | T14: VACANCES | X14: SUEZ 2X I06PRIMO 3H RILLEUX LA PAPE 69 | Y14: 0.5 | Z14: 0.5 | AC14: 0.5 | AF14: GREIF i107 GRAND QUEVILLY 76 | AG14: 0.5 | AH14: 0.5 | AI14: C | AJ14: GREIF SST02 GRAND QUEVILLY 76 | AK14: 0.5 | AL14: 0.5 | AM14: C | AN14: mac donald's isigny i200 | AO14: 0.5 | AP14: 0.5 | AQ14: C
B15: 2017-09-08 | C15: am | E15: 0.5 | I15: 0.5 | L15: CM2 ORANGE NARBONNE | M15: 0.5 | P15: ORANGE 2 EPI 1H30 NARBONNE 11 | Q15: 0.5 | R15: 0.5 | S15: C | T15: VACANCES | X15: CANDIA ESI RECYCLAGE I105 CLERMONT FERRAND | Y15: 0.5 | Z15: 0.5 | AA15: C | AC15: 0.5 | AF15: GREIF i107 GRAND QUEVILLY 76 | AG15: 0.5 | AH15: 0.5 | AI15: C | AK15: 0.5 | AN15: SDDP SST02 EVREUX | AO15: 0.5 | AP15: 0.5 | AQ15: C | AS15: 0.5
C16: pm | E16: 0.5 | I16: 0.5 | L16: CM2 ORANGE NARBONNE | M16: 0.5 | P16: ORANGE 2 EPI 1H30 NARBONNE 11 | Q16: 0.5 | R16: 0.5 | S16: C | T16: VACANCES | X16: CANDIA ESI RECYCLAGE I105 CLERMONT FERRAND | Y16: 0.5 | Z16: 0.5 | AC16: 0.5 | AG16: 0.5 | AK16: 0.5 | AN16: SDDP SST02 EVREUX | AO16: 0.5 | AP16: 0.5 | AQ16: C | AS16: 0.5
A17: 37 | B17: 2017-09-11 | C17: am | D17: HP ENTERPRISE UM EP 03 3H NANTERRE (92) | E17: 0.5 | G17: O | H17: NOVO NORDISK 2 UMEP02 1H30 28 chartres | I17: 0.5 | J17: 0.5 | K17: C | L17: Nexance module sur mesure evac Bourg en bresse 01 journée de lasecu | M17: 0.5 | O17: C | P17: C. HOSPITALIER ISSOIRE (63) FORINCI13H - 3h30 | Q17: 0.5 | R17: 0.5 | S17: O | T17: LECLERC 2x epi i04 1h30 SAINT NICOLAS DE REDON 44 | U17: 0.5 | V17: 0.5 | W17: C | X17: NP SAVOIE 2 EPI 3h BELMONT TRAMONET 73 | Y17: 0.5 | Z17: 0.5 | AA17: C | AB17: Nexance module sur mesure evac Bourg en bresse 01 journée de lasecu | AC17: 0.5 | AE17: C | AG17: 0.5 | AK17: 0.5 | AN17: DELIFRANCE I04X2 MARTAINVILLE (76) | AO17: 0.5 | AP17: 0.5 | AQ17: O | AS17: 0.5
C18: pm | E18: 0.5 | H18: NOVO NORDISK 2 UMEP02 1H30 28 chartres | I18: 0.5 | J18: 0.5 | K18: C | L18: Nexance module sur mesure evac Bourg en bresse 01 journée de lasecu | M18: 0.5 | O18: C | Q18: 0.5 | T18: LECLERC 2x epi i04 1h30 SAINT NICOLAS DE REDON 44 | U18: 0.5 | V18: 0.5 | W18: C | Y18: 0.5 | Z18: 0.5 | AB18: Nexance module sur mesure evac Bourg en bresse 01 journée de lasecu | AC18: 0.5 | AE18: C | AG18: 0.5 | AK18: 0.5 | AO18: 0.5 | AS18: 0.5
B19: 2017-09-12 | C19: am | D19: HOPITAL DE NAVARRE 4 UMEP02 1h30 EVREUX (27) | E19: 0.5 | F19: 0.5 | G19: C | H19: NOVO NORDISK 2 UMEP02 1H30 28 chartres | I19: 0.5 | J19: 0.5 | K19: C | M19: 0.5 | P19: EHPAD BIANCHERI HAUTERIVES (26) 400€ | Q19: 0.5 | R19: 0.5 | S19: C | T19: lafarge sablières d'armorique i03 à Lanester (56) | U19: 0.5 | W19: O | X19: MAISON DEP DE LA FAMILLE 3 EXO + 1 EPI 3H NIMES (30) | Y19: 0.5 | Z19: 0.5 | AA19: C | AC19: 0.5 | AF19: CONDIVEX 2X I03 ETREPAGNY 27 | AG19: 0.5 | AH19: 0.5 | AI19: C | AJ19: MOET HENNESSY Exercid'évac AGA1 ou AGA2 | AK19: 0.5 | AM19: O | AN19: APTAR I06 LE NEUBOURG 27 | AO19: 0.5 | AP19: 0.5 | AQ19: C | AS19: 0.5
C20: pm | E20: 0.5 | F20: 0.5 | H20: NOVO NORDISK 2 UMEP02 1H30 28 chartres | I20: 0.5 | J20: 0.5 | K20: C | M20: 0.5 | P20: EHPAD BEAUSOLEIL MOURS ST EUSEBE (26) 450€ | Q20: 0.5 | R20: 0.5 | S20: C | U20: 0.5 | X20: MAISON DEP DE LA FAMILLE 1 EXO + 1 EPI 3H NIMES (30) | Y20: 0.5 | Z20: 0.5 | AA20: C | AC20: 0.5 | AF20: CONDIVEX 2X I03 ETREPAGNY 27 | AG20: 0.5 | AH20: 0.5 | AI20: C | AK20: 0.5 | AN20: APTAR I06 LE NEUBOURG 27 | AO20: 0.5 | AP20: 0.5 | AQ20: C | AS20: 0.5
B21: 2017-09-13 | C21: am | D21: AIRPORT COLLEGE 2 UMEP02 1h30 ORLY | E21: 0.5 | F21: 0.5 | G21: C | H21: GDA 2 UMEP02 1H30 93 TREMBLAY EN France | I21: 0.5 | J21: 0.5 | K21: C | M21: 0.5 | Q21: 0.5 | T21: 2 SENSBILISATION EVAC (I207) LECLERC ST NIOLAS DE REDON 44 | U21: 0.5 | V21: 0.5 | W21: C | Y21: 0.5 | AC21: 0.5 | AD21: 0.5 | AF21: MEPLE 2X I06 TOURVILLE LA RIVIERE 76 | AG21: 0.5 | AI21: C | AJ21: MOET HENNESSY Exercid'évac AGA1 ou AGA2 | AK21: 0.5 | AM21: O | AO21: 0.5 | AP21: 0.5 | AS21: 0.5
C22: pm | D22: AIRPORT COLLEGE 2 UMEP02 1h30 ORLY | E22: 0.5 | F22: 0.5 | H22: GDA 2 UMEP02 1H30 93 TREMBLAY EN France | I22: 0.5 | J22: 0.5 | K22: C | M22: 0.5 | Q22: 0.5 | T22: 2 SENSBILISATION EVAC (I207) LECLERC ST NIOLAS DE REDON 44 | U22: 0.5 | V22: 0.5 | W22: C | Y22: 0.5 | AC22: 0.5 | AD22: 0.5 | AF22: MEPLE 2X I06 TOURVILLE LA RIVIERE 76 | AG22: 0.5 | AI22: C | AK22: 0.5 | AO22: 0.5 | AP22: 0.5 | AS22: 0.5
B23: 2017-09-14 | C23: am | D23: FINAGAZ 2 EPI 1h30 Courbevoie (92) | E23: 0.5 | F23: 0.5 | G23: C | H23: RENAULT 2 EPI UMEP02 1H30 GUYANCOURT 78 | I23: 0.5 | J23: 0.5 | K23: C | M23: 0.5 | P23: EHPAD LE MONTEL 2X i13h 3H 63 ??????? | Q23: 0.5 | R23: 0.5 | S23: C | T23: OKKO HOTEL I200 (guide et serre file +exercice d'évac) sans fumée 3h 92500 rueil malmaison | U23: 0.5 | V23: 0.5 | W23: C | X23: EHPAD BIANCHERI HAUTERIVES (26) 400€ | Y23: 0.5 | Z23: 0.5 | AA23: C | AC23: 0.5 | AG23: 0.5 | AJ23: Renault chargé d'évaxcuation i202 en 2heures (nbre de sessions a definir) | AK23: 0.5 | AM23: O | AN23: Route | AO23: 0.5 | AP23: 0.5 | AS23: 0.5
C24: pm | E24: 0.5 | H24: RENAULT 2 EPI UMEP02 1H30 GUYANCOURT 78 | I24: 0.5 | J24: 0.5 | K24: C | M24: 0.5 | Q24: 0.5 | R24: 0.5 | S24: C | T24: ROUTE | U24: 0.5 | V24: 0.5 | X24: EHPAD PEYSSON 400€ ROMANS SUR ISERE | Y24: 0.5 | Z24: 0.5 | AA24: C | AC24: 0.5 | AF24: CITOXLAB 2X I04 MISEREY | AG24: 0.5 | AH24: 0.5 | AI24: C | AJ24: Renault chargé d'évaxcuation i202 en 2heures (nbre de sessions a definir) | AK24: 0.5 | AM24: O | AN24: EHPAD PIERRE GOENVIC I13H 13H30-17H PLONEOUR LANVERN (29) | AO24: 0.5 | AP24: 0.5 | AQ24: C | AR24: s | AS24: 0.5
B25: 2017-09-15 | C25: am | E25: 0.5 | I25: 0.5 | L25: CM2 GIVAUDAN | M25: 0.5 | P25: GIVAUDAN LAVIROTTE 1X CM1 06 LYON | Q25: 0.5 | R25: 0.5 | S25: C | T25: ROUTE | U25: 0.5 | V25: 0.5 | X25: OPAC 73 I03 9H-12H CHAMBERY | Y25: 0.5 | AA25: O | AC25: 0.5 | AF25: DELIFRANCE I06 MARTAINVILLE (76) | AG25: 0.5 | AH25: 0.5 | AI25: O | AK25: 0.5 | AN25: Route | AO25: 0.5 | AP25: 0.5 | AS25: 0.5
C26: pm | E26: 0.5 | I26: 0.5 | L26: CM2 GIVAUDAN | M26: 0.5 | P26: GIVAUDAN LAVIROTTE 1X CM1 06 LYON | Q26: 0.5 | R26: 0.5 | S26: C | T26: LES JARDINS DU CASTEL I13H 14H15-17H15 CHATEAUGIRON (35) | U26: 0.5 | V26: 0.5 | W26: C | Y26: 0.5 | AC26: 0.5 | AF26: DELIFRANCE I06 MARTAINVILLE (76) | AG26: 0.5 | AH26: 0.5 | AI26: O | AK26: 0.5 | AN26: MF PRODUCTION ET FUTURA 2X I204R MAROMME | AO26: 0.5 | AP26: 0.5 | AQ26: C
A27: 38 | B27: 2017-09-18 | C27: am | D27: RENAULT 2 EPI UMEP02 GUYANCOURT 78 | E27: 0.5 | F27: 0.5 | G27: C | I27: 0.5 | M27: 0.5 | Q27: 0.5 | T27: SOMATER 2 EPI BAC 1H30 MAROLLES 72 | U27: 0.5 | V27: 0.5 | W27: C | X27: MUJTUALITE FRANCAISE DU RHONE EPI 3H 17H30 -20H30 LYON 8E | Y27: 0.5 | Z27: 0.5 | AA27: C | AC27: 0.5 | AF27: KOYO I105 MAROMME | AG27: 0.5 | AH27: 0.5 | AI27: C | AJ27: BIC Gestes et postures La Courneuve 93 | AK27: 0.5 | AM27: O | AN27: i06 MF PRODUCTION SAUMUR 49 | AO27: 0.5 | AP27: 0.5 | AQ27: C | AS27: 0.5
C28: pm | D28: RENAULT 2 EPI UMEP02 GUYANCOURT 78 | E28: 0.5 | F28: 0.5 | G28: C | I28: 0.5 | M28: 0.5 | P28: ROUTE | Q28: 0.5 | R28: 0.5 | T28: SOMATER 2 EPI BAC 1H30 MAROLLES 72 | U28: 0.5 | V28: 0.5 | W28: C | Y28: 0.5 | AC28: 0.5 | AF28: KOYO I105 MAROMME | AG28: 0.5 | AH28: 0.5 | AI28: C | AJ28: BIC Gestes et postures La Courneuve 93 | AK28: 0.5 | AM28: O | AN28: i06 MF PRODUCTION SAUMUR 49 | AO28: 0.5 | AP28: 0.5 | AQ28: C | AS28: 0.5
B29: 2017-09-19 | C29: am | E29: 0.5 | F29: 0.5 | H29: NOVANDIE EPI viel moutier 62 | I29: 0.5 | J29: 0,,5 | K29: C | L29: CM2 TARBES | M29: 0.5 | P29: ORANGE 2 EPI 1H30 TARBES | Q29: 0.5 | R29: 0.5 | S29: C | T29: OKKO HOTEL i 03 3h rueil malmaison 92 | U29: 0.5 | V29: 0.5 | W29: C | Y29: 0.5 | AC29: 0.5 | AF29: KOYO I105 MAROMME | AG29: 0.5 | AH29: 0.5 | AI29: C | AJ29: RP42 GRT GAZ à GENEVILLIERS 92 | AK29: 0.5 | AL29: 0.5 | AM29: C | AN29: i06 MF PRODUCTION SAUMUR 49 | AO29: 0.5 | AP29: 0.5 | AQ29: C | AS29: 0.5
C30: pm | E30: 0.5 | F30: 0.5 | H30: NOVANDIE EPI viel moutier 62 | I30: 0.5 | J30: 0.5 | L30: CM2 TARBES | M30: 0.5 | P30: ORANGE 2 EPI 1H30 TARBES | Q30: 0.5 | R30: 0.5 | S30: C | U30: 0.5 | X30: maison de retraite sevigne I13h 3h St Martin le Vinoux (38) | Y30: 0.5 | Z30: 0.5 | AA30: C | AC30: 0.5 | AF30: KOYO I105 MAROMME | AG30: 0.5 | AH30: 0.5 | AI30: C | AJ30: RP42 GRT GAZ à GENEVILLIERS 92 | AK30: 0.5 | AL30: 0.5 | AM30: C | AN30: i06 MF PRODUCTION SAUMUR 49 | AO30: 0.5 | AP30: 0.5 | AQ30: C | AS30: 0.5
B31: 2017-09-20 | C31: am | E31: 0.5 | H31: ROUTE | I31: 0.5 | J31: 0.5 | L31: ROUTE | M31: 0.5 | Q31: 0.5 | T31: BRICOMARCHE EPI io4 saint maure de touraine 37 | U31: 0.5 | V31: 0.5 | W31: C | X31: MARMILLON I07 2H 10H-12H ARBENT 01 | Y31: 0.5 | AA31: C | AC31: 0.5 | AF31: KOYO I105 MAROMME | AG31: 0.5 | AH31: 0.5 | AI31: C | AJ31: ligue havraise | AK31: 0.5 | AL31: 0.5 | AM31: O | AN31: mac donald's bayeux 14 sst02 | AO31: 0.5 | AP31: 0.5 | AQ31: C | AS31: 0.5
C32: pm | D32: ROUTE | E32: 0.5 | H32: ROUTE | I32: 0.5 | J32: 0.5 | L32: ROUTE | M32: 0.5 | Q32: 0.5 | U32: 0.5 | Y32: 0.5 | AC32: 0.5 | AF32: KOYO I105 MAROMME | AG32: 0.5 | AH32: 0.5 | AI32: c | AJ32: ligue havraise | AK32: 0.5 | AL32: 0.5 | AM32: O | AN32: mac donald's bayeux 14 sst03 | AO32: 0.5 | AP32: 0.5 | AQ32: C | AS32: 0.5
B33: 2017-09-21 | C33: am | D33: ST MICRO NICE SOPHIA 2 sessions EPI voir horaires planning | E33: 0.5 | F33: 0.5 | G33: C | H33: AIRPORT 2 EPI 1H30 MULHOIUSE | I33: 0.5 | J33: 0.5 | K33: C | L33: SKF CM1 04 ST MARCEL 27 | M33: 0.5 | O33: O | Q33: 0.5 | T33: Mutuelle UNEO 3 sessions de UMDRAG 02 Montrouge 92 | U33: 0.5 | W33: O | X33: BiODERMA SST01 LYON | Y33: 0.5 | Z33: 0.5 | AA33: C | AB33: SKF CM1 04 ST MARCEL 27 | AC33: 0.5 | AF33: ARRED SST02 BOIS GUILLAUME 76 | AG33: 0.5 | AH33: 0.5 | AI33: C | AJ33: Renault chargé d'évaxcuation i202 en 2heures (nbre de sessions a definir) | AK33: 0.5 | AM33: O | AN33: bureau | AO33: 0.5 | AS33: 0.5
C34: pm | E34: 0.5 | F34: 0.5 | H34: AIRPORT 2 EPI 1H30 MULHOIUSE | I34: 0.5 | J34: 0.5 | K34: C | L34: SKF CM1 04 ST MARCEL 27 | M34: 0.5 | O34: O | Q34: 0.5 | T34: Mutuelle UNEO 3 sessions de UMDRAG 02 Montrouge 92 | U34: 0.5 | W34: O | X34: BiODERMA SST01 LYON | Y34: 0.5 | Z34: 0.5 | AA34: C | AB34: SKF CM1 04 ST MARCEL 27 | AC34: 0.5 | AF34: ARRED SST02 BOIS GUILLAUME 76 | AG34: 0.5 | AH34: 0.5 | AI34: C | AJ34: Renault chargé d'évaxcuation i202 en 2heures (nbre de sessions a definir) | AK34: 0.5 | AM34: O | AN34: SDDP ET EUROSTOK 2X I204R EVREUX 27 | AO34: 0.5 | AP34: 0.5 | AQ34: C | AS34: 0.5
B35: 2017-09-22 | C35: am | E35: 0.5 | H35: IFAS 2 EPI 1H30 MULHOIUSE | I35: 0.5 | K35: O | L35: SKF CM1 04 ST MARCEL 27 | M35: 0.5 | O35: O | Q35: 0.5 | R35: 0.5 | T35: COJEAN 2 EPI 1h30 PARIS 15 | U35: 0.5 | V35: 0.5 | W35: C | X35: BiODERMA SST01 LYON | Y35: 0.5 | Z35: 0.5 | AA35: C | AB35: SKF CM1 04 ST MARCEL 27 | AC35: 0.5 | AF35: BIC 1 epi ria I07 montevrain 77 | AG35: 0.5 | AI35: O | AJ35: BIC Gestes et postures La Courneuve 93 | AK35: 0.5 | AM35: o | AN35: sst02 vpi rouen | AO35: 0.5 | AQ35: C | AS35: 0.5
C36: pm | E36: 0.5 | H36: ROUTE | I36: 0.5 | L36: SKF CM1 04 ST MARCEL 27 | M36: 0.5 | O36: O | Q36: 0.5 | R36: 0.5 | U36: 0.5 | X36: BiODERMA SST01 LYON | Y36: 0.5 | Z36: 0.5 | AA36: C | AB36: SKF CM1 04 ST MARCEL 27 | AC36: 0.5 | AF36: BIC 1epi ria I07 montevrain 77 | AG36: 0.5 | AI36: O | AJ36: BIC Gestes et postures La Courneuve 93 | AK36: 0.5 | AM36: o | AN36: sst02 vpi rouen | AO36: 0.5 | AQ36: C | AS36: 0.5
A37: 39 | B37: 2017-09-25 | C37: am | E37: 0.5 | I37: 0.5 | L37: ROUTE | M37: 0.5 | Q37: 0.5 | T37: MOET HENNESSY Exercid'évac AGA1 ou AGA2 | U37: 0.5 | X37: MUJTUALITE FRANCAISE DU RHONE EPI 3H 17H30 -20H30 LYON 8E | Y37: 0.5 | Z37: 0.5 | AA37: C | AC37: 0.5 | AD37: 0.5 | AG37: 0.5 | AK37: 0.5 | AO37: 0.5 | AS37: 0.5
C38: pm | D38: HP 1EPI 3h GRENOBLE | E38: 0.5 | F38: 0.5 | G38: C | H38: ROUTE | I38: 0.5 | L38: ROUTE | M38: 0.5 | Q38: 0.5 | U38: 0.5 | Y38: 0.5 | AC38: 0.5 | AD38: 0.5 | AF38: CITOXLAB 2X I04 MISEREY | AG38: 0.5 | AH38: 0.5 | AI38: C | AK38: 0.5 | AN38: MGEN Rouen (76) i204r à 13h30 | AO38: 0.5 | AQ38: O | AS38: 0.5
B39: 2017-09-26 | C39: am | D39: AOSTE 4 EPI 1H30 | E39: 0.5 | F39: 0.5 | G39: C | H39: UM EP 02 Nantes 4 sessions 1h30 AIRPORT COLLEGE | I39: 0.5 | J39: 0.5 | K39: C | L39: CM2 GIVAUDAN | M39: 0.5 | P39: GIVAUDAN LAVIROTTE 1X CM1 06 LYON | Q39: 0.5 | R39: 0.5 | S39: C | T39: MOET HENNESSY Exercid'évac AGA1 ou AGA2 | U39: 0.5 | X39: OPAC 73 I03 9H-12H CHAMBERY | Y39: 0.5 | AA39: C | AC39: 0.5 | AF39: mac donald's SST01 BAYEUX 14 | AG39: 0.5 | AH39: 0.5 | AI39: C | AK39: 0.5 | AN39: I03 LA CLE DES CHAMPS à MONTJAVOULT (60) | AO39: 0.5 | AP39: 0.5 | AQ39: C | AS39: 0.5
C40: pm | E40: 0.5 | F40: 0.5 | I40: 0.5 | J40: 0.5 | L40: CM2 GIVAUDAN | M40: 0.5 | P40: GIVAUDAN LAVIROTTE 2X CM1 02 LYON | Q40: 0.5 | R40: 0.5 | S40: C | U40: 0.5 | Y40: 0.5 | AC40: 0.5 | AF40: mac donald's SST01 BAYEUX 14 | AG40: 0.5 | AH40: 0.5 | AI40: C | AJ40: I202 IMMEUBLE HASTINGS ROUEN 76 13H30 16H30 | AK40: 0.5 | AL40: 0.5 | AM40: C | AN40: I03 LA CLE DES CHAMPS à MONTJAVOULT (60) | AO40: 0.5 | AP40: 0.5 | AQ40: C | AS40: 0.5
B41: 2017-09-27 | C41: am | D41: AOSTE ST SYMPHORIEN SUR COISE 4 EPI 1H30AOSTE | E41: 0.5 | F41: 0.5 | G41: C | H41: ROUTE | I41: 0.5 | M41: 0.5 | P41: THERMAL CERAMICS 1X i108 - 8H30-12H30 ST MARCELLIN EN FOREZ 42 ref. 17003856 | Q41: 0.5 | S41: C | T41: BOLLORE ENERGY I03 3H 8H - 11H MONTEREAU (77) | U41: 0.5 | V41: 0.5 | W41: C | Y41: 0.5 | AC41: 0.5 | AF41: mac donald's de BAYEUX 14 sst03 | AG41: 0.5 | AH41: 0.5 | AI41: C | AJ41: CM301 PONTIER ELINGUEUR RECYCLAGE CHEZ BIC ECRITURE MONTEVRAIN 77 | AK41: 0.5 | AM41: C | AN41: bureau | AO41: 0.5 | AS41: 0.5
C42: pm | E42: 0.5 | F42: 0.5 | I42: 0.5 | M42: 0.5 | Q42: 0.5 | T42: BOLLORE ENERGY I03 3H 14H - 17H MONTEREAU (77) | U42: 0.5 | V42: 0.5 | W42: C | X42: MARMILLON I107 2H 14H-16H ARBENT 01 | Y42: 0.5 | AA42: C | AC42: 0.5 | AF42: mac donald's de BAYEUX 14 sst04 | AG42: 0.5 | AH42: 0.5 | AI42: C | AJ42: CM301 PONTIER ELINGUEUR RECYCLAGE CHEZ BIC ECRITURE MONTEVRAIN 78 | AK42: 0.5 | AM42: C | AN42: CER à Belbeuf 76 SST07 | AO42: 0.5 | AQ42: C | AS42: 0.5
B43: 2017-09-28 | C43: am | D43: AOSTE VERNOUX 4 EPI 1H30 | E43: 0.5 | F43: 0.5 | G43: C | H43: APTAR 2 epi UMEP02 1h30 LOUVECIENNES (78) | I43: 0.5 | K43: O | L43: RENAULT 2 EPI UMEP02 GUYANCOURT 78 | M43: 0.5 | O43: C | Q43: 0.5 | T43: BOLLORE ENERGY I03 3H 8H30 - 11H30 ROMILLY (10) | U43: 0.5 | V43: 0.5 | W43: C | Y43: 0.5 | AB43: RENAULT 2 EPI UMEP02 GUYANCOURT 78 | AC43: 0.5 | AE43: O | AF43: AEROCHIM I06primo Bernay (27) | AG43: 0.5 | AH43: 0.5 | AI43: O | AK43: 0.5 | AN43: SDDPP SST02 EVREUX | AO43: 0.5 | AP43: 0.5 | AQ43: C | AS43: 0.5
C44: pm | E44: 0.5 | F44: 0.5 | H44: APTAR 2 epi UMEP02 1h30 LOUVECIENNES (78) | I44: 0.5 | K44: O | L44: RENAULT 2 EPI UMEP02 GUYANCOURT 78 | M44: 0.5 | O44: C | Q44: 0.5 | T44: BOLLORE ENERGY I03 3H 14H - 17H ROMILLY (10) | U44: 0.5 | V44: 0.5 | W44: C | Y44: 0.5 | AB44: RENAULT 2 EPI UMEP02 GUYANCOURT 78 | AC44: 0.5 | AE44: O | AF44: AEROCHIM I06primo Bernay (27) | AG44: 0.5 | AH44: 0.5 | AI44: O | AK44: 0.5 | AN44: SDDPP SST02 EVREUX | AO44: 0.5 | AP44: 0.5 | AQ44: C | AS44: 0.5
B45: 2017-09-29 | C45: am | D45: ROUTE | E45: 0.5 | I45: 0.5 | M45: 0.5 | Q45: 0.5 | T45: RECALL FORINCI06 JOUE LES TOURS (37) | U45: 0.5 | W45: C | Y45: 0.5 | AC45: 0.5 | AK45: 0.5 | AS45: 0.5
C46: pm | E46: 0.5 | I46: 0.5 | M46: 0.5 | Q46: 0.5 | U46: 0.5 | X46: MARMILLON I107 2H 14H-16H ARBENT 01 | Y46: 0.5 | AA46: C | AC46: 0.5 | AK46: 0.5 | AS46: 0.5
AQ54: CCC

Sheet Octobre
A1: 2017-10-01 | D1: PHILIPPE (EP) | H1: ANDRE (EP) | L1: THIERRY (CM2) | P1: CHRISTIAN (CM1) | T1: Jean-Côme (Dragon) | X1: JEAN FRANCOIS | AB1: ANTOINE Antoine | AF1: THIERRY BINET | AJ1: PASCAL GARIN | AN1: JORIS LONGFIER | AR1: MICHAEL ALBALADEJO
D3: =F3/E3 -> 0.5681818182 | E3: =SUM(E5:E48) -> 22 | F3: =SUM(F5:F46) -> 12.5 | H3: =J3/I3 -> 0.5 | I3: =SUM(I5:I48) -> 18 | J3: =SUM(J5:J46) -> 9 | L3: =N3/M3 -> 0 | M3: =SUM(M5:M48) -> 21 | N3: =SUM(N5:N46) -> 0 | P3: =R3/Q3 -> 0.3421052632 | Q3: =SUM(Q5:Q48) -> 19 | R3: =SUM(R5:R46) -> 6.5 | T3: =V3/U3 -> 0.1818181818 | U3: =SUM(U5:U48) -> 22 | V3: =SUM(V5:V46) -> 4 | X3: =Z3/Y3 -> 0.2272727273 | Y3: =SUM(Y5:Y48) -> 22 | Z3: =SUM(Z5:Z46) -> 5 | AB3: =AD3/AC3 -> 0 | AC3: =SUM(AC5:AC48) -> 22 | AD3: =SUM(AD5:AD46) -> 0 | AF3: =AH3/AG3 -> 0.5853658537 | AG3: =SUM(AG5:AG46) -> 20.5 | AH3: =SUM(AH5:AH46) -> 12 | AJ3: =AL3/AK3 -> 0.04545454545 | AK3: =SUM(AK5:AK48) -> 22 | AL3: =SUM(AL5:AL46) -> 1 | AN3: =AP3/AO3 -> 0.3636363636 | AO3: =SUM(AO5:AO48) -> 22 | AP3: =SUM(AP5:AP46) -> 8 | AR3: =AT3/AS3 -> 0 | AS3: =SUM(AS5:AS48) -> 22 | AT3: =SUM(AT5:AT46) -> 0
A4: SEM | B4: JOUR | C4: AM/PM | D4: FORMATION | E4: Ouv | F4: trav | G4: STATUT | H4: FORMATION | I4: Ouv | J4: trav | K4: STATUT | L4: FORMATION | M4: Ouv | N4: trav | O4: STATUT | P4: FORMATION | Q4: Ouv | R4: trav | S4: STATUT | T4: FORMATION | U4: Ouv | V4: trav | W4: STATUT | X4: FORMATION | Y4: Ouv | Z4: trav | AA4: STATUT | AB4: FORMATION | AC4: Ouv | AD4: trav | AE4: STATUT | AF4: FORMATION | AG4: Ouv | AH4: trav | AI4: STATUT | AJ4: FORMATION | AK4: Ouv | AL4: trav | AM4: STATUT | AN4: FORMATION | AO4: Ouv | AP4: trav | AQ4: STATUT | AR4: FORMATION | AS4: Ouv | AT4: trav | AU4: STATUT
A5: 40 | B5: 2017-10-02 | C5: am | D5: HP ENTERPRISE 1 EPI 3h LES ULIS (91) | E5: 0.5 | F5: 0.5 | G5: C | I5: 0.5 | M5: 0.5 | P5: SALAISONS DU MACONNAIS I202 3H PIERRECLOS (71) | Q5: 0.5 | R5: 0.5 | S5: C | U5: 0.5 | Y5: 0.5 | AC5: 0.5 | AF5: i06 primo chez AEROCHIM à Bernay (27) | AG5: 0.5 | AH5: 0.5 | AI5: O | AJ5: BIC ECRITURE MONTEVRAIN 77 CM04 INITIALE CHARIOT CAT3 POUR 2 PERS | AK5: 0.5 | AM5: O | AO5: 0.5 | AS5: 0.5
C6: pm | D6: ROUTE | E6: 0.5 | I6: 0.5 | M6: 0.5 | Q6: 0.5 | U6: 0.5 | X6: PHILAGRO SUMITOMO EXO EVAC - 2h A 14H SAINT-DIZIER-MONT-D'OR (69) | Y6: 0.5 | Z6: 0.5 | AA6: C | AC6: 0.5 | AF6: i06 primo chez AEROCHIM à Bernay (27) | AG6: 0.5 | AH6: 0.5 | AI6: O | AJ6: BIC ECRITURE MONTEVRAIN 77 CM04 INITIALE CHARIOT CAT3 POUR 2 PERS | AK6: 0.5 | AM6: O | AO6: 0.5 | AS6: 0.5
B7: 2017-10-03 | C7: am | D7: CLINIQUE MATHILDE 4 EPI 1h30 ROUEN (76) | E7: 0.5 | F7: 0.5 | G7: C | H7: RENAULT 2 EPI UMEP02 GUYANCOURT 78 | K7: C | Q7: 0.5 | U7: 0.5 | Y7: 0.5 | AB7: ORANGE 2 EPI 1H30 ERAGNY 95 | AC7: 0.5 | AE7: C | AF7: CLINIQUE MATHILDE I203R Rouen | AG7: 0.5 | AH7: 0.5 | AI7: C | AJ7: BIC ECRITURE MONTEVRAIN 77 CM04 INITIALE CHARIOT CAT3 POUR 2 PERS | AK7: 0.5 | AM7: O | AN7: CLINIQUE MATHILDE I203R Rouen | AO7: 0.5 | AP7: 0.5 | AQ7: C | AS7: 0.5
C8: pm | E8: 0.5 | F8: 0.5 | H8: RENAULT 2 EPI UMEP02 GUYANCOURT 78 | K8: C | P8: EPHAD CHÂTEAU DE LA SERRA EPI 4H Villette d'anthon (38) | Q8: 0.5 | R8: 0.5 | S8: C | T8: EHPAD PIERRE GOENVIC I13H - 13H30-17H PLONEOUR LANVERN | U8: 0.5 | V8: 0.5 | W8: C | X8: EPHAD CHÂTEAU DE LA SERRA Villette d'anthon (38) EPI-MSR 4H | Y8: 0.5 | Z8: 0.5 | AA8: C | AB8: ORANGE 2 EPI 1H30 ERAGNY 95 | AC8: 0.5 | AE8: C | AG8: 0.5 | AJ8: BIC ECRITURE MONTEVRAIN 77 CM04 INITIALE CHARIOT CAT3 POUR 2 PERS | AK8: 0.5 | AM8: O | AO8: 0.5 | AR8: MUTUELLE UNEO IO4+I207+Exerci evac METZ | AS8: 0.5 | AU8: O
B9: 2017-10-04 | C9: am | D9: AIRPORT COLLEGE 4 sessions de 1h30 ROISSY | E9: 0.5 | F9: 0.5 | G9: O | I9: 0.5 | M9: 0.5 | Q9: 0.5 | T9: ROUTE | U9: 0.5 | Y9: 0.5 | AC9: 0.5 | AF9: CERP LORIENT (56) i03 | AG9: 0.5 | AI9: C | AK9: 0.5 | AN9: mac donal'ds bayeux i03 | AO9: 0.5 | AP9: 0.5 | AQ9: c | AS9: 0.5
C10: pm | E10: 0.5 | F10: 0.5 | I10: 0.5 | M10: 0.5 | Q10: 0.5 | T10: ROUTE | U10: 0.5 | Y10: 0.5 | AC10: 0.5 | AF10: CERP LORIENT (56) i202 | AI10: C | AJ10: MAISON ENFANTSLE CLOS I204R - 14H EQUEMAUVILLE | AK10: 0.5 | AL10: 0.5 | AM10: C | AN10: mac donald's bayeux i200 | AO10: 0.5 | AP10: 0.5 | AQ10: c | AS10: 0.5
B11: 2017-10-05 | C11: am | D11: ORANGE 2X EPI 1H30 NOISY LE GRAND 93 | E11: 0.5 | F11: 0.5 | G11: C | H11: AFM Telethon 4 sessions 49170 Saint-georges s/loire | I11: 0.5 | J11: 0.5 | K11: C | L11: ORANGE 2 CM2 02 1H30 MONTIGNY LE BRETONNEUX 78 | M11: 0.5 | O11: C | Q11: 0.5 | T11: CEA 2x umdra02 saclay 78 | U11: 0.5 | V11: 0.5 | W11: C | X11: CANDIA SST INITIAL 63 clermond ferrand | Y11: 0.5 | AA11: O | AB11: ORANGE 2 EPI 1H30 MONTIGNY LE BRETONNEUX 78 | AC11: 0.5 | AE11: C | AF11: PI04 CHEZ DELIFRANCE à MARTAINVILE (76) | AG11: 0.5 | AH11: 0.5 | AI11: C | AJ11: MOET HENNESSY MAC SST 75016 | AK11: 0.5 | AM11: O | AN11: GREIF SST02 GRAND QUEVILLY 76 | AO11: 0.5 | AP11: 0.5 | AQ11: C | AS11: 0.5
C12: pm | D12: ORANGE 2X EPI 1H30 NOISY LE GRAND 93 | E12: 0.5 | F12: 0.5 | H12: AFM Telethon 4 sessions 49170 Saint-georges s/loire | I12: 0.5 | J12: 0.5 | K12: C | M12: 0.5 | Q12: 0.5 | T12: CEA 2x umdra02 saclay 78 | U12: 0.5 | V12: 0.5 | W12: C | X12: CANDIA SST INITIAL 63 clermond ferrand | Y12: 0.5 | AC12: 0.5 | AG12: 0.5 | AJ12: MOET HENNESSY MAC SST01 75016 | AK12: 0.5 | AM12: O | AN12: GREIF SST02 GRAND QUEVILLY 76 | AO12: 0.5 | AP12: 0.5 | AQ12: C | AS12: 0.5
B13: 2017-10-06 | C13: am | D13: ROUTE | E13: 0.5 | H13: FONDATION VERDIER 2 EPI 1H30 TOURS | I13: 0.5 | J13: 0.5 | K13: C | M13: 0.5 | P13: GIVAUDAN LAVIROTTE recyclage ESI avec mousse Lyon 08 | Q13: 0.5 | R13: 0.5 | S13: C | T13: ROUTE | U13: 0.5 | X13: CANDIA SST INITIAL 63 clermond ferrand | Y13: 0.5 | AA13: O | AC13: 0.5 | AG13: 0.5 | AK13: 0.5 | AN13: BACHELET BONNEFOND I03 LE PETIT QUEVILLY 76 | AO13: 0.5 | AQ13: c | AS13: 0.5
C14: pm | D14: ROUTE | E14: 0.5 | H14: FONDATION VERDIER 2 EPI 1H30 TOURS | I14: 0.5 | J14: 0.5 | K14: C | M14: 0.5 | P14: GIVAUDAN LAVIROTTE recyclage ESI avec mousse Lyon 08 | Q14: 0.5 | R14: 0.5 | S14: C | T14: BOLLORE ENERGY I03 3h NEVERS 58 | U14: 0.5 | W14: C | X14: CANDIA SST INITIAL 63 clermond ferrand | Y14: 0.5 | AC14: 0.5 | AG14: 0.5 | AK14: 0.5 | AO14: 0.5 | AS14: 0.5
A15: 41 | B15: 2017-10-09 | C15: am | D15: VPI CNPE 2 sessions 26 st paul trois chateaux | E15: 0.5 | G15: O | H15: ST MICRO 4 sessions EPI Rennes spatial 35 | I15: 0.5 | K15: C | M15: 0.5 | P15: EHPAD LE MONTEL 2 SESSIONS DE 3H EPI +mise en secuirté des résidents 63 | Q15: 0.5 | R15: 0.5 | S15: C | U15: 0.5 | W15: C | X15: ZELLER + GMELLIN EPI FORINCI03 9H00-12H0 GENAS 69 | Y15: 0.5 | Z15: 0.5 | AA15: C | AC15: 0.5 | AF15: ARRED SST02 BOIS GUILLAUME 76 | AG15: 0.5 | AH15: 0.5 | AI15: C | AJ15: MOET HENNESSY SST01 75016 | AK15: 0.5 | AM15: 0 | AO15: 0.5 | AS15: 0.5
C16: pm | D16: VPI CNPE 2 sessions 26 st paul trois chateaux | E16: 0.5 | G16: O | H16: ST MICRO 4 sessions EPI Rennes spatial 35 | I16: 0.5 | K16: C | M16: 0.5 | Q16: 0.5 | R16: 0.5 | S16: C | T16: BOLLORE ENERGY I03 3H 14H - 17H LUCE (28) | U16: 0.5 | X16: ZELLER + GMELLIN EPI FORINCI03 9H00-12H0 GENAS 69 | Y16: 0.5 | Z16: 0.5 | AC16: 0.5 | AF16: ARRED SST02 BOIS GUILLAUME 76 | AG16: 0.5 | AH16: 0.5 | AI16: C | AJ16: MOET HENNESSY SST01 75016 | AK16: 0.5 | AM16: 0 | AO16: 0.5 | AS16: 0.5
B17: 2017-10-10 | C17: am | D17: VPI CNPE 2 sessions 07 Cruas meysse | E17: 0.5 | G17: O | H17: ROUTE | I17: 0.5 | J17: 0.5 | L17: ORANGE 2 CM2 02 1H30 SOISY 95 | M17: 0.5 | O17: C | P17: ROUTE | Q17: 0.5 | R17: 0.5 | U17: 0.5 | X17: MUTUALITE FRANCAISE EPI PYROS 3H CLUSES | Y17: 0.5 | Z17: 0.5 | AA17: C | AB17: ORANGE 2 EPI 1H30 SOISY 95 | AC17: 0.5 | AE17: C | AF17: MAISON ENFANTSLE CLOS 2X I03 EQUEMAUVILLE | AG17: 0.5 | AH17: 0.5 | AI17: C | AJ17: MOET HENNESSY SST01 75016 | AK17: 0.5 | AM17: o | AN17: FERRERO SST02 MT ST AIGNAN 76 | AO17: 0.5 | AP17: 0.5 | AQ17: C | AS17: 0.5
C18: pm | D18: VPI CNPE 2 sessions 07 Cruas meysse | E18: 0.5 | I18: 0.5 | J18: 0.5 | M18: 0.5 | P18: ROUTE | Q18: 0.5 | R18: 0.5 | T18: ADMR EPI PYROS 3H TOURS (37) | U18: 0.5 | V18: 0.5 | W18: C | Y18: 0.5 | AC18: 0.5 | AF18: MAISON ENFANTSLE CLOS 2X I03 EQUEMAUVILLE | AG18: 0.5 | AH18: 0.5 | AI18: C | AJ18: MOET HENNESSY SST01 75016 | AK18: 0.5 | AM18: o | AN18: FERRERO MSA SST02 MT ST AIGNAN 76 | AO18: 0.5 | AP18: 0.5 | AQ18: C | AS18: 0.5
B19: 2017-10-11 | C19: am | D19: AOSTE 4 EPI 1h30 MACLAS(42) | E19: 0.5 | F19: 0.5 | G19: C | H19: RENAULT 2 EPI UMEP02 GUYANCOURT 78 | K19: C | L19: MUTUELLE UNEO UM EP 03 + exercice d'évac MERIGNAC | M19: 0.5 | O19: O | P19: GDA 2 sessions UM CM2 02 93 TREMBLAY EN France | Q19: 0.5 | R19: 0.5 | S19: C | T19: BOLLORE ENERGY I03 3H 8H30 - 11H30 ORLEANS (45) | U19: 0.5 | V19: 0.5 | W19: C | Y19: 0.5 | AC19: 0.5 | AG19: 0.5 | AK19: 0.5 | AN19: Renault chargé d'évaxcuation i202 en 2heures (nbre de sessions a definir) | AO19: 0.5 | AQ19: o | AS19: 0.5
C20: pm | D20: AOSTE 4 EPI 1h30 MACLAS(42) | E20: 0.5 | F20: 0.5 | H20: RENAULT 2 EPI UMEP02 GUYANCOURT 78 | K20: C | L20: MUTUELLE UNEO UM EP 03 + exercice d'évac MERIGNAC | M20: 0.5 | O20: O | P20: GDA 2 sessions UM CM2 02 93 TREMBLAY EN France | Q20: 0.5 | R20: 0.5 | T20: BOLLORE ENERGY I03 3H 14H30 - 17H30 ORLEANS (45) | U20: 0.5 | V20: 0.5 | W20: C | Y20: 0.5 | AC20: 0.5 | AF20: CER BELBEUF 76 SST07 | AG20: 0.5 | AI20: C | AK20: 0.5 | AN20: Renault chargé d'évaxcuation i202 en 2heures (nbre de sessions a definir) | AO20: 0.5 | AQ20: o | AS20: 0.5
B21: 2017-10-12 | C21: am | D21: ST MICRO GRENOBLE 4 sessions EPI voir horaires planning | E21: 0.5 | F21: 0.5 | G21: C | H21: APTAR 4 EPI 1h30 LOUVECIENNES (78) | I21: 0.5 | K21: O | M21: 0.5 | P21: L'OREAL 2 sessions de 3h EPI Creuzier levieux 03 | Q21: 0.5 | S21: C | T21: CLINIQUE OCEANE I13H LE HAVRE | U21: 0.5 | W21: O | X21: MUTUALITE FRANCAISE EPI PYROS 3H CHAMBERY | Y21: 0.5 | Z21: 0.5 | AA21: C | AC21: 0.5 | AF21: PI04 CHEZ DELIFRANCE à MARTAINVILE (76) | AG21: 0.5 | AH21: 0.5 | AI21: C | AJ21: MBDA I202 Plessis Robinson (92) | AK21: 0.5 | AL21: 0.5 | AM21: O | AN21: MF PRODUCTION SST02 MAROMME | AO21: 0.5 | AP21: 0.5 | AQ21: C | AS21: 0.5
C22: pm | E22: 0.5 | F22: 0.5 | H22: APTAR 4 EPI 1h30 LOUVECIENNES (78) | I22: 0.5 | K22: O | M22: 0.5 | P22: L'OREAL 2 sessions EPI de 3h Creuzierl evieux 03 | Q22: 0.5 | S22: C | T22: CLINIQUE OCEANE I13H LE HAVRE | U22: 0.5 | W22: O | Y22: 0.5 | AC22: 0.5 | AG22: 0.5 | AK22: 0.5 | AN22: MF PRODUCTION SST02 MAROMME | AO22: 0.5 | AP22: 0.5 | AQ22: C | AS22: 0.5
B23: 2017-10-13 | C23: am | D23: ST MICRO GRENOBLE 4 sessions EPI voir horaires planning | E23: 0.5 | F23: 0.5 | G23: C | I23: 0.5 | M23: 0.5 | P23: L'OREAL ESI Creuzier levieux 03 | Q23: 0.5 | S23: O | U23: 0.5 | X23: PHARMACIE DE LA POTERIE I03 FERNEY VOLTAIRE 01 | Y23: 0.5 | AA23: C | AC23: 0.5 | AF23: MILTON ROY I204R PONT SAINT PIERRE (27) | AG23: 0.5 | AH23: 0.5 | AI23: C | AK23: 0.5 | AN23: MILTON ROY I204R PONT ST PIERRE (27) | AO23: 0.5 | AP23: 0.5 | AQ23: C | AS23: 0.5
C24: pm | E24: 0.5 | F24: 0.5 | I24: 0.5 | M24: 0.5 | P24: L'OREAL ESI Creuzier levieux 03 | Q24: 0.5 | U24: 0.5 | Y24: 0.5 | AC24: 0.5 | AG24: 0.5 | AK24: 0.5 | AO24: 0.5 | AS24: 0.5
A25: 42 | B25: 2017-10-16 | C25: am | D25: ST MICRO 4 EP02 h1h30 CROLLES | E25: 0.5 | F25: 0.5 | G25: C | H25: ST MICRO 4 EP02 1h30 TOURS | I25: 0.5 | J25: 0.5 | K25: C | M25: 0.5 | P25: C. HOSPITALIER ISSOIRE (63) FORINCI13H - 3h30 | Q25: 0.5 | R25: 0.5 | S25: C | U25: 0.5 | X25: MARMILLON I106 4H 13H30-17H30 ARBENT 01 | Y25: 0.5 | AA25: C | AC25: 0.5 | AF25: MILTON ROY PI02 pont saint pierre (27) | AG25: 0.5 | AH25: 0.5 | AI25: C | AJ25: BIC ECRITURE MONTEVRAIN 77 CM104 NACELLE 3B POUR 6 PERS | AK25: 0.5 | AM25: O | AO25: 0.5 | AS25: 0.5
C26: pm | E26: 0.5 | F26: 0.5 | I26: 0.5 | J26: 0.5 | M26: 0.5 | P26: ROUTE | Q26: 0.5 | U26: 0.5 | Y26: 0.5 | AC26: 0.5 | AG26: 0.5 | AJ26: BIC ECRITURE MONTEVRAIN 77 CM104 NACELLE 3B POUR 6 PERS | AK26: 0.5 | AM26: O | AO26: 0.5 | AS26: 0.5
B27: 2017-10-17 | C27: am | D27: ST MICRO 2 EP02 h1h30 CROLLES | E27: 0.5 | F27: 0.5 | G27: C | H27: ST MICRO 2 EP02 1h30 TOURS | I27: 0.5 | J27: 0.5 | K27: C | M27: 0.5 | P27: Greif 1x umcm103 EPI+RIA 10h-12h Haisnes (62) | S27: C | U27: 0.5 | X27: MUTUALITE FRANCAISE EPI PYROS 3H ANNECY | Y27: 0.5 | Z27: 0.5 | AA27: C | AC27: 0.5 | AF27: CONDIVEX SST02 ETREPAGNY | AG27: 0.5 | AH27: 0.5 | AI27: C | AJ27: Clinique RAMSAY SST01 75016 | AK27: 0.5 | AM27: C | AN27: LEROY MERLIN I202 TOURVILLE la riviere | AO27: 0.5 | AP27: 0.5 | AQ27: C | AS27: 0.5
C28: pm | D28: ST MICRO 2 EP02 h1h30 CROLLES | E28: 0.5 | F28: 0.5 | H28: ST MICRO 2 EP02 1h30 TOURS | I28: 0.5 | J28: 0.5 | M28: 0.5 | P28: Greif à Haisnes (62) umcm103 2x EPI+RIA 13h-15h et 15h15-17h15 Haisnes (62) | S28: C | U28: 0.5 | X28: SYSTHERM I07 2H GREZY SUR AIX | Y28: 0.5 | AA28: O | AC28: 0.5 | AF28: CONDIVEX SST02 ETREPAGNY | AG28: 0.5 | AH28: 0.5 | AI28: C | AJ28: Clinique RAMSAY SST01 75016 | AK28: 0.5 | AM28: C | AN28: LEROY MERLIN I202 TOURVILLE la riviere | AO28: 0.5 | AP28: 0.5 | AQ28: C | AS28: 0.5
B29: 2017-10-18 | C29: am | D29: ST MICRO 4 EP02 h1h30 CROLLES | E29: 0.5 | F29: 0.5 | G29: C | H29: ST MICRO 2 EP02 1h30 TOURS | I29: 0.5 | J29: 0.5 | K29: C | M29: 0.5 | P29: ROUTE | U29: 0.5 | X29: SYSTHERM I07 2H GREZY SUR AIX | Y29: 0.5 | AA29: O | AC29: 0.5 | AF29: ARRED SST01 BOIS GUILLAUME 76 | AG29: 0.5 | AH29: 0.5 | AI29: C | AJ29: Clinique RAMSAY SST01 75016 | AK29: 0.5 | AM29: C | AO29: 0.5 | AS29: 0.5
C30: pm | D30: ST MICRO 2 EP02 h1h30 CROLLES | E30: 0.5 | F30: 0.5 | H30: ST MICRO 2 EP02 1h30 TOURS | I30: 0.5 | J30: 0.5 | M30: 0.5 | U30: 0.5 | Y30: 0.5 | AC30: 0.5 | AF30: ARRED SST01 BOIS GUILLAUME 76 | AG30: 0.5 | AH30: 0.5 | AI30: C | AJ30: Clinique RAMSAY SST01 75016 | AK30: 0.5 | AM30: C | AN30: Route | AO30: 0.5 | AP30: 0.5 | AS30: 0.5
B31: 2017-10-19 | C31: am | D31: ST MICRO 2 EP02 h1h30 CROLLES | E31: 0.5 | F31: 0.5 | G31: C | H31: ST MICRO 2 EP02 1h30 TOURS | I31: 0.5 | J31: 0.5 | K31: C | L31: ORANGE 2 CM2 02 1H30 MEYLAN 38 | M31: 0.5 | O31: C | U31: 0.5 | X31: MUJTUALITE FRANCAISE DU RHONE EPI 3H 18H -21H VILLEURBANNE | Y31: 0.5 | Z31: 0.5 | AA31: C | AC31: 0.5 | AF31: ARRED SST01 BOIS GUILLAUME 76 | AG31: 0.5 | AH31: 0.5 | AI31: C | AJ31: Renault chargé d'évaxcuation i202 en 2heures (nbre de sessions a definir) | AK31: 0.5 | AM31: o | AN31: sst02 ime-itep à plouigneau (29) | AO31: 0.5 | AP31: 0.5 | AQ31: c | AS31: 0.5
C32: pm | D32: ST MICRO 2 EP02 h1h30 CROLLES | E32: 0.5 | F32: 0.5 | H32: ST MICRO 2 EP02 1h30 TOURS | I32: 0.5 | J32: 0.5 | L32: ORANGE 2 CM2 02 1H30 MEYLAN 38 | M32: 0.5 | O32: C | T32: EHPAD TY AN DUD COZ I13H ROSPORDEN (35) | U32: 0.5 | V32: 0.5 | W32: C | Y32: 0.5 | AC32: 0.5 | AF32: ARRED SST01 BOIS GUILLAUME 76 | AG32: 0.5 | AH32: 0.5 | AI32: C | AJ32: Renault chargé d'évaxcuation i202 en 2heures (nbre de sessions a definir) | AK32: 0.5 | AM32: o | AN32: sst02 ime-itep à plouigneau (29) | AO32: 0.5 | AP32: 0.5 | AQ32: c | AS32: 0.5
B33: 2017-10-20 | C33: am | E33: 0.5 | H33: ST MICRO 2 EP02 1h30 TOURS | I33: 0.5 | J33: 0.5 | K33: C | M33: 0.5 | Q33: 0.5 | U33: 0.5 | Y33: 0.5 | AC33: 0.5 | AG33: 0.5 | AK33: 0.5 | AN33: Route | AO33: 0.5 | AP33: 0.5 | AS33: 0.5
C34: pm | E34: 0.5 | H34: ST MICRO 2 EP02 1h30 TOURS | I34: 0.5 | J34: 0.5 | M34: 0.5 | Q34: 0.5 | T34: LES JARDINS DU CASTEL I13H - 13H45-17H15 CHATEAUGIRON | U34: 0.5 | V34: 0.5 | W34: C | Y34: 0.5 | AC34: 0.5 | AG34: 0.5 | AK34: 0.5 | AO34: 0.5 | AS34: 0.5
A35: 43 | B35: 2017-10-23 | C35: am | D35: RENAULT 2 EPI UMEP02 GUYANCOURT 78 | E35: 0.5 | G35: C | H35: ROYAL MONCEAU 3 sesssions de 1 heure UM EP 02 75008 | K35: O | M35: 0.5 | P35: CCM SAS TEXEN 4 sessions EPI IZERNORE (01) | Q35: 0.5 | R35: 0.5 | S35: C+BL | U35: 0.5 | Y35: 0.5 | AC35: 0.5 | AF35: KOYO PI02 MAROMME | AG35: 0.5 | AH35: 0.5 | AI35: C | AJ35: condivex Etrépagny 27 initiale nacelle cat. 3B | AK35: 0.5 | AM35: o | AO35: 0.5 | AS35: 0.5
C36: pm | D36: RENAULT 2 EPI UMEP02 GUYANCOURT 78 | E36: 0.5 | H36: ROYAL MONCEAU 3 sesssions de 1 heure UM EP 02 75008 | K36: O | M36: 0.5 | Q36: 0.5 | R36: 0.5 | T36: ROUTE | U36: 0.5 | Y36: 0.5 | AC36: 0.5 | AF36: KOYO PI02 MAROMME | AG36: 0.5 | AH36: 0.5 | AI36: C | AJ36: condivex Etrépagny 27 initiale nacelle cat. 3B | AK36: 0.5 | AM36: o | AO36: 0.5 | AS36: 0.5
B37: 2017-10-24 | C37: am | D37: AIRPORT COLLEGE 4 EPI 1h30 Marseille | E37: 0.5 | F37: 0.5 | G37: O | H37: ROYAL MONCEAU 3 sesssions de 1 heure UM EP 02 75008 | I37: 0.5 | K37: O | M37: 0.5 | Q37: 0.5 | T37: MUTUELLE UNEO I04+I207 +exercice d'évac la ciotat 2sessions de 3h30 | U37: 0.5 | W37: O | Y37: 0.5 | AC37: 0.5 | AF37: KOYO PI02 MAROMME | AG37: 0.5 | AH37: 0.5 | AI37: C | AJ37: condivex Etrépagny 27 initiale nacelle cat. 3B | AK37: 0.5 | AM37: o | AO37: 0.5 | AS37: 0.5
C38: pm | E38: 0.5 | F38: 0.5 | H38: ROYAL MONCEAU 3 sesssions de 1 heure UM EP 02 75008 | I38: 0.5 | M38: 0.5 | Q38: 0.5 | T38: MUTUELLE UNEO I04+I207 +exercice d'évac LA CIOTAT | U38: 0.5 | W38: O | Y38: 0.5 | AC38: 0.5 | AF38: KOYO PI02 MAROMME | AG38: 0.5 | AH38: 0.5 | AI38: C | AJ38: condivex Etrépagny 27 initiale nacelle cat. 3B | AK38: 0.5 | AM38: o | AO38: 0.5 | AS38: 0.5
B39: 2017-10-25 | C39: am | E39: 0.5 | H39: ROYAL MONCEAU 3 sesssions de 1 heure UM EP 02 75008 | I39: 0.5 | K39: O | M39: 0.5 | Q39: 0.5 | U39: 0.5 | X39: CANDIA SST MAC 63 clermond ferrand | Y39: 0.5 | AA39: O | AC39: 0.5 | AF39: KOYO PI02 MAROMME | AG39: 0.5 | AH39: 0.5 | AI39: C | AK39: 0.5 | AO39: 0.5 | AS39: 0.5
C40: pm | E40: 0.5 | H40: ROYAL MONCEAU 3 sesssions de 1 heure UM EP 02 75008 | I40: 0.5 | K40: O | M40: 0.5 | Q40: 0.5 | U40: 0.5 | X40: CANDIA SST MAC 63 clermond ferrand | Y40: 0.5 | AA40: O | AC40: 0.5 | AG40: 0.5 | AK40: 0.5 | AO40: 0.5 | AS40: 0.5
B41: 2017-10-26 | C41: am | E41: 0.5 | H41: ROYAL MONCEAU 3 sesssions de 1 heure UM EP 02 75008 | I41: 0.5 | K41: O | M41: 0.5 | Q41: 0.5 | T41: ecole ste thérèse i03 saint nazaire 44 | U41: 0.5 | W41: o | X41: SUEZ 4 EPI I06 RILLEUX LA PAPE 69 | Y41: 0.5 | Z41: 0.5 | AA41: C | AC41: 0.5 | AF41: RENAULT 4X EV02 PLESSY (92) | AG41: 0.5 | AH41: 0.5 | AI41: C | AK41: 0.5 | AO41: 0.5 | AS41: 0.5
C42: pm | E42: 0.5 | H42: ROYAL MONCEAU 3 sesssions de 1 heure UM EP 02 75008 | I42: 0.5 | K42: O | M42: 0.5 | Q42: 0.5 | U42: 0.5 | X42: SUEZ 4 EPI I06 RILLEUX LA PAPE 69 | Y42: 0.5 | Z42: 0.5 | AA42: C | AC42: 0.5 | AF42: RENAULT 4X EV02 PLESSY (92) | AG42: 0.5 | AH42: 0.5 | AI42: C | AK42: 0.5 | AO42: 0.5 | AS42: 0.5
B43: 2017-10-27 | C43: am | D43: FONDATION VERDIER 2 EPI 1H30 TOURS | E43: 0.5 | F43: 0.5 | G43: O | H43: ROYAL MONCEAU 3 sesssions de 1 heure UM EP 02 75008 | K43: O | M43: 0.5 | Q43: 0.5 | U43: 0.5 | Y43: 0.5 | AC43: 0.5 | AG43: 0.5 | AK43: 0.5 | AO43: 0.5 | AS43: 0.5
C44: pm | D44: FONDATION VERDIER 2 EPI 1H30 TOURS | E44: 0.5 | F44: 0.5 | G44: O | H44: ROYAL MONCEAU 3 sesssions de 1 heure UM EP 02 75008 | K44: O | M44: 0.5 | Q44: 0.5 | U44: 0.5 | Y44: 0.5 | AC44: 0.5 | AG44: 0.5 | AK44: 0.5 | AO44: 0.5 | AS44: 0.5
A45: 44 | B45: 2017-10-30 | C45: am | E45: 0.5 | H45: NOVO NORDISK 4 SESSIONS 1H30 CHARTRES | I45: 0.5 | J45: 0.5 | K45: C | M45: 0.5 | Q45: 0.5 | U45: 0.5 | Y45: 0.5 | AC45: 0.5 | AG45: 0.5 | AK45: 0.5 | AO45: 0.5 | AS45: 0.5
C46: pm | E46: 0.5 | H46: NOVO NORDISK 4 SESSIONS 1H30 CHARTRES | I46: 0.5 | J46: 0.5 | K46: C | M46: 0.5 | Q46: 0.5 | U46: 0.5 | Y46: 0.5 | AC46: 0.5 | AG46: 0.5 | AK46: 0.5 | AO46: 0.5 | AS46: 0.5
B47: 2017-10-31 | C47: am | E47: 0.5 | H47: NOVO NORDISK 4 SESSIONS 1H30 CHARTRES | I47: 0.5 | J47: 0.5 | K47: C | M47: 0.5 | Q47: 0.5 | T47: LA MERISAIE I03 3H 41 PONTLEVOY | U47: 0.5 | W47: O | Y47: 0.5 | AC47: 0.5 | AG47: 0.5 | AK47: 0.5 | AO47: 0.5 | AS47: 0.5
C48: pm | E48: 0.5 | I48: 0.5 | J48: 0.5 | K48: C | M48: 0.5 | Q48: 0.5 | U48: 0.5 | Y48: 0.5 | AC48: 0.5 | AG48: 0.5 | AK48: 0.5 | AO48: 0.5 | AS48: 0.5

Sheet Novembre
A1: 2017-11-01 | D1: PHILIPPE (EP) | H1: ANDRE (EP) | L1: THIERRY (CM2) | P1: CHRISTIAN (CM1) | T1: Jean-Côme (Dragon) | X1: JEAN FRANCOIS | AB1: ANTOINE Antoine | AF1: THIERRY BINET | AJ1: PASCAL GARIN | AN1: JORIS LONGFIER | AR1: TONY BOUTEILLER
D3: =F3/E3 -> 0.5 | E3: =SUM(E5:E48) -> 20 | F3: =SUM(F5:F46) -> 10 | H3: =J3/I3 -> 0.475 | I3: =SUM(I5:I48) -> 20 | J3: =SUM(J5:J46) -> 9.5 | L3: =N3/M3 -> 0 | M3: =SUM(M5:M48) -> 21 | N3: =SUM(N5:N46) -> 0 | P3: =R3/Q3 -> 0.3333333333 | Q3: =SUM(Q5:Q48) -> 21 | R3: =SUM(R5:R46) -> 7 | T3: =V3/U3 -> 0.04761904762 | U3: =SUM(U5:U48) -> 21 | V3: =SUM(V5:V46) -> 1 | X3: =Z3/Y3 -> 0.07142857143 | Y3: =SUM(Y5:Y48) -> 21 | Z3: =SUM(Z5:Z46) -> 1.5 | AB3: =AD3/AC3 -> 0 | AC3: =SUM(AC5:AC48) -> 21 | AD3: =SUM(AD5:AD46) -> 0 | AF3: =AH3/AG3 -> 0.2619047619 | AG3: =SUM(AG5:AG48) -> 21 | AH3: =SUM(AH5:AH46) -> 5.5 | AJ3: =AL3/AK3 -> 0.6428571429 | AK3: =SUM(AK5:AK48) -> 21 | AL3: =SUM(AL5:AL46) -> 13.5 | AN3: =AP3/AO3 -> 0.09523809524 | AO3: =SUM(AO5:AO48) -> 21 | AP3: =SUM(AP5:AP46) -> 2 | AR3: =AT3/AS3 -> 0 | AS3: =SUM(AS5:AS48) -> 21 | AT3: =SUM(AT5:AT46) -> 0
A4: SEM | B4: JOUR | C4: AM/PM | D4: FORMATION | E4: Ouv | F4: trav | G4: STATUT | H4: FORMATION | I4: Ouv | J4: trav | K4: STATUT | L4: FORMATION | M4: Ouv | N4: trav | O4: STATUT | P4: FORMATION | Q4: Ouv | R4: trav | S4: STATUT | T4: FORMATION | U4: Ouv | V4: trav | W4: STATUT | X4: FORMATION | Y4: Ouv | Z4: trav | AA4: STATUT | AB4: FORMATION | AC4: Ouv | AD4: trav | AE4: STATUT | AF4: FORMATION | AG4: Ouv | AH4: trav | AI4: STATUT | AJ4: FORMATION | AK4: Ouv | AL4: trav | AM4: STATUT | AN4: FORMATION | AO4: Ouv | AP4: trav | AQ4: STATUT | AR4: FORMATION | AS4: Ouv | AT4: trav | AU4: STATUT
A5: 44 | B5: 2017-11-01 | C5: am
C6: pm
B7: 2017-11-02 | C7: am | D7: SAFE et ONIP 6 EPI 1h HONDOUVILLE (27) | E7: 0.5 | F7: 0.5 | G7: C | I7: 0.5 | M7: 0.5 | Q7: 0.5 | U7: 0.5 | Y7: 0.5 | AC7: 0.5 | AG7: 0.5 | AJ7: RP40 GRT GAZ EVRY GREGY SUR YERRES 77 | AK7: 0.5 | AL7: 0.5 | AM7: C | AO7: 0.5 | AS7: 0.5
C8: pm | E8: 0.5 | F8: 0.5 | I8: 0.5 | M8: 0.5 | Q8: 0.5 | U8: 0.5 | Y8: 0.5 | AC8: 0.5 | AG8: 0.5 | AJ8: RP40 GRT GAZ EVRY GREGY SUR YERRES 77 | AK8: 0.5 | AL8: 0.5 | AM8: C | AO8: 0.5 | AS8: 0.5
B9: 2017-11-03 | C9: am | D9: SAFE et ONIP 6 EPI 1h HONDOUVILLE (27) | E9: 0.5 | F9: 0.5 | G9: C | I9: 0.5 | M9: 0.5 | Q9: 0.5 | R9: 0.5 | U9: 0.5 | Y9: 0.5 | AC9: 0.5 | AG9: 0.5 | AJ9: RP40 GRT GAZ EVRY GREGY SUR YERRES 77 | AK9: 0.5 | AL9: 0.5 | AM9: C | AO9: 0.5 | AS9: 0.5
C10: pm | E10: 0.5 | F10: 0.5 | I10: 0.5 | M10: 0.5 | Q10: 0.5 | R10: 0.5 | U10: 0.5 | Y10: 0.5 | AC10: 0.5 | AG10: 0.5 | AJ10: RP40 GRT GAZ EVRY GREGY SUR YERRES 77 | AK10: 0.5 | AL10: 0.5 | AM10: C | AO10: 0.5 | AS10: 0.5
A11: 45 | B11: 2017-11-06 | C11: am | I11: 0.5 | M11: 0.5 | P11: C. HOSPITALIER ISSOIRE (63) FORINCI13H - 3h30 | Q11: 0.5 | R11: 0.5 | S11: C | T11: LA MERISAIE I03 3H 41 PONTLEVOY | U11: 0.5 | W11: O | Y11: 0.5 | AC11: 0.5 | AG11: 0.5 | AK11: 0.5 | AO11: 0.5 | AS11: 0.5
C12: pm | I12: 0.5 | M12: 0.5 | Q12: 0.5 | R12: 0.5 | U12: 0.5 | Y12: 0.5 | AC12: 0.5 | AG12: 0.5 | AK12: 0.5 | AO12: 0.5 | AS12: 0.5
B13: 2017-11-07 | C13: am | D13: UM EP 02 Nice 4 sessions 1h30 AIRPORT COLLEGE | E13: 0.5 | F13: 0.5 | G13: O | H13: APTAR 4 EPI 1h30 LOUVECIENNES (78) | I13: 0.5 | K13: O | M13: 0.5 | P13: EHPAD ARLANC I13H 4H ARLANC (63) | Q13: 0.5 | R13: 0.5 | S13: C | U13: 0.5 | Y13: 0.5 | AC13: 0.5 | AF13: PI01 ari initial chez OMMIC Limeil-Brévannes (94) | AG13: 0.5 | AH13: 0.5 | AI13: C | AJ13: LEROY MERLIN RP40 ISNEAUVILLE 76 | AK13: 0.5 | AL13: 0.5 | AM13: C | AN13: MF PRODUCTION SST02 MAROMME | AO13: 0.5 | AP13: 0.5 | AQ13: C | AS13: 0.5
C14: pm | E14: 0.5 | F14: 0.5 | H14: APTAR 4 EPI 1h30 LOUVECIENNES (78) | I14: 0.5 | K14: O | M14: 0.5 | P14: EHPAD VIVEROLLES I13H 4H VIVEROLLES (63) | Q14: 0.5 | R14: 0.5 | S14: C | U14: 0.5 | X14: MDR SEVIGNE 38 EPI MSR 13H30-17h30 | Y14: 0.5 | Z14: 0.5 | AA14: C | AC14: 0.5 | AG14: 0.5 | AJ14: LEROY MERLIN RP40 ISNEAUVILLE 76 | AK14: 0.5 | AL14: 0.5 | AM14: C | AN14: MF PRODUCTION SST02 MAROMME | AO14: 0.5 | AP14: 0.5 | AQ14: C | AS14: 0.5
B15: 2017-11-08 | C15: am | D15: YARA 2 sessions GONFREVILLE (76) | E15: 0.5 | F15: 0.5 | G15: O | H15: ORANGE 2x EPI 1h30 LAGNY SUR MARNE (77) | I15: 0.5 | J15: 0.5 | K15: C | M15: 0.5 | Q15: 0.5 | U15: 0.5 | Y15: 0.5 | AC15: 0.5 | AG15: 0.5 | AJ15: LEROY MERLIN RP40 ISNEAUVILLE 76 | AK15: 0.5 | AL15: 0.5 | AM15: C | AO15: 0.5 | AS15: 0.5
C16: pm | D16: YARA 2 sessions GONFREVILLE (76) | E16: 0.5 | F16: 0.5 | G16: O | H16: ORANGE 2x EPI 1h30 LAGNY SUR MARNE (77) | I16: 0.5 | J16: 0.5 | K16: C | M16: 0.5 | Q16: 0.5 | U16: 0.5 | Y16: 0.5 | AC16: 0.5 | AG16: 0.5 | AJ16: LEROY MERLIN RP40 ISNEAUVILLE 76 | AK16: 0.5 | AL16: 0.5 | AM16: C | AN16: CER BELBEUF 76 SST07 | AO16: 0.5 | AQ16: C | AS16: 0.5
B17: 2017-11-09 | C17: am | D17: AIRPORT COLLEGE 4 sessions de 1h30 ROISSY | E17: 0.5 | F17: 0.5 | G17: O | H17: HOPITAL DE NAVARRE 4 sessions EPI 1h30 EVREUX (27) | I17: 0.5 | J17: 0.5 | K17: C | M17: 0.5 | P17: YARA GONFREVILLE (76) 4 sessions | Q17: 0.5 | R17: 0.5 | S17: O | T17: CLINIQUE OCEANE I13H | U17: 0.5 | V17: 0.5 | W17: O | Y17: 0.5 | AC17: 0.5 | AF17: ARRED SST01 BOIS GUILLAUME 76 | AG17: 0.5 | AH17: 0.5 | AI17: C | AK17: 0.5 | AN17: elba à moult (14) i12x2 | AO17: 0.5 | AQ17: c | AS17: 0.5
C18: pm | E18: 0.5 | F18: 0.5 | I18: 0.5 | J18: 0.5 | M18: 0.5 | P18: YARA GONFREVILLE (76) 4 sessions | Q18: 0.5 | R18: 0.5 | S18: O | T18: CLINIQUE OCEANE I13H | U18: 0.5 | V18: 0.5 | W18: O | Y18: 0.5 | AC18: 0.5 | AF18: ARRED SST01 BOIS GUILLAUME 76 | AG18: 0.5 | AH18: 0.5 | AI18: C | AK18: 0.5 | AO18: 0.5 | AS18: 0.5
B19: 2017-11-10 | C19: am | E19: 0.5 | I19: 0.5 | M19: 0.5 | P19: YARA GONFREVILLE (76) 4 sessions | Q19: 0.5 | R19: 0.5 | S19: O | U19: 0.5 | Y19: 0.5 | AC19: 0.5 | AF19: ARRED SST01 BOIS GUILLAUME 76 | AG19: 0.5 | AH19: 0.5 | AI19: C | AK19: 0.5 | AO19: 0.5 | AS19: 0.5
C20: pm | E20: 0.5 | I20: 0.5 | M20: 0.5 | P20: YARA GONFREVILLE (76) 4 sessions | Q20: 0.5 | R20: 0.5 | S20: O | U20: 0.5 | Y20: 0.5 | AC20: 0.5 | AF20: ARRED SST01 BOIS GUILLAUME 76 | AG20: 0.5 | AH20: 0.5 | AI20: C | AK20: 0.5 | AO20: 0.5 | AS20: 0.5
A21: 46 | B21: 2017-11-13 | C21: am | D21: OMNIC 2 UMEP02 Limeil brvannes 94 | E21: 0.5 | G21: O | H21: NOVO NORDISK 4 sessions UMEP02 28 chartres | I21: 0.5 | J21: 0.5 | K21: C | M21: 0.5 | Q21: 0.5 | U21: 0.5 | Y21: 0.5 | AC21: 0.5 | AG21: 0.5 | AJ21: LEROY MERLIN RP40 ISNEAUVILLE 76 | AK21: 0.5 | AL21: 0.5 | AM21: C | AO21: 0.5 | AS21: 0.5
C22: pm | D22: OMNIC 2 UMEP02 Limeil brvannes 94 | E22: 0.5 | G22: O | H22: NOVO NORDISK 4 sessions UMEP02 28 chartres | I22: 0.5 | J22: 0.5 | K22: C | M22: 0.5 | Q22: 0.5 | U22: 0.5 | Y22: 0.5 | AC22: 0.5 | AG22: 0.5 | AJ22: LEROY MERLIN RP40 ISNEAUVILLE 76 | AK22: 0.5 | AL22: 0.5 | AM22: C | AO22: 0.5 | AS22: 0.5
B23: 2017-11-14 | C23: am | D23: OMNIC 2 UMEP02 Limeil brvannes 94 | E23: 0.5 | G23: O | H23: NOVO NORDISK 4 sessions UMEP02 28 chartres | I23: 0.5 | J23: 0.5 | K23: C | M23: 0.5 | Q23: 0.5 | T23: CEA umdra02 saclay 78 4 sessions | U23: 0.5 | W23: C | X23: SUEZ 4 EPI I06 RILLEUX LA PAPE 69 | Y23: 0.5 | Z23: 0.5 | AA23: O | AC23: 0.5 | AF23: CONDIVEX PI02 Etrepagny | AG23: 0.5 | AH23: 0.5 | AI23: C | AJ23: LEROY MERLIN RP40 ISNEAUVILLE 76 | AK23: 0.5 | AL23: 0.5 | AM23: C | AN23: elba à moult (14) i12x2 | AO23: 0.5 | AQ23: c | AS23: 0.5
C24: pm | D24: OMNIC 2 UMEP02 Limeil brvannes 94 | E24: 0.5 | G24: O | H24: NOVO NORDISK 4 sessions UMEP02 28 chartres | I24: 0.5 | J24: 0.5 | K24: C | M24: 0.5 | Q24: 0.5 | T24: CEA umdra02 saclay 78 4 sessions | U24: 0.5 | W24: C | X24: SUEZ 4 EPI I06 RILLEUX LA PAPE 69 | Y24: 0.5 | Z24: 0.5 | AA24: O | AC24: 0.5 | AF24: CONDIVEX PI02 Etrepagny | AG24: 0.5 | AH24: 0.5 | AI24: C | AJ24: LEROY MERLIN RP40 ISNEAUVILLE 76 | AK24: 0.5 | AL24: 0.5 | AM24: C | AO24: 0.5 | AS24: 0.5
B25: 2017-11-15 | C25: am | D25: AIRPORT COLLEGE 2 sessions de 3h ROISSY | E25: 0.5 | F25: 0.5 | G25: O | I25: 0.5 | M25: 0.5 | Q25: 0.5 | U25: 0.5 | Y25: 0.5 | AC25: 0.5 | AG25: 0.5 | AJ25: condivex à Etrépagny 27 CM05 | AK25: 0.5 | AL25: 0.5 | AM25: c | AO25: 0.5 | AS25: 0.5
C26: pm | E26: 0.5 | I26: 0.5 | M26: 0.5 | Q26: 0.5 | U26: 0.5 | Y26: 0.5 | AC26: 0.5 | AG26: 0.5 | AJ26: condivex à Etrépagny 27 CM05 | AK26: 0.5 | AL26: 0.5 | AM26: c | AO26: 0.5 | AS26: 0.5
B27: 2017-11-16 | C27: am | D27: MBDA 2 EPI 1h30 PLESSIS-ROBINSON (92) | E27: 0.5 | F27: 0.5 | G27: C | M27: 0.5 | Q27: 0.5 | U27: 0.5 | Y27: 0.5 | AC27: 0.5 | AG27: 0.5 | AJ27: RP40 GRT GAZ CUVILLY 60 | AK27: 0.5 | AL27: 0.5 | AM27: C | AO27: 0.5 | AS27: 0.5
C28: pm | E28: 0.5 | M28: 0.5 | Q28: 0.5 | U28: 0.5 | Y28: 0.5 | AC28: 0.5 | AG28: 0.5 | AJ28: RP40 GRT GAZ CUVILLY 60 | AK28: 0.5 | AL28: 0.5 | AM28: C | AO28: 0.5 | AS28: 0.5
B29: 2017-11-17 | C29: am | D29: ORANGE GARDENS 2 EPI 1H30 Chatillon (92) | E29: 0.5 | F29: 0.5 | G29: C | I29: 0.5 | M29: 0.5 | Q29: 0.5 | U29: 0.5 | Y29: 0.5 | AC29: 0.5 | AG29: 0.5 | AJ29: RP40 GRT GAZ CUVILLY 60 | AK29: 0.5 | AL29: 0.5 | AM29: C | AO29: 0.5 | AS29: 0.5
C30: pm | D30: ORANGE GARDENS 2 EPI 1H30 Chatillon (92) | E30: 0.5 | F30: 0.5 | G30: C | I30: 0.5 | M30: 0.5 | Q30: 0.5 | U30: 0.5 | Y30: 0.5 | AC30: 0.5 | AG30: 0.5 | AJ30: RP40 GRT GAZ CUVILLY 60 | AK30: 0.5 | AL30: 0.5 | AM30: C | AO30: 0.5 | AS30: 0.5
A31: 47 | B31: 2017-11-20 | C31: am | D31: MILTON ROY 4 EPI 1H30 PONT SAINT PIERRE (27) | E31: 0.5 | F31: 0.5 | G31: C | I31: 0.5 | M31: 0.5 | P31: GIVAUDAN LAVIROTTE 1X CM1 06 LYON | Q31: 0.5 | R31: 0.5 | S31: O | T31: ORANGE 2X DRA02 1H30 MONTLUCON 03 | U31: 0.5 | W31: O | Y31: 0.5 | AC31: 0.5 | AF31: ARRED SST01 BOIS GUILLAUME 76 | AG31: 0.5 | AH31: 0.5 | AI31: C | AK31: 0.5 | AO31: 0.5 | AS31: 0.5
C32: pm | D32: MILTON ROY 4 EPI 1H30 PONT SAINT PIERRE (27) | E32: 0.5 | F32: 0.5 | G32: C | H32: ROUTE | I32: 0.5 | J32: 0.5 | M32: 0.5 | P32: GIVAUDAN LAVIROTTE 2X CM1 02 LYON | Q32: 0.5 | R32: 0.5 | S32: O | T32: ROUTE | U32: 0.5 | Y32: 0.5 | AC32: 0.5 | AF32: ARRED SST01 BOIS GUILLAUME 76 | AG32: 0.5 | AH32: 0.5 | AI32: C | AK32: 0.5 | AO32: 0.5 | AS32: 0.5
B33: 2017-11-21 | C33: am | D33: Renault plessis 4 sessions robinson 92 | E33: 0.5 | F33: 0.5 | G33: C | H33: AEROCHIM 2 epi 1h30 BERNAY 27 | I33: 0.5 | J33: 0.5 | K33: O | M33: 0.5 | Q33: 0.5 | T33: ORANGE 2X DRA02 1H30 VICHY 03 | U33: 0.5 | W33: O | Y33: 0.5 | AC33: 0.5 | AF33: ARRED SST01 BOIS GUILLAUME 76 | AG33: 0.5 | AH33: 0.5 | AI33: C | AJ33: RENAULT 4X EV02 AUBEVOYE | AK33: 0.5 | AL33: 0.5 | AM33: C | AO33: 0.5 | AS33: 0.5
C34: pm | E34: 0.5 | F34: 0.5 | G34: C | H34: AEROCHIM 2 epi 1h30 BERNAY 27 | I34: 0.5 | J34: 0.5 | K34: O | M34: 0.5 | Q34: 0.5 | T34: ROUTE | U34: 0.5 | Y34: 0.5 | AC34: 0.5 | AF34: ARRED SST01 BOIS GUILLAUME 76 | AG34: 0.5 | AH34: 0.5 | AI34: C | AK34: 0.5 | AO34: 0.5 | AS34: 0.5
B35: 2017-11-22 | C35: am | E35: 0.5 | H35: AEROCHIM 2 epi 1h30 BERNAY 27 | I35: 0.5 | J35: 0.5 | K35: O | M35: 0.5 | Q35: 0.5 | T35: ORANGE 2X DRA02 1H30 MOULINS 03 | U35: 0.5 | W35: O | Y35: 0.5 | AC35: 0.5 | AG35: 0.5 | AK35: 0.5 | AO35: 0.5 | AS35: 0.5
C36: pm | E36: 0.5 | I36: 0.5 | J36: 0.5 | M36: 0.5 | Q36: 0.5 | T36: ROUTE | U36: 0.5 | Y36: 0.5 | AC36: 0.5 | AG36: 0.5 | AK36: 0.5 | AO36: 0.5 | AS36: 0.5
B37: 2017-11-23 | C37: am | D37: GREIF UMEP02 2 EPI 1H30 GRAND QUEVILLY 76 | E37: 0.5 | G37: C | H37: AEROCHIM 2 epi 1h30 BERNAY 27 | I37: 0.5 | J37: 0.5 | K37: O | M37: 0.5 | P37: EHPAD LE MONTEL 2 SESSIONS DE 3H EPI +mise en secuirté des résidents 63 | Q37: 0.5 | R37: 0.5 | S37: C | T37: ORANGE 2X DRA02 1H30 AURILLAC 03 | U37: 0.5 | W37: O | Y37: 0.5 | AC37: 0.5 | AG37: 0.5 | AJ37: LEROY MERLIN RP40 ISNEAUVILLE 76 | AK37: 0.5 | AL37: 0.5 | AM37: C | AN37: FERRERO MSA SST 02 GRAND QUEVILLY (76) | AO37: 0.5 | AP37: 0.5 | AQ37: C | AS37: 0.5
C38: pm | D38: GREIF UMEP02 2 EPI 1H30 GRAND QUEVILLY 76 | E38: 0.5 | G38: C | H38: AEROCHIM 2 epi 1h30 BERNAY 27 | I38: 0.5 | J38: 0.5 | K38: O | M38: 0.5 | Q38: 0.5 | R38: 0.5 | S38: C | T38: ROUTE | U38: 0.5 | Y38: 0.5 | AC38: 0.5 | AG38: 0.5 | AJ38: LEROY MERLIN RP40 ISNEAUVILLE 76 | AK38: 0.5 | AL38: 0.5 | AM38: C | AN38: FERRERO MSA SST 02 GRAND QUEVILLY (76) | AO38: 0.5 | AP38: 0.5 | AQ38: C | AS38: 0.5
B39: 2017-11-24 | C39: am | D39: GREIF UMEP02 2 EPI 1H30 GRAND QUEVILLY 76 | E39: 0.5 | G39: C | I39: 0.5 | J39: 0.5 | M39: 0.5 | Q39: 0.5 | T39: ORANGE 2X DRA02 1H30 LE PYU EN VELAY 03 | U39: 0.5 | W39: O | Y39: 0.5 | AC39: 0.5 | AG39: 0.5 | AJ39: LEROY MERLIN RP40 ISNEAUVILLE 76 | AK39: 0.5 | AL39: 0.5 | AM39: C | AO39: 0.5 | AS39: 0.5
C40: pm | D40: GREIF UMEP02 2 EPI 1H30 GRAND QUEVILLY 76 | E40: 0.5 | G40: C | I40: 0.5 | M40: 0.5 | Q40: 0.5 | T40: ROUTE | U40: 0.5 | Y40: 0.5 | AC40: 0.5 | AG40: 0.5 | AJ40: LEROY MERLIN RP40 ISNEAUVILLE 76 | AK40: 0.5 | AL40: 0.5 | AM40: C | AO40: 0.5 | AS40: 0.5
A41: 48 | B41: 2017-11-27 | C41: am | E41: 0.5 | I41: 0.5 | M41: 0.5 | Q41: 0.5 | U41: 0.5 | Y41: 0.5 | AC41: 0.5 | AG41: 0.5 | AJ41: LEROY MERLIN RP40 ISNEAUVILLE 76 | AK41: 0.5 | AL41: 0.5 | AM41: C | AO41: 0.5 | AS41: 0.5
C42: pm | E42: 0.5 | I42: 0.5 | M42: 0.5 | Q42: 0.5 | U42: 0.5 | Y42: 0.5 | AC42: 0.5 | AG42: 0.5 | AJ42: LEROY MERLIN RP40 ISNEAUVILLE 76 | AK42: 0.5 | AL42: 0.5 | AM42: C | AO42: 0.5 | AS42: 0.5
B43: 2017-11-28 | C43: am | E43: 0.5 | H43: Renault Aubevoye 27 2 EP02 1H30 Aubevoye 27 | I43: 0.5 | J43: 0.5 | K43: C | M43: 0.5 | Q43: 0.5 | U43: 0.5 | Y43: 0.5 | AC43: 0.5 | AF43: CERP sst02 LES SORINIERES 44 | AG43: 0.5 | AI43: O | AJ43: LEROY MERLIN RP40 ISNEAUVILLE 76 | AK43: 0.5 | AL43: 0.5 | AM43: C | AO43: 0.5 | AS43: 0.5
C44: pm | E44: 0.5 | H44: Renault Aubevoye 27 2 EP02 1H30 Aubevoye 27 | I44: 0.5 | J44: 0.5 | K44: C | M44: 0.5 | Q44: 0.5 | U44: 0.5 | Y44: 0.5 | AC44: 0.5 | AF44: CERP sst02 LES SORINIERES 44 | AG44: 0.5 | AI44: O | AJ44: LEROY MERLIN RP40 ISNEAUVILLE 76 | AK44: 0.5 | AL44: 0.5 | AM44: C | AO44: 0.5 | AS44: 0.5
B45: 2017-11-29 | C45: am | D45: NOVANDIE 2 UMEP02 1H30 VIEIL MOUTIER (62) | E45: 0.5 | F45: 0.5 | G45: C | I45: 0.5 | M45: 0.5 | Q45: 0.5 | U45: 0.5 | Y45: 0.5 | AC45: 0.5 | AF45: CERP sst01 LES SORINIERES 44 | AG45: 0.5 | AI45: O | AK45: 0.5 | AO45: 0.5 | AS45: 0.5
C46: pm | D46: NOVANDIE 2 UMEP02 1H30 VIEIL MOUTIER (62) | E46: 0.5 | F46: 0.5 | G46: C | H46: ROUTE | I46: 0.5 | J46: 0.5 | M46: 0.5 | Q46: 0.5 | U46: 0.5 | Y46: 0.5 | AC46: 0.5 | AF46: CERP sst01 LES SORINIERES 44 | AG46: 0.5 | AI46: O | AK46: 0.5 | AO46: 0.5 | AS46: 0.5
B47: 2017-11-30 | C47: am | E47: 0.5 | H47: ORANGE 2x EPI 1h30 RENNES TATELIN (35) | I47: 0.5 | J47: 0.5 | K47: C | M47: 0.5 | Q47: 0.5 | U47: 0.5 | Y47: 0.5 | AC47: 0.5 | AF47: CERP sst01 LES SORINIERES 44 | AG47: 0.5 | AI47: O | AJ47: BIC ECRITURE MONTEVRAIN 77 CM05 RECY CHARIOT CAT3 POUR 6 PERS | AK47: 0.5 | AM47: O | AO47: 0.5 | AS47: 0.5
C48: pm | E48: 0.5 | H48: ORANGE 2x EPI 1h30 RENNES PATTON (35) | I48: 0.5 | J48: 0.5 | K48: C | M48: 0.5 | Q48: 0.5 | U48: 0.5 | Y48: 0.5 | AC48: 0.5 | AF48: CERP sst01 LES SORINIERES 44 | AG48: 0.5 | AI48: O | AJ48: BIC ECRITURE MONTEVRAIN 77 CM05 RECY CHARIOT CAT3 POUR 6 PERS | AK48: 0.5 | AM48: O | AO48: 0.5 | AS48: 0.5

Sheet Decembre
A1: 2018-01-01 | D1: PHILIPPE (EP) | H1: ANDRE (EP) | L1: (CM2) | P1: CHRISTIAN (CM1) | T1: Jean-Côme (Dragon) | X1: JEAN FRANCOIS | AB1: ANTOINE Antoine | AF1: THIERRY BINET | AJ1: PASCAL GARIN | AN1: JORIS LONGFIER | AR1: Prestataire
D3: =F3/E3 ->  | E3: =SUM(E5:E44) -> 0 | F3: =SUM(F5:F44) -> 0 | H3: =J3/I3 ->  | I3: =SUM(I5:I44) -> 0 | J3: =SUM(J5:J44) -> 0 | M3: =SUM(M5:M44) -> 0 | N3: =SUM(N5:N44) -> 0 | P3: =R3/Q3 ->  | Q3: =SUM(Q5:Q44) -> 0 | R3: =SUM(R5:R44) -> 0 | T3: =V3/U3 ->  | U3: =SUM(U5:U44) -> 0 | V3: =SUM(V5:V44) -> 0 | X3: =Z3/Y3 ->  | Y3: =SUM(Y5:Y44) -> 0 | Z3: =SUM(Z5:Z44) -> 0 | AB3: =AD3/AC3 ->  | AC3: =SUM(AC5:AC44) -> 0 | AD3: =SUM(AD5:AD44) -> 0 | AF3: =AH3/AG3 ->  | AG3: =SUM(AG5:AG44) -> 0 | AH3: =SUM(AH5:AH44) -> 0 | AJ3: =AL3/AK3 ->  | AK3: =SUM(AK5:AK44) -> 0 | AL3: =SUM(AL5:AL44) -> 0 | AN3: =AP3/AO3 ->  | AO3: =SUM(AO5:AO44) -> 0 | AP3: =SUM(AP5:AP44) -> 0 | AR3: =AT3/AS3 ->  | AS3: =SUM(AS5:AS44) -> 0 | AT3: =SUM(AT5:AT44) -> 0
A4: SEM | B4: JOUR | C4: AM/PM | D4: FORMATION | E4: Ouv | F4: trav | G4: STATUT | H4: FORMATION | I4: Ouv | J4: trav | K4: STATUT | L4: FORMATION | M4: Ouv | N4: trav | O4: STATUT | P4: FORMATION | Q4: Ouv | R4: trav | S4: STATUT | T4: FORMATION | U4: Ouv | V4: trav | W4: STATUT | X4: FORMATION | Y4: Ouv | Z4: trav | AA4: STATUT | AB4: FORMATION | AC4: Ouv | AD4: trav | AE4: STATUT | AF4: FORMATION | AG4: Ouv | AH4: trav | AI4: STATUT | AJ4: FORMATION | AK4: Ouv | AL4: trav | AM4: STATUT | AN4: FORMATION | AO4: Ouv | AP4: trav | AQ4: STATUT | AR4: FORMATION | AS4: Ouv | AT4: trav | AU4: STATUT
A5: 10 | B5: 2018-01-01 | C5: am | G5: C
C6: pm | G6: C
B7: 2018-01-02 | C7: am
C8: pm
B9: 2018-01-03 | C9: am
C10: pm
B11: 2018-01-04 | C11: am | K11: C
C12: pm
B13: 2018-01-05 | C13: am
C14: pm
A15: 11 | B15: 2018-01-08 | C15: am
C16: pm | G16: C | S16: C
B17: 2018-01-09 | C17: am | G17: C+BL | AA17: C
C18: pm | S18: F
B19: 2018-01-10 | C19: am | G19: F
C20: pm
B21: 2018-01-11 | C21: am
C22: pm | AA22: F
B23: 2018-01-12 | C23: am
C24: pm
A25: 12 | B25: 2018-01-15 | C25: am
C26: pm
B27: 2018-01-16 | C27: am
C28: pm
B29: 2018-01-17 | C29: am
C30: pm
B31: 2018-01-18 | C31: am
C32: pm
B33: 2018-01-19 | C33: am
C34: pm
A35: 13 | B35: 2018-01-22 | C35: am
C36: pm
B37: 2018-01-23 | C37: am
C38: pm
B39: 2018-01-24 | C39: am
C40: pm
B41: 2018-01-25 | C41: am
C42: pm
B43: 2018-01-26 | C43: am
C44: pm
A45: 13 | B45: 2018-01-29 | C45: am
C46: pm
B47: 2018-01-30 | C47: am
C48: pm
B49: 2018-01-31 | C49: am
C50: pm

Sheet Taux Occup
C2: données à saisir
C3: données récupérées
B5: MOIS | C5: Nb Jours Ouvrés | D5: Détail | E5: UNITES MOBILES | I5: TRADITIONNEL | O5: MOYENNE
E6: Pmarin | F6: Abordes | G6: Tlohy | H6: Cpequay | I6: Jcsicurani | J6: Jfbassereau | K6: Tbouteiller | L6: Jlongfier | M6: Tbinet | O6: globale | P6: unité mobie | Q6: Traditionnel
B7: Février | C7: 20 | D7: CP / arrêt
D8: ouvrés
D9: formation
D10: roulage | E10: 4 | F10: 4 | G10: 0 | H10: 4 | I10: 3 | J10: 4 | K10: 3 | L10: 3 | M10: 1
D11: % | E11: =(E9+E10)/E8 ->  | F11: =(F9+F10)/F8 ->  | G11: 0 | H11: =(H9+H10)/H8 ->  | O11: =(E11+F11+H11+I11+J11+K11+L11+M11)/8 ->  | P11: =(E11+F11+H11)/3 ->  | Q11: =(I11+J11+K11+L11+M11)/5 -> 
B12: Mars | C12: 23 | D12: CP / arrêt | E12: =#REF! ->  | F12: =#REF! ->  | G12: =#REF! ->  | H12: =#REF! ->  | I12: =#REF! ->  | J12: =#REF! ->  | K12: 0 | L12: =#REF! ->  | M12: =#REF! -> 
D13: ouvrés | E13: =#REF! ->  | F13: =#REF! ->  | G13: =#REF! ->  | H13: =#REF! ->  | I13: =#REF! ->  | J13: =#REF! ->  | K13: =C12-K12 -> 23 | L13: =#REF! ->  | M13: =#REF! -> 
D14: formation | E14: =#REF! ->  | F14: =#REF! ->  | G14: =#REF! ->  | H14: =#REF! ->  | I14: =#REF! ->  | J14: =#REF! ->  | K14: 2 | L14: =#REF! ->  | M14: =#REF! -> 
D15: roulage | E15: 4 | F15: 4 | G15: 0 | H15: 5 | I15: 0 | J15: 4 | K15: 2 | L15: 3 | M15: 3
D16: % | E16: =(E14+E15)/E13 ->  | F16: =(F14+F15)/F13 ->  | G16: 0 | H16: =(H14+H15)/H13 ->  | K16: 0.1739130435 | O16: =(E16+F16+H16+I16+J16+K16+L16+M16)/8 ->  | P16: =(E16+F16+H16)/3 ->  | Q16: =(I16+J16+K16+L16+M16)/5 -> 
B17: Avril | C17: 19 | D17: CP / arrêt | E17: =avril!$G$3 -> 0 | F17: =avril!$K$3 -> 7 | G17: =avril!$AE$3 -> 4 | H17: =avril!$S$3 -> 3 | I17: =avril!$W$3 -> 0 | J17: =avril!$AA$3 -> 4 | K17: =avril!$AU$3 -> 4 | L17: =avril!$AQ$3 -> 5 | M17: =avril!$AA$3 -> 4
D18: ouvrés | E18: =avril!$E$3 -> 19 | F18: =avril!$I$3 -> 11 | G18: =avril!$AC$3 -> 19 | H18: =avril!$Q$3 -> 16 | I18: =avril!$U$3 -> 19 | J18: =avril!$Y$3 -> 15 | K18: =avril!$AS$3 -> 15 | L18: =avril!$AO$3 -> 13 | M18: =avril!$AG$3 -> 14
D19: formation | E19: =avril!$F$3 -> 11 | F19: =avril!$J$3 -> 9 | G19: =avril!$AD$3 -> 6.5 | H19: =avril!$R$3 -> 11 | I19: =avril!$V$3 -> 9.5 | J19: =avril!$Z$3 -> 8.5 | K19: =avril!$AT$3 -> 7 | L19: =avril!AP3 -> 8 | M19: =avril!$AH$3 -> 9
D20: % | E20: =E19/E18 -> 0.5789473684 | F20: 0.8181818182 | G20: 0.3421052632 | H20: 0.6875 | I20: 0.5 | J20: 0.5666666667 | K20: 0.4666666667 | L20: 0.6153846154 | M20: 0.6428571429 | O20: =(E20+F20+H20+I20+J20+K20+L20+M20)/8 -> 0.6095255348 | P20: =(E20+F20+H20)/3 -> 0.6948763955 | Q20: =(I20+J20+K20+L20+M20)/5 -> 0.5583150183
B21: Mai | C21: 19 | D21: CP / arrêt | E21: =Mai!$G$3 -> 0 | F21: =Mai!$K$3 -> 2 | H21: =Mai!$S$3 -> 4 | I21: =Mai!$W$3 -> 4 | J21: =Mai!$AA$3 -> 3 | K21: =Mai!AU3 -> 3 | L21: =Mai!$AQ$3 -> 0 | M21: =Mai!$AI$3 -> 14
D22: ouvrés | E22: =Mai!$E$3 -> 18 | F22: =Mai!$I$3 -> 17 | H22: =Mai!$Q$3 -> 15 | I22: =Mai!$U$3 -> 17 | J22: =Mai!$Y$3 -> 18 | K22: =Mai!AS3 -> 12.5 | L22: =Mai!$AO$3 -> 17 | M22: =Mai!$AG$3 -> 5
D23: formation | E23: =Mai!$F$3 -> 8 | F23: =Mai!$J$3 -> 10.5 | H23: =Mai!$R$3 -> 11.5 | I23: =Mai!$V$3 -> 11 | J23: =Mai!$Z$3 -> 11 | K23: =Mai!AT3 -> 1.5 | L23: =Mai!$AP$3 -> 12 | M23: =Mai!$AH$3 -> 4.5
D24: % | E24: =E23/E22 -> 0.4444444444 | F24: =F23/F22 -> 0.6176470588 | G24: 0 | H24: =H23/H22 -> 0.7666666667 | I24: 0.6470588235 | J24: 0.6111111111 | K24: 0.12 | L24: 0.7058823529 | M24: 0.9 | O24: =(E24+F24+H24+I24+J24+K24+L24+M24)/8 -> 0.6016013072 | P24: =(E24+F24+H24)/3 -> 0.6095860566 | Q24: =(I24+J24+K24+L24+M24)/5 -> 0.5968104575
B25: Juin | C25: 21 | D25: CP / arrêt | E25: =Juin!G3 -> 0 | F25: =Juin!K3 -> 0 | H25: =Juin!S3 -> 6 | I25: =Juin!W3 -> 0 | J25: =Juin!AA3 -> 0 | K25: =Juin!AU3 -> 0 | L25: =Juin!AQ3 -> 0 | M25: =Juin!AI3 -> 1
D26: ouvrés | E26: =Juin!E3 -> 21 | F26: =Juin!I3 -> 21 | H26: =Juin!Q3 -> 16 | I26: =Juin!U3 -> 20 | J26: =Juin!Y3 -> 21 | K26: =Juin!AS3 -> 21 | L26: =Juin!AO3 -> 20.5 | M26: =Juin!AG3 -> 17
D27: formation | E27: =Juin!F3 -> 19 | F27: =Juin!J3 -> 15.5 | H27: =Juin!R3 -> 14 | I27: =Juin!V3 -> 16 | J27: =Juin!Z3 -> 14 | K27: =Juin!AT3 -> 0 | L27: =Juin!AP3 -> 13 | M27: =Juin!AH3 -> 10
D28: % | E28: =E27/E26 -> 0.9047619048 | F28: =F27/F26 -> 0.7380952381 | G28: 0 | H28: =H27/H26 -> 0.875 | I28: 0.8 | J28: 0.6666666667 | K28: 0 | L28: 0.6341463415 | M28: 0.5882352941 | O28: =(E28+F28+H28+I28+J28+K28+L28+M28)/8 -> 0.6508631806 | P28: =(E28+F28+H28)/3 -> 0.8392857143 | Q28: =(I28+J28+K28+L28+M28)/5 -> 0.5378096604 | S28: =AVERAGE(I28:M28) -> 0.5378096604
B29: Juillet | C29: 20 | D29: CP / arrêt | E29: =Juillet!G3 -> 1 | F29: =Juillet!K3 -> 1 | H29: =Juillet!S3 -> 6 | I29: =Juillet!W3 -> 0 | J29: =Juillet!AA3 -> 1 | K29: =Juillet!#REF! ->  | L29: =Juillet!AQ3 -> 0 | M29: =Juillet!AI3 -> 8
D30: ouvrés | E30: =Juillet!E3 -> 19 | F30: =Juillet!I3 -> 19 | H30: =Juillet!Q3 -> 14 | I30: =Juillet!U3 -> 17.5 | J30: =Juillet!Y3 -> 19 | K30: =Juillet!#REF! ->  | L30: =Juillet!AO3 -> 19.5 | M30: =Juillet!AG3 -> 12
D31: formation | E31: =Juillet!F3 -> 3 | F31: =Juillet!J3 -> 2 | H31: =Juillet!R3 -> 14 | I31: =Juillet!V3 -> 7 | J31: =Juillet!Z3 -> 8.5 | K31: =Juillet!#REF! ->  | L31: =Juillet!AP3 -> 9 | M31: =Juillet!AH3 -> 8
D32: % | E32: =E31/E30 -> 0.1578947368 | F32: =F31/F30 -> 0.1052631579 | G32: 0 | H32: =H31/H30 -> 1 | I32: 0.4 | J32: 0.4473684211 | L32: 0.4615384615 | M32: 0.6666666667 | O32: =(E32+F32+H32+I32+J32+K32+L32+M32)/8 ->  | P32: =(E32+F32+H32)/3 -> 0.4210526316 | Q32: =(I32+J32+K32+L32+M32)/5 -> 
B33: Aout | C33: 21 | D33: CP / arrêt
D34: ouvrés
D35: formation
D36: % | E36: =E35/E34 ->  | F36: =F35/F34 ->  | G36: 0 | H36: =H35/H34 ->  | O36: =(E36+F36+H36+I36+J36+K36+L36+M36)/8 ->  | P36: =(E36+F36+H36)/3 ->  | Q36: =(I36+J36+K36+L36+M36)/5 -> 
B37: Septembre | C37: 21 | D37: CP / arrêt
D38: ouvrés
D39: formation
D40: % | E40: =E39/E38 ->  | F40: =F39/F38 ->  | G40: 0 | H40: =H39/H38 ->  | O40: =(E40+F40+H40+I40+J40+K40+L40+M40)/8 ->  | P40: =(E40+F40+H40)/3 ->  | Q40: =(I40+J40+K40+L40+M40)/5 -> 
B41: Octobre | C41: 22 | D41: CP / arrêt
D42: ouvrés
D43: formation
D44: % | E44: =E43/E42 ->  | F44: =F43/F42 ->  | G44: 0 | H44: =H43/H42 ->  | O44: =(E44+F44+H44+I44+J44+K44+L44+M44)/8 ->  | P44: =(E44+F44+H44)/3 ->  | Q44: =(I44+J44+K44+L44+M44)/5 -> 
B45: Novembre | C45: 20 | D45: CP / arrêt
D46: ouvrés
D47: formation
D48: % | E48: =E47/E46 ->  | F48: =F47/F46 ->  | G48: 0 | H48: =H47/H46 ->  | O48: =(E48+F48+H48+I48+J48+K48+L48+M48)/8 ->  | P48: =(E48+F48+H48)/3 ->  | Q48: =(I48+J48+K48+L48+M48)/5 -> 
B49: Décembre | C49: 19 | D49: CP / arrêt
D50: ouvrés
D51: formation
D52: % | E52: =E51/E50 ->  | F52: =F51/F50 ->  | G52: 0 | H52: =H51/H50 ->  | O52: =(E52+F52+H52+I52+J52+K52+L52+M52)/8 ->  | P52: =(E52+F52+H52)/3 ->  | Q52: =(I52+J52+K52+L52+M52)/5 -> 

Sheet Légende
C3: COULEURS | I3: SI CONFIRME | Q3: CHAMP STATUT
B4: THEME FORMATION | C4: PRIMAIRE WEB | E4: SECONDAIRE WEB | G4: PLANNING EXCEL | K4: PYROS | M4: UM | O4: SI FACTURE | Q4: ITEMS | R4: DESCRIPTION | S4: TEXTE + COULEUR
B6: INCENDIE | C6: rgb(183,28,28) #B71C1C | E6: rgb(244,67,54) #F44336 | O6: NOM DU CLIENT code formation + libellé + nb session Ville + département N° commande (si besoin est) | Q6: C | R6: Formation confirmée de façon officielle (écrit) | S6: C
B8: EVACUATION | C8: rgb(27,94,32) #1B5E20 | E8: rgb(76,175,80) #4CAF50 | K8: na | M8: na | O8: NOM DU CLIENT code formation + libellé + nb session Ville + département N° commande (si besoin est) | Q8: C+BL | R8: Le Bon de livraison + les feuilles de présence + le bilan ont été envoyées | S8: C+BL
B10: SECOURISME | C10: rgb(255,235,59) #FFEB3B | E10: rgb(245,127,23) #F57F17 | K10: na | M10: na | O10: NOM DU CLIENT code formation + libellé + nb session Ville + département N° commande (si besoin est) | Q10: REPORTE | R10: Formation reportée Indiquer la date de report ou en "instance de report" | S10: REPORTE JJ/MM/AAAA
B12: CONDUITE MANUTENTION | C12: rgb(74,20,140) #4A148C | E12: rgb(156,39,176) #9C27B0 | K12: na | M12: na | O12: NOM DU CLIENT code formation + libellé + nb session Ville + département N° commande (si besoin est) | Q12: ANNULE | R12: Formation annulée et non reportée | S12: ANNULE
B14: PROTECTION RESPIRATOIRE | C14: rgb(230,81,0) #E65100 | E14: rgb(255,152,0) #FF9800 | K14: na | M14: na | O14: NOM DU CLIENT code formation + libellé + nb session Ville + département N° commande (si besoin est) | Q14: FACTURE | R14: Formation ayant été facturée | S14: F
B16: RISQUES PROFESSIONNELS | C16: rgb(13,71,161) #0D47A1 | E16: rgb(33,150,243) #2196F3 | K16: na | M16: na | O16: NOM DU CLIENT code formation + libellé + nb session Ville + département N° commande (si besoin est)
B18: CONSEIL/AUDIT | K18: na | M18: na | O18: NOM DU CLIENT code formation + libellé + nb session Ville + département N° commande (si besoin est)
B22: STRUCTURE D'UNE SAISIE | G22: NOM DU CLIENT code formation + libellé + nb session Ville + département N° commande (si besoin est)
B24: Exemple 1 | G24: ORANGE UMEP02 4 EPI 1H30 REIMS (51) n° commande ; xxxxxxx
B26: Exemple 2 | G26: ORANGE 2 EPI 3H REIMS (51) n° commande ; xxxxxxx
G27: valide aussi même sans code
B29: Exemple 3

Sheet avril
A1: 2017-04-01 | D1: PHILIPPE (EP) | H1: ANDRE (EP) | L1: NICOLAS (CM2) | P1: CHRISTIAN (CM1) | T1: Jean-Côme (Dragon) | X1: JEAN FRANCOIS | AB1: Thierry Lohy | AF1: THIERRY BINET | AJ1: PASCAL GARIN | AN1: JORIS LONGFIER | AR1: TONY BOUTEILLER
D3: =F3/E3 -> 0.5789473684 | E3: =SUM(E5:E50) -> 19 | F3: =SUM(F5:F50) -> 11 | H3: =J3/I3 -> 0.8181818182 | I3: =SUM(I5:I50) -> 11 | J3: =SUM(J5:J50) -> 9 | K3: 7 | L3: =N3/M3 ->  | M3: =SUM(M5:M50) -> 0 | N3: =SUM(N5:N50) -> 0 | P3: =R3/Q3 -> 0.6875 | Q3: =SUM(Q5:Q50) -> 16 | R3: =SUM(R5:R50) -> 11 | S3: 3 | T3: =V3/U3 -> 0.5 | U3: =SUM(U5:U50) -> 19 | V3: =SUM(V5:V50) -> 9.5 | X3: =Z3/Y3 -> 0.5666666667 | Y3: =SUM(Y5:Y50) -> 15 | Z3: =SUM(Z5:Z50) -> 8.5 | AA3: 4 | AB3: =AD3/AC3 -> 0.3421052632 | AC3: =SUM(AC5:AC50) -> 19 | AD3: =SUM(AD5:AD50) -> 6.5 | AE3: 4 | AF3: =AH3/AG3 -> 0.6428571429 | AG3: =SUM(AG5:AG50) -> 14 | AH3: =SUM(AH5:AH50) -> 9 | AI3: 5 | AJ3: =AL3/AK3 -> 0.9375 | AK3: =SUM(AK5:AK50) -> 16 | AL3: =SUM(AL5:AL50) -> 15 | AM3: 3 | AN3: =AP3/AO3 -> 0.6153846154 | AO3: =SUM(AO5:AO50) -> 13 | AP3: =SUM(AP5:AP50) -> 8 | AQ3: 5 | AR3: =AT3/AS3 -> 0.4666666667 | AS3: =SUM(AS5:AS50) -> 15 | AT3: =SUM(AT5:AT50) -> 7 | AU3: 4
A4: SEM | B4: JOUR | C4: AM/PM | D4: FORMATION | E4: Ouv | F4: trav | G4: STATUT | H4: FORMATION | I4: Ouv | J4: trav | K4: STATUT | L4: FORMATION | M4: Ouv | N4: trav | O4: STATUT | P4: FORMATION | Q4: Ouv | R4: trav | S4: STATUT | T4: FORMATION | U4: Ouv | V4: trav | W4: STATUT | X4: FORMATION | Y4: Ouv | Z4: trav | AA4: STATUT | AB4: FORMATION | AC4: Ouv | AD4: trav | AE4: STATUT | AF4: FORMATION | AG4: Ouv | AH4: trav | AI4: STATUT | AJ4: FORMATION | AK4: Ouv | AL4: trav | AM4: STATUT | AN4: FORMATION | AO4: Ouv | AP4: trav | AQ4: STATUT | AR4: FORMATION | AS4: Ouv | AT4: trav | AU4: STATUT
A5: 14 | B5: 2017-04-03 | C5: am | D5: route | E5: 0.5 | F5: 0.5 | H5: LEROY MERLIN ISNEAUVILLE (76) | I5: 0.5 | J5: 0.5 | K5: F | P5: CCM SAS TEXEN 4 EPI 1H30 IZERNORE (01) | Q5: 0.5 | R5: 0.5 | S5: F | U5: 0.5 | X5: C. HOSPITALIER ISSOIRE (63) FORINCI13H - 3h30 | Y5: 0.5 | Z5: 0.5 | AA5: F | AB5: Avec Dédé | AC5: 0.5 | AD5: 0.5 | AE5: obser | AF5: COPIREL I107 ESI + ARI CRIQUEBEUF | AG5: 0.5 | AH5: 0.5 | AI5: F | AJ5: LEROY MERLIN ???? ISNEAUVILLE | AK5: 0.5 | AL5: 0.5 | AM5: f | AO5: 0.5 | AS5: 0.5
C6: pm | D6: Orange 2 sessions EPI EPINAL n° commande 61457516 | E6: 0.5 | F6: 0.5 | G6: F | I6: 0.5 | J6: 0.5 | Q6: 0.5 | R6: 0.5 | U6: 0.5 | X6: ROULAGE | Y6: 0.5 | Z6: 0.5 | AB6: Avec Dédé | AC6: 0.5 | AD6: 0.5 | AE6: obser | AF6: COPIREL I107 ESI + ARI CRIQUEBEUF | AG6: 0.5 | AH6: 0.5 | AI6: F | AJ6: BUREAU | AK6: 0.5 | AL6: 0.5 | AN6: HOPITAL DURECU DARNETAL I03 LIEU ? | AO6: 0.5 | AP6: 0.5 | AQ6: F | AR6: ROULAGE | AS6: 0.5 | AT6: 0.5
B7: 2017-04-04 | C7: am | D7: Orange 4 sessions EPI NANCY n° commande / 61462482 | E7: 0.5 | F7: 0.5 | G7: F | H7: LEROY MERLIN ISNEAUVILLE (76) | I7: 0.5 | J7: 0.5 | K7: F | Q7: 0.5 | T7: SIDAMO EPI PYROS 3h CHAUSSEE ST VICTOR (41) | U7: 0.5 | V7: 0.5 | W7: F | X7: RECYCLAGE MONITEUR ROUEN | Y7: 0.5 | Z7: 0.5 | AC7: 0.5 | AG7: 0.5 | AJ7: CROIX ROUGE SST MAC BOIS GUILLAUME | AK7: 0.5 | AL7: 0.5 | AO7: 0.5 | AR7: RECYCLAGE MONITEUR ROUEN | AS7: 0.5 | AT7: 0.5
C8: pm | E8: 0.5 | F8: 0.5 | I8: 0.5 | J8: 0.5 | P8: IME LES COLOMBES 14h 17h MONTELEGER (26) EPI MSR 3h | Q8: 0.5 | R8: 0.5 | S8: F | U8: 0.5 | Y8: 0.5 | Z8: 0.5 | AC8: 0.5 | AG8: 0.5 | AJ8: CROIX ROUGE SST MAC BOIS GUILLAUME | AK8: 0.5 | AL8: 0.5 | AO8: 0.5 | AS8: 0.5 | AT8: 0.5 | AV8: ²
B9: 2017-04-05 | C9: am | D9: route | E9: 0.5 | F9: 0.5 | H9: route | I9: 0.5 | J9: 0.5 | P9: ROULAGE | Q9: 0.5 | R9: 0.5 | T9: SIDAMO EPI PYROS 3h CHAUSSEE ST VICTOR (41) | U9: 0.5 | V9: 0.5 | W9: F | X9: RECYCLAGE MONITEUR ROUEN | Y9: 0.5 | Z9: 0.5 | AC9: 0.5 | AF9: Ascca nexity SST02 MAC CERGY PONTOISE 95 | AG9: 0.5 | AH9: 0.5 | AI9: C+BL | AJ9: CROIX ROUGE SST MAC BOIS GUILLAUME | AK9: 0.5 | AL9: 0.5 | AN9: CERP I202 ST ETIENNE DU ROUVRAY | AO9: 0.5 | AP9: 0.5 | AQ9: F | AR9: RECYCLAGE MONITEUR ROUEN | AS9: 0.5 | AT9: 0.5
C10: pm | E10: 0.5 | I10: 0.5 | J10: 0.5 | P10: CARREFOUR MARKET FORM SSI VAUVERT (30) | Q10: 0.5 | R10: 0.5 | S10: F | U10: 0.5 | Y10: 0.5 | Z10: 0.5 | AC10: 0.5 | AG10: 0.5 | AH10: 0.5 | AJ10: CROIX ROUGE SST MAC BOIS GUILLAUME | AK10: 0.5 | AL10: 0.5 | AO10: 0.5 | AS10: 0.5 | AT10: 0.5
B11: 2017-04-06 | C11: am | D11: AIRPORT COLLEGE 2 UM EP 02 Lyon | E11: 0.5 | G11: REPORTE attente réponse | H11: ORANGE 4 EPI 1H30 LANNION n° commande : 61499235 | I11: 0.5 | J11: 0.5 | K11: F | P11: ROULAGE | Q11: 0.5 | R11: 0.5 | T11: SIDAMO EPI PYROS 3h CHAUSSEE ST VICTOR (41) | U11: 0.5 | V11: 0.5 | W11: F | X11: RECYCLAGE MONITEUR ROUEN | Y11: 0.5 | Z11: 0.5 | AC11: 0.5 | AF11: CLINIQUE MATHILDE I203R ROUEN | AG11: 0.5 | AH11: 0.5 | AI11: F | AJ11: CROIX ROUGE SST MAC BOIS GUILLAUME | AK11: 0.5 | AL11: 0.5 | AN11: CLINIQUE MATHILDE I203R ROUEN | AO11: 0.5 | AP11: 0.5 | AQ11: F | AR11: RECYCLAGE MONITEUR ROUEN | AS11: 0.5 | AT11: 0.5
C12: pm | E12: 0.5 | I12: 0.5 | J12: 0.5 | P12: EHPAD DAUPHINE EPI MSR 450 € HT ROMAN S/isere | Q12: 0.5 | R12: 0.5 | S12: F | T12: route | U12: 0.5 | V12: 0.5 | Y12: 0.5 | Z12: 0.5 | AC12: 0.5 | AG12: 0.5 | AJ12: CROIX ROUGE SST MAC BOIS GUILLAUME | AK12: 0.5 | AL12: 0.5 | AO12: 0.5 | AS12: 0.5 | AT12: 0.5
B13: 2017-04-07 | C13: am | E13: 0.5 | H13: ORANGE 4 EPI 1H30 LANNION n° commande : 61488669 | I13: 0.5 | J13: 0.5 | K13: F | P13: EHPAD LE MONTEL 2 SESSIONS DE 3H EPI +mise en secuirté des résidents 63 | Q13: 0.5 | R13: 0.5 | S13: F | U13: 0.5 | Y13: 0.5 | AB13: Avec Joris | AC13: 0.5 | AD13: 0.5 | AE13: obser | AF13: DP | AG13: 0.5 | AH13: 0.5 | AJ13: GREIF SST02 MAC LIEU ? | AK13: 0.5 | AL13: 0.5 | AM13: C+BL | AN13: TVS I03 VERNON | AO13: 0.5 | AP13: 0.5 | AQ13: F | AS13: 0.5
C14: pm | E14: 0.5 | I14: 0.5 | J14: 0.5 | Q14: 0.5 | R14: 0.5 | S14: F | U14: 0.5 | Y14: 0.5 | AB14: Avec Joris | AC14: 0.5 | AD14: 0.5 | AE14: obser | AF14: DP | AG14: 0.5 | AH14: 0.5 | AJ14: GREIF SST02 MAC LIEU ? | AK14: 0.5 | AL14: 0.5 | AM14: C+BL | AN14: TVS I03 VERNON | AO14: 0.5 | AP14: 0.5 | AQ14: F | AR14: LES JARDINS DE CATEL I13H - 14H15-17H15 CHATEAUGIRON (35) | AS14: 0.5 | AT14: 0.5 | AU14: C+BL
A15: 15 | B15: 2017-04-10 | C15: am | E15: 0.5 | H15: route | I15: 0.5 | J15: 0.5 | P15: GIVAUDAN LAVIROTTE Recyclage 1 ESI 4 h | Q15: 0.5 | R15: 0.5 | S15: C+BL | U15: 0.5 | Y15: 0.5 | AB15: Bureau Rouen | AC15: 0.5 | AD15: 0.5 | AE15: Relance | AF15: GREIF I106 + ARI GRAND QUEVILLY | AG15: 0.5 | AH15: 0.5 | AI15: F | AJ15: VACANCES | AO15: 0.5 | AR15: VACANCES
C16: pm | D16: route | E16: 0.5 | F16: 0.5 | P16: GIVAUDAN LAVIROTTE Recyclage 1 ESI 4 h | Q16: 0.5 | R16: 0.5 | S16: C+BL | T16: route | U16: 0.5 | V16: 0.5 | X16: EHPAD PEYSSON ROMANS SUR ISERE (26) 450€ | Y16: 0.5 | Z16: 0.5 | AA16: F | AB16: Bureau Rouen | AC16: 0.5 | AD16: 0.5 | AE16: Relance | AF16: GREIF I106 + ARI GRAND QUEVILLY | AG16: 0.5 | AH16: 0.5 | AI16: F | AJ16: VACANCES | AO16: 0.5 | AR16: VACANCES
B17: 2017-04-11 | C17: am | D17: BPARA SAINT-ETIENNE 4 epi 1h30 | E17: 0.5 | F17: 0.5 | G17: F | H17: congés payés | P17: EHPAD LOUBET 2 sessions EPI MSR MONTELIMAR 26 800 € | Q17: 0.5 | R17: 0.5 | S17: C+BL | T17: FUAJ 2 EPI 1H30 + Guide et Serre-File LILLE (59) | U17: 0.5 | W17: REPORTE AU 20/06 | X17: CROUS 1 SSI 3H - 9h-12h 8 rue jeanne koeller 69003 Lyon/71-77 jean jaures villeurbanne Contact : Francisca Caparros 04 78 54 01 01 // 06 32 64 21 97 | Y17: 0.5 | Z17: 0.5 | AA17: F | AC17: 0.5 | AF17: OPCALIA | AG17: 0.5 | AJ17: BUREAU TRAVAUX SUPPORT ET DEROULE PEDA SST | AK17: 0.5 | AL17: 0.5 | AN17: NETTO I03 ARGENTAN | AO17: 0.5 | AP17: 0.5 | AQ17: C+BL | AR17: IMPRIMERIE RAYNARD I207 10H-11H30 LIEU ???? | AS17: 0.5 | AT17: 0.5 | AU17: C
C18: pm | E18: 0.5 | F18: 0.5 | Q18: 0.5 | R18: 0.5 | U18: 0.5 | X18: CROUS 1 SSI 3H - 14h-17h 29 rue du professeur nicolas 69008 Lyon Contact : Beabo Okio Dauvilliers 04 72 78 41 60 // 06 84 62 66 53 | Y18: 0.5 | Z18: 0.5 | AA18: F | AC18: 0.5 | AG18: 0.5 | AJ18: BUREAU TRAVAUX SUPPORT ET DEROULE PEDA SST | AK18: 0.5 | AL18: 0.5 | AO18: 0.5 | AS18: 0.5
B19: 2017-04-12 | C19: am | D19: BPARA LYON 2 epi 1h30 | E19: 0.5 | F19: 0.5 | G19: F | Q19: 0.5 | T19: route | U19: 0.5 | Y19: 0.5 | AB19: Avec Joris | AC19: 0.5 | AD19: 0.5 | AE19: obser | AF19: MILTON ROY I106 ESI INITIALE LIEU ? | AG19: 0.5 | AI19: REPORTE | AJ19: SFP NANTERRE | AK19: 0.5 | AL19: 0.5 | AN19: ARRED I03 CANTELEU | AO19: 0.5 | AP19: 0.5 | AQ19: F | AR19: VACANCES
C20: pm | D20: BPARA LYON 2 epi 1h30 | E20: 0.5 | F20: 0.5 | G20: F | Q20: 0.5 | T20: route | U20: 0.5 | V20: 0.5 | Y20: 0.5 | AB20: Avec Joris | AC20: 0.5 | AD20: 0.5 | AE20: obser | AF20: MILTON ROY I106 ESI INITIALE LIEU ? | AG20: 0.5 | AI20: REPORTE | AJ20: SFP NANTERRE | AK20: 0.5 | AL20: 0.5 | AN20: ARRED I03 CANTELEU | AO20: 0.5 | AP20: 0.5 | AQ20: F | AR20: VACANCES
B21: 2017-04-13 | C21: am | D21: ORANGE 4 EPI 1h30 BELFORT n° commande : 61462889 | E21: 0.5 | F21: 0.5 | G21: F | Q21: 0.5 | T21: Tuyaux flexibles Rudolph EPI+RIA 2 EPI de 2h 78000 SARTROUVILLE | U21: 0.5 | V21: 0.5 | W21: F | X21: route | Y21: 0.5 | Z21: 0.5 | AC21: 0.5 | AG21: 0.5 | AJ21: VACANCES | AO21: 0.5 | AR21: VACANCES
C22: pm | E22: 0.5 | F22: 0.5 | Q22: 0.5 | T22: route | U22: 0.5 | V22: 0.5 | X22: EHPAD EDEN VALENCE (26) 450€ | Y22: 0.5 | AA22: A REPORTER OCT 17 | AC22: 0.5 | AF22: MILTON ROY I106 ESI INITIALE LIEU ? | AG22: 0.5 | AI22: REPORTE | AJ22: VACANCES | AO22: 0.5 | AR22: VACANCES
B23: 2017-04-14 | C23: am | D23: ORANGE 4 sessions EPI DIJON n° commande : 61470560 | E23: 0.5 | F23: 0.5 | G23: F | Q23: 0.5 | U23: 0.5 | X23: ELIS 2 EXO EVAC DECINES CHARPIEU(10h20) + MIRIBEL | Y23: 0.5 | Z23: 0.5 | AA23: F | AC23: 0.5 | AF23: VACANCES | AJ23: VACANCES | AN23: VACANCES | AR23: VACANCES
C24: pm | E24: 0.5 | F24: 0.5 | Q24: 0.5 | U24: 0.5 | Y24: 0.5 | AC24: 0.5 | AF24: VACANCES | AJ24: VACANCES | AN24: VACANCES | AR24: VACANCES
A25: 16 | B25: 2017-04-17 | C25: am
C26: pm
B27: 2017-04-18 | C27: am | D27: AIRPORT COLLEGE 2 SESSIONS EPI 3h30 ROISSY | E27: 0.5 | F27: 0.5 | G27: F | H27: congés payés | P27: Lycée bon secours 2 EPI 1H30 perpignan (66) | Q27: 0.5 | R27: 0.5 | S27: F | U27: 0.5 | X27: CROUS 1 SSI 3H VILLEURBANNE | Y27: 0.5 | Z27: 0.5 | AA27: F | AB27: VACANCES | AC27: 0.5 | AF27: VACANCES | AK27: 0.5 | AN27: VACANCES | AS27: 0.5
C28: pm | E28: 0.5 | F28: 0.5 | P28: Lycée bon secours 2 EPI 1H30 perpignan (66) | Q28: 0.5 | R28: 0.5 | S28: F | U28: 0.5 | Y28: 0.5 | AB28: VACANCES | AC28: 0.5 | AF28: VACANCES | AK28: 0.5 | AN28: VACANCES | AS28: 0.5
B29: 2017-04-19 | C29: am | E29: 0.5 | P29: congés payés | U29: 0.5 | X29: SUEZ 1 EPI 3H Voreppe 38 | Y29: 0.5 | Z29: 0.5 | AA29: F | AB29: VACANCES | AC29: 0.5 | AF29: VACANCES | AJ29: RDV commercial OF à St Malot pour partenaria UM et incendie | AK29: 0.5 | AL29: 0.5 | AN29: VACANCES | AS29: 0.5
C30: pm | E30: 0.5 | T30: Route | U30: 0.5 | V30: 0.5 | Y30: 0.5 | AB30: VACANCES | AC30: 0.5 | AF30: VACANCES | AJ30: RDV commercial OF à St Malot pour partenaria UM et incendie | AK30: 0.5 | AL30: 0.5 | AN30: VACANCES | AS30: 0.5
B31: 2017-04-20 | C31: am | E31: 0.5 | T31: Lycee jeanne d'arc 2 EPI 1h30 Carcassonne | U31: 0.5 | W31: REPORTE 05072017 | X31: PHILAGRO SUMITOMO EXO EVAC - 2h A 11H SAINT-DIZIER-MONT-D'OR (69) | Y31: 0.5 | Z31: 0.5 | AA31: C+BL | AB31: VACANCES | AC31: 0.5 | AF31: VACANCES | AJ31: CABOT CARBONE PDP LILLEBONNE | AK31: 0.5 | AL31: 0.5 | AN31: VACANCES | AS31: 0.5
C32: pm | E32: 0.5 | T32: Route | U32: 0.5 | V32: 0.5 | Y32: 0.5 | AB32: VACANCES | AC32: 0.5 | AF32: VACANCES | AJ32: CABOT CARBONE PDP LILLEBONNE | AK32: 0.5 | AL32: 0.5 | AN32: VACANCES | AS32: 0.5
B33: 2017-04-21 | C33: am | E33: 0.5 | U33: 0.5 | X33: VACANCES | AB33: VACANCES | AC33: 0.5 | AF33: VACANCES | AJ33: ORANGE GARDENS VISITE DU SITE CHATILLON (92) | AK33: 0.5 | AL33: 0.5 | AM33: C | AN33: MC DO I204R GROS HORLOGE | AO33: 0.5 | AP33: 0.5 | AQ33: F | AR33: IMPRIMEIE RAYNARD I03 9H-12H LIEU ???? | AS33: 0.5 | AT33: 0.5 | AU33: C
C34: pm | E34: 0.5 | H34: route | I34: 0.5 | J34: 0.5 | U34: 0.5 | X34: VACANCES | AB34: VACANCES | AC34: 0.5 | AF34: VACANCES | AJ34: ORANGE GARDENS I202 Chargés d'évacuation CHATILLON (92) | AK34: 0.5 | AL34: 0.5 | AM34: C | AN34: MF PRODUCTION & FUTURA 2X I204R MAROMME | AO34: 0.5 | AP34: 0.5 | AQ34: C+BL | AS34: 0.5
A35: 17 | B35: 2017-04-24 | C35: am | D35: ORANGE 2 sessions EPI GENTILLY | E35: 0.5 | F35: 0.5 | G35: F | H35: ST MICRO RENNES SPATIAL 4 sessions EPI voir horaires planning | I35: 0.5 | K35: A Reporter à planifier | Q35: 0.5 | T35: Route | U35: 0.5 | V35: 0.5 | X35: VACANCES | AC35: 0.5 | AF35: ITEP L'OREE DU BOIS I04 PRIMO MONT SAINT AIGNAN | AG35: 0.5 | AH35: 0.5 | AI35: C+BL | AJ35: LEROY MERLIN CM104 NACELLE CAT 3A 6 PERS ISNEAUVILLE | AK35: 0.5 | AL35: 0.5 | AM35: C+BL | AN35: VACANCES | AR35: FUAJ I03 - 9H-12H SAINT BRIEUC | AS35: 0.5 | AT35: 0.5 | AU35: C
C36: pm | E36: 0.5 | I36: 0.5 | K36: A Reporter à planifier | P36: SCHUTZ 2 EPI 1h30 - breifing RIA MARCOUSSIS (78) | Q36: 0.5 | S36: REPORTé au 15 05 | T36: CALVIN KLEIN EPI 2H + Exercice d'évac sans fumée SERRIS | U36: 0.5 | V36: 0.5 | W36: F | X36: VACANCES | AC36: 0.5 | AF36: HOPITAL DURECU DARNETAL I03 LIEU ? | AG36: 0.5 | AH36: 0.5 | AI36: F | AJ36: LEROY MERLIN CM104 NACELLE CAT 3A 6 PERS ISNEAUVILLE | AK36: 0.5 | AL36: 0.5 | AM36: C+BL | AN36: VACANCES | AR36: FUAJ I202 - 13H30-16H30 SAINT BRIEUC | AS36: 0.5 | AT36: 0.5 | AU36: C
B37: 2017-04-25 | C37: am | E37: 0.5 | F37: 0.5 | G37: F | H37: ST MICRO RENNES R&D 2 sessions EPI voir horaires planning | I37: 0.5 | J37: 0.5 | K37: F | P37: DANONE 4 EPI 2h +RIA 76220 Ferrières en Bray | Q37: 0.5 | R37: 0.5 | S37: F | T37: RECALL io6 primo De 10h à 13h COMPANS 77 | U37: 0.5 | V37: 0.5 | W37: F | X37: VACANCES | AC37: 0.5 | AF37: LEROY MERLIN I06 ISNEAUVILLE | AG37: 0.5 | AH37: 0.5 | AI37: C+BL | AJ37: SFK CM402 RECY GERBEUR ACC SAINT-MARCEL 27 | AK37: 0.5 | AL37: 0.5 | AM37: C | AS37: 0.5
C38: pm | E38: 0.5 | F38: 0.5 | H38: route | I38: 0.5 | J38: 0.5 | Q38: 0.5 | R38: 0.5 | T38: Route | U38: 0.5 | V38: 0.5 | X38: VACANCES | AB38: ACMS - 16h00 | AC38: 0.5 | AD38: 0.5 | AF38: LEROY MERLIN I06 ISNEAUVILLE | AG38: 0.5 | AH38: 0.5 | AI38: C+BL | AJ38: SFK CM402 RECY GERBEUR ACC SAINT-MARCEL 27 | AK38: 0.5 | AL38: 0.5 | AM38: C | AS38: 0.5
B39: 2017-04-26 | C39: am | D39: MBDA 2 sessions EPI 1h30 92 Le PLESSIS-ROBINSON | E39: 0.5 | F39: 0.5 | G39: F | H39: ST MICRO 4 EPI 1h30 LE MANS | I39: 0.5 | J39: 0.5 | K39: F | P39: Rouen | Q39: 0.5 | R39: 0.5 | T39: ALME 1 EPI 2H SEYNOD (74) | U39: 0.5 | W39: O | X39: Candia SST MAC Clermond (63) | Y39: 0.5 | AA39: ANNULE REPORTEE au 30 JUIN | AB39: Avec Joris | AC39: 0.5 | AD39: 0.5 | AE39: obser | AF39: Cabot Carbone 1er jour Groupe 1 Module A LILLEBONNE | AG39: 0.5 | AH39: 0.5 | AI39: C+BL | AJ39: CAF du Calvados à Caen - RDV pour formations 2017 avec nouvelle interlocutrice | AK39: 0.5 | AL39: 0.5 | AN39: BODYCOTE I03 ST AUBIN LES ELBEUF | AO39: 0.5 | AP39: 0.5 | AQ39: F | AR39: IMPRIMERIE RAYNARD I207 9H-17H LIEU ???? | AS39: 0.5 | AT39: 0.5 | AU39: C
C40: pm | E40: 0.5 | I40: 0.5 | J40: 0.5 | Q40: 0.5 | R40: 0.5 | T40: Route | U40: 0.5 | V40: 0.5 | X40: Candia SST MAC Clermond (63) | Y40: 0.5 | AA40: ANNULE REPORTEE au 30 JUIN | AB40: Avec Joris | AC40: 0.5 | AD40: 0.5 | AE40: obser | AF40: Cabot Carbone 1er jour Groupe Module C LILLEBONNE | AG40: 0.5 | AH40: 0.5 | AI40: C+BL | AJ40: TRAVAUX SST BUREAU | AK40: 0.5 | AL40: 0.5 | AN40: MAISON D'ENFANT LE CLOS I201 LIEU ??? | AO40: 0.5 | AP40: 0.5 | AQ40: C+BL | AR40: IMPRIMERIE RAYNARD I207 9H-17H LIEU ???? | AS40: 0.5 | AT40: 0.5 | AU40: C
B41: 2017-04-27 | C41: am | D41: ORANGE GARDENS 4 EPI 1H30 Chatillon (92) | E41: 0.5 | F41: 0.5 | G41: F | H41: ST MICRO LE MANS 2 EPI 1h30 | I41: 0.5 | J41: 0.5 | K41: F | Q41: 0.5 | T41: Véhicule en réparation | U41: 0.5 | V41: 0.5 | X41: MAIRIE DE FRANGY 1 EPI 3H FRANGY (74) | Y41: 0.5 | Z41: 0.5 | AA41: F | AC41: 0.5 | AF41: Cabot carbone 1er jour du groupe 2 Module A LILLEBONNE | AG41: 0.5 | AH41: 0.5 | AI41: C+BL | AJ41: BUREAU Travaux support et déroulé pédagogique SST | AK41: 0.5 | AL41: 0.5 | AN41: RENAULT EV02 GUYANCOURT | AO41: 0.5 | AP41: 0.5 | AQ41: C+BL | AS41: 0.5
C42: pm | E42: 0.5 | F42: 0.5 | H42: route | I42: 0.5 | J42: 0.5 | P42: CABOT CARBONE 1er GROUPE 2 Module B LILLEBONNE | Q42: 0.5 | R42: 0.5 | S42: C+BL | T42: Le manoir du verger EPI PYROS 3H 14H30 à 17h30 37270 VERETZ | U42: 0.5 | V42: 0.5 | W42: F | Y42: 0.5 | AC42: 0.5 | AG42: 0.5 | AJ42: BUREAU Travaux support et déroulé pédagogique SST | AK42: 0.5 | AL42: 0.5 | AN42: RENAULT EV02 GUYANCOURT | AO42: 0.5 | AP42: 0.5 | AQ42: C+BL | AR42: LA PAPATERIE (CLIENT PREV INC) I04 - 14H30-16H LAVAL | AS42: 0.5 | AU42: REPORTé
B43: 2017-04-28 | C43: am | E43: 0.5 | I43: 0.5 | P43: CABOT CARBONE 2e jour GROUPE 1 Module B LILLEBONNE | Q43: 0.5 | R43: 0.5 | S43: C+BL | T43: CEA dragon 2 EPI 1h30 Le Vesinet (78) | U43: 0.5 | V43: 0.5 | W43: F | X43: VACANCES | AB43: Avec Joris | AC43: 0.5 | AD43: 0.5 | AE43: obser | AF43: LA VIE DU RAIL SST03 gestes qui sauvent GARE SAINT LAZARE | AG43: 0.5 | AH43: 0.5 | AI43: C+BL | AJ43: SDPP à Evreux RDV commercial formations 2017 (engins + …) | AK43: 0.5 | AL43: 0.5 | AN43: LEROY MERLIN ???? ISNEAUVILLE | AO43: 0.5 | AP43: 0.5 | AQ43: C+BL | AR43: CLINIQUE OCEANE I13H LIEU ??? | AS43: 0.5 | AU43: REPORTé
C44: pm | E44: 0.5 | I44: 0.5 | P44: CABOT CARBONE 2e jour GROUPE 2 Module D LILLEBONNE | Q44: 0.5 | R44: 0.5 | S44: C+BL | T44: CEA dragon 2 EPI 1h30 Le Vesinet (78) | U44: 0.5 | V44: 0.5 | W44: F | X44: VACANCES | AB44: Avec Joris | AC44: 0.5 | AD44: 0.5 | AE44: obser | AF44: LA VIE DU RAIL SST03 gestes qui sauvent GARE SAINT LAZARE | AG44: 0.5 | AH44: 0.5 | AI44: C+BL | AJ44: SDPP à Evreux RDV commercial formations 2017 (engins + …) | AK44: 0.5 | AL44: 0.5 | AN44: ARRED I03 CANTELEU | AO44: 0.5 | AP44: 0.5 | AQ44: C+BL | AR44: CLINIQUE OCEANE I13H LIEU ??? | AS44: 0.5 | AU44: REPORTé

Sheet Mai
A1: 2017-05-01 | D1: PHILIPPE (EP) | H1: ANDRE (EP) | L1: THIERRY (CM2) | P1: CHRISTIAN (CM1) | T1: Jean-Côme (Dragon) | X1: JEAN FRANCOIS | AB1: NICOLAS | AF1: THIERRY BINET | AJ1: PASCAL GARIN | AN1: JORIS LONGFIER | AR1: TONY BOUTEILLER | AV1: Michael ALBALADEJO
D3: =F3/E3 -> 0.4444444444 | E3: =SUM(E5:E50) -> 18 | F3: =SUM(F5:F50) -> 8 | G3: 0 | H3: =J3/I3 -> 0.6176470588 | I3: =SUM(I5:I50) -> 17 | J3: =SUM(J5:J50) -> 10.5 | K3: 2 | L3: =N3/M3 -> 0.2857142857 | M3: =SUM(M5:M50) -> 7 | N3: =SUM(N5:N50) -> 2 | O3: 12 | P3: =R3/Q3 -> 0.7666666667 | Q3: =SUM(Q5:Q50) -> 15 | R3: =SUM(R5:R50) -> 11.5 | S3: 4 | T3: =V3/U3 -> 0.6470588235 | U3: =SUM(U5:U50) -> 17 | V3: =SUM(V5:V50) -> 11 | W3: 4 | X3: =Z3/Y3 -> 0.6111111111 | Y3: =SUM(Y5:Y50) -> 18 | Z3: =SUM(Z5:Z50) -> 11 | AA3: 3 | AB3: =AD3/AC3 -> 0.05263157895 | AC3: =SUM(AC5:AC50) -> 19 | AD3: =SUM(AD5:AD50) -> 1 | AF3: =AH3/AG3 -> 0.9 | AG3: =SUM(AG5:AG50) -> 5 | AH3: =SUM(AH5:AH50) -> 4.5 | AI3: 14 | AJ3: =AL3/AK3 -> 0.8947368421 | AK3: =SUM(AK5:AK50) -> 19 | AL3: =SUM(AL5:AL50) -> 17 | AN3: =AP3/AO3 -> 0.7058823529 | AO3: =SUM(AO5:AO50) -> 17 | AP3: =SUM(AP5:AP50) -> 12 | AQ3: 0 | AR3: =AT3/AS3 -> 0.12 | AS3: =SUM(AS5:AS50) -> 12.5 | AT3: =SUM(AT5:AT50) -> 1.5 | AU3: 3
A4: SEM | B4: JOUR | C4: AM/PM | D4: FORMATION | E4: Ouv | F4: trav | G4: STATUT | H4: FORMATION | I4: Ouv | J4: trav | K4: STATUT | L4: FORMATION | M4: Ouv | N4: trav | O4: STATUT | P4: FORMATION | Q4: Ouv | R4: trav | S4: STATUT | T4: FORMATION | U4: Ouv | V4: trav | W4: STATUT | X4: FORMATION | Y4: Ouv | Z4: trav | AA4: STATUT | AB4: FORMATION | AC4: Ouv | AD4: trav | AE4: STATUT | AF4: FORMATION | AG4: Ouv | AH4: trav | AI4: STATUT | AJ4: FORMATION | AK4: Ouv | AL4: trav | AM4: STATUT | AN4: FORMATION | AO4: Ouv | AP4: trav | AQ4: STATUT | AR4: FORMATION | AS4: Ouv | AT4: trav | AU4: STATUT | AV4: FORMATION | AW4: STATUT
A5: 18 | B5: 2017-05-01 | C5: am
C6: pm
B7: 2017-05-02 | C7: am | D7: Renault 2 EPI 1h30 Guyancourt | E7: 0.5 | F7: 0.5 | G7: F | I7: 0.5 | L7: SFP rouen | M7: 0.5 | N7: 0.5 | O7: avec Joris | Q7: 0.5 | T7: ROUTE | U7: 0.5 | V7: 0.5 | Y7: 0.5 | AC7: 0.5 | AF7: VACANCES | AK7: 0.5 | AO7: 0.5 | AS7: 0.5
C8: pm | D8: Renault 2 EPI 1h30 Guyancourt | E8: 0.5 | F8: 0.5 | I8: 0.5 | J8: 0.5 | L8: SFP rouen | M8: 0.5 | N8: 0.5 | O8: avec Joris | P8: ROUTE | Q8: 0.5 | R8: 0.5 | T8: ALPI SA EPI 1h30 13 h30 à 15h 77000 lognes | U8: 0.5 | V8: 0.5 | W8: F | X8: EOVI LES COLLINES 1 EPI 3H SAINT DONNAT | Y8: 0.5 | Z8: 0.5 | AA8: F | AC8: 0.5 | AF8: VACANCES | AK8: 0.5 | AN8: BLAISE PASCAL & GALEES DU ROI I204R ROUEN | AO8: 0.5 | AP8: 0.5 | AQ8: F | AS8: 0.5
B9: 2017-05-03 | C9: am | E9: 0.5 | H9: TOURS HABITAT 4 EPI 2h TOURS | I9: 0.5 | J9: 0.5 | K9: F | M9: 0.5 | P9: SKF Sensibilisation Azote Liquide (3h) + Risques Chimiques (3h30) Saint-Marcel (27) | Q9: 0.5 | R9: 0.5 | S9: PAS DE FORMATION | T9: Maison des oiseaux 2 EPI 1h30 36400 la chatre | U9: 0.5 | V9: 0.5 | W9: F | Y9: 0.5 | AC9: 0.5 | AF9: VACANCES | AJ9: LEROY MERLIN CM104 NACELLE CAT 3A 6 PERS ISNEAUVILLE | AK9: 0.5 | AL9: 0.5 | AM9: F | AN9: ANNE FONTAINE I03 SERRIS (77) | AO9: 0.5 | AP9: 0.5 | AQ9: F | AS9: 0.5
C10: pm | E10: 0.5 | I10: 0.5 | J10: 0.5 | M10: 0.5 | Q10: 0.5 | R10: 0.5 | T10: Maison des oiseaux 2 EPI 1h30 36400 la chatre | U10: 0.5 | V10: 0.5 | W10: F | Y10: 0.5 | AC10: 0.5 | AF10: VACANCES | AJ10: LEROY MERLIN CM104 NACELLE CAT 3A 6 PERS ISNEAUVILLE | AK10: 0.5 | AL10: 0.5 | AM10: F | AN10: ROUTE | AO10: 0.5 | AP10: 0.5 | AS10: 0.5
B11: 2017-05-04 | C11: am | E11: 0.5 | H11: TOURS HABITAT 4 EPI 2h TOURS | I11: 0.5 | J11: 0.5 | K11: F | M11: 0.5 | P11: DANONE 76220 Ferrières en Bray 4 sessions de 2h EPI +RIA | Q11: 0.5 | R11: 0.5 | S11: F | U11: 0.5 | X11: OKKO HOTEL 2 sessions de 3h : i05 en 1h + i207 en 2h GRENOBLE | Y11: 0.5 | Z11: 0.5 | AA11: F | AC11: 0.5 | AF11: VACANCES | AJ11: LEROY MERLIN CM104 NACELLE CAT 3A 6 PERS ISNEAUVILLE | AK11: 0.5 | AL11: 0.5 | AM11: F | AN11: LEROY MERLIN I202 TOURVILLE | AO11: 0.5 | AP11: 0.5 | AQ11: F | AS11: 0.5
C12: pm | E12: 0.5 | I12: 0.5 | J12: 0.5 | M12: 0.5 | Q12: 0.5 | R12: 0.5 | U12: 0.5 | Y12: 0.5 | Z12: 0.5 | AC12: 0.5 | AF12: VACANCES | AJ12: LEROY MERLIN CM104 NACELLE CAT 3A 6 PERS ISNEAUVILLE | AK12: 0.5 | AL12: 0.5 | AM12: F | AN12: LEROY MERLIN I202 TOURVILLE | AO12: 0.5 | AP12: 0.5 | AQ12: F | AS12: 0.5
B13: 2017-05-05 | C13: am | E13: 0.5 | I13: 0.5 | J13: 0.5 | L13: Avec Joris | M13: 0.5 | N13: 0.5 | O13: I204R | P13: ROUTE | Q13: 0.5 | R13: 0.5 | U13: 0.5 | Y13: 0.5 | Z13: 0.5 | AC13: 0.5 | AF13: VACANCES | AJ13: SKF CM300 FORMATION FORMATEURS PONTIERS ELINGUEURS SAINT MARCEL (27) | AK13: 0.5 | AL13: 0.5 | AM13: O | AN13: MC DO I204R ST ETIENNE DU ROUVRAY | AO13: 0.5 | AP13: 0.5 | AQ13: F | AS13: 0.5
C14: pm | E14: 0.5 | I14: 0.5 | L14: Avec Joris | M14: 0.5 | N14: 0.5 | O14: Pi02 | Q14: 0.5 | U14: 0.5 | Y14: 0.5 | AC14: 0.5 | AF14: VACANCES | AJ14: SKF CM300 FORMATION FORMATEURS PONTIERS ELINGUEURS SAINT MARCEL (27) | AK14: 0.5 | AL14: 0.5 | AM14: O | AN14: BUREAU VERITAS PI02 ST LEGER | AO14: 0.5 | AP14: 0.5 | AQ14: F | AS14: 0.5
A15: 19 | B15: 2017-05-08 | C15: am
C16: pm
B17: 2017-05-09 | C17: am | D17: FACILIT RAIL 2 EPI 1H30 CHARENTON | E17: 0.5 | F17: 0.5 | G17: F | H17: congés payés | L17: CP | Q17: 0.5 | T17: CHR HANSEN ARPAJON (91) 4 sessions EPI 1h30 | U17: 0.5 | V17: 0.5 | W17: F | Y17: 0.5 | AC17: 0.5 | AF17: VACANCES | AJ17: MILTON ROY I204R LIEU ???? | AK17: 0.5 | AL17: 0.5 | AM17: F | AN17: MILTON ROY I204R LIEU ??? | AO17: 0.5 | AP17: 0.5 | AQ17: F | AS17: 0.5
C18: pm | D18: FACILIT RAIL 2 EPI 1H30 CHARENTON | E18: 0.5 | F18: 0.5 | G18: F | L18: CP | Q18: 0.5 | U18: 0.5 | V18: 0.5 | X18: GERONDINES LOUIS PASQUIER CHABEUIL (26) | Y18: 0.5 | Z18: 0.5 | AA18: F | AC18: 0.5 | AF18: VACANCES | AJ18: BUREAU RAPP EVAC MILTON | AK18: 0.5 | AL18: 0.5 | AO18: 0.5 | AS18: 0.5
B19: 2017-05-10 | C19: am | L19: CP | P19: ROUTE | Q19: 0.5 | R19: 0.5 | T19: ROUTE | U19: 0.5 | V19: 0.5 | X19: CROUS 8h-10h : 4 rue du sauveur lyon 7/360 rue garibaldi 69007 lyon 10h-12h : 96 rue pasteur 69007 lyon/6 rue rachais 69003 lyon Contact : Valery Sliwinski 04 72 80 17 94 // 06 13 17 85 56 | Y19: 0.5 | Z19: 0.5 | AA19: F | AC19: 0.5 | AF19: VACANCES | AJ19: SKF CM301 NACELLE CAT 3A PONTIERS ELINGUEURS SAINT MARCEL (27) | AK19: 0.5 | AL19: 0.5 | AM19: F | AN19: ANNE FONTAINE I03 HONFLEUR (14) | AO19: 0.5 | AP19: 0.5 | AQ19: F | AS19: 0.5
C20: pm | L20: CP | P20: ROUTE | Q20: 0.5 | R20: 0.5 | U20: 0.5 | X20: CROUS 1 SSI 3h - 14h-17h 393 avenue bourgelat 69280 marcy l'étoile Contact : charles-andre sanchis 04 78 19 82 13 // 06 82 59 95 27 | Y20: 0.5 | Z20: 0.5 | AA20: F | AC20: 0.5 | AF20: VACANCES | AJ20: SKF CM301 NACELLE CAT 3A PONTIERS ELINGUEURS SAINT MARCEL (27) | AK20: 0.5 | AL20: 0.5 | AM20: F | AO20: 0.5 | AS20: 0.5
B21: 2017-05-11 | C21: am | D21: MBDA 2 EPI 1h30 Le PLESSIS-ROBINSON (92) | E21: 0.5 | F21: 0.5 | G21: F | I21: 0.5 | L21: CP | P21: DANONE 76220 Ferrières en Bray 4 sessions de 2h EPI +RIA | Q21: 0.5 | R21: 0.5 | S21: F | U21: 0.5 | Y21: 0.5 | AC21: 0.5 | AF21: VACANCES | AJ21: LEROY MERLIN CM104 NACELLE CAT 3A 6 PERS ISNEAUVILLE | AK21: 0.5 | AL21: 0.5 | AM21: F | AN21: RENAULT 4X EV02 GUYANCOURT (78) | AO21: 0.5 | AP21: 0.5 | AQ21: F
C22: pm | E22: 0.5 | I22: 0.5 | L22: CP | Q22: 0.5 | R22: 0.5 | U22: 0.5 | X22: EHPAD BEAUSOLEIL MOURS ST EUSEBE (26) 450€ | Y22: 0.5 | Z22: 0.5 | AA22: F | AC22: 0.5 | AF22: VACANCES | AJ22: LEROY MERLIN CM104 NACELLE CAT 3A 6 PERS ISNEAUVILLE | AK22: 0.5 | AL22: 0.5 | AM22: F | AN22: RENAULT 4X EV02 GUYANCOURT (78) | AO22: 0.5 | AP22: 0.5 | AQ22: F
B23: 2017-05-12 | C23: am | E23: 0.5 | H23: ROUTE | I23: 0.5 | J23: 0.5 | L23: CP | Q23: 0.5 | T23: THIBAULT EPI IO3 37190 AZAY Le rideau 9h à 12h | U23: 0.5 | V23: 0.5 | W23: F | X23: EMMAUS SST INITIAL 74 CRANVES | Y23: 0.5 | Z23: 0.5 | AA23: F | AC23: 0.5 | AF23: VACANCES | AJ23: SKF CM300 FORMATION FORMATEURS PONTIERS ELINGUEURS SAINT MARCEL (27) | AK23: 0.5 | AL23: 0.5 | AM23: F | AN23: MC DO I204R ST ETIENNE DU ROUVRAY | AO23: 0.5 | AP23: 0.5 | AQ23: F | AS23: 0.5
C24: pm | E24: 0.5 | I24: 0.5 | L24: CP | Q24: 0.5 | U24: 0.5 | Y24: 0.5 | Z24: 0.5 | AC24: 0.5 | AF24: VACANCES | AJ24: SKF CM300 FORMATION FORMATEURS PONTIERS ELINGUEURS SAINT MARCEL (27) | AK24: 0.5 | AL24: 0.5 | AM24: F | AN24: SDPP EVREUX + STOCK I204R EVREUX | AO24: 0.5 | AP24: 0.5 | AQ24: F | AR24: LES JARDINS DU CASTEL I13H - 14H15-17H15 CHATEAUGIRON (35) | AS24: 0.5 | AT24: 0.5 | AU24: F
A25: 20 | B25: 2017-05-15 | C25: am | D25: SLAM/CUISINELLA 4 EPI 1H30 SELESTAT (68) | E25: 0.5 | F25: 0.5 | G25: F | H25: ROUTE | I25: 0.5 | J25: 0.5 | L25: CP | P25: EHPAD LE MONTEL 2 SESSIONS DE 3H EPI +mise en secuirté des résidents 63 | Q25: 0.5 | R25: 0.5 | S25: F | T25: AIRCOS 1 EPI PYROS 11H-12H ARDON (45) | U25: 0.5 | V25: 0.5 | W25: F | X25: LDPI 2 EPI I07 2H00 ST QUENTIN FALLAVIER (38) | Y25: 0.5 | AA25: O | AC25: 0.5 | AF25: MC DO I204R GRAND QUEVILLY | AG25: 0.5 | AH25: 0.5 | AI25: F | AJ25: SKF CM301 MAC PONTIERS ELINGUEURS SAINT MARCEL (27) | AK25: 0.5 | AL25: 0.5 | AM25: F | AS25: 0.5
C26: pm | E26: 0.5 | F26: 0.5 | H26: SCHUTZ 2 EPI 1h30 - breifing RIA MARCOUSSIS (78) | I26: 0.5 | J26: 0.5 | K26: F | L26: CP | Q26: 0.5 | R26: 0.5 | T26: AIRCOS 1 EPI PYROS 14H-15H ARDON (45) | U26: 0.5 | V26: 0.5 | W26: F | Y26: 0.5 | AC26: 0.5 | AF26: HOPITAL DURECU I03 DARNETAL | AG26: 0.5 | AH26: 0.5 | AI26: F | AJ26: SKF CM301 MAC PONTIERS ELINGUEURS SAINT MARCEL (27) | AK26: 0.5 | AL26: 0.5 | AM26: F | AS26: 0.5
B27: 2017-05-16 | C27: am | D27: ROUTE | E27: 0.5 | F27: 0.5 | H27: HOPITAL DE NAVARRE 4 sessions EPI 1h30 EVREUX (27) | I27: 0.5 | J27: 0.5 | K27: F | L27: CP | P27: Clinique du haut cantal EPI 3H (15) riom es montagnes | Q27: 0.5 | R27: 0.5 | S27: F | T27: ROUTE | U27: 0.5 | X27: EHPAD BIANCHERI HAUTERIVES (26) 400€ | Y27: 0.5 | Z27: 0.5 | AA27: F | AC27: 0.5 | AF27: CARPIMKO I202 MONTIGNY LE BRETONNEUX | AG27: 0.5 | AH27: 0.5 | AI27: F | AJ27: LEROY MERLIN CM101 NACELLE CAT 3A ISNEAUVILLE | AK27: 0.5 | AL27: 0.5 | AM27: F
C28: pm | E28: 0.5 | I28: 0.5 | J28: 0.5 | L28: CP | P28: Clinique du haut cantal EPI 3H (15) riom es montagnes | Q28: 0.5 | R28: 0.5 | S28: F | T28: MAC DO PYROS 3H de 14h à 17h Noisy le grand (93) | U28: 0.5 | V28: 0.5 | W28: F | Y28: 0.5 | Z28: 0.5 | AC28: 0.5 | AF28: Route | AG28: 0.5 | AH28: 0.5 | AJ28: LEROY MERLIN CM101 NACELLE CAT 3A ISNEAUVILLE | AK28: 0.5 | AL28: 0.5 | AM28: F
B29: 2017-05-17 | C29: am | D29: Renault 2X EPI 1H30 Guyancourt | E29: 0.5 | F29: 0.5 | G29: F | I29: 0.5 | J29: 0.5 | L29: CP | P29: ROUTE | Q29: 0.5 | R29: 0.5 | U29: 0.5 | X29: VACANCES | AC29: 0.5 | AF29: IMMEUBLE HASTINGS I204R ROUEN | AG29: 0.5 | AH29: 0.5 | AI29: F | AJ29: SKF CM05 RECY CHARIOT CAT 3 PONTIERS ELINGUEURS SAINT MARCEL (27) | AK29: 0.5 | AL29: 0.5 | AM29: F | AN29: Hotel garden i207 de 12h30 à 14h paris | AO29: 0.5 | AQ29: F | AR29: SALON OCEADE EDERN (29) | AS29: 0.5 | AT29: 0.5 | AU29: O
C30: pm | D30: Renault 2X EPI 1H30 Guyancourt | E30: 0.5 | F30: 0.5 | G30: F | I30: 0.5 | J30: 0.5 | L30: CP | Q30: 0.5 | R30: 0.5 | T30: LYCEE CLAUDE DE France I03 3H - 13H15 IMPERATIF ROMORANTHIN-LANTHENAY | U30: 0.5 | V30: 0.5 | W30: F | X30: VACANCES | AC30: 0.5 | AF30: Route | AG30: 0.5 | AH30: 0.5 | AJ30: SKF CM05 RECY CHARIOT CAT 3 PONTIERS ELINGUEURS SAINT MARCEL (27) | AK30: 0.5 | AL30: 0.5 | AM30: F | AN30: CER SST07 16H30-19H 93 SAINT DENIS | AO30: 0.5 | AP30: 0.5 | AQ30: F | AR30: EHPAD PIERRE GOENVIC I13H - 13H30-17H PLONEOUR LANVERN (29) | AS30: 0.5 | AT30: 0.5 | AU30: F
B31: 2017-05-18 | C31: am | D31: SLAUR SARDET 2 EPI 1H30 le havre | E31: 0.5 | F31: 0.5 | G31: F | H31: ST MICRO PARIS 4 sessions EPI voir horaires planning | I31: 0.5 | J31: 0.5 | K31: Reporté au 15 juin | L31: CP | P31: Clinique du haut cantal EPI 3H (15) riom es montagnes | Q31: 0.5 | R31: 0.5 | S31: F | U31: 0.5 | Y31: 0.5 | AC31: 0.5 | AF31: CORNING PI02 BAGNEAUX SUR LOING | AG31: 0.5 | AH31: 0.5 | AI31: C | AJ31: Nanterre | AK31: 0.5 | AL31: 0.5 | AN31: CLINIQUE MATHILDE SST01 ROUEN | AO31: 0.5 | AP31: 0.5 | AQ31: F
C32: pm | D32: SLAUR SARDET 2 EPI 1H30 le havre | E32: 0.5 | F32: 0.5 | G32: F | I32: 0.5 | J32: 0.5 | L32: CP | P32: Clinique du haut cantal EPI 3H (15) riom es montagnes | Q32: 0.5 | R32: 0.5 | S32: F | U32: 0.5 | X32: GERONDINES LAMARTINE VALENCE (26) 450€ | Y32: 0.5 | Z32: 0.5 | AA32: F | AC32: 0.5 | AF32: CORNING PI02 BAGNEAUX SUR LOING | AG32: 0.5 | AH32: 0.5 | AI32: C | AJ32: RENAULT LARDY avec ROBIN ??? LARDY (91) | AK32: 0.5 | AL32: 0.5 | AN32: CLINIQUE MATHILDE SST01 ROUEN | AO32: 0.5 | AP32: 0.5 | AQ32: F
B33: 2017-05-19 | C33: am | E33: 0.5 | I33: 0.5 | L33: CP | P33: Clinique du haut cantal I13H (15) riom es montagnes | Q33: 0.5 | R33: 0.5 | S33: F | T33: AiRCOS 4 EPI PYROS 10H-11H et 11h-12h ROMORANTHIN (41) | U33: 0.5 | V33: 0.5 | W33: F | X33: EMMAUS SST INITIAL 74 CRANVES | Y33: 0.5 | Z33: 0.5 | AA33: F | AC33: 0.5 | AF33: Route | AG33: 0.5 | AH33: 0.5 | AJ33: Nanterre | AK33: 0.5 | AL33: 0.5 | AN33: CLINIQUE MATHILDE SST01 ROUEN | AO33: 0.5 | AP33: 0.5 | AQ33: F | AS33: 0.5
C34: pm | E34: 0.5 | I34: 0.5 | L34: CP | P34: Clinique du haut cantal I13H (15) riom es montagnes | Q34: 0.5 | R34: 0.5 | S34: F | T34: AiRCOS 4 EPI PYROS 14H-15H et 15h-16h ROMORANTHIN (41) | U34: 0.5 | V34: 0.5 | W34: F | Y34: 0.5 | Z34: 0.5 | AC34: 0.5 | AG34: 0.5 | AJ34: Nanterre | AK34: 0.5 | AL34: 0.5 | AN34: CLINIQUE MATHILDE SST01 ROUEN | AO34: 0.5 | AP34: 0.5 | AQ34: F | AS34: 0.5
A35: 21 | B35: 2017-05-22 | C35: am | E35: 0.5 | I35: 0.5 | L35: CP | P35: C. HOSPITALIER ISSOIRE FORINCI13H - 3h30 ISSOIRE 63 | Q35: 0.5 | R35: 0.5 | S35: F | T35: BMW 2 SESSIONS 1H30 TIGERY (91) de 9h à 10h30 et de 10h30 à 12h | U35: 0.5 | V35: 0.5 | W35: F | X35: VACANCES | AC35: 0.5 | AF35: VACANCES | AJ35: LEROY MERLIN CM05 MAC CHARIOTS 1/3/5 ISNEAUVILLE | AK35: 0.5 | AL35: 0.5 | AM35: REPORTE 09/2017 | AN35: MC DO I204R VAL DE REUIL | AO35: 0.5 | AP35: 0.5 | AQ35: F | AS35: 0.5
C36: pm | E36: 0.5 | I36: 0.5 | L36: CP | Q36: 0.5 | T36: ROUTE | U36: 0.5 | V36: 0.5 | X36: VACANCES | AC36: 0.5 | AF36: VACANCES | AJ36: LEROY MERLIN CM05 MAC CHARIOTS 1/3/5 ISNEAUVILLE | AK36: 0.5 | AL36: 0.5 | AM36: REPORTE 09/2017 | AN36: HOPITAL DURECU I03 DARNETAL | AO36: 0.5 | AP36: 0.5 | AQ36: F | AS36: 0.5
B37: 2017-05-23 | C37: am | E37: 0.5 | I37: 0.5 | L37: CP | P37: DANONE 2 EPI +RIA 2H 76220 Ferrières en Bray | Q37: 0.5 | R37: 0.5 | S37: F | T37: VACANCES | Y37: 0.5 | AC37: 0.5 | AF37: VACANCES | AJ37: LEROY MERLIN CM05 MAC CHARIOTS 1/3/5 ISNEAUVILLE | AK37: 0.5 | AL37: 0.5 | AM37: REPORTE 09/2017 | AN37: COPRO DES BULINS I04 + I207 MONT ST AIGNAN | AO37: 0.5 | AP37: 0.5 | AQ37: F | AR37: VACANCES
C38: pm | E38: 0.5 | I38: 0.5 | L38: CP | P38: DANONE 2 EPI +RIA 2H 76220 Ferrières en Bray | Q38: 0.5 | R38: 0.5 | T38: VACANCES | X38: EHPAD BEAUSOLEIL MOURS ST EUSEBE (26) 450€ | Y38: 0.5 | AA38: F | AC38: 0.5 | AF38: VACANCES | AJ38: BUREAU | AK38: 0.5 | AL38: 0.5 | AO38: 0.5 | AR38: VACANCES | AV38: BUFFALO 47 Exercice d'évac 1H30 Exercice d'évac sans fumée | AW38: F
B39: 2017-05-24 | C39: am | E39: 0.5 | I39: 0.5 | L39: CP | P39: VACANCES | T39: VACANCES | X39: Clinique du haut cantal I13H (15) riom es montagnes | Y39: 0.5 | Z39: 0.5 | AA39: F | AC39: 0.5 | AF39: VACANCES | AJ39: NANTERRE | AK39: 0.5 | AL39: 0.5 | AN39: mf production i06 8h30 à 12h30 maromme | AO39: 0.5 | AQ39: F | AR39: VACANCES
C40: pm | E40: 0.5 | I40: 0.5 | L40: CP | P40: VACANCES | T40: VACANCES | X40: Clinique du haut cantal I13H (15) riom es montagnes | Y40: 0.5 | Z40: 0.5 | AC40: 0.5 | AF40: VACANCES | AJ40: ORANGE avec Nicolas | AK40: 0.5 | AL40: 0.5 | AN40: mf production i06 8h30 à 12h30 maromme | AO40: 0.5 | AQ40: F | AR40: VACANCES
B41: 2017-05-25 | C41: am
C42: pm
B43: 2017-05-26 | C43: am | X43: EMMAUS 74 2 SESSIONS DE 3H FORINCI03 | Y43: 0.5 | Z43: 0.5 | AA43: F
C44: pm | Y44: 0.5 | Z44: 0.5
A45: 22 | B45: 2017-05-29 | C45: am | E45: 0.5 | H45: Esprit de France 4 sessions EPI rue françois 1er , 75008 9h-10h30…14h-15h30… | I45: 0.5 | J45: 0.5 | K45: F | M45: 0.5 | P45: CP | T45: OKKO HOTEL 2 EPI 1H30 PARIS 15EME | U45: 0.5 | V45: 0.5 | W45: F | X45: VACANCES | Y45: 0.5 | AC45: 0.5 | AF45: VACANCES | AJ45: Dieppe - Sécurité Routière | AK45: 0.5 | AL45: 0.5 | AM45: C | AO45: 0.5 | AR45: VACANCES
C46: pm | D46: ROUTE | E46: 0.5 | F46: 0.5 | I46: 0.5 | J46: 0.5 | M46: 0.5 | T46: ROUTE | U46: 0.5 | V46: 0.5 | X46: VACANCES | Y46: 0.5 | AC46: 0.5 | AF46: VACANCES | AJ46: LEROY MERLIN CM104 pratique pemp 3A ISNEAUVILLE | AK46: 0.5 | AL46: 0.5 | AM46: F | AN46: HOPITAL DURECU I03 DARNETAL | AO46: 0.5 | AP46: 0.5 | AQ46: F | AR46: VACANCES
B47: 2017-05-30 | C47: am | D47: AIRPORT COLLEGE 4 sessions 1h30 MULHOUSE | E47: 0.5 | F47: 0.5 | G47: A REPORTER EN SEPTEMBRE | H47: Esprit de France 4 sessions EPI rue françois 1er , 75008 9h-10h30…14h-15h30… | I47: 0.5 | J47: 0.5 | K47: F | M47: 0.5 | T47: OKKO HOTEL I202 PARIS 15EME | U47: 0.5 | V47: 0.5 | W47: F | Y47: 0.5 | AC47: 0.5 | AF47: VACANCES | AJ47: Route | AK47: 0.5 | AN47: Mod Passion I04 à 8h30 Buchy | AO47: 0.5 | AQ47: F | AR47: RDV N.ANTOINE
C48: pm | E48: 0.5 | F48: 0.5 | H48: Esprit de France 4 sessions EPI rue françois 1er , 75008 9h-10h30…14h-15h30… | I48: 0.5 | J48: 0.5 | M48: 0.5 | T48: ROUTE | U48: 0.5 | V48: 0.5 | X48: EHPAD EDEN VALENCE (26) 450€ | Y48: 0.5 | Z48: 0.5 | AA48: F | AC48: 0.5 | AF48: VACANCES | AJ48: Route | AK48: 0.5 | AN48: CCAS La Madeleine I03 evreux 14h à 14h | AO48: 0.5 | AP48: 0.5 | AQ48: annule | AS48: 0.5
B49: 2017-05-31 | C49: am | D49: ROUTE | E49: 0.5 | F49: 0.5 | H49: Esprit de France 4 sessions EP rue françois 1er, 75008 9h-10h30…14h-15h30… | I49: 0.5 | J49: 0.5 | K49: F | M49: 0.5 | T49: Moet hennessy EPI + sensibilisation à l'évacuation EN CM2 PARIS N° SGX20170680 | U49: 0.5 | V49: 0.5 | W49: F | X49: CANDIA ESI RECYCLAGE Clermond (63) N°COMMANDE : 2017-02 741 | Y49: 0.5 | Z49: 0.5 | AA49: A REPORTER | AB49: Moet hennessy EPI + sensibilisation à l'évacuation EN CM2 PARIS N° SGX20170680 | AC49: 0.5 | AD49: 0.5 | AE49: F | AF49: VACANCES | AJ49: SYSTHERM SST01 GRESY SUR AIX (73) | AK49: 0.5 | AL49: 0.5 | AM49: C+BL | AO49: 0.5 | AS49: 0.5
C50: pm | E50: 0.5 | H50: Esprit de France 4 sessions EP rue françois 1er, 75008 9h-10h30…14h-15h30… | I50: 0.5 | J50: 0.5 | M50: 0.5 | T50: Moet hennessy EPI + sensibilisation à l'évacuation EN CM2 PARIS N° SGX20170680 | U50: 0.5 | V50: 0.5 | W50: F | X50: CANDIA ESI RECYCLAGE Clermond (63) N°COMMANDE : 2017-02 741 | Y50: 0.5 | Z50: 0.5 | AA50: A REPORTER | AB50: Moet hennessy EPI + sensibilisation à l'évacuation EN CM2 PARIS N° SGX20170680 | AC50: 0.5 | AD50: 0.5 | AE50: F | AF50: VACANCES | AJ50: SYSTHERM SST01 GRESY SUR AIX (73) | AK50: 0.5 | AL50: 0.5 | AM50: C+BL | AN50: TAPON I06 PRIMO SAINT MARCEL | AO50: 0.5 | AP50: 0.5 | AQ50: F | AS50: 0.5

Sheet Feuil2
C2: c
B4: ITEM | C4: STATUT
C5: c
C6: f
C7: c+bl
C8: c
C9: f
C10: c+bl
C11: c
C12: f
C13: c+bl
C14: f
C15: f
C16: f
C17: f
C18: c
C19: c
C20: c
C21: c
C22: c
C23: c+bl

Sheet Juin
A1: 2017-06-01 | D1: PHILIPPE (EP) | H1: ANDRE (EP) | L1: THIERRY (CM2) | P1: CHRISTIAN (CM1) | T1: Jean-Côme (Dragon) | X1: JEAN FRANCOIS | AB1: NICOLAS | AF1: THIERRY BINET | AJ1: PASCAL GARIN | AN1: JORIS LONGFIER | AR1: TONY BOUTEILLER | AV1: ANTOINE MILAZZO | AZ1: MICHAEL ALBALADEJO
D3: =F3/E3 -> 0.9047619048 | E3: =SUM(E5:E48) -> 21 | F3: =SUM(F5:F48) -> 19 | G3: 0 | H3: =J3/I3 -> 0.7380952381 | I3: =SUM(I5:I48) -> 21 | J3: =SUM(J5:J48) -> 15.5 | K3: 0 | L3: =N3/M3 -> 0.02702702703 | M3: =SUM(M5:M48) -> 18.5 | N3: =SUM(N5:N48) -> 0.5 | P3: =R3/Q3 -> 0.875 | Q3: =SUM(Q5:Q48) -> 16 | R3: =SUM(R5:R48) -> 14 | S3: 6 | T3: =V3/U3 -> 0.8 | U3: =SUM(U5:U48) -> 20 | V3: =SUM(V5:V48) -> 16 | W3: 0 | X3: =Z3/Y3 -> 0.6666666667 | Y3: =SUM(Y5:Y48) -> 21 | Z3: =SUM(Z5:Z46) -> 14 | AA3: 0 | AB3: =AD3/AC3 -> 0.5 | AC3: =SUM(AC5:AC50) -> 11 | AD3: =SUM(AD5:AD50) -> 5.5 | AE3: 10 | AF3: =AH3/AG3 -> 0.5882352941 | AG3: =SUM(AG5:AG50) -> 17 | AH3: =SUM(AH5:AH50) -> 10 | AI3: 1 | AJ3: =AL3/AK3 -> 0.6052631579 | AK3: =SUM(AK5:AK50) -> 19 | AL3: =SUM(AL5:AL50) -> 11.5 | AM3: 2 | AN3: =AP3/AO3 -> 0.6341463415 | AO3: =SUM(AO5:AO50) -> 20.5 | AP3: =SUM(AP5:AP50) -> 13 | AQ3: 0 | AR3: =AT3/AS3 -> 0 | AS3: =SUM(AS5:AS50) -> 21 | AT3: =SUM(AT5:AT50) -> 0 | AU3: 0 | AV3: =AX3/AW3 -> 0.09090909091 | AW3: =SUM(AW5:AW50) -> 22 | AX3: =SUM(AX5:AX50) -> 2 | AZ3: =#REF!/#REF! -> 
A4: SEM | B4: JOUR | C4: AM/PM | D4: FORMATION | E4: Ouv | F4: trav | G4: STATUT | H4: FORMATION | I4: Ouv | J4: trav | K4: STATUT | L4: FORMATION | M4: Ouv | N4: trav | O4: STATUT | P4: FORMATION | Q4: Ouv | R4: trav | S4: STATUT | T4: FORMATION | U4: Ouv | V4: trav | W4: STATUT | X4: FORMATION | Y4: Ouv | Z4: trav | AA4: STATUT | AB4: FORMATION | AC4: Ouv | AD4: trav | AE4: STATUT | AF4: FORMATION | AG4: Ouv | AH4: trav | AI4: STATUT | AJ4: FORMATION | AK4: Ouv | AL4: trav | AM4: STATUT | AN4: FORMATION | AO4: Ouv | AP4: trav | AQ4: STATUT | AR4: FORMATION | AS4: Ouv | AT4: trav | AU4: STATUT | AV4: FORMATION | AW4: Ouv | AX4: trav | AY4: STATUT
A5: 22 | B5: 2017-06-01 | C5: am | D5: CLINIQUE MATHILDE 4 EPI 1H30 ROUEN (76) | E5: 0.5 | F5: 0.5 | G5: F | H5: RAMSAY GDS EPI 3 sessions pour 30 salariés 75016 9h-10h30 ; 10h30-12h00 puis 13h30-15h | I5: 0.5 | J5: 0.5 | K5: F | M5: 0.5 | P5: CP | T5: CARPIMKO 1 ou 2 epi MONTIGNY LE BRETONNEUX (78) | U5: 0.5 | V5: 0.5 | W5: F | X5: GERONDINES LOUISE MICHEL PORTE LES VALENCE (26) 450€ | Y5: 0.5 | Z5: 0.5 | AA5: F | AC5: 0.5 | AD5: 0.5 | AF5: Cabot Carbone Module C--> TB LILLEBONNE | AG5: 0.5 | AH5: 0.5 | AI5: F | AJ5: SYSTHERM SST01 GRESY SUR AIX (73) | AK5: 0.5 | AL5: 0.5 | AM5: F | AN5: FERRERO SST02 GRAND QUEVILLY | AO5: 0.5 | AP5: 0.5 | AQ5: F | AS5: 0.5 | AV5: Formation comportement sécuritaire 7h Novo nordisk à chartres | AW5: 0.5 | AX5: 0.5 | AY5: F
C6: pm | E6: 0.5 | F6: 0.5 | I6: 0.5 | J6: 0.5 | M6: 0.5 | U6: 0.5 | X6: MUTUALITE FRANCAISE DU RHONE 1 EPI 3H00 LYON 3E | Y6: 0.5 | Z6: 0.5 | AA6: F | AC6: 0.5 | AD6: 0.5 | AF6: Cabot Carbone Module D--> TB LILLEBONNE | AG6: 0.5 | AH6: 0.5 | AI6: F | AJ6: F | AK6: 0.5 | AL6: 0.5 | AM6: F | AN6: FERRERO SST02 GRAND QUEVILLY | AO6: 0.5 | AP6: 0.5 | AQ6: F | AS6: 0.5 | AW6: 0.5 | AX6: 0.5 | AY6: F
B7: 2017-06-02 | C7: am | E7: 0.5 | H7: Renault 2 EPI 1h30 Aubevoye 27 | I7: 0.5 | J7: 0.5 | K7: ANNULE | L7: avec Joris - i05 | M7: 0.5 | P7: CP | T7: TSE I03 primo 2h 94 Bonneuil s/marne 10H a 12 h | U7: 0.5 | V7: 0.5 | W7: F | X7: AUDREX MAC SST CHEZ BROUX | Y7: 0.5 | Z7: 0.5 | AA7: F | AC7: 0.5 | AD7: 0.5 | AF7: RENAULT 4X EV02 PLESSY (92)de 08h15 à 15h30 | AG7: 0.5 | AH7: 0.5 | AI7: F | AJ7: ROUTE | AK7: 0.5 | AL7: 0.5 | AN7: PHARMASYNTHESE I05 + PI02 08h à 12h ST PIERRE LES ELBEUF | AO7: 0.5 | AP7: 0.5 | AQ7: F | AS7: 0.5 | AW7: 0.5
C8: pm | E8: 0.5 | H8: Renault 2 EPI 1h30 Aubevoye 27 | I8: 0.5 | J8: 0.5 | L8: avec Joris - Pi02 | M8: 0.5 | T8: TSE I03 primo 2h 94 Bonneuil s/marne 13hà 15h | U8: 0.5 | V8: 0.5 | W8: F | Y8: 0.5 | Z8: 0.5 | AC8: 0.5 | AD8: 0.5 | AF8: RENAULT 4X EV02 PLESSY (92) | AG8: 0.5 | AH8: 0.5 | AI8: F | AJ8: ROUTE | AK8: 0.5 | AL8: 0.5 | AN8: PHARMASYNTHESE I05 + PI02 13h à 17h ST PIERRE LES ELBEUF | AO8: 0.5 | AP8: 0.5 | AQ8: F | AS8: 0.5 | AW8: 0.5
A9: 23 | B9: 2017-06-05 | C9: am | D9: RTT | H9: RTT | L9: RTT | P9: RTT | T9: RTT | X9: RTT | AB9: RTT | AF9: RTT | AJ9: RTT | AN9: RTT | AR9: RTT | AW9: 0.5
C10: pm | D10: RTT | H10: RTT | L10: RTT | P10: RTT | T10: RTT | X10: RTT | AB10: RTT | AF10: RTT | AJ10: RTT | AN10: RTT | AR10: RTT | AW10: 0.5
B11: 2017-06-06 | C11: am | D11: Renault 2 epi 1H30 Guyancourt | E11: 0.5 | F11: 0.5 | G11: F | I11: 0.5 | M11: 0.5 | Q11: 0.5 | T11: Résidence des cèdres EPI 3H St Georges sur Cher (41) | U11: 0.5 | V11: 0.5 | W11: F | X11: TECHNIDATA 1 EPI 2H - 9h-11h MONTBONNOT | Y11: 0.5 | Z11: 0.5 | AA11: F | AC11: 0.5 | AF11: CEPL I204R FLEURY SUR ANDELLE 10h | AG11: 0.5 | AH11: 0.5 | AI11: F | AJ11: ROUTE | AK11: 0.5 | AL11: 0.5 | AN11: atelier | AO11: 0.5 | AS11: 0.5 | AW11: 0.5
C12: pm | D12: Renault 2 epi 1H30 Guyancourt | E12: 0.5 | F12: 0.5 | G12: F | H12: route | I12: 0.5 | M12: 0.5 | P12: EHPAD LES COLLINES ST DONNAT (26) 450 € EPI MSR | Q12: 0.5 | R12: 0.5 | S12: F | T12: Résidence des cèdres Evac Horiz Ets S&S 3h St Georges sur Cher (41) | U12: 0.5 | V12: 0.5 | W12: F | X12: MDR SEVIGNE 38 EPI MSR 13H30-17h30 | Y12: 0.5 | Z12: 0.5 | AA12: REPORTE 19/09 | AC12: 0.5 | AJ12: ROUTE | AK12: 0.5 | AL12: 0.5 | AN12: TAPON I06 PRIMO SAINT MARCEL 14h-17h30 | AO12: 0.5 | AP12: 0.5 | AQ12: F | AS12: 0.5 | AW12: 0.5
B13: 2017-06-07 | C13: am | D13: AIRPORT COLLEGE 2 EPI 1h30 ROISSY | E13: 0.5 | F13: 0.5 | G13: F | H13: BIC 2 EPI 1H30 CLICHY 92 | I13: 0.5 | J13: 0.5 | K13: F | M13: 0.5 | P13: Clinique du haut cantal EXERCICE D'EVACUATION avec fumée I203R (15) riom es montagnes | Q13: 0.5 | R13: 0.5 | S13: F | T13: BAR HEOL I11 BREHAN (56) | U13: 0.5 | V13: 0.5 | W13: F | X13: THERMAL CERAMICS 1 epi 2H St Marcellin En Forez (42) | Y13: 0.5 | Z13: 0.5 | AA13: F | AC13: 0.5 | AF13: COTIXLAB I06 (RIA + ARI) LISEREY (27) | AG13: 0.5 | AH13: 0.5 | AI13: F | AJ13: AUDREX SST INITIALE ANNECY | AK13: 0.5 | AL13: 0.5 | AM13: F | AN13: VPI BUSSY I03 - 9h à 12h BUSSY | AO13: 0.5 | AP13: 0.5 | AQ13: F | AS13: 0.5 | AW13: 0.5
C14: pm | D14: AIRPORT COLLEGE 2 EPI 1h30 ROISSY | E14: 0.5 | F14: 0.5 | G14: F | H14: BIC 2 EPI 1H30 CLICHY 92 | I14: 0.5 | J14: 0.5 | K14: F | M14: 0.5 | P14: ROUTE | Q14: 0.5 | R14: 0.5 | T14: BAR HEOL I11 BREHAN (56) | U14: 0.5 | V14: 0.5 | W14: F | Y14: 0.5 | Z14: 0.5 | AC14: 0.5 | AF14: COTIXLAB I06 (RIA + ARI) LISEREY (27) | AG14: 0.5 | AH14: 0.5 | AI14: F | AK14: 0.5 | AL14: 0.5 | AN14: VPI BUSSY I203R - 14h à 16h BUSSY | AO14: 0.5 | AP14: 0.5 | AQ14: F | AS14: 0.5 | AW14: 0.5 | AZ14: MAC DO EPI I03 Montauban (82) | BA14: F
B15: 2017-06-08 | C15: am | D15: MBDA 2 EPI 1h30 PLESSIS-ROBINSON (92) | E15: 0.5 | F15: 0.5 | G15: F | H15: BIC 1 x EPI 0H30 + I202 1H CLICHY 92 | I15: 0.5 | J15: 0.5 | K15: F | M15: 0.5 | P15: Pharmacie de la poterie EP i03 de 9h à 12 Fernay voltaire (01) | Q15: 0.5 | R15: 0.5 | S15: REPORTE | T15: ROUTE | U15: 0.5 | V15: 0.5 | X15: THERMAL CERAMICS 1 epi 2H St Marcellin En Forez (42) | Y15: 0.5 | Z15: 0.5 | AA15: F | AC15: 0.5 | AF15: GREF I107 Grand Quevilly (76) | AG15: 0.5 | AH15: 0.5 | AI15: F | AJ15: AUDREX SST INITIALE ANNECY | AK15: 0.5 | AL15: 0.5 | AM15: F | AN15: RENAULT 4X EV02 GUYANCOURT (78) | AO15: 0.5 | AP15: 0.5 | AQ15: F | AS15: 0.5 | AW15: 0.5
C16: pm | D16: ROUTE | E16: 0.5 | F16: 0.5 | H16: BIC 1 x EPI 0H30 + I202 1H CLICHY 92 | I16: 0.5 | J16: 0.5 | K16: F | M16: 0.5 | P16: ROUTE | Q16: 0.5 | R16: 0.5 | T16: EHPAD PIERRE GOENVIC I13H - 13H30-17 PLONEOUR LANVERN (29) | U16: 0.5 | V16: 0.5 | W16: F | X16: GERONDINES LAMARTINE VALENCE (26) 450€ | Y16: 0.5 | Z16: 0.5 | AA16: F | AC16: 0.5 | AF16: GREF I107 Grand Quevilly (76) | AG16: 0.5 | AH16: 0.5 | AI16: F | AJ16: AUDREX SST INITIALE ANNECY | AK16: 0.5 | AL16: 0.5 | AN16: RENAULT 4X EV02 GUYANCOURT (78) | AO16: 0.5 | AP16: 0.5 | AQ16: F | AS16: 0.5 | AW16: 0.5
B17: 2017-06-09 | C17: am | D17: AMAT SUR LE SITE DE ST MICRO CROLLES 2 EPI 1H30 voir horaires planning | E17: 0.5 | F17: 0.5 | G17: F | I17: 0.5 | M17: 0.5 | P17: EHPAD LE MONTEL 2 SESSIONS DE 3H EPI +mise en secuirté des résidents 63 | Q17: 0.5 | R17: 0.5 | S17: ANNULE | T17: ROUTE | U17: 0.5 | V17: 0.5 | X17: AUDREX EPI PYROS 8h30-11h30 soit chez le client 74 ou chez broux | Y17: 0.5 | Z17: 0.5 | AA17: F | AC17: 0.5 | AF17: GREF I107 Grand Quevilly (76) | AG17: 0.5 | AH17: 0.5 | AI17: F | AJ17: ROUTE | AK17: 0.5 | AL17: 0.5 | AN17: SDPP à Evreux (27) i06 | AO17: 0.5 | AQ17: F | AS17: 0.5 | AW17: 0.5
C18: pm | D18: AMAT SUR LE SITE DE ST MICRO CROLLES 2 EPI 1H30 voir horaires planning | E18: 0.5 | F18: 0.5 | G18: F | I18: 0.5 | M18: 0.5 | Q18: 0.5 | R18: 0.5 | S18: ANNULE | T18: LES JARDINS DU CASTEL I13H CHATEAUGIRON (35) | U18: 0.5 | V18: 0.5 | W18: F | Y18: 0.5 | AC18: 0.5 | AF18: CEPL I204R FLEURY SUR ANDELLE 14h | AG18: 0.5 | AH18: 0.5 | AI18: F | AJ18: ROUTE | AK18: 0.5 | AL18: 0.5 | AN18: SDPP à Evreux (27) i06 | AO18: 0.5 | AQ18: F | AS18: 0.5 | AW18: 0.5
A19: 24 | B19: 2017-06-12 | C19: am | D19: MAIRIE DE VOIRON 4 EPI 1H30 VOIRON | E19: 0.5 | F19: 0.5 | G19: F | H19: LEROY MERLIN 4 EPI 1H30 TOURVILLE (76) | I19: 0.5 | J19: 0.5 | K19: F | M19: 0.5 | Q19: 0.5 | Y19: 0.5 | AB19: Orange Paris Form.Réglementation Paris (75) ref commande : 61532345 | AC19: 0.5 | AD19: 0.5 | AE19: F | AF19: 9h30 rdv bernay (27) aerochim avec Anaïs | AG19: 0.5 | AJ19: PREV INCENDIE I202 à 10h REPORTE | AK19: 0.5 | AM19: reporté | AN19: atelier PARE BRISE 8H30 ROUEN | AO19: 0.5 | AS19: 0.5 | AW19: 0.5
C20: pm | E20: 0.5 | F20: 0.5 | I20: 0.5 | J20: 0.5 | M20: 0.5 | P20: ROUTE | Q20: 0.5 | R20: 0.5 | T20: ROUTE | X20: THERMAL CERAMICS 1 epi 2H St Marcellin En Forez (42) | Y20: 0.5 | Z20: 0.5 | AA20: F | AB20: Orange Paris Form.Réglementation Paris (75) | AC20: 0.5 | AD20: 0.5 | AE20: F | AF20: HOPITAL DURECU I03 DARNETAL | AG20: 0.5 | AH20: 0.5 | AI20: F | AJ20: PREV INCENDIE i204 à 13h30 REPORTE | AK20: 0.5 | AM20: reporté | AN20: LEROY MERLIN 2X I09 TOURVILLE | AO20: 0.5 | AP20: 0.5 | AQ20: F | AS20: 0.5 | AW20: 0.5
B21: 2017-06-13 | C21: am | D21: ST MICRO CROLLES 4 sessions EPI voir horaires planning | E21: 0.5 | F21: 0.5 | G21: F | H21: LEROY MERLIN 4 EPI 1H30 TOURVILLE (76) | I21: 0.5 | J21: 0.5 | K21: F | P21: TSE i03 primo 2h Castelnau d'estrefonds 31 | Q21: 0.5 | R21: 0.5 | S21: F | T21: PREVOIR CONVOYAGE ORANGE 2 EPI 1H30 TOULOUSE réf commande : 61547648 | U21: 0.5 | V21: 0.5 | W21: F | X21: EHPAD BIANCHERI HAUTERIVES (26) 450€ REPORTE LE 12 SEPT | Y21: 0.5 | Z21: 0.5 | AA21: reporté | AB21: Orange Paris I202 Paris (75) ref commande 61532348 | AC21: 0.5 | AD21: 0.5 | AE21: F | AG21: 0.5 | AJ21: RENAULT 2X EV02 AUBEVOYE | AK21: 0.5 | AL21: 0.5 | AM21: F | AN21: FERRERO MSA SST02 Saint Aignan | AO21: 0.5 | AP21: 0.5 | AQ21: F | AS21: 0.5 | AW21: 0.5
C22: pm | E22: 0.5 | F22: 0.5 | I22: 0.5 | J22: 0.5 | P22: TSE i03 primo 2h Castelnau d'estrefonds | Q22: 0.5 | R22: 0.5 | S22: F | T22: ORANGE 2 EPI 1H30 TOULOUSE | U22: 0.5 | V22: 0.5 | W22: F | Y22: 0.5 | AB22: Orange Paris I202 Paris (75) | AC22: 0.5 | AD22: 0.5 | AE22: F | AF22: LEROY MERLIN 2X I09 TOURVILLE | AG22: 0.5 | AH22: 0.5 | AI22: F | AJ22: RENAULT 2X EV02 AUBEVOYE | AK22: 0.5 | AL22: 0.5 | AM22: F | AN22: FERRERO MSA SST02 Saint Aignan | AO22: 0.5 | AP22: 0.5 | AQ22: F | AS22: 0.5 | AW22: 0.5
B23: 2017-06-14 | C23: am | D23: ST MICRO CROLLES 4 sessions EPI voir horaires planning | E23: 0.5 | F23: 0.5 | G23: F | H23: LES PAPILLONS BLANCS DE BEAUNE 2 EPI 1h30 | I23: 0.5 | J23: 0.5 | K23: F | M23: 0.5 | P23: New look epi+evac téléphoner au client pour s'organsier TOULOUSE | Q23: 0.5 | R23: 0.5 | S23: a reporter | T23: ORANGE 2 EPI 1H30 TOULOUSE ref commande : 61540061 | U23: 0.5 | V23: 0.5 | W23: F | X23: BROUX I202 PRINGY (74) | Y23: 0.5 | AA23: F | AC23: 0.5 | AF23: PHARMASYNTHESE EXO EVAC ST PIERRE LES ELBEUF ARRIVEE 9h30 | AG23: 0.5 | AH23: 0.5 | AI23: F | AJ23: BUREAU | AK23: 0.5 | AL23: 0.5 | AN23: PHARMASYNTHESE I204R ST PIERRE LES ELBEUF ARRIVEE 9H30 | AO23: 0.5 | AP23: 0.5 | AQ23: F | AS23: 0.5 | AW23: 0.5
C24: pm | E24: 0.5 | F24: 0.5 | H24: LES PAPILLONS BLANCS DE BEAUNE 2 EPI 1h30 | I24: 0.5 | J24: 0.5 | K24: F | M24: 0.5 | P24: ROUTE | Q24: 0.5 | R24: 0.5 | T24: ORANGE 2 EPI 1H30 TOULOUSE ref commande : 61540061 | U24: 0.5 | V24: 0.5 | W24: F | X24: ISECURIT I202 GENAS (69) | Y24: 0.5 | AA24: F | AB24: ROUTE | AC24: 0.5 | AD24: 0.5 | AG24: 0.5 | AJ24: ROUTE | AK24: 0.5 | AL24: 0.5 | AN24: TAPON I06 PRIMO SAINT MARCEL | AO24: 0.5 | AP24: 0.5 | AQ24: F | AS24: 0.5 | AW24: 0.5
B25: 2017-06-15 | C25: am | D25: ST MICRO CROLLES 4 sessions EPI voir horaires planning | E25: 0.5 | F25: 0.5 | G25: F | H25: ST MICRO PARIS 4 sessions EPI voir horaires planning | I25: 0.5 | K25: F | M25: 0.5 | Q25: 0.5 | T25: ORANGE 2 EPI 1H30 TOULOUSE | U25: 0.5 | V25: 0.5 | W25: F | X25: EHPAD LA PROVIDENCE 2 EPI 3H00 AUTUN (71) VOIR CONTACT MAIL | Y25: 0.5 | Z25: 0.5 | AA25: F | AB25: SALOMON EXO EVAC ANNECY | AC25: 0.5 | AD25: 0.5 | AE25: F | AF25: TSE I03PRIMO NOYELLES GODAULT (62) | AG25: 0.5 | AH25: 0.5 | AI25: F | AJ25: SALOMON EXO EVAC ANNECY | AK25: 0.5 | AL25: 0.5 | AM25: F | AN25: CERP SST01 PLESSIS ROBINSON | AO25: 0.5 | AP25: 0.5 | AQ25: ANNULE | AS25: 0.5 | AW25: 0.5
C26: pm | E26: 0.5 | F26: 0.5 | H26: ST MICRO PARIS 4 sessions EPI voir horaires planning | I26: 0.5 | K26: F | M26: 0.5 | P26: EHPAD PEYSSON ROMAN SUR ISERE (26) 450 € EPI MSR | Q26: 0.5 | R26: 0.5 | S26: F | T26: ORANGE 2 EPI 1H30 TOULOUSE | U26: 0.5 | V26: 0.5 | W26: F | Y26: 0.5 | Z26: 0.5 | AB26: ROUTE | AC26: 0.5 | AD26: 0.5 | AF26: TSE I03PRIMO NOYELLES GODAULT (62) | AG26: 0.5 | AH26: 0.5 | AI26: F | AJ26: ROUTE | AK26: 0.5 | AL26: 0.5 | AN26: CERP SST01 PLESSIS ROBINSON | AO26: 0.5 | AP26: 0.5 | AQ26: ANNULE | AS26: 0.5 | AW26: 0.5
B27: 2017-06-16 | C27: am | D27: ST MICRO CROLLES 4 sessions EPI voir horaires planning | E27: 0.5 | F27: 0.5 | G27: F | I27: 0.5 | M27: 0.5 | P27: CP | T27: ORANGE 2 EPI 1H30 TOULOUSE réf commande 61547556 | U27: 0.5 | V27: 0.5 | W27: F | X27: EHPAD LA PROVIDENCE 1 EPI 3H00 AUTUN (71) | Y27: 0.5 | Z27: 0.5 | AA27: F | AC27: 0.5 | AF27: PCDL à Le Genest St isle (53) i03 9h-12h | AG27: 0.5 | AI27: F | AJ27: BUREAU | AK27: 0.5 | AN27: CERP SST01 PLESSIS ROBINSON | AO27: 0.5 | AP27: 0.5 | AQ27: ANNULE | AS27: 0.5 | AW27: 0.5
C28: pm | E28: 0.5 | F28: 0.5 | I28: 0.5 | M28: 0.5 | P28: CP | T28: ORANGE 2 EPI 1H30 TOULOUSE | U28: 0.5 | V28: 0.5 | W28: F | Y28: 0.5 | AC28: 0.5 | AG28: 0.5 | AJ28: 14h rdv CER BELBEUF avec ANAIS | AK28: 0.5 | AN28: CERP SST01 PLESSIS ROBINSON | AO28: 0.5 | AP28: 0.5 | AQ28: ANNULE | AS28: 0.5 | AW28: 0.5
A29: 25 | B29: 2017-06-19 | C29: am | D29: ST MICRO GRENOBLE 4 sessions EPI voir horaire planning | E29: 0.5 | F29: 0.5 | G29: F | H29: Renault 2 EPI 1H30 plessis robinson 92 | I29: 0.5 | J29: 0.5 | K29: F | M29: 0.5 | P29: C. HOSPITALIER ISSOIRE (63) FORINCI13H - 3h30 | Q29: 0.5 | R29: 0.5 | S29: F | U29: 0.5 | Y29: 0.5 | AB29: VACANCES | AF29: MILTON ROY I110 RECYCLAGE PONT SAINT PIERRE 27 | AG29: 0.5 | AH29: 0.5 | AI29: report | AJ29: Trajet vers La Guerche | AK29: 0.5 | AN29: APTAR I06 LE NEUBOURG | AO29: 0.5 | AP29: 0.5 | AQ29: F | AS29: 0.5 | AW29: 0.5
C30: pm | E30: 0.5 | F30: 0.5 | H30: Renault 2 EPI 1H30 plessis robinson 92 | I30: 0.5 | J30: 0.5 | K30: F | M30: 0.5 | Q30: 0.5 | T30: ROUTE | U30: 0.5 | V30: 0.5 | X30: OKKO HOTEL 1EPI + SSI LYON | Y30: 0.5 | Z30: 0.5 | AA30: F | AB30: VACANCES | AF30: MILTON ROY I110 RECYCLAGE PONT SAINT PIERRE 27 | AG30: 0.5 | AH30: 0.5 | AI30: report | AJ30: ROUTE vers Trevou | AK30: 0.5 | AL30: 0.5 | AN30: APTAR I06 LE NEUBOURG | AO30: 0.5 | AP30: 0.5 | AQ30: F | AS30: 0.5 | AW30: 0.5
B31: 2017-06-20 | C31: am | D31: ST MICRO GRENOBLE 4 sessions EPI voir horaire planning | E31: 0.5 | F31: 0.5 | G31: F | H31: SANOFI 6 EPI 1h GENTILLY (94) n° commande : E000286591 | I31: 0.5 | J31: 0.5 | K31: F | M31: 0.5 | P31: EHPAD ARLANC I13H 4H ARLANC | Q31: 0.5 | R31: 0.5 | S31: F | T31: FUAJ 2 EPI 1H30 LILLE (59) | U31: 0.5 | V31: 0.5 | W31: F | X31: SERENIDES LES CAMPANULES CHAPELLE EN VERCORS (26) 450€ | Y31: 0.5 | Z31: 0.5 | AA31: F | AB31: VACANCES | AJ31: FOYER DU LOGEMENT I12+i203R TREVOU TREGUINEC (29) | AK31: 0.5 | AL31: 0.5 | AM31: F | AN31: i04x2 chez delifrance à martainville (76) | AO31: 0.5 | AQ31: F | AS31: 0.5 | AW31: 0.5
C32: pm | E32: 0.5 | F32: 0.5 | I32: 0.5 | J32: 0.5 | K32: F | M32: 0.5 | P32: EHPAD VIVEROLLES I13H 4H VIVEROLLES | Q32: 0.5 | R32: 0.5 | T32: FUAJ i202 3H LILLE (59) | U32: 0.5 | V32: 0.5 | W32: F | Y32: 0.5 | Z32: 0.5 | AB32: VACANCES | AG32: 0.5 | AH32: 0.5 | AJ32: ROUTE | AK32: 0.5 | AL32: 0.5 | AO32: 0.5 | AS32: 0.5 | AW32: 0.5
B33: 2017-06-21 | C33: am | D33: UM EP 03 MOUGINS (06) 1 sessions 3h HP ENTERPRISE réf commande 149002 | E33: 0.5 | F33: 0.5 | G33: F | H33: SANOFI 6 EPI 1h GENTILLY (94) n° commande : E000286591 | I33: 0.5 | J33: 0.5 | K33: F | M33: 0.5 | P33: Candia 4 EPI 1h30 Clermond (63) | Q33: 0.5 | R33: 0.5 | S33: F | T33: ROUTE | U33: 0.5 | V33: 0.5 | X33: THERMAL CERAMICS 1 epi 2H St Marcellin En Forez (42) | Y33: 0.5 | Z33: 0.5 | AA33: F | AB33: VACANCES | AF33: La Pataterie I04 - 10h à 11h30 Laval 53 | AG33: 0.5 | AH33: 0.5 | AI33: report | AJ33: LIGUE HAVRAISE I206 LE HAVRE | AK33: 0.5 | AL33: 0.5 | AM33: F | AN33: i204r LEROY MERLIN TOURVILLE LA RIVIERE (avec AM ) 9H10 | AO33: 0.5 | AQ33: F | AS33: 0.5 | AW33: 0.5
C34: pm | D34: HP Mougins i203 à 14h exercice d'évacuation avec débriefing Réf commande : HPE515322 | E34: 0.5 | F34: 0.5 | G34: F | I34: 0.5 | J34: 0.5 | M34: 0.5 | Q34: 0.5 | R34: 0.5 | U34: 0.5 | Y34: 0.5 | AB34: VACANCES | AF34: ROUTE | AG34: 0.5 | AJ34: LIGUE HAVRAISE I206 LE HAVRE | AK34: 0.5 | AL34: 0.5 | AM34: F | AN34: atelier et rapports | AO34: 0.5 | AS34: 0.5 | AW34: 0.5
B35: 2017-06-22 | C35: am | D35: ORANGE 2 EPI 1H30 NICE SOPHIA Réf commande 61553145 | E35: 0.5 | F35: 0.5 | G35: F | H35: SANOFI 6 EPI 1h GENTILLY (94) n° commande : E000286591 | I35: 0.5 | J35: 0.5 | K35: F | M35: 0.5 | P35: EHPAD LA FEUILLERAIE 1 EPI 3H RAZAC (24) VOIR CONTACT MAIL | Q35: 0.5 | R35: 0.5 | S35: F | T35: CAROLL 2 EPI 1h30 ASCOUX (45) | U35: 0.5 | V35: 0.5 | W35: F | Y35: 0.5 | AB35: VACANCES | AF35: GEMY à Vannes (56) | AI35: F | AJ35: SKF CM104 Saint Marcel (27) | AK35: 0.5 | AM35: F | AN35: FERRERO SST02 GRAND QUEVILLY | AO35: 0.5 | AP35: 0.5 | AQ35: F | AS35: 0.5 | AV35: Formation comportement sécuritaire 7h novo nordisk à chartres | AW35: 0.5 | AX35: 0.5 | AY35: F
C36: pm | E36: 0.5 | I36: 0.5 | J36: 0.5 | M36: 0.5 | P36: EHPAD LA FEUILLERAIE 1 EPI 3H RAZAC (24) VOIR CONTACT MAIL | Q36: 0.5 | R36: 0.5 | S36: F | T36: CAROLL 2 EPI 1h30 ASCOUX (45) | U36: 0.5 | V36: 0.5 | W36: F | X36: EHPAD BEAUSOLEIL MOURS ST EUSEBE (26) 450€ | Y36: 0.5 | Z36: 0.5 | AA36: F | AB36: VACANCES | AF36: ROUTE | AG36: 0.5 | AJ36: SKF CM104 Saint Marcel (27) | AK36: 0.5 | AM36: F | AN36: FERRERO SST02 GRAND QUEVILLY | AO36: 0.5 | AP36: 0.5 | AQ36: F | AS36: 0.5 | AW36: 0.5 | AX36: 0.5 | AY36: F
B37: 2017-06-23 | C37: am | D37: Intermarche EPI 1h30 + i207 Marseille saint loup | E37: 0.5 | F37: 0.5 | G37: F | I37: 0.5 | M37: 0.5 | P37: CP | T37: CAROLL 2 EPI 1h30 ASCOUX (45) | U37: 0.5 | V37: 0.5 | W37: F | Y37: 0.5 | AB37: VACANCES | AF37: Orange évac Boulogne Billancourt (92) | AG37: 0.5 | AI37: F | AJ37: leroy merlin isneauville CM05 | AK37: 0.5 | AM37: F | AN37: MF Production I06 Maromme | AO37: 0.5 | AQ37: F | AS37: 0.5 | AW37: 0.5
C38: pm | D38: ROUTE | E38: 0.5 | F38: 0.5 | H38: ROUTE | I38: 0.5 | J38: 0.5 | M38: 0.5 | P38: CP | T38: CAROLL 2 EPI 1h30 ASCOUX (45) | U38: 0.5 | V38: 0.5 | W38: F | X38: GERONDINES LOUISE MICHEL PORTE LES VALENCE (26) 450€ | Y38: 0.5 | Z38: 0.5 | AA38: F | AB38: VACANCES | AG38: 0.5 | AJ38: leroy merlin isneauville CM05 | AK38: 0.5 | AM38: F | AN38: MF Production I06 Maromme | AO38: 0.5 | AQ38: F | AS38: 0.5 | AW38: 0.5
A39: 26 | B39: 2017-06-26 | C39: am | E39: 0.5 | H39: Renault 2 sessions guyancourt(78) | I39: 0.5 | J39: 0.5 | K39: F | M39: 0.5 | P39: CP | T39: CENTRE DES FINANCES 2EPI 1H30 NANTERRE | U39: 0.5 | V39: 0.5 | W39: F | X39: BiODERMA MAC SST02 LYON | Y39: 0.5 | Z39: 0.5 | AA39: F | AB39: VACANCES | AF39: RTT | AJ39: Dieppe - Sécurité Routière | AK39: 0.5 | AM39: F | AN39: FERRERO SST01 GRAND QUEVILLY | AO39: 0.5 | AP39: 0.5 | AQ39: F | AS39: 0.5 | AW39: 0.5
C40: pm | D40: UM EP 03 BOULOGNE-BILL (92) 1 sessions 3h HP ENTERPRISE Commande 149003 | E40: 0.5 | F40: 0.5 | G40: F | H40: Renault 2 sessions guyancourt (78) | I40: 0.5 | J40: 0.5 | K40: F | M40: 0.5 | P40: CP | T40: ROUTE | U40: 0.5 | X40: BiODERMA MAC SST02 LYON | Y40: 0.5 | Z40: 0.5 | AA40: F | AB40: VACANCES | AF40: RTT | AK40: 0.5 | AN40: FERRERO SST01 GRAND QUEVILLY | AO40: 0.5 | AP40: 0.5 | AQ40: F | AS40: 0.5 | AW40: 0.5
B41: 2017-06-27 | C41: am | D41: AIRPORT COLLEGE 2 sessions de 1h30 ORLY | E41: 0.5 | F41: 0.5 | G41: F | H41: SANOFI 4 EPI 1H30 92 ANTONY n°commande : E000352346 | I41: 0.5 | J41: 0.5 | K41: F | P41: SFP Préparation Advantages Nanterre (92) | Q41: 0.5 | R41: 0.5 | T41: OTV 4 sessions de 1h30 garges les gonnesses 95140 | U41: 0.5 | V41: 0.5 | W41: F | Y41: 0.5 | AB41: VACANCES | AF41: comcom montauban maison du développement i03 à montauban de bretagne (35) de 9h à 12h | AG41: 0.5 | AI41: F | AJ41: VPI Le Havre 9H-12 13H-17H CM402 Le Havre | AK41: 0.5 | AM41: F | AN41: FERRERO SST01 GRAND QUEVILLY | AO41: 0.5 | AP41: 0.5 | AQ41: F | AS41: 0.5 | AW41: 0.5
C42: pm | D42: AIRPORT COLLEGE 2 sessions de 1h30 ORLY | E42: 0.5 | F42: 0.5 | G42: F | I42: 0.5 | J42: 0.5 | P42: SFP Préparation Advantages Nanterre (92) | Q42: 0.5 | R42: 0.5 | T42: OTV 4 sessions de 1h30 garges les gonnesses 95140 | U42: 0.5 | V42: 0.5 | W42: F | X42: EHPAD DAUPHINE ROMANS SUR ISERE (26) 450€ | Y42: 0.5 | Z42: 0.5 | AA42: F | AB42: VACANCES | AG42: 0.5 | AJ42: VPI Le Havre CM402 Le Havre | AK42: 0.5 | AM42: F | AN42: FERRERO SST01 GRAND QUEVILLY | AO42: 0.5 | AP42: 0.5 | AQ42: F | AS42: 0.5 | AW42: 0.5
B43: 2017-06-28 | C43: am | D43: ORANGE 2 EPI 1H30 REIMS (51) ref commande : 61540173 | E43: 0.5 | F43: 0.5 | G43: F | H43: SANOFI 4 EPI 1H30 92 ANTONY n°commande : E000352346 | I43: 0.5 | J43: 0.5 | K43: F | P43: Candia ESI RECYCLAGE Clermond (63) N° commande : 2017-02 742 | Q43: 0.5 | R43: 0.5 | S43: F | T43: Hopital de navarre 2 EPI 1h30 BERNAY 27 | U43: 0.5 | W43: F | X43: MDR SEVIGNE SST MAC ST MARTIN VIGNOUX (38) | Y43: 0.5 | Z43: 0.5 | AA43: F | AB43: VACANCES | AF43: recyclage N2 | AJ43: SKF CM104 Saint Marcel (27) SUITE DU 22/06 | AK43: 0.5 | AM43: F | AN43: Pisicine Grenouillière PI - 12h45 à 14h45 Antony | AO43: 0.5 | AQ43: reporte | AS43: 0.5 | AW43: 0.5
C44: pm | D44: ORANGE 2 EPI 1H30 REIMS (51) | E44: 0.5 | F44: 0.5 | G44: F | I44: 0.5 | J44: 0.5 | L44: BIC I204R Clichy | M44: 0.5 | N44: 0.5 | O44: REPORTE | Q44: 0.5 | R44: 0.5 | T44: Hopital de navarre 2 EPI 1h30 BERNAY 27 | U44: 0.5 | W44: F | Y44: 0.5 | Z44: 0.5 | AB44: VACANCES | AF44: recyclage N2 | AG44: 0.5 | AJ44: SKF CM104 Saint Marcel (27) SUITE DU 22/06 | AK44: 0.5 | AM44: F | AN44: ROUTE | AS44: 0.5 | AW44: 0.5
B45: 2017-06-29 | C45: am | D45: GPA (groupement pétrolier aviation) 4 sessions EPI Roissy | E45: 0.5 | F45: 0.5 | G45: F | H45: SANOFI 4 EPI 1H30 92 ANTONY n°commande : E000352346 | I45: 0.5 | J45: 0.5 | K45: F | L45: FAIRE TRANSITER LE CM2 | M45: 0.5 | P45: FARTO 4 SESSIONS EPI THONES 74 | Q45: 0.5 | R45: 0.5 | S45: F | T45: Hopital de navarre 2 EPI 1h30 BERNAY 27 | U45: 0.5 | W45: F | Y45: 0.5 | AB45: VACANCES | AF45: recyclage N2 | AJ45: VACANCES | AN45: Tipiak I105 Pont l'Evèque | AO45: 0.5 | AQ45: F | AS45: 0.5 | AW45: 0.5
C46: pm | E46: 0.5 | F46: 0.5 | I46: 0.5 | J46: 0.5 | M46: 0.5 | P46: FARTO 4 SESSIONS EPI THONES 74 | Q46: 0.5 | R46: 0.5 | S46: F | T46: Hopital de navarre 2 EPI 1h30 BERNAY 27 | U46: 0.5 | W46: F | X46: SERENIDES LES CAMPANULES CHAPELLE EN VERCORS (26) 450€ | Y46: 0.5 | Z46: 0.5 | AA46: F | AB46: VACANCES | AF46: recyclage N2 | AJ46: VACANCES | AN46: Tipiak I105 Pont l'Evèque | AO46: 0.5 | AQ46: F | AS46: 0.5 | AW46: 0.5
B47: 2017-06-30 | C47: am | D47: AIRPORT COLLEGE 2 sessions de 3h00 ROISSY | E47: 0.5 | F47: 0.5 | G47: F | I47: 0.5 | M47: 0.5 | P47: TSE EPY PYROS I04 09h à 11h GENAS 69 | Q47: 0.5 | R47: 0.5 | S47: F | T47: EHPAD LES POMMERIS EPI 3H VALLIERES LES GRANDES (41) | U47: 0.5 | V47: 0.5 | W47: F | X47: Candia SST MAC Clermond (63) | Y47: 0.5 | Z47: 0.5 | AA47: REPORTE | AB47: VACANCES | AF47: Tipiak SST02 Pont l'évèque | AG47: 0.5 | AI47: F | AJ47: VACANCES | AN47: ATELIER | AO47: 0.5 | AS47: 0.5 | AW47: 0.5 | AZ47: FERRERO CARROS EPI I03 à 10h ou 14H 06510 carros | BA47: F
C48: pm | D48: AIRPORT COLLEGE 2 sessions de 3h00 ROISSY | E48: 0.5 | F48: 0.5 | G48: F | I48: 0.5 | M48: 0.5 | P48: TSE EPY PYROS I04 12h à 14h GENAS 69 | Q48: 0.5 | R48: 0.5 | S48: F | T48: EHPAD LES POMMERIS Evac Horiz Ets S&S 3h VALLIERES LES GRANDES (41) | U48: 0.5 | V48: 0.5 | W48: F | X48: Candia SST MAC Clermond (63) | Y48: 0.5 | Z48: 0.5 | AA48: REPORTE | AB48: VACANCES | AF48: Tipiak SST02 Pont l'évèque | AG48: 0.5 | AI48: F | AJ48: VACANCES | AN48: CCAS La Madeleine I03 evreux 14h à 17h | AO48: 0.5 | AQ48: C+BL | AS48: 0.5 | AW48: 0.5

Sheet Feuil1
